Workbook

Sheet Function (hidden)
E1: =H114 -> UTAH | F1: =+H114 -> UTAH | G1: =C109 -> 2020 PROTOCOL | R1: UNADJUSTED RESULTS OF OPERATIONS
R2: =Variables!AE27 -> 2020 PROTOCOL
E3: Function | F3: Description | I3: Production | J3: Transmission | K3: Distribution | L3: Poles & Wires | M3: Customer | N3: Misc | O3: Total | R3: =Variables!AE28 ->  | AN3: JAMLINKjars
E4: ACCMDIT | F4: Deferred Income Tax - Balance | I4: =T61 -> 0.8459847134 | J4: -0.04897809794 | K4: 0.2029933846 | L4: 0.1947255423 | M4: 0.008267842287 | N4: 0 | O4: =SUM(I4:K4) -> 1 | P4: =K4-L4-M4-N4 -> 1.734723476e-18 | AN4: =+I4 -> 0.8459847134 | AO4: -0.04897809794 | AP4: 0.2029933846 | AQ4: 0.1947255423 | AR4: 0.008267842287 | AS4: 0 | AT4: =Report!P192 -> 754492620.2
E5: BOOKDEPR | F5: Book Depreciation | I5: 0.5333088308 | J5: 0.1666185282 | K5: =L5+M5+N5 -> 0.300072641 | L5: 0.296637073 | M5: 0.003435567996 | N5: 0 | O5: 1 | P5: -1.734723476e-17 | U5: PACIFICORP | V5: PACIFICORP | AN5: 0.5333088308 | AO5: 0.1666185282 | AP5: 0.300072641 | AQ5: 0.296637073 | AR5: 0.003435567996 | AS5: 0 | AT5: =Report!P193 -> 0
C6: N/A | E6: COM_EQ | F6: Communication Equipment Acct 397 | I6: 0 | J6: 0 | K6: =L6+M6+N6 -> 0 | L6: 0 | M6: 0 | N6: 0 | O6: 0 | P6: 0 | R6: FERC | S6: DESCRIPTION | U6: LABOR | V6: O&M | AN6: 0 | AO6: 0 | AP6: 0 | AQ6: 0 | AR6: 0 | AS6: 0 | AT6: =Report!P194 -> 754492620.2
E7: CUST | F7: Distribution Retail | I7: 0 | J7: 0 | K7: =L7+M7+N7 -> 1 | L7: 0 | M7: 1 | N7: 0 | O7: 1 | P7: 0 | R7: ACCT | U7: ONLY | V7: TOTAL | W7: =Variables!X24 -> UTAH | AN7: 0 | AO7: 0 | AP7: 1 | AQ7: 0 | AR7: 1 | AS7: 0 | AT7: =Report!P195 -> 0
E8: CWC | F8: Cash Working Capital | I8: =T58/$S58 -> 0.6716906661 | J8: =U58/$S58 -> 0.1247877472 | K8: =SUM(L8:N8) -> 0.2035215867 | L8: =W58/$S58 -> 0.1573024745 | M8: =X58/$S58 -> 0.05206954124 | N8: =Y58/$S58 -> -0.005850429115 | O8: 1 | P8: 0 | AN8: 0.6716906661 | AO8: 0.1247877472 | AP8: 0.2035215867 | AQ8: 0.1573024745 | AR8: 0.05206954124 | AS8: -0.005850429115 | AT8: =Report!P196 -> 0
E9: DDS2 | F9: Deferred Debits - Situs | I9: 0.8654170763 | J9: 0.01134440937 | K9: =L9+M9+N9 -> 0.1232385143 | L9: 0.007189450857 | M9: 0.1453915654 | N9: -0.02934250188 | O9: 1 | P9: 0 | AN9: 0.8654170763 | AO9: 0.01134440937 | AP9: 0.1232385143 | AQ9: 0.007189450857 | AR9: 0.1453915654 | AS9: -0.02934250188 | AT9: =Report!P197 -> 1240596131
E10: DDS6 | F10: Deferred Debits - Situs | I10: 0 | J10: 0 | K10: =L10+M10+N10 -> 0 | L10: 0 | M10: 0 | N10: 0 | O10: 0 | P10: 0 | R10: NET PRODUCTION EXPENSE | U10: 90698845 | V10: =URO!I674 -> 1900483276 | W10: =IF(Variables!AO3=12,URO!N674+URO!Q674,CHOOSE(Variables!AO3,URO!J674,URO!K674,URO!L674,URO!M674,URO!N674,URO!O674,URO!P674,URO!Q674,URO!R674,URO!S674,URO!T674)) -> 855588218.4 | AN10: 0 | AO10: 0 | AP10: 0 | AQ10: 0 | AR10: 0 | AS10: 0 | AT10: =Report!P198 -> 0
E11: DDSO2 | F11: Deferred Debits - System Overhead | I11: 0.1117746861 | J11: 0.03725822871 | K11: =L11+M11+N11 -> 0.8509670852 | L11: 0.2235493722 | M11: 0 | N11: 0.6274177129 | O11: 1 | P11: 0 | R11: NET TRANSMISSION EXPENSE | U11: 10748429 | V11: =URO!I775 -> 222364388.3 | W11: =IF(Variables!AO3=12,URO!N775+URO!Q775,CHOOSE(Variables!AO3,URO!J775,URO!K775,URO!L775,URO!M775,URO!N775,URO!O775,URO!P775,URO!Q775,URO!R775,URO!S775,URO!T775)) -> 97790013.51 | AN11: 0.1117746861 | AO11: 0.03725822871 | AP11: 0.8509670852 | AQ11: 0.2235493722 | AR11: 0 | AS11: 0.6274177129 | AT11: =Report!P199 -> 0
E12: DDSO6 | F12: Deferred Debits - System Overhead | I12: 0 | J12: 0 | K12: =L12+M12+N12 -> 0 | L12: 0 | M12: 0 | N12: 0 | O12: 0 | P12: 0 | R12: TOTAL DISTRIBUTION EXPENSE | U12: =U18 -> 82047328 | V12: =V18 -> 401935404.3 | W12: =W18 -> 133519262.9 | AN12: 0 | AO12: 0 | AP12: 0 | AQ12: 0 | AR12: 0 | AS12: 0 | AT12: =Report!P200 -> 0
E13: DEFSG | F13: Deferred Debit - System Generation | I13: 0.6346481617 | J13: 0.3653518383 | K13: =L13+M13+N13 -> 0 | L13: 0 | M13: 0 | N13: 0 | O13: 1 | P13: 0 | R13: TOTAL | U13: =SUM(U10:U12) -> 183494602 | V13: =SUM(V10:V12) -> 2524783068 | W13: =SUM(W10:W12) -> 1086897495 | AN13: 0.6346481617 | AO13: 0.3653518383 | AP13: 0 | AQ13: 0 | AR13: 0 | AS13: 0 | AT13: =Report!P201 -> 0
C14: N/A | E14: DITEXP | F14: Deferred Income Tax - Expense | I14: 0 | J14: 0 | K14: 0 | L14: 0 | M14: 0 | N14: 0 | O14: 0 | P14: 0 | AN14: 0 | AO14: 0 | AP14: 0 | AQ14: 0 | AR14: 0 | AS14: 0 | AT14: =Report!P202 -> 1240596131
E15: DMSC | F15: Distribution Miscellaneous | I15: 0 | J15: 0 | K15: =L15+M15+N15 -> 1 | L15: 0 | M15: 0 | N15: 1 | O15: =SUM(I15:K15) -> 1 | P15: 0 | R15: POLES & WIRES | U15: 45597212 | V15: =URO!I876 -> 216090157.9 | W15: =IF(Variables!AO3=12,URO!N876+URO!Q876,CHOOSE(Variables!AO3,URO!J876,URO!K876,URO!L876,URO!M876,URO!N876,URO!O876,URO!P876,URO!Q876,URO!R876,URO!S876,URO!T876)) -> 91150977.97 | AN15: 0 | AO15: 0 | AP15: 1 | AQ15: 0 | AR15: 0 | AS15: 1 | AT15: =Report!P203 -> 0
E16: DPW | F16: Distribution Poles & Wires | I16: 0 | J16: 0 | K16: =L16+M16+N16 -> 1 | L16: 1 | M16: 0 | N16: 0 | O16: 1 | P16: 0 | R16: Customers | U16: 36450116 | V16: =URO!I911+URO!I980 -> 185845246.4 | W16: =IF(Variables!AO3=12,URO!N911+URO!N980+URO!Q911+URO!Q980,CHOOSE(Variables!AO3,URO!J911+URO!J980,URO!K911+URO!K980,URO!L911+URO!L980,URO!M911+URO!M980,URO!N911+URO!N980,URO!O911+URO!O980,URO!P911+URO!P980,URO!Q911+URO!Q980,URO!R911+URO!R980,URO!S911+URO!S980,URO!T911+URO!T980)) -> 42368284.93 | AN16: 0 | AO16: 0 | AP16: 1 | AQ16: 1 | AR16: 0 | AS16: 0 | AT16: =Report!P204 -> 0
E17: ESD | F17: Environmental Services Department | I17: 0.3 | J17: 0.1 | K17: =L17+M17+N17 -> 0.6 | L17: 0.6 | M17: 0 | N17: 0 | O17: 1 | P17: 0 | R17: MISC | U17: 0 | V17: 0 | W17: 0 | AN17: 0.3 | AO17: 0.1 | AP17: 0.6 | AQ17: 0.6 | AR17: 0 | AS17: 0 | AT17: =Report!P205 -> 6607193.901
E18: FERC | F18: FERC Fees | I18: 0.5372886628 | J18: 0.4627113372 | K18: =L18+M18+N18 -> 0 | L18: 0 | M18: 0 | N18: 0 | O18: 1 | P18: 0 | R18: TOTAL DISTRIBUTION | U18: =SUM(U15:U17) -> 82047328 | V18: =SUM(V15:V17) -> 401935404.3 | W18: =SUM(W15:W17) -> 133519262.9 | AN18: 0.5372886628 | AO18: 0.4627113372 | AP18: 0 | AQ18: 0 | AR18: 0 | AS18: 0 | AT18: =Report!P206 -> 0
E19: FIT | F19: Federal Income Taxes | I19: =I1445/$H1445 -> 2.986426949 | J19: =J1445/$H1445 -> -0.01348734134 | K19: =SUM(L19:N19) -> -0.5187747939 | L19: =L1445/$H1445 -> -0.5460463274 | M19: =M1445/$H1445 -> -0.1746631059 | N19: =N1445/$H1445 -> 0.2019346394 | O19: 2.454164814 | P19: 0 | AN19: 2.986426949 | AO19: -0.01348734134 | AP19: -0.5187747939 | AQ19: -0.5460463274 | AR19: -0.1746631059 | AS19: 0.2019346394 | AT19: =Report!P207 -> 6607193.901
E20: G | F20: General Plant | I20: 0.2328424472 | J20: 0.2990202444 | K20: =L20+M20+N20 -> 0.4681373084 | L20: 0.4419311617 | M20: 0.02620614672 | N20: 0 | O20: 1 | P20: 3.469446952e-18 | AN20: =+I20 -> 0.2328424472 | AO20: 0.2990202444 | AP20: 0.4681373084 | AQ20: 0.4419311617 | AR20: 0.02620614672 | AS20: 0 | AT20: =Report!P208 -> 0
E21: G-DGP | F21: General Plant - DGP Factor | I21: 0.6855986064 | J21: 0.3144013936 | K21: =L21+M21+N21 -> 0 | L21: 0 | M21: 0 | N21: 0 | O21: 1 | P21: 0 | R21: LABOR/O&M | AN21: 0.6855986064 | AO21: 0.3144013936 | AP21: 0 | AQ21: 0 | AR21: 0 | AS21: 0 | AT21: =Report!P209 -> 0
E22: G-DGU | F22: General Plant - DGU Factor | I22: 0.6855986064 | J22: 0.3144013936 | K22: =L22+M22+N22 -> 0 | L22: 0 | M22: 0 | N22: 0 | O22: 1 | P22: 0 | R22: NET PRODUCTION EXPENSE | U22: =U10/U$13 -> 0.4942861752 | V22: 0.7527313137 | W22: =W10/W$13 -> 0.7871839088 | AN22: 0.6855986064 | AO22: 0.3144013936 | AP22: 0 | AQ22: 0 | AR22: 0 | AS22: 0 | AT22: =Report!P210 -> 0
E23: GP | F23: Total Plant | I23: 0.5092664563 | J23: 0.2157600698 | K23: 0.2749734739 | L23: 0.268675091 | M23: 0.006298382938 | N23: 0 | O23: 1 | P23: 2.255140519e-17 | R23: NET TRANSMISSION EXPENSE | U23: 0.05857626809 | V23: 0.08807267089 | W23: =W11/W$13 -> 0.08997169832 | AN23: 0.5092664563 | AO23: 0.2157600698 | AP23: 0.2749734739 | AQ23: 0.268675091 | AR23: 0.006298382938 | AS23: 0 | AT23: =Report!P211 -> 0
E24: G-SG | F24: General Plant - SG Factor | I24: 0.4715666024 | J24: 0.5284333976 | K24: 0 | L24: 0 | M24: 0 | N24: 0 | O24: =SUM(I24:K24) -> 1 | P24: 0 | R24: TOTAL DISTRIBUTION EXPENSE | U24: 0.4471375567 | V24: 0.1591960154 | W24: =W12/W$13 -> 0.1228443929 | AN24: 0.4715666024 | AO24: 0.5284333976 | AP24: 0 | AQ24: 0 | AR24: 0 | AS24: 0 | AT24: =Report!P212 -> 0
E25: G-SITUS | F25: General Plant - SITUS Factor | I25: 0 | J25: 0.2571292981 | K25: 0.7428707019 | L25: 0.7428707019 | M25: 0 | N25: 0 | O25: 1 | P25: 0 | R25: TOTAL | U25: 1 | V25: 1 | W25: =W13/W$13 -> 1 | AN25: 0 | AO25: 0.2571292981 | AP25: 0.7428707019 | AQ25: 0.7428707019 | AR25: 0 | AS25: 0 | AT25: =Report!P213 -> 0
E26: I | F26: Intangible Plant | I26: 0.5565693786 | J26: 0.1476908877 | K26: 0.2957397337 | L26: 0.1412390394 | M26: 0.1545006943 | N26: 0 | O26: 1 | P26: 0 | AN26: 0.5565693786 | AO26: 0.1476908877 | AP26: 0.2957397337 | AQ26: 0.1412390394 | AR26: 0.1545006943 | AS26: 0 | AT26: =Report!P214 -> 0
E27: IBT | F27: Income Before Taxes | I27: =I1430/$H1430 -> -5.053225545 | J27: =J1430/$H1430 -> 0.0424012111 | K27: =SUM(L27:N27) -> 1.630912942 | L27: =L1430/$H1430 -> 1.716648597 | M27: =M1430/$H1430 -> 0.5491020828 | N27: =N1430/$H1430 -> -0.6348377382 | O27: -3.379911392 | P27: 0 | R27: POLES & WIRES | U27: =U15/U$13 -> 0.2484934788 | V27: 0.0855876137 | W27: =W15/W$13 -> 0.08386345392 | AN27: -5.053225545 | AO27: 0.0424012111 | AP27: 1.630912942 | AQ27: 1.716648597 | AR27: 0.5491020828 | AS27: -0.6348377382 | AT27: =Report!P215 -> 0
E28: I-DGP | F28: Intangible Plant - DGP Factor | I28: 1 | J28: 0 | K28: =L28+M28+N28 -> 0 | L28: 0 | M28: 0 | N28: 0 | O28: 1 | P28: 0 | R28: RETAIL | U28: 0.1986440778 | V28: 0.07360840173 | W28: =W16/W$13 -> 0.03898093899 | AN28: 1 | AO28: 0 | AP28: 0 | AQ28: 0 | AR28: 0 | AS28: 0 | AT28: =Report!P216 -> 0
E29: I-DGU | F29: Intangible Plant - DGU Factor | I29: 1 | J29: 0 | K29: 0 | L29: 0 | M29: 0 | N29: 0 | O29: 1 | P29: 0 | R29: MISC | U29: 0 | V29: 0 | W29: =W17/W$13 -> 0 | AN29: 1 | AO29: 0 | AP29: 0 | AQ29: 0 | AR29: 0 | AS29: 0 | AT29: =Report!P217 -> 0
E30: I-SG | F30: Intangible Plant - SG Factor | I30: 0.8545976251 | J30: 0.1454023749 | K30: 0 | L30: 0 | M30: 0 | N30: 0 | O30: 1 | P30: 0 | R30: TOTAL DISTRIBUTION | U30: =U18/U13 -> 0.4471375567 | V30: =V18/V13 -> 0.1591960154 | W30: =W18/W13 -> 0.1228443929 | AN30: 0.8545976251 | AO30: 0.1454023749 | AP30: 0 | AQ30: 0 | AR30: 0 | AS30: 0 | AT30: =Report!P218 -> 0
E31: I-SITUS | F31: Intangible Plant - SITUS Factor | I31: 0.0276342919 | J31: 0.4679663045 | K31: 0.5043994036 | L31: 0.5043994036 | M31: 0 | N31: 0 | O31: 1 | P31: 0 | AN31: 0.0276342919 | AO31: 0.4679663045 | AP31: 0.5043994036 | AQ31: 0.5043994036 | AR31: 0 | AS31: 0 | AT31: =Report!P219 -> 2001695945
E32: LABOR | F32: Direct Labor Expense | I32: 0.4271290455 | J32: 0.06855059318 | K32: 0.5043203613 | L32: 0.3553382213 | M32: 0.14898214 | N32: 0 | O32: 1 | P32: 5.551115123e-17 | AN32: 0.4271290455 | AO32: 0.06855059318 | AP32: 0.5043203613 | AQ32: 0.3553382213 | AR32: 0.14898214 | AS32: 0 | AT32: =Report!P220 -> 0
E33: MSS | F33: Materials & Supplies | I33: 0.8430955205 | J33: 0.00648440484 | K33: 0.1504200747 | L33: 0.1504200747 | M33: 0 | N33: 0 | O33: 1 | P33: 0 | R33: TOTAL PRODUCTION PLANT | V33: =URO!I1722 -> 1.355713816e+10 | W33: =IF(Variables!AO3=12,URO!N1722+URO!Q1722,CHOOSE(Variables!AO3,URO!J1722,URO!K1722,URO!L1722,URO!M1722,URO!N1722,URO!O1722,URO!P1722,URO!Q1722,URO!R1722,URO!S1722,URO!T1722)) -> 5964742813 | AN33: 0.8430955205 | AO33: 0.00648440484 | AP33: 0.1504200747 | AQ33: 0.1504200747 | AR33: 0 | AS33: 0 | AT33: =Report!P221 -> 0
E34: NONE | F34: Not Functionalized | I34: 0 | J34: 0 | K34: =L34+M34+N34 -> 0 | L34: 0 | M34: 0 | N34: 0 | O34: 0 | P34: 0 | R34: TOTAL TRANSMISSION PLANT | V34: =URO!I1786 -> 7654614110 | W34: =IF(Variables!AO3=12,URO!N1786+URO!Q1786,CHOOSE(Variables!AO3,URO!J1786,URO!K1786,URO!L1786,URO!M1786,URO!N1786,URO!O1786,URO!P1786,URO!Q1786,URO!R1786,URO!S1786,URO!T1786)) -> 3367838700 | AN34: 0 | AO34: 0 | AP34: 0 | AQ34: 0 | AR34: 0 | AS34: 0 | AT34: =Report!P222 -> 0
E35: NUTIL | F35: Non-Regulated | I35: 0 | J35: 0 | K35: =L35+M35+N35 -> 0 | L35: 0 | M35: 0 | N35: 0 | O35: 0 | P35: 0 | R35: TOTAL DISTRIBUTION PLANT | V35: =URO!I1860 -> 7816742916 | W35: =IF(Variables!AO3=12,URO!N1860+URO!Q1860,CHOOSE(Variables!AO3,URO!J1860,URO!K1860,URO!L1860,URO!M1860,URO!N1860,URO!O1860,URO!P1860,URO!Q1860,URO!R1860,URO!S1860,URO!T1860)) -> 3347552641 | AN35: 0 | AO35: 0 | AP35: 0 | AQ35: 0 | AR35: 0 | AS35: 0 | AT35: =Report!P223 -> 0
E36: OTHDGP | F36: Other Revenues - DGP Factor | I36: 0.6577867594 | J36: 0.3422132406 | K36: =L36+M36+N36 -> 0 | L36: 0 | M36: 0 | N36: 0 | O36: 1 | P36: 0 | R36: TOTAL | V36: =SUM(V33:V35) -> 2.902849519e+10 | W36: =SUM(W33:W35) -> 1.268013415e+10 | AN36: 0.6577867594 | AO36: 0.3422132406 | AP36: 0 | AQ36: 0 | AR36: 0 | AS36: 0 | AT36: =Report!P224 -> 13958405.48
E37: OTHDGU | F37: Other Revenues - DGU Factor | I37: 0.6577867594 | J37: 0.3422132406 | K37: 0 | L37: 0 | M37: 0 | N37: 0 | O37: 1 | P37: 0 | AN37: 0.6577867594 | AO37: 0.3422132406 | AP37: 0 | AQ37: 0 | AR37: 0 | AS37: 0 | AT37: =Report!P225 -> 13958405.48
E38: OTHSE | F38: Other Revenues - SE Factor | I38: 0 | J38: 1 | K38: 0 | L38: 0 | M38: 0 | N38: 0 | O38: 1 | P38: 0 | R38: PTD | AN38: 0 | AO38: 1 | AP38: 0 | AQ38: 0 | AR38: 0 | AS38: 0 | AT38: =Report!P226 -> 0
E39: OTHSG | F39: Other Revenues - SG Factor | I39: 0.6577867594 | J39: 0.3422132406 | K39: 0 | L39: 0 | M39: 0 | N39: 0 | O39: 1 | P39: 0 | R39: TOTAL PRODUCTION PLANT | V39: =V33/V$36 -> 0.4670286239 | W39: 0.4704006078 | AN39: 0.6577867594 | AO39: 0.3422132406 | AP39: 0 | AQ39: 0 | AR39: 0 | AS39: 0 | AT39: =Report!P227 -> 0
E40: OTHSGR | F40: Other Revenues - Rolled-In SG Factor | I40: 0.6577867594 | J40: 0.3422132406 | K40: 0 | L40: 0 | M40: 0 | N40: 0 | O40: 1 | P40: 0 | R40: TOTAL TRANSMISSION PLANT | V40: 0.2636931078 | W40: 0.2655996111 | AN40: 0.6577867594 | AO40: 0.3422132406 | AP40: 0 | AQ40: 0 | AR40: 0 | AS40: 0 | AT40: =Report!P228 -> 98331705.22
E41: OTHSITUS | F41: Other Revenues - Situs | I41: 0 | J41: 0 | K41: 1 | L41: 0 | M41: 0 | N41: 1 | O41: 1 | P41: 0 | R41: TOTAL DISTRIBUTION PLANT | V41: 0.2692782683 | W41: 0.2639997811 | AN41: 0 | AO41: 0 | AP41: 1 | AQ41: 0 | AR41: 0 | AS41: 1 | AT41: =Report!P229 -> 0
E42: OTHSO | F42: Other Revenues - SO Factor | I42: 0 | J42: 0 | K42: 1 | L42: 0 | M42: 0 | N42: 1 | O42: 1 | P42: 0 | R42: TOTAL | V42: =SUM(V39:V41) -> 1 | W42: =W36/W$36 -> 1 | AN42: 0 | AO42: 0 | AP42: 1 | AQ42: 0 | AR42: 0 | AS42: 1 | AT42: =Report!P230 -> 0
E43: P | F43: Production | I43: 1 | J43: 0 | K43: 0 | L43: 0 | M43: 0 | N43: 0 | O43: 1 | P43: 0 | AN43: 1 | AO43: 0 | AP43: 0 | AQ43: 0 | AR43: 0 | AS43: 0 | AT43: =Report!P231 -> 98331705.22
E44: PT | F44: Production / Transmission | I44: =IF(Variables!Y23=1,Function!V45,Function!W45) -> 0.6391310705 | J44: =IF(Variables!Y23=1,Function!V46,Function!W46) -> 0.3608689295 | K44: =SUM(L44:N44) -> 0 | L44: 0 | M44: 0 | N44: 0 | O44: 1 | P44: 0 | R44: PT | AN44: 0.6391310705 | AO44: 0.3608689295 | AP44: 0 | AQ44: 0 | AR44: 0 | AS44: 0 | AT44: =Report!P232 -> 0
E45: PTD | F45: Prod, Trans, Dist Plant | I45: =IF(Variables!Y23=1,Function!V39,Function!W39) -> 0.4704006078 | J45: =IF(Variables!Y23=1,Function!V40,Function!W40) -> 0.2655996111 | K45: =SUM(L45:N45) -> 0.2639997811 | L45: =IF(Variables!Y23=1,Function!V41,Function!W41) -> 0.2639997811 | M45: 0 | N45: 0 | O45: 1 | P45: 0 | R45: TOTAL PRODUCTION PLANT | V45: =V33/(V$33+V$34) -> 0.639133344 | W45: =W33/(W$33+W$34) -> 0.6391310705 | AN45: 0.4704006078 | AO45: 0.2655996111 | AP45: 0.2639997811 | AQ45: 0.2639997811 | AR45: 0 | AS45: 0 | AT45: =Report!P233 -> 112290110.7
E46: REVREQ | F46: Revenue Requirement | I46: =+I122/$H$122 -> 0.5154138609 | J46: =+J122/$H$122 -> 0.1119539862 | K46: =SUM(L46:N46) -> 0.1772920974 | L46: =+L122/$H$122 -> 0.1522593861 | M46: =+M122/$H$122 -> 0.04738417176 | N46: =+N122/$H$122 -> -0.02235146055 | O46: 0.8046599444 | P46: 0 | R46: TOTAL TRANSMISSION PLANT | V46: =V34/(V$33+V$34) -> 0.360866656 | W46: =W34/(W$33+W$34) -> 0.3608689295 | AN46: 0.5154138609 | AO46: 0.1119539862 | AP46: 0.1772920974 | AQ46: 0.1522593861 | AR46: 0.04738417176 | AS46: -0.02235146055 | AT46: =Report!P234 -> 0
E47: SCHMA | F47: Schedule M Additions | I47: 0.5259273579 | J47: 0.1774923045 | K47: =L47+M47+N47 -> 0.2965803376 | L47: 0.2797551698 | M47: 0.01209048408 | N47: 0.004734683748 | O47: 1 | P47: 1.387778781e-17 | R47: TOTAL | V47: =SUM(V45:V46) -> 1 | W47: =SUM(W45:W46) -> 1 | AN47: 0.5259273579 | AO47: 0.1774923045 | AP47: 0.2965803376 | AQ47: 0.2797551698 | AR47: 0.01209048408 | AS47: 0.004734683748 | AT47: =Report!P235 -> 0
E48: SCHMAF | F48: Schedule M Additions - Flow Through | I48: 1 | J48: 0 | K48: 0 | L48: 0 | M48: 0 | N48: 0 | O48: 1 | P48: 0 | AN48: 1 | AO48: 0 | AP48: 0 | AQ48: 0 | AR48: 0 | AS48: 0 | AT48: =Report!P236 -> 0
E49: SCHMAP | F49: Schedule M Additions - Permanent | I49: 0.4395609841 | J49: 0.07868996996 | K49: 0.4817490459 | L49: 0.345274554 | M49: 0.136474492 | N49: 0 | O49: 1 | P49: 0 | R49: TD | AN49: 0.4395609841 | AO49: 0.07868996996 | AP49: 0.4817490459 | AQ49: 0.345274554 | AR49: 0.136474492 | AS49: 0 | AT49: =Report!P237 -> 0
E50: SCHMAP-SO | F50: Schedule M Additions - Permanent-SO | I50: 0.4328192325 | J50: 0.0791881397 | K50: 0.4879926278 | L50: 0.3495187311 | M50: 0.1384738967 | N50: 0 | O50: 1 | P50: 0 | R50: TOTAL TRANSMISSION PLANT | V50: =V34/(V$34+V$35) -> 0.494760356 | W50: =W34/(W$34+W$35) -> 0.5015104152 | AN50: 0.4328192325 | AO50: 0.0791881397 | AP50: 0.4879926278 | AQ50: 0.3495187311 | AR50: 0.1384738967 | AS50: 0 | AT50: =Report!P238 -> 0
E51: SCHMAT | F51: Schedule M Additions - Temporary | I51: 0.5274051795 | J51: 0.1791829187 | K51: 0.2934119019 | L51: 0.2786340627 | M51: 0.009962139945 | N51: 0.004815699279 | O51: 1 | P51: -3.816391647e-17 | R51: TOTAL DISTRIBUTION PLANT | V51: =V35/(V$34+V$35) -> 0.505239644 | W51: =W35/(W$34+W$35) -> 0.4984895848 | AN51: 0.5274051795 | AO51: 0.1791829187 | AP51: 0.2934119019 | AQ51: 0.2786340627 | AR51: 0.009962139945 | AS51: 0.004815699279 | AT51: =Report!P239 -> 0
E52: SCHMAT-GPS | F52: Schedule M Additions - Temporary-GPS | I52: 0 | J52: 0 | K52: 0 | L52: 0 | M52: 0 | N52: 0 | O52: 0 | P52: 0 | R52: TOTAL | V52: =SUM(V50:V51) -> 1 | W52: =SUM(W50:W51) -> 1 | AN52: 0 | AO52: 0 | AP52: 0 | AQ52: 0 | AR52: 0 | AS52: 0 | AT52: =Report!P240 -> 0
E53: SCHMAT-SE | F53: Schedule M Additions - Temporary-SE | I53: 0.9997027317 | J53: 3.557156631e-05 | K53: 0.0002616967169 | L53: 0.0001843884424 | M53: 7.730827448e-05 | N53: 0 | O53: 1 | P53: 2.710505431e-20 | AN53: 0.9997027317 | AO53: 3.557156631e-05 | AP53: 0.0002616967169 | AQ53: 0.0001843884424 | AR53: 7.730827448e-05 | AS53: 0 | AT53: =Report!P241 -> 0
E54: SCHMAT-SITUS | F54: Schedule M Additions - Temporary-SITUS | I54: 0.5617108356 | J54: 0.04522194091 | K54: 0.3930672234 | L54: 0.2292405844 | M54: 0.03586322665 | N54: 0.1279634124 | O54: 1 | P54: 0 | AN54: 0.5617108356 | AO54: 0.04522194091 | AP54: 0.3930672234 | AQ54: 0.2292405844 | AR54: 0.03586322665 | AS54: 0.1279634124 | AT54: =Report!P242 -> 2113986056
E55: SCHMAT-SNP | F55: Schedule M Additions - Temporary-SNP | I55: 0.5078698338 | J55: 0.219200088 | K55: 0.2729300782 | L55: 0.2726403702 | M55: 0.0002897079667 | N55: 0 | O55: 1 | P55: 1.864827737e-17 | T55: Prod | U55: Trans | V55: Dist | W55: DPW | X55: CUST | Y55: DMSC | AN55: 0.5078698338 | AO55: 0.219200088 | AP55: 0.2729300782 | AQ55: 0.2726403702 | AR55: 0.0002897079667 | AS55: 0 | AT55: =Report!P243 -> 0
E56: SCHMAT-SO | F56: Schedule M Additions - Temporary-SO | I56: 0.4795353426 | J56: 0.166521788 | K56: 0.3539428695 | L56: 0.301741049 | M56: 0.05220182049 | N56: 0 | O56: =SUM(I56:K56) -> 1 | P56: -2.775557562e-17 | R56: (O&M + Taxes) / 365 | T56: =((I1048+I1236+I1412+I1445)/365) -> 1926811.452 | U56: 357966.0586 | V56: 583821.9044 | W56: 451237.7864 | X56: 149366.6555 | Y56: -16782.53753 | AN56: 0.4795353426 | AO56: 0.166521788 | AP56: 0.3539428695 | AQ56: 0.301741049 | AR56: 0.05220182049 | AS56: 0 | AT56: =Report!P244 -> 3311424.15
E57: SCHMD | F57: Schedule M Deductions | I57: 0.588862778 | J57: 0.1828931507 | K57: 0.2282440713 | L57: 0.2068982353 | M57: 0.005299510458 | N57: 0.01604632562 | O57: 1 | P57: 0 | R57: Net LAG Days | T57: =IF(Variables!$AO$3=12,Variables!$J20,IF(Variables!$Y23=2,CHOOSE(Variables!$AO3,Variables!$F20,Variables!$G20,Variables!$H20,Variables!$I20,Variables!$J20,Variables!$K20,Variables!$L20,Variables!$M20,Variables!$N20),Variables!$O20)) -> 4.068381533 | U57: =IF(Variables!$AO$3=12,Variables!$J20,IF(Variables!$Y23=2,CHOOSE(Variables!$AO3,Variables!$F20,Variables!$G20,Variables!$H20,Variables!$I20,Variables!$J20,Variables!$K20,Variables!$L20,Variables!$M20,Variables!$N20),Variables!$O20)) -> 4.068381533 | V57: =IF(Variables!$AO$3=12,Variables!$J20,IF(Variables!$Y23=2,CHOOSE(Variables!$AO3,Variables!$F20,Variables!$G20,Variables!$H20,Variables!$I20,Variables!$J20,Variables!$K20,Variables!$L20,Variables!$M20,Variables!$N20),Variables!$O20)) -> 4.068381533 | W57: =IF(Variables!$AO$3=12,Variables!$J20,IF(Variables!$Y23=2,CHOOSE(Variables!$AO3,Variables!$F20,Variables!$G20,Variables!$H20,Variables!$I20,Variables!$J20,Variables!$K20,Variables!$L20,Variables!$M20,Variables!$N20),Variables!$O20)) -> 4.068381533 | X57: =IF(Variables!$AO$3=12,Variables!$J20,IF(Variables!$Y23=2,CHOOSE(Variables!$AO3,Variables!$F20,Variables!$G20,Variables!$H20,Variables!$I20,Variables!$J20,Variables!$K20,Variables!$L20,Variables!$M20,Variables!$N20),Variables!$O20)) -> 4.068381533 | Y57: =IF(Variables!$AO$3=12,Variables!$J20,IF(Variables!$Y23=2,CHOOSE(Variables!$AO3,Variables!$F20,Variables!$G20,Variables!$H20,Variables!$I20,Variables!$J20,Variables!$K20,Variables!$L20,Variables!$M20,Variables!$N20),Variables!$O20)) -> 4.068381533 | AN57: 0.588862778 | AO57: 0.1828931507 | AP57: 0.2282440713 | AQ57: 0.2068982353 | AR57: 0.005299510458 | AS57: 0.01604632562 | AT57: =Report!P245 -> 0
E58: SCHMDF | F58: Schedule M Deductions - Flow Through | I58: 1 | J58: 0 | K58: 0 | L58: 0 | M58: 0 | N58: 0 | O58: 1 | P58: 0 | R58: CWC | S58: =SUM(T58:V58) -> 11670556.88 | T58: =T56*T57 -> 7839004.127 | U58: 1456342.502 | V58: 2375210.254 | W58: 1835807.477 | X58: 607680.5429 | Y58: -68277.76577 | AN58: 1 | AO58: 0 | AP58: 0 | AQ58: 0 | AR58: 0 | AS58: 0 | AT58: =Report!P246 -> 3311424.15
E59: SCHMDP | F59: Schedule M Deductions - Permanent | I59: 0.443506747 | J59: 0.06924130981 | K59: 0.4872519432 | L59: 0.3446432613 | M59: 0.1426086819 | N59: 0 | O59: 1 | P59: 0 | AN59: 0.443506747 | AO59: 0.06924130981 | AP59: 0.4872519432 | AQ59: 0.3446432613 | AR59: 0.1426086819 | AS59: 0 | AT59: =Report!P247 -> 0
E60: SCHMDP-SO | F60: Schedule M Deductions - Permanent- SO | I60: 0.4271290455 | J60: 0.06855059318 | K60: 0.5043203613 | L60: 0.3553382213 | M60: 0.14898214 | N60: 0 | O60: 1 | P60: 5.551115123e-17 | AN60: 0.4271290455 | AO60: 0.06855059318 | AP60: 0.5043203613 | AQ60: 0.3553382213 | AR60: 0.14898214 | AS60: 0 | AT60: =Report!P248 -> 0
E61: SCHMDT | F61: Schedule M Deductions - Temporary | I61: 0.5898361662 | J61: 0.1836542292 | K61: 0.2265096046 | L61: 0.2059758148 | M61: 0.004380008739 | N61: 0.0161537811 | O61: 1 | P61: 0 | R61: ACCUMDIT | S61: =Variables!AE27 -> 2020 PROTOCOL | T61: =IF(Variables!$AD$24=2,Function!V98,Function!AG98) -> 0.8459847134 | U61: =IF(Variables!$AD$24=2,Function!W98,Function!AH98) -> -0.04897809794 | V61: =IF(Variables!$AD$24=2,Function!X98,Function!AI98) -> 0.2029933846 | W61: =IF(Variables!$AD$24=2,Function!Y98,Function!AJ98) -> 0.1947255423 | X61: =IF(Variables!$AD$24=2,Function!Z98,Function!AK98) -> 0.008267842287 | Y61: =IF(Variables!$AD$24=2,Function!AA98,Function!AL98) -> 0 | AN61: 0.5898361662 | AO61: 0.1836542292 | AP61: 0.2265096046 | AQ61: 0.2059758148 | AR61: 0.004380008739 | AS61: 0.0161537811 | AT61: =Report!P249 -> 2340252.958
E62: SCHMDT-GPS | F62: Schedule M Deductions - Temporary-GPS | I62: 0.5079072977 | J62: 0.2191078108 | K62: 0.2729848916 | L62: 0.2725340031 | M62: 0.0004508884824 | N62: 0 | O62: 1 | P62: 2.32561366e-17 | R62: DITEXP | S62: =Variables!AE27 -> 2020 PROTOCOL | T62: =IF(Variables!$AD$24=2,Function!V133,Function!AG133) ->  | U62: =IF(Variables!$AD$24=2,Function!W133,Function!AH133) ->  | V62: =IF(Variables!$AD$24=2,Function!X133,Function!AI133) ->  | W62: =IF(Variables!$AD$24=2,Function!Y133,Function!AJ133) ->  | X62: =IF(Variables!$AD$24=2,Function!Z133,Function!AK133) ->  | Y62: =IF(Variables!$AD$24=2,Function!AA133,Function!AL133) ->  | AN62: 0.5079072977 | AO62: 0.2191078108 | AP62: 0.2729848916 | AQ62: =+L62 -> 0.2725340031 | AR62: 0.0004508884824 | AS62: 0 | AT62: =Report!P250 -> 0
E63: SCHMDT-SG | F63: Schedule M Deductions - Temporary-SG | I63: 1 | J63: 0 | K63: 0 | L63: 0 | M63: 0 | N63: 0 | O63: 1 | P63: 0 | AN63: =+I63 -> 1 | AO63: 0 | AP63: 0 | AQ63: 0 | AR63: 0 | AS63: 0 | AT63: =Report!P251 -> 12517.77018
E64: SCHMDT-SITUS | F64: Schedule M Deductions - Temporary-SITUS | I64: 0.8344666423 | J64: 0.01183861175 | K64: 0.1536947459 | L64: 0.06331607949 | M64: 0.02943826634 | N64: 0.06094040008 | O64: 1 | P64: 0 | AN64: 0.8344666423 | AO64: 0.01183861175 | AP64: 0.1536947459 | AQ64: 0.06331607949 | AR64: 0.02943826634 | AS64: 0.06094040008 | AT64: =Report!P252 -> 2352770.728
E65: SCHMDT-SNP | F65: Schedule M Deductions - Temporary-SNP | I65: 0.5078024957 | J65: 0.2193659483 | K65: 0.272831556 | L65: 0.272831556 | M65: 0 | N65: 0 | O65: 1 | P65: 0 | R65: DITBALRL | AC65: DITBALMA | AN65: 0.5078024957 | AO65: 0.2193659483 | AP65: 0.272831556 | AQ65: 0.272831556 | AR65: 0 | AS65: 0 | AT65: =Report!P253 -> 0
E66: SCHMDT-SO | F66: Schedule M Deductions - Temporary-SO | I66: 0.4477732506 | J66: 0.1816132325 | K66: 0.3706135169 | L66: 0.365968925 | M66: 0.004644591842 | N66: 0 | O66: 1 | P66: -2.341876693e-17 | R66: Pacific Division | T66: Total | U66: =Variables!X24 -> UTAH | V66: Production | W66: Transmission | X66: Distribution | Y66: DPW | Z66: CUST | AA66: DMSC | AC66: Pacific Division | AE66: Total | AF66: =Variables!X24 -> UTAH | AG66: Production | AH66: Transmission | AI66: Distribution | AJ66: DPW | AK66: CUST | AL66: DMSC | AN66: =+I66 -> 0.4477732506 | AO66: 0.1816132325 | AP66: 0.3706135169 | AQ66: 0.365968925 | AR66: 0.004644591842 | AS66: 0 | AT66: =Report!P254 -> 0
E67: SIT | F67: State Income Tax | I67: =+I1412/$H$1412 -> 1.495076338 | J67: =+J1412/$H$1412 -> -0.01254506589 | K67: -0.4825312717 | L67: =+L1412/$H$1412 -> -0.5078975152 | M67: =+M1412/$H$1412 -> -0.1624604965 | N67: =+N1412/$H$1412 -> 0.18782674 | O67: 1 | P67: 0 | R67: Pacific Division | AC67: Pacific Division | AN67: 1.495076338 | AO67: -0.01254506589 | AP67: -0.4825312717 | AQ67: -0.5078975152 | AR67: -0.1624604965 | AS67: 0.18782674 | AT67: =Report!P255 -> 23608.25234
E68: T | F68: Transmission | I68: 0 | J68: 1 | K68: 0 | L68: 0 | M68: 0 | N68: 0 | O68: 1 | P68: =K68-L68-M68-N68 -> 0 | R68: Production | S68: P | T68: =Factors!C440 -> 5194919 | U68: =IF(Variables!$AO$3=12,Factors!H440+Factors!K440,CHOOSE(Variables!AO$3,Factors!D440,Factors!E440,Factors!F440,Factors!G440,Factors!H440,Factors!I440,Factors!J440,Factors!K440,Factors!L440,Factors!M440,Factors!N440)) -> -4420617 | V68: =VLOOKUP($S68,$E$4:$O$71,5,FALSE)*IF(Variables!$Y$23=1,$T68,$U68) -> -4420617 | W68: =VLOOKUP($S68,$E$4:$O$71,6,FALSE)*IF(Variables!$Y$23=1,$T68,$U68) -> 0 | X68: =VLOOKUP($S68,$E$4:$O$71,7,FALSE)*IF(Variables!$Y$23=1,$T68,$U68) -> 0 | Y68: =VLOOKUP($S68,$E$4:$O$71,8,FALSE)*IF(Variables!$Y$23=1,$T68,$U68) -> 0 | Z68: =VLOOKUP($S68,$E$4:$O$71,9,FALSE)*IF(Variables!$Y$23=1,$T68,$U68) -> 0 | AA68: =VLOOKUP($S68,$E$4:$O$71,10,FALSE)*IF(Variables!$Y$23=1,$T68,$U68) -> 0 | AC68: Production | AD68: P | AE68: =T68 -> 5194919 | AF68: -4420617 | AG68: =VLOOKUP($AD68,$E$4:$O$71,5,FALSE)*IF(Variables!$Y$23=1,$AE68,$AF68) -> -4420617 | AH68: =VLOOKUP($AD68,$E$4:$O$71,6,FALSE)*IF(Variables!$Y$23=1,$AE68,$AF68) -> 0 | AI68: =VLOOKUP($AD68,$E$4:$O$71,7,FALSE)*IF(Variables!$Y$23=1,$AE68,$AF68) -> 0 | AJ68: =VLOOKUP($AD68,$E$4:$O$71,8,FALSE)*IF(Variables!$Y$23=1,$AE68,$AF68) -> 0 | AK68: =VLOOKUP($AD68,$E$4:$O$71,9,FALSE)*IF(Variables!$Y$23=1,$AE68,$AF68) -> 0 | AL68: =VLOOKUP($AD68,$E$4:$O$71,10,FALSE)*IF(Variables!$Y$23=1,$AE68,$AF68) -> 0 | AN68: 0 | AO68: 1 | AP68: 0 | AQ68: 0 | AR68: 0 | AS68: 0 | AT68: =Report!P256 -> 23608.25234
E69: TAXDEPR | F69: Tax Depreciation | I69: 0.5835074932 | J69: 0.19492994 | K69: =L69+M69+N69 -> 0.2215625668 | L69: 0.2170587656 | M69: 0.00450380126 | N69: 0 | O69: =SUM(I69:K69) -> 1 | P69: =K69-L69-M69-N69 -> 1.127570259e-17 | R69: Transmission | S69: T | T69: =Factors!C441 -> 8659044 | U69: =IF(Variables!$AO$3=12,Factors!H441+Factors!K441,CHOOSE(Variables!AO$3,Factors!D441,Factors!E441,Factors!F441,Factors!G441,Factors!H441,Factors!I441,Factors!J441,Factors!K441,Factors!L441,Factors!M441,Factors!N441)) -> 268148 | V69: =VLOOKUP($S69,$E$4:$O$71,5,FALSE)*IF(Variables!$Y$23=1,$T69,$U69) -> 0 | W69: =VLOOKUP($S69,$E$4:$O$71,6,FALSE)*IF(Variables!$Y$23=1,$T69,$U69) -> 268148 | X69: =VLOOKUP($S69,$E$4:$O$71,7,FALSE)*IF(Variables!$Y$23=1,$T69,$U69) -> 0 | Y69: =VLOOKUP($S69,$E$4:$O$71,8,FALSE)*IF(Variables!$Y$23=1,$T69,$U69) -> 0 | Z69: =VLOOKUP($S69,$E$4:$O$71,9,FALSE)*IF(Variables!$Y$23=1,$T69,$U69) -> 0 | AA69: =VLOOKUP($S69,$E$4:$O$71,10,FALSE)*IF(Variables!$Y$23=1,$T69,$U69) -> 0 | AC69: Transmission | AD69: T | AE69: 8659044 | AF69: 268148 | AG69: =VLOOKUP($AD69,$E$4:$O$71,5,FALSE)*IF(Variables!$Y$23=1,$AE69,$AF69) -> 0 | AH69: =VLOOKUP($AD69,$E$4:$O$71,6,FALSE)*IF(Variables!$Y$23=1,$AE69,$AF69) -> 268148 | AI69: =VLOOKUP($AD69,$E$4:$O$71,7,FALSE)*IF(Variables!$Y$23=1,$AE69,$AF69) -> 0 | AJ69: =VLOOKUP($AD69,$E$4:$O$71,8,FALSE)*IF(Variables!$Y$23=1,$AE69,$AF69) -> 0 | AK69: =VLOOKUP($AD69,$E$4:$O$71,9,FALSE)*IF(Variables!$Y$23=1,$AE69,$AF69) -> 0 | AL69: =VLOOKUP($AD69,$E$4:$O$71,10,FALSE)*IF(Variables!$Y$23=1,$AE69,$AF69) -> 0 | AN69: 0.5835074932 | AO69: 0.19492994 | AP69: 0.2215625668 | AQ69: 0.2170587656 | AR69: 0.00450380126 | AS69: 0 | AT69: =Report!P257 -> 0
E70: TD | F70: Transmission / Distribution | I70: 0 | J70: 0.4456868359 | K70: =SUM(L70:N70) -> 0.5543131641 | L70: 0.5543131641 | M70: 0 | N70: 0 | O70: =SUM(I70:K70) -> 1 | P70: =K69-L69-M69-N69 -> 1.127570259e-17 | R70: Distribution | S70: DPW | T70: =Factors!C442 -> -535900 | U70: =IF(Variables!$AO$3=12,Factors!H442+Factors!K442,CHOOSE(Variables!AO$3,Factors!D442,Factors!E442,Factors!F442,Factors!G442,Factors!H442,Factors!I442,Factors!J442,Factors!K442,Factors!L442,Factors!M442,Factors!N442)) -> -2614148 | V70: =VLOOKUP($S70,$E$4:$O$71,5,FALSE)*IF(Variables!$Y$23=1,$T70,$U70) -> 0 | W70: =VLOOKUP($S70,$E$4:$O$71,6,FALSE)*IF(Variables!$Y$23=1,$T70,$U70) -> 0 | X70: =VLOOKUP($S70,$E$4:$O$71,7,FALSE)*IF(Variables!$Y$23=1,$T70,$U70) -> -2614148 | Y70: =VLOOKUP($S70,$E$4:$O$71,8,FALSE)*IF(Variables!$Y$23=1,$T70,$U70) -> -2614148 | Z70: =VLOOKUP($S70,$E$4:$O$71,9,FALSE)*IF(Variables!$Y$23=1,$T70,$U70) -> 0 | AA70: =VLOOKUP($S70,$E$4:$O$71,10,FALSE)*IF(Variables!$Y$23=1,$T70,$U70) -> 0 | AC70: Distribution | AD70: DPW | AE70: -535900 | AF70: -2614148 | AG70: =VLOOKUP($AD70,$E$4:$O$71,5,FALSE)*IF(Variables!$Y$23=1,$AE70,$AF70) -> 0 | AH70: =VLOOKUP($AD70,$E$4:$O$71,6,FALSE)*IF(Variables!$Y$23=1,$AE70,$AF70) -> 0 | AI70: =VLOOKUP($AD70,$E$4:$O$71,7,FALSE)*IF(Variables!$Y$23=1,$AE70,$AF70) -> -2614148 | AJ70: =VLOOKUP($AD70,$E$4:$O$71,8,FALSE)*IF(Variables!$Y$23=1,$AE70,$AF70) -> -2614148 | AK70: =VLOOKUP($AD70,$E$4:$O$71,9,FALSE)*IF(Variables!$Y$23=1,$AE70,$AF70) -> 0 | AL70: =VLOOKUP($AD70,$E$4:$O$71,10,FALSE)*IF(Variables!$Y$23=1,$AE70,$AF70) -> 0 | AN70: 0 | AO70: 0.4456868359 | AP70: 0.5543131641 | AQ70: 0.5543131641 | AR70: 0 | AS70: 0 | AT70: =Report!P258 -> 0
P71: =K70-L70-M70-N70 -> 0 | R71: General | S71: G | T71: =Factors!C443 -> -876235 | U71: =IF(Variables!$AO$3=12,Factors!H443+Factors!K443,CHOOSE(Variables!AO$3,Factors!D443,Factors!E443,Factors!F443,Factors!G443,Factors!H443,Factors!I443,Factors!J443,Factors!K443,Factors!L443,Factors!M443,Factors!N443)) -> -369774 | V71: =VLOOKUP($S71,$E$4:$O$71,5,FALSE)*IF(Variables!$Y$23=1,$T71,$U71) -> -86099.08308 | W71: =VLOOKUP($S71,$E$4:$O$71,6,FALSE)*IF(Variables!$Y$23=1,$T71,$U71) -> -110569.9118 | X71: =VLOOKUP($S71,$E$4:$O$71,7,FALSE)*IF(Variables!$Y$23=1,$T71,$U71) -> -173105.0051 | Y71: =VLOOKUP($S71,$E$4:$O$71,8,FALSE)*IF(Variables!$Y$23=1,$T71,$U71) -> -163414.6534 | Z71: =VLOOKUP($S71,$E$4:$O$71,9,FALSE)*IF(Variables!$Y$23=1,$T71,$U71) -> -9690.351696 | AA71: =VLOOKUP($S71,$E$4:$O$71,10,FALSE)*IF(Variables!$Y$23=1,$T71,$U71) -> 0 | AC71: General | AD71: G | AE71: -876235 | AF71: -369774 | AG71: =VLOOKUP($AD71,$E$4:$O$71,5,FALSE)*IF(Variables!$Y$23=1,$AE71,$AF71) -> -86099.08308 | AH71: =VLOOKUP($AD71,$E$4:$O$71,6,FALSE)*IF(Variables!$Y$23=1,$AE71,$AF71) -> -110569.9118 | AI71: =VLOOKUP($AD71,$E$4:$O$71,7,FALSE)*IF(Variables!$Y$23=1,$AE71,$AF71) -> -173105.0051 | AJ71: =VLOOKUP($AD71,$E$4:$O$71,8,FALSE)*IF(Variables!$Y$23=1,$AE71,$AF71) -> -163414.6534 | AK71: =VLOOKUP($AD71,$E$4:$O$71,9,FALSE)*IF(Variables!$Y$23=1,$AE71,$AF71) -> -9690.351696 | AL71: =VLOOKUP($AD71,$E$4:$O$71,10,FALSE)*IF(Variables!$Y$23=1,$AE71,$AF71) -> 0 | AN71: 0 | AO71: 0 | AP71: 0 | AQ71: 0 | AR71: 0 | AS71: 0 | AT71: =Report!P259 -> 3974672.44
P72: =K71-L71-M71-N71 -> 0 | R72: Mining Plant | S72: P | T72: =Factors!C444 -> 4407 | U72: =IF(Variables!$AO$3=12,Factors!H444+Factors!K444,CHOOSE(Variables!AO$3,Factors!D444,Factors!E444,Factors!F444,Factors!G444,Factors!H444,Factors!I444,Factors!J444,Factors!K444,Factors!L444,Factors!M444,Factors!N444)) -> 1870 | V72: =VLOOKUP($S72,$E$4:$O$71,5,FALSE)*IF(Variables!$Y$23=1,$T72,$U72) -> 1870 | W72: =VLOOKUP($S72,$E$4:$O$71,6,FALSE)*IF(Variables!$Y$23=1,$T72,$U72) -> 0 | X72: =VLOOKUP($S72,$E$4:$O$71,7,FALSE)*IF(Variables!$Y$23=1,$T72,$U72) -> 0 | Y72: =VLOOKUP($S72,$E$4:$O$71,8,FALSE)*IF(Variables!$Y$23=1,$T72,$U72) -> 0 | Z72: =VLOOKUP($S72,$E$4:$O$71,9,FALSE)*IF(Variables!$Y$23=1,$T72,$U72) -> 0 | AA72: =VLOOKUP($S72,$E$4:$O$71,10,FALSE)*IF(Variables!$Y$23=1,$T72,$U72) -> 0 | AC72: Mining Plant | AD72: P | AE72: 4407 | AF72: 1870 | AG72: =VLOOKUP($AD72,$E$4:$O$71,5,FALSE)*IF(Variables!$Y$23=1,$AE72,$AF72) -> 1870 | AH72: =VLOOKUP($AD72,$E$4:$O$71,6,FALSE)*IF(Variables!$Y$23=1,$AE72,$AF72) -> 0 | AI72: =VLOOKUP($AD72,$E$4:$O$71,7,FALSE)*IF(Variables!$Y$23=1,$AE72,$AF72) -> 0 | AJ72: =VLOOKUP($AD72,$E$4:$O$71,8,FALSE)*IF(Variables!$Y$23=1,$AE72,$AF72) -> 0 | AK72: =VLOOKUP($AD72,$E$4:$O$71,9,FALSE)*IF(Variables!$Y$23=1,$AE72,$AF72) -> 0 | AL72: =VLOOKUP($AD72,$E$4:$O$71,10,FALSE)*IF(Variables!$Y$23=1,$AE72,$AF72) -> 0 | AT72: =Report!P260 -> 2380120.795
AT73: =Report!P262 -> 1141249.516
R74: Total Pacific Division | T74: =SUM(T68:T73) -> 12446235 | U74: -7134521 | V74: -4504846.083 | W74: 157578.0882 | X74: -2787253.005 | Y74: -2777562.653 | Z74: -9690.351696 | AA74: 0 | AC74: Total Pacific Division | AE74: =SUM(AE68:AE73) -> 12446235 | AF74: -7134521 | AG74: -4504846.083 | AH74: 157578.0882 | AI74: -2787253.005 | AJ74: -2777562.653 | AK74: -9690.351696 | AL74: 0 | AT74: =Report!P263 -> 7496042.751
AT75: =Report!P264 -> 0
R76: Utah Division | AC76: Utah Division | AT76: =Report!P265 -> 0
R77: Production | S77: P | T77: =Factors!C451 -> 11882458 | U77: =IF(Variables!$AO$3=12,Factors!H451+Factors!K451,CHOOSE(Variables!AO$3,Factors!D451,Factors!E451,Factors!F451,Factors!G451,Factors!H451,Factors!I451,Factors!J451,Factors!K451,Factors!L451,Factors!M451,Factors!N451)) -> 14155329 | V77: =VLOOKUP($S77,$E$4:$O$71,5,FALSE)*IF(Variables!$Y$23=1,$T77,$U77) -> 14155329 | W77: =VLOOKUP($S77,$E$4:$O$71,6,FALSE)*IF(Variables!$Y$23=1,$T77,$U77) -> 0 | X77: =VLOOKUP($S77,$E$4:$O$71,7,FALSE)*IF(Variables!$Y$23=1,$T77,$U77) -> 0 | Y77: =VLOOKUP($S77,$E$4:$O$71,8,FALSE)*IF(Variables!$Y$23=1,$T77,$U77) -> 0 | Z77: =VLOOKUP($S77,$E$4:$O$71,9,FALSE)*IF(Variables!$Y$23=1,$T77,$U77) -> 0 | AA77: =VLOOKUP($S77,$E$4:$O$71,10,FALSE)*IF(Variables!$Y$23=1,$T77,$U77) -> 0 | AC77: Production | AD77: P | AE77: =T77 -> 11882458 | AF77: 14155329 | AG77: =VLOOKUP($AD77,$E$4:$O$71,5,FALSE)*IF(Variables!$Y$23=1,$AE77,$AF77) -> 14155329 | AH77: =VLOOKUP($AD77,$E$4:$O$71,6,FALSE)*IF(Variables!$Y$23=1,$AE77,$AF77) -> 0 | AI77: =VLOOKUP($AD77,$E$4:$O$71,7,FALSE)*IF(Variables!$Y$23=1,$AE77,$AF77) -> 0 | AJ77: =VLOOKUP($AD77,$E$4:$O$71,8,FALSE)*IF(Variables!$Y$23=1,$AE77,$AF77) -> 0 | AK77: =VLOOKUP($AD77,$E$4:$O$71,9,FALSE)*IF(Variables!$Y$23=1,$AE77,$AF77) -> 0 | AL77: =VLOOKUP($AD77,$E$4:$O$71,10,FALSE)*IF(Variables!$Y$23=1,$AE77,$AF77) -> 0 | AT77: =Report!P266 -> 0
R78: Transmission | S78: T | T78: =Factors!C452 -> 19962447 | U78: =IF(Variables!$AO$3=12,Factors!H452+Factors!K452,CHOOSE(Variables!AO$3,Factors!D452,Factors!E452,Factors!F452,Factors!G452,Factors!H452,Factors!I452,Factors!J452,Factors!K452,Factors!L452,Factors!M452,Factors!N452)) -> 17238407 | V78: =VLOOKUP($S78,$E$4:$O$71,5,FALSE)*IF(Variables!$Y$23=1,$T78,$U78) -> 0 | W78: =VLOOKUP($S78,$E$4:$O$71,6,FALSE)*IF(Variables!$Y$23=1,$T78,$U78) -> 17238407 | X78: =VLOOKUP($S78,$E$4:$O$71,7,FALSE)*IF(Variables!$Y$23=1,$T78,$U78) -> 0 | Y78: =VLOOKUP($S78,$E$4:$O$71,8,FALSE)*IF(Variables!$Y$23=1,$T78,$U78) -> 0 | Z78: =VLOOKUP($S78,$E$4:$O$71,9,FALSE)*IF(Variables!$Y$23=1,$T78,$U78) -> 0 | AA78: =VLOOKUP($S78,$E$4:$O$71,10,FALSE)*IF(Variables!$Y$23=1,$T78,$U78) -> 0 | AC78: Transmission | AD78: T | AE78: 19962447 | AF78: 17238407 | AG78: =VLOOKUP($AD78,$E$4:$O$71,5,FALSE)*IF(Variables!$Y$23=1,$AE78,$AF78) -> 0 | AH78: =VLOOKUP($AD78,$E$4:$O$71,6,FALSE)*IF(Variables!$Y$23=1,$AE78,$AF78) -> 17238407 | AI78: =VLOOKUP($AD78,$E$4:$O$71,7,FALSE)*IF(Variables!$Y$23=1,$AE78,$AF78) -> 0 | AJ78: =VLOOKUP($AD78,$E$4:$O$71,8,FALSE)*IF(Variables!$Y$23=1,$AE78,$AF78) -> 0 | AK78: =VLOOKUP($AD78,$E$4:$O$71,9,FALSE)*IF(Variables!$Y$23=1,$AE78,$AF78) -> 0 | AL78: =VLOOKUP($AD78,$E$4:$O$71,10,FALSE)*IF(Variables!$Y$23=1,$AE78,$AF78) -> 0 | AN78: JAM Factors | AT78: =Report!P267 -> 0
R79: Distribution | S79: DPW | T79: =Factors!C453 -> 18415994 | U79: =IF(Variables!$AO$3=12,Factors!H453+Factors!K453,CHOOSE(Variables!AO$3,Factors!D453,Factors!E453,Factors!F453,Factors!G453,Factors!H453,Factors!I453,Factors!J453,Factors!K453,Factors!L453,Factors!M453,Factors!N453)) -> 12800298 | V79: =VLOOKUP($S79,$E$4:$O$71,5,FALSE)*IF(Variables!$Y$23=1,$T79,$U79) -> 0 | W79: =VLOOKUP($S79,$E$4:$O$71,6,FALSE)*IF(Variables!$Y$23=1,$T79,$U79) -> 0 | X79: =VLOOKUP($S79,$E$4:$O$71,7,FALSE)*IF(Variables!$Y$23=1,$T79,$U79) -> 12800298 | Y79: =VLOOKUP($S79,$E$4:$O$71,8,FALSE)*IF(Variables!$Y$23=1,$T79,$U79) -> 12800298 | Z79: =VLOOKUP($S79,$E$4:$O$71,9,FALSE)*IF(Variables!$Y$23=1,$T79,$U79) -> 0 | AA79: =VLOOKUP($S79,$E$4:$O$71,10,FALSE)*IF(Variables!$Y$23=1,$T79,$U79) -> 0 | AC79: Distribution | AD79: DPW | AE79: 18415994 | AF79: 12800298 | AG79: =VLOOKUP($AD79,$E$4:$O$71,5,FALSE)*IF(Variables!$Y$23=1,$AE79,$AF79) -> 0 | AH79: =VLOOKUP($AD79,$E$4:$O$71,6,FALSE)*IF(Variables!$Y$23=1,$AE79,$AF79) -> 0 | AI79: =VLOOKUP($AD79,$E$4:$O$71,7,FALSE)*IF(Variables!$Y$23=1,$AE79,$AF79) -> 12800298 | AJ79: =VLOOKUP($AD79,$E$4:$O$71,8,FALSE)*IF(Variables!$Y$23=1,$AE79,$AF79) -> 12800298 | AK79: =VLOOKUP($AD79,$E$4:$O$71,9,FALSE)*IF(Variables!$Y$23=1,$AE79,$AF79) -> 0 | AL79: =VLOOKUP($AD79,$E$4:$O$71,10,FALSE)*IF(Variables!$Y$23=1,$AE79,$AF79) -> 0 | AN79: SG | AO79: =+Factors!H4 -> 0.4399749813 | AT79: =Report!P268 -> -4589376.31
R80: General | S80: G | T80: =Factors!C454 -> -876914 | U80: =IF(Variables!$AO$3=12,Factors!H454+Factors!K454,CHOOSE(Variables!AO$3,Factors!D454,Factors!E454,Factors!F454,Factors!G454,Factors!H454,Factors!I454,Factors!J454,Factors!K454,Factors!L454,Factors!M454,Factors!N454)) -> -403328 | V80: =VLOOKUP($S80,$E$4:$O$71,5,FALSE)*IF(Variables!$Y$23=1,$T80,$U80) -> -93911.87856 | W80: =VLOOKUP($S80,$E$4:$O$71,6,FALSE)*IF(Variables!$Y$23=1,$T80,$U80) -> -120603.2371 | X80: =VLOOKUP($S80,$E$4:$O$71,7,FALSE)*IF(Variables!$Y$23=1,$T80,$U80) -> -188812.8843 | Y80: =VLOOKUP($S80,$E$4:$O$71,8,FALSE)*IF(Variables!$Y$23=1,$T80,$U80) -> -178243.2116 | Z80: =VLOOKUP($S80,$E$4:$O$71,9,FALSE)*IF(Variables!$Y$23=1,$T80,$U80) -> -10569.67274 | AA80: =VLOOKUP($S80,$E$4:$O$71,10,FALSE)*IF(Variables!$Y$23=1,$T80,$U80) -> 0 | AC80: General | AD80: G | AE80: -876914 | AF80: -403328 | AG80: =VLOOKUP($AD80,$E$4:$O$71,5,FALSE)*IF(Variables!$Y$23=1,$AE80,$AF80) -> -93911.87856 | AH80: =VLOOKUP($AD80,$E$4:$O$71,6,FALSE)*IF(Variables!$Y$23=1,$AE80,$AF80) -> -120603.2371 | AI80: =VLOOKUP($AD80,$E$4:$O$71,7,FALSE)*IF(Variables!$Y$23=1,$AE80,$AF80) -> -188812.8843 | AJ80: =VLOOKUP($AD80,$E$4:$O$71,8,FALSE)*IF(Variables!$Y$23=1,$AE80,$AF80) -> -178243.2116 | AK80: =VLOOKUP($AD80,$E$4:$O$71,9,FALSE)*IF(Variables!$Y$23=1,$AE80,$AF80) -> -10569.67274 | AL80: =VLOOKUP($AD80,$E$4:$O$71,10,FALSE)*IF(Variables!$Y$23=1,$AE80,$AF80) -> 0 | AN80: SE | AO80: =+Factors!H10 -> 0.433562095 | AT80: =Report!P269 -> 0
R81: Mining Plant | S81: P | T81: =Factors!C455 -> 9054 | U81: =IF(Variables!$AO$3=12,Factors!H455+Factors!K455,CHOOSE(Variables!AO$3,Factors!D455,Factors!E455,Factors!F455,Factors!G455,Factors!H455,Factors!I455,Factors!J455,Factors!K455,Factors!L455,Factors!M455,Factors!N455)) -> 3847 | V81: =VLOOKUP($S81,$E$4:$O$71,5,FALSE)*IF(Variables!$Y$23=1,$T81,$U81) -> 3847 | W81: =VLOOKUP($S81,$E$4:$O$71,6,FALSE)*IF(Variables!$Y$23=1,$T81,$U81) -> 0 | X81: =VLOOKUP($S81,$E$4:$O$71,7,FALSE)*IF(Variables!$Y$23=1,$T81,$U81) -> 0 | Y81: =VLOOKUP($S81,$E$4:$O$71,8,FALSE)*IF(Variables!$Y$23=1,$T81,$U81) -> 0 | Z81: =VLOOKUP($S81,$E$4:$O$71,9,FALSE)*IF(Variables!$Y$23=1,$T81,$U81) -> 0 | AA81: =VLOOKUP($S81,$E$4:$O$71,10,FALSE)*IF(Variables!$Y$23=1,$T81,$U81) -> 0 | AC81: Mining Plant | AD81: P | AE81: 9054 | AF81: 3847 | AG81: =VLOOKUP($AD81,$E$4:$O$71,5,FALSE)*IF(Variables!$Y$23=1,$AE81,$AF81) -> 3847 | AH81: =VLOOKUP($AD81,$E$4:$O$71,6,FALSE)*IF(Variables!$Y$23=1,$AE81,$AF81) -> 0 | AI81: =VLOOKUP($AD81,$E$4:$O$71,7,FALSE)*IF(Variables!$Y$23=1,$AE81,$AF81) -> 0 | AJ81: =VLOOKUP($AD81,$E$4:$O$71,8,FALSE)*IF(Variables!$Y$23=1,$AE81,$AF81) -> 0 | AK81: =VLOOKUP($AD81,$E$4:$O$71,9,FALSE)*IF(Variables!$Y$23=1,$AE81,$AF81) -> 0 | AL81: =VLOOKUP($AD81,$E$4:$O$71,10,FALSE)*IF(Variables!$Y$23=1,$AE81,$AF81) -> 0 | AN81: SSGC | AO81: =+Factors!H31 -> 0 | AT81: =Report!P270 -> 6312007.881
AN82: SSECH | AO82: =+Factors!H27 -> 0 | AT82: =Report!P271 -> 1926381.812
R83: Total Utah Division | T83: =SUM(T77:T82) -> 49393039 | U83: 43794553 | V83: 14065264.12 | W83: 17117803.76 | X83: 12611485.12 | Y83: 12622054.79 | Z83: -10569.67274 | AA83: 0 | AC83: Total Utah Division | AE83: =SUM(AE77:AE82) -> 49393039 | AF83: 43794553 | AG83: 14065264.12 | AH83: 17117803.76 | AI83: 12611485.12 | AJ83: 12622054.79 | AK83: -10569.67274 | AL83: 0 | AN83: SSECT | AO83: =+Factors!H25 -> 0 | AT83: =Report!P272 -> 57454348.67
AT84: =Report!P273 -> 0
R85: PACIFICORP | AC85: PACIFICORP | AT85: =Report!P274 -> 0
R86: Production | S86: P | T86: =Factors!C461 -> 226980776 | U86: =IF(Variables!$AO$3=12,Factors!H461+Factors!K461,CHOOSE(Variables!AO$3,Factors!D461,Factors!E461,Factors!F461,Factors!G461,Factors!H461,Factors!I461,Factors!J461,Factors!K461,Factors!L461,Factors!M461,Factors!N461)) -> 93039883 | V86: =VLOOKUP($S86,$E$4:$O$71,5,FALSE)*IF(Variables!$Y$23=1,$T86,$U86) -> 93039883 | W86: =VLOOKUP($S86,$E$4:$O$71,6,FALSE)*IF(Variables!$Y$23=1,$T86,$U86) -> 0 | X86: =VLOOKUP($S86,$E$4:$O$71,7,FALSE)*IF(Variables!$Y$23=1,$T86,$U86) -> 0 | Y86: =VLOOKUP($S86,$E$4:$O$71,8,FALSE)*IF(Variables!$Y$23=1,$T86,$U86) -> 0 | Z86: =VLOOKUP($S86,$E$4:$O$71,9,FALSE)*IF(Variables!$Y$23=1,$T86,$U86) -> 0 | AA86: =VLOOKUP($S86,$E$4:$O$71,10,FALSE)*IF(Variables!$Y$23=1,$T86,$U86) -> 0 | AC86: Production | AD86: P | AE86: =T86 -> 226980776 | AF86: =U86 -> 93039883 | AG86: =VLOOKUP($AD86,$E$4:$O$71,5,FALSE)*IF(Variables!$Y$23=1,$AE86,$AF86) -> 93039883 | AH86: =VLOOKUP($AD86,$E$4:$O$71,6,FALSE)*IF(Variables!$Y$23=1,$AE86,$AF86) -> 0 | AI86: =VLOOKUP($AD86,$E$4:$O$71,7,FALSE)*IF(Variables!$Y$23=1,$AE86,$AF86) -> 0 | AJ86: =VLOOKUP($AD86,$E$4:$O$71,8,FALSE)*IF(Variables!$Y$23=1,$AE86,$AF86) -> 0 | AK86: =VLOOKUP($AD86,$E$4:$O$71,9,FALSE)*IF(Variables!$Y$23=1,$AE86,$AF86) -> 0 | AL86: =VLOOKUP($AD86,$E$4:$O$71,10,FALSE)*IF(Variables!$Y$23=1,$AE86,$AF86) -> 0 | AT86: =Report!P275 -> 61103362.05
R87: Hydro - P | S87: P | T87: =Factors!C462 -> -18791242 | U87: =IF(Variables!$AO$3=12,Factors!H462+Factors!K462,CHOOSE(Variables!AO$3,Factors!D462,Factors!E462,Factors!F462,Factors!G462,Factors!H462,Factors!I462,Factors!J462,Factors!K462,Factors!L462,Factors!M462,Factors!N462)) -> -8214437 | V87: =VLOOKUP($S87,$E$4:$O$71,5,FALSE)*IF(Variables!$Y$23=1,$T87,$U87) -> -8214437 | W87: =VLOOKUP($S87,$E$4:$O$71,6,FALSE)*IF(Variables!$Y$23=1,$T87,$U87) -> 0 | X87: =VLOOKUP($S87,$E$4:$O$71,7,FALSE)*IF(Variables!$Y$23=1,$T87,$U87) -> 0 | Y87: =VLOOKUP($S87,$E$4:$O$71,8,FALSE)*IF(Variables!$Y$23=1,$T87,$U87) -> 0 | Z87: =VLOOKUP($S87,$E$4:$O$71,9,FALSE)*IF(Variables!$Y$23=1,$T87,$U87) -> 0 | AA87: =VLOOKUP($S87,$E$4:$O$71,10,FALSE)*IF(Variables!$Y$23=1,$T87,$U87) -> 0 | AC87: Hydro - P | AD87: P | AE87: -18791242 | AF87: -8214437 | AG87: =VLOOKUP($AD87,$E$4:$O$71,5,FALSE)*IF(Variables!$Y$23=1,$AE87,$AF87) -> -8214437 | AH87: =VLOOKUP($AD87,$E$4:$O$71,6,FALSE)*IF(Variables!$Y$23=1,$AE87,$AF87) -> 0 | AI87: =VLOOKUP($AD87,$E$4:$O$71,7,FALSE)*IF(Variables!$Y$23=1,$AE87,$AF87) -> 0 | AJ87: =VLOOKUP($AD87,$E$4:$O$71,8,FALSE)*IF(Variables!$Y$23=1,$AE87,$AF87) -> 0 | AK87: =VLOOKUP($AD87,$E$4:$O$71,9,FALSE)*IF(Variables!$Y$23=1,$AE87,$AF87) -> 0 | AL87: =VLOOKUP($AD87,$E$4:$O$71,10,FALSE)*IF(Variables!$Y$23=1,$AE87,$AF87) -> 0 | AT87: =Report!P276 -> 0
R88: Hydro - U | S88: P | T88: =Factors!C463 -> 4322427 | U88: =IF(Variables!$AO$3=12,Factors!H463+Factors!K463,CHOOSE(Variables!AO$3,Factors!D463,Factors!E463,Factors!F463,Factors!G463,Factors!H463,Factors!I463,Factors!J463,Factors!K463,Factors!L463,Factors!M463,Factors!N463)) -> 1875398 | V88: =VLOOKUP($S88,$E$4:$O$71,5,FALSE)*IF(Variables!$Y$23=1,$T88,$U88) -> 1875398 | W88: =VLOOKUP($S88,$E$4:$O$71,6,FALSE)*IF(Variables!$Y$23=1,$T88,$U88) -> 0 | X88: =VLOOKUP($S88,$E$4:$O$71,7,FALSE)*IF(Variables!$Y$23=1,$T88,$U88) -> 0 | Y88: =VLOOKUP($S88,$E$4:$O$71,8,FALSE)*IF(Variables!$Y$23=1,$T88,$U88) -> 0 | Z88: =VLOOKUP($S88,$E$4:$O$71,9,FALSE)*IF(Variables!$Y$23=1,$T88,$U88) -> 0 | AA88: =VLOOKUP($S88,$E$4:$O$71,10,FALSE)*IF(Variables!$Y$23=1,$T88,$U88) -> 0 | AC88: Hydro - U | AD88: P | AE88: 4322427 | AF88: 1875398 | AG88: =VLOOKUP($AD88,$E$4:$O$71,5,FALSE)*IF(Variables!$Y$23=1,$AE88,$AF88) -> 1875398 | AH88: =VLOOKUP($AD88,$E$4:$O$71,6,FALSE)*IF(Variables!$Y$23=1,$AE88,$AF88) -> 0 | AI88: =VLOOKUP($AD88,$E$4:$O$71,7,FALSE)*IF(Variables!$Y$23=1,$AE88,$AF88) -> 0 | AJ88: =VLOOKUP($AD88,$E$4:$O$71,8,FALSE)*IF(Variables!$Y$23=1,$AE88,$AF88) -> 0 | AK88: =VLOOKUP($AD88,$E$4:$O$71,9,FALSE)*IF(Variables!$Y$23=1,$AE88,$AF88) -> 0 | AL88: =VLOOKUP($AD88,$E$4:$O$71,10,FALSE)*IF(Variables!$Y$23=1,$AE88,$AF88) -> 0 | AT88: =Report!P277 -> 74287207.93
R89: Transmission | S89: T | T89: =Factors!C473 -> -43905412 | U89: =IF(Variables!$AO$3=12,Factors!H473+Factors!K473,CHOOSE(Variables!AO$3,Factors!D473,Factors!E473,Factors!F473,Factors!G473,Factors!H473,Factors!I473,Factors!J473,Factors!K473,Factors!L473,Factors!M473,Factors!N473)) -> -43905412 | V89: =VLOOKUP($S89,$E$4:$O$71,5,FALSE)*IF(Variables!$Y$23=1,$T89,$U89) -> 0 | W89: =VLOOKUP($S89,$E$4:$O$71,6,FALSE)*IF(Variables!$Y$23=1,$T89,$U89) -> -43905412 | X89: =VLOOKUP($S89,$E$4:$O$71,7,FALSE)*IF(Variables!$Y$23=1,$T89,$U89) -> 0 | Y89: =VLOOKUP($S89,$E$4:$O$71,8,FALSE)*IF(Variables!$Y$23=1,$T89,$U89) -> 0 | Z89: =VLOOKUP($S89,$E$4:$O$71,9,FALSE)*IF(Variables!$Y$23=1,$T89,$U89) -> 0 | AA89: =VLOOKUP($S89,$E$4:$O$71,10,FALSE)*IF(Variables!$Y$23=1,$T89,$U89) -> 0 | AC89: Transmission | AD89: T | AE89: -43905412 | AF89: -43905412 | AG89: =VLOOKUP($AD89,$E$4:$O$71,5,FALSE)*IF(Variables!$Y$23=1,$AE89,$AF89) -> 0 | AH89: =VLOOKUP($AD89,$E$4:$O$71,6,FALSE)*IF(Variables!$Y$23=1,$AE89,$AF89) -> -43905412 | AI89: =VLOOKUP($AD89,$E$4:$O$71,7,FALSE)*IF(Variables!$Y$23=1,$AE89,$AF89) -> 0 | AJ89: =VLOOKUP($AD89,$E$4:$O$71,8,FALSE)*IF(Variables!$Y$23=1,$AE89,$AF89) -> 0 | AK89: =VLOOKUP($AD89,$E$4:$O$71,9,FALSE)*IF(Variables!$Y$23=1,$AE89,$AF89) -> 0 | AL89: =VLOOKUP($AD89,$E$4:$O$71,10,FALSE)*IF(Variables!$Y$23=1,$AE89,$AF89) -> 0 | AT89: =Report!P278 -> 0
R90: Distribution | S90: DPW | T90: =Factors!C474 -> 0 | U90: =IF(Variables!$AO$3=12,Factors!H474+Factors!K474,CHOOSE(Variables!AO$3,Factors!D474,Factors!E474,Factors!F474,Factors!G474,Factors!H474,Factors!I474,Factors!J474,Factors!K474,Factors!L474,Factors!M474,Factors!N474)) -> 0 | V90: =VLOOKUP($S90,$E$4:$O$71,5,FALSE)*IF(Variables!$Y$23=1,$T90,$U90) -> 0 | W90: =VLOOKUP($S90,$E$4:$O$71,6,FALSE)*IF(Variables!$Y$23=1,$T90,$U90) -> 0 | X90: =VLOOKUP($S90,$E$4:$O$71,7,FALSE)*IF(Variables!$Y$23=1,$T90,$U90) -> 0 | Y90: =VLOOKUP($S90,$E$4:$O$71,8,FALSE)*IF(Variables!$Y$23=1,$T90,$U90) -> 0 | Z90: =VLOOKUP($S90,$E$4:$O$71,9,FALSE)*IF(Variables!$Y$23=1,$T90,$U90) -> 0 | AA90: =VLOOKUP($S90,$E$4:$O$71,10,FALSE)*IF(Variables!$Y$23=1,$T90,$U90) -> 0 | AC90: Distribution | AD90: DPW | AE90: 0 | AF90: 0 | AG90: =VLOOKUP($AD90,$E$4:$O$71,5,FALSE)*IF(Variables!$Y$23=1,$AE90,$AF90) -> 0 | AH90: =VLOOKUP($AD90,$E$4:$O$71,6,FALSE)*IF(Variables!$Y$23=1,$AE90,$AF90) -> 0 | AI90: =VLOOKUP($AD90,$E$4:$O$71,7,FALSE)*IF(Variables!$Y$23=1,$AE90,$AF90) -> 0 | AJ90: =VLOOKUP($AD90,$E$4:$O$71,8,FALSE)*IF(Variables!$Y$23=1,$AE90,$AF90) -> 0 | AK90: =VLOOKUP($AD90,$E$4:$O$71,9,FALSE)*IF(Variables!$Y$23=1,$AE90,$AF90) -> 0 | AL90: =VLOOKUP($AD90,$E$4:$O$71,10,FALSE)*IF(Variables!$Y$23=1,$AE90,$AF90) -> 0 | AT90: =Report!P279 -> 2188273264
R91: General | S91: G | T91: =Factors!C475 -> 137547091 | U91: =IF(Variables!$AO$3=12,Factors!H475+Factors!K475,CHOOSE(Variables!AO$3,Factors!D475,Factors!E475,Factors!F475,Factors!G475,Factors!H475,Factors!I475,Factors!J475,Factors!K475,Factors!L475,Factors!M475,Factors!N475)) -> 58886628 | V91: =VLOOKUP($S91,$E$4:$O$71,5,FALSE)*IF(Variables!$Y$23=1,$T91,$U91) -> 13711306.57 | W91: =VLOOKUP($S91,$E$4:$O$71,6,FALSE)*IF(Variables!$Y$23=1,$T91,$U91) -> 17608293.9 | X91: =VLOOKUP($S91,$E$4:$O$71,7,FALSE)*IF(Variables!$Y$23=1,$T91,$U91) -> 27567027.53 | Y91: =VLOOKUP($S91,$E$4:$O$71,8,FALSE)*IF(Variables!$Y$23=1,$T91,$U91) -> 26023835.92 | Z91: =VLOOKUP($S91,$E$4:$O$71,9,FALSE)*IF(Variables!$Y$23=1,$T91,$U91) -> 1543191.613 | AA91: =VLOOKUP($S91,$E$4:$O$71,10,FALSE)*IF(Variables!$Y$23=1,$T91,$U91) -> 0 | AC91: General | AD91: G | AE91: 137547091 | AF91: 58886628 | AG91: =VLOOKUP($AD91,$E$4:$O$71,5,FALSE)*IF(Variables!$Y$23=1,$AE91,$AF91) -> 13711306.57 | AH91: =VLOOKUP($AD91,$E$4:$O$71,6,FALSE)*IF(Variables!$Y$23=1,$AE91,$AF91) -> 17608293.9 | AI91: =VLOOKUP($AD91,$E$4:$O$71,7,FALSE)*IF(Variables!$Y$23=1,$AE91,$AF91) -> 27567027.53 | AJ91: =VLOOKUP($AD91,$E$4:$O$71,8,FALSE)*IF(Variables!$Y$23=1,$AE91,$AF91) -> 26023835.92 | AK91: =VLOOKUP($AD91,$E$4:$O$71,9,FALSE)*IF(Variables!$Y$23=1,$AE91,$AF91) -> 1543191.613 | AL91: =VLOOKUP($AD91,$E$4:$O$71,10,FALSE)*IF(Variables!$Y$23=1,$AE91,$AF91) -> 0 | AT91: =Report!P280 -> 0
R92: Mining Plant | S92: P | T92: =Factors!C476 -> 106021297 | U92: =IF(Variables!$AO$3=12,Factors!H476+Factors!K476,CHOOSE(Variables!AO$3,Factors!D476,Factors!E476,Factors!F476,Factors!G476,Factors!H476,Factors!I476,Factors!J476,Factors!K476,Factors!L476,Factors!M476,Factors!N476)) -> 45857308 | V92: =VLOOKUP($S92,$E$4:$O$71,5,FALSE)*IF(Variables!$Y$23=1,$T92,$U92) -> 45857308 | W92: =VLOOKUP($S92,$E$4:$O$71,6,FALSE)*IF(Variables!$Y$23=1,$T92,$U92) -> 0 | X92: =VLOOKUP($S92,$E$4:$O$71,7,FALSE)*IF(Variables!$Y$23=1,$T92,$U92) -> 0 | Y92: =VLOOKUP($S92,$E$4:$O$71,8,FALSE)*IF(Variables!$Y$23=1,$T92,$U92) -> 0 | Z92: =VLOOKUP($S92,$E$4:$O$71,9,FALSE)*IF(Variables!$Y$23=1,$T92,$U92) -> 0 | AA92: =VLOOKUP($S92,$E$4:$O$71,10,FALSE)*IF(Variables!$Y$23=1,$T92,$U92) -> 0 | AC92: Mining Plant | AD92: P | AE92: 106021297 | AF92: 45857308 | AG92: =VLOOKUP($AD92,$E$4:$O$71,5,FALSE)*IF(Variables!$Y$23=1,$AE92,$AF92) -> 45857308 | AH92: =VLOOKUP($AD92,$E$4:$O$71,6,FALSE)*IF(Variables!$Y$23=1,$AE92,$AF92) -> 0 | AI92: =VLOOKUP($AD92,$E$4:$O$71,7,FALSE)*IF(Variables!$Y$23=1,$AE92,$AF92) -> 0 | AJ92: =VLOOKUP($AD92,$E$4:$O$71,8,FALSE)*IF(Variables!$Y$23=1,$AE92,$AF92) -> 0 | AK92: =VLOOKUP($AD92,$E$4:$O$71,9,FALSE)*IF(Variables!$Y$23=1,$AE92,$AF92) -> 0 | AL92: =VLOOKUP($AD92,$E$4:$O$71,10,FALSE)*IF(Variables!$Y$23=1,$AE92,$AF92) -> 0 | AT92: =Report!P281 -> 0
AT93: =Report!P282 -> 2020691324
R94: Total PC (Post Merger) | T94: =SUM(T86:T93) -> 412174937 | U94: 147539368 | V94: 146269458.6 | W94: -26297118.1 | X94: 27567027.53 | Y94: 26023835.92 | Z94: 1543191.613 | AA94: 0 | AC94: Total PC (Post Merger) | AE94: =SUM(AE86:AE93) -> 412174937 | AF94: 147539368 | AG94: 146269458.6 | AH94: -26297118.1 | AI94: 27567027.53 | AJ94: 26023835.92 | AK94: 1543191.613 | AL94: 0 | AT94: =Report!P283 -> 0
AT95: =Report!P284 -> 6312007.881
R96: Total Deferred Taxes | T96: =T74+T83+T94 -> 474014211 | U96: 184199400 | V96: 155829876.6 | W96: -9021736.254 | X96: 37391259.64 | Y96: 35868328.05 | Z96: 1522931.589 | AA96: 0 | AC96: Total Deferred Taxes | AE96: =AE74+AE83+AE94 -> 474014211 | AF96: 184199400 | AG96: 155829876.6 | AH96: -9021736.254 | AI96: 37391259.64 | AJ96: 35868328.05 | AK96: 1522931.589 | AL96: 0 | AT96: =Report!P285 -> 3080149.098
AT97: =Report!P286 -> 158189782.9
R98: ACCMDITRL FACTOR | T98: =T96/$T96 -> 1 | U98: =U96/$U96 -> 1 | V98: =V96/IF(Variables!$Y$23=2,$U96,$T96) -> 0.8459847134 | W98: =W96/IF(Variables!$Y23=2,$U96,$T96) -> -0.04897809794 | X98: =X96/IF(Variables!$Y23=2,$U96,$T96) -> 0.2029933846 | Y98: =Y96/IF(Variables!$Y23=2,$U96,$T96) -> 0.1947255423 | Z98: =Z96/IF(Variables!$Y23=2,$U96,$T96) -> 0.008267842287 | AA98: =AA96/IF(Variables!$Y23=2,$U96,$T96) -> 0 | AC98: ACCMDITMA FACTOR | AE98: =AE96/$AE96 -> 1 | AF98: =AF96/$AF96 -> 1 | AG98: =AG96/IF(Variables!$Y23=2,$AF96,$AE96) -> 0.8459847134 | AH98: =AH96/IF(Variables!$Y23=2,$AF96,$AE96) -> -0.04897809794 | AI98: =AI96/IF(Variables!$Y23=2,$AF96,$AE96) -> 0.2029933846 | AJ98: =AJ96/IF(Variables!$Y23=2,$AF96,$AE96) -> 0.1947255423 | AK98: =AK96/IF(Variables!$Y23=2,$AF96,$AE96) -> 0.008267842287 | AL98: =AL96/IF(Variables!$Y23=2,$AF96,$AE96) -> 0 | AT98: =Report!P287 -> 0
AT99: =Report!P288 -> 0
AT100: =Report!P289 -> 2188273264
AT101: =Report!P290 -> 0
R102: DITEXPRL | AC102: DITEXPMA | AT102: =Report!P291 -> 0
R103: Pacific Division | T103: Total | U103: =Variables!X24 -> UTAH | V103: Production | W103: Transmission | X103: Distribution | Y103: DPW | Z103: CUST | AA103: DMSC | AC103: Pacific Division | AE103: Total | AF103: =Variables!X24 -> UTAH | AG103: Production | AH103: Transmission | AI103: Distribution | AJ103: DPW | AK103: CUST | AL103: DMSC | AT103: =Report!P292 -> 0
R104: Pacific Division | AC104: Pacific Division | AT104: =Report!P293 -> 0
R105: Production | S105: P | T105: =Factors!C383 -> 0 | U105: =IF(Variables!$AO$3=12,Factors!H383+Factors!K383,CHOOSE(Variables!AO$3,Factors!D383,Factors!E383,Factors!F383,Factors!G383,Factors!H383,Factors!I383,Factors!J383,Factors!K383,Factors!L383,Factors!M383,Factors!N383)) -> 0 | V105: =VLOOKUP($S105,$E$4:$O$71,5,FALSE)*IF(Variables!$Y$23=1,$T105,$U105) -> 0 | W105: =VLOOKUP($S105,$E$4:$O$71,6,FALSE)*IF(Variables!$Y$23=1,$T105,$U105) -> 0 | X105: =VLOOKUP($S105,$E$4:$O$71,7,FALSE)*IF(Variables!$Y$23=1,$T105,$U105) -> 0 | Y105: =VLOOKUP($S105,$E$4:$O$71,8,FALSE)*IF(Variables!$Y$23=1,$T105,$U105) -> 0 | Z105: =VLOOKUP($S105,$E$4:$O$71,9,FALSE)*IF(Variables!$Y$23=1,$T105,$U105) -> 0 | AA105: =VLOOKUP($S105,$E$4:$O$71,10,FALSE)*IF(Variables!$Y$23=1,$T105,$U105) -> 0 | AB105: 0 | AC105: Production | AD105: P | AE105: =T105 -> 0 | AF105: 0 | AG105: =VLOOKUP($AD105,$E$4:$O$71,5,FALSE)*IF(Variables!$Y$23=1,$AE105,$AF105) -> 0 | AH105: =VLOOKUP($AD105,$E$4:$O$71,6,FALSE)*IF(Variables!$Y$23=1,$AE105,$AF105) -> 0 | AI105: =VLOOKUP($AD105,$E$4:$O$71,7,FALSE)*IF(Variables!$Y$23=1,$AE105,$AF105) -> 0 | AJ105: =VLOOKUP($AD105,$E$4:$O$71,8,FALSE)*IF(Variables!$Y$23=1,$AE105,$AF105) -> 0 | AK105: =VLOOKUP($AD105,$E$4:$O$71,9,FALSE)*IF(Variables!$Y$23=1,$AE105,$AF105) -> 0 | AL105: =VLOOKUP($AD105,$E$4:$O$71,10,FALSE)*IF(Variables!$Y$23=1,$AE105,$AF105) -> 0 | AT105: =Report!P294 -> 0
R106: Transmission | S106: T | T106: =Factors!C384 -> 0 | U106: =IF(Variables!$AO$3=12,Factors!H384+Factors!K384,CHOOSE(Variables!AO$3,Factors!D384,Factors!E384,Factors!F384,Factors!G384,Factors!H384,Factors!I384,Factors!J384,Factors!K384,Factors!L384,Factors!M384,Factors!N384)) -> 0 | V106: =VLOOKUP($S106,$E$4:$O$71,5,FALSE)*IF(Variables!$Y$23=1,$T106,$U106) -> 0 | W106: =VLOOKUP($S106,$E$4:$O$71,6,FALSE)*IF(Variables!$Y$23=1,$T106,$U106) -> 0 | X106: =VLOOKUP($S106,$E$4:$O$71,7,FALSE)*IF(Variables!$Y$23=1,$T106,$U106) -> 0 | Y106: =VLOOKUP($S106,$E$4:$O$71,8,FALSE)*IF(Variables!$Y$23=1,$T106,$U106) -> 0 | Z106: =VLOOKUP($S106,$E$4:$O$71,9,FALSE)*IF(Variables!$Y$23=1,$T106,$U106) -> 0 | AA106: =VLOOKUP($S106,$E$4:$O$71,10,FALSE)*IF(Variables!$Y$23=1,$T106,$U106) -> 0 | AC106: Transmission | AD106: T | AE106: 0 | AF106: 0 | AG106: =VLOOKUP($AD106,$E$4:$O$71,5,FALSE)*IF(Variables!$Y$23=1,$AE106,$AF106) -> 0 | AH106: =VLOOKUP($AD106,$E$4:$O$71,6,FALSE)*IF(Variables!$Y$23=1,$AE106,$AF106) -> 0 | AI106: =VLOOKUP($AD106,$E$4:$O$71,7,FALSE)*IF(Variables!$Y$23=1,$AE106,$AF106) -> 0 | AJ106: =VLOOKUP($AD106,$E$4:$O$71,8,FALSE)*IF(Variables!$Y$23=1,$AE106,$AF106) -> 0 | AK106: =VLOOKUP($AD106,$E$4:$O$71,9,FALSE)*IF(Variables!$Y$23=1,$AE106,$AF106) -> 0 | AL106: =VLOOKUP($AD106,$E$4:$O$71,10,FALSE)*IF(Variables!$Y$23=1,$AE106,$AF106) -> 0 | AT106: =Report!P295 -> 0
R107: Distribution | S107: DPW | T107: =Factors!C385 -> 0 | U107: =IF(Variables!$AO$3=12,Factors!H385+Factors!K385,CHOOSE(Variables!AO$3,Factors!D385,Factors!E385,Factors!F385,Factors!G385,Factors!H385,Factors!I385,Factors!J385,Factors!K385,Factors!L385,Factors!M385,Factors!N385)) -> 0 | V107: =VLOOKUP($S107,$E$4:$O$71,5,FALSE)*IF(Variables!$Y$23=1,$T107,$U107) -> 0 | W107: =VLOOKUP($S107,$E$4:$O$71,6,FALSE)*IF(Variables!$Y$23=1,$T107,$U107) -> 0 | X107: =VLOOKUP($S107,$E$4:$O$71,7,FALSE)*IF(Variables!$Y$23=1,$T107,$U107) -> 0 | Y107: =VLOOKUP($S107,$E$4:$O$71,8,FALSE)*IF(Variables!$Y$23=1,$T107,$U107) -> 0 | Z107: =VLOOKUP($S107,$E$4:$O$71,9,FALSE)*IF(Variables!$Y$23=1,$T107,$U107) -> 0 | AA107: =VLOOKUP($S107,$E$4:$O$71,10,FALSE)*IF(Variables!$Y$23=1,$T107,$U107) -> 0 | AC107: Distribution | AD107: DPW | AE107: 0 | AF107: 0 | AG107: =VLOOKUP($AD107,$E$4:$O$71,5,FALSE)*IF(Variables!$Y$23=1,$AE107,$AF107) -> 0 | AH107: =VLOOKUP($AD107,$E$4:$O$71,6,FALSE)*IF(Variables!$Y$23=1,$AE107,$AF107) -> 0 | AI107: =VLOOKUP($AD107,$E$4:$O$71,7,FALSE)*IF(Variables!$Y$23=1,$AE107,$AF107) -> 0 | AJ107: =VLOOKUP($AD107,$E$4:$O$71,8,FALSE)*IF(Variables!$Y$23=1,$AE107,$AF107) -> 0 | AK107: =VLOOKUP($AD107,$E$4:$O$71,9,FALSE)*IF(Variables!$Y$23=1,$AE107,$AF107) -> 0 | AL107: =VLOOKUP($AD107,$E$4:$O$71,10,FALSE)*IF(Variables!$Y$23=1,$AE107,$AF107) -> 0 | AT107: =Report!P296 -> 0
R108: General | S108: G | T108: =Factors!C386 -> 0 | U108: =IF(Variables!$AO$3=12,Factors!H386+Factors!K386,CHOOSE(Variables!AO$3,Factors!D386,Factors!E386,Factors!F386,Factors!G386,Factors!H386,Factors!I386,Factors!J386,Factors!K386,Factors!L386,Factors!M386,Factors!N386)) -> 0 | V108: =VLOOKUP($S108,$E$4:$O$71,5,FALSE)*IF(Variables!$Y$23=1,$T108,$U108) -> 0 | W108: =VLOOKUP($S108,$E$4:$O$71,6,FALSE)*IF(Variables!$Y$23=1,$T108,$U108) -> 0 | X108: =VLOOKUP($S108,$E$4:$O$71,7,FALSE)*IF(Variables!$Y$23=1,$T108,$U108) -> 0 | Y108: =VLOOKUP($S108,$E$4:$O$71,8,FALSE)*IF(Variables!$Y$23=1,$T108,$U108) -> 0 | Z108: =VLOOKUP($S108,$E$4:$O$71,9,FALSE)*IF(Variables!$Y$23=1,$T108,$U108) -> 0 | AA108: =VLOOKUP($S108,$E$4:$O$71,10,FALSE)*IF(Variables!$Y$23=1,$T108,$U108) -> 0 | AC108: General | AD108: G | AE108: 0 | AF108: 0 | AG108: =VLOOKUP($AD108,$E$4:$O$71,5,FALSE)*IF(Variables!$Y$23=1,$AE108,$AF108) -> 0 | AH108: =VLOOKUP($AD108,$E$4:$O$71,6,FALSE)*IF(Variables!$Y$23=1,$AE108,$AF108) -> 0 | AI108: =VLOOKUP($AD108,$E$4:$O$71,7,FALSE)*IF(Variables!$Y$23=1,$AE108,$AF108) -> 0 | AJ108: =VLOOKUP($AD108,$E$4:$O$71,8,FALSE)*IF(Variables!$Y$23=1,$AE108,$AF108) -> 0 | AK108: =VLOOKUP($AD108,$E$4:$O$71,9,FALSE)*IF(Variables!$Y$23=1,$AE108,$AF108) -> 0 | AL108: =VLOOKUP($AD108,$E$4:$O$71,10,FALSE)*IF(Variables!$Y$23=1,$AE108,$AF108) -> 0 | AT108: =Report!P297 -> 0
C109: =Variables!AE29 -> 2020 PROTOCOL | R109: Mining Plant | S109: P | T109: =Factors!C387 -> 0 | U109: =IF(Variables!$AO$3=12,Factors!H387+Factors!K387,CHOOSE(Variables!AO$3,Factors!D387,Factors!E387,Factors!F387,Factors!G387,Factors!H387,Factors!I387,Factors!J387,Factors!K387,Factors!L387,Factors!M387,Factors!N387)) -> 0 | V109: =VLOOKUP($S109,$E$4:$O$71,5,FALSE)*IF(Variables!$Y$23=1,$T109,$U109) -> 0 | W109: =VLOOKUP($S109,$E$4:$O$71,6,FALSE)*IF(Variables!$Y$23=1,$T109,$U109) -> 0 | X109: =VLOOKUP($S109,$E$4:$O$71,7,FALSE)*IF(Variables!$Y$23=1,$T109,$U109) -> 0 | Y109: =VLOOKUP($S109,$E$4:$O$71,8,FALSE)*IF(Variables!$Y$23=1,$T109,$U109) -> 0 | Z109: =VLOOKUP($S109,$E$4:$O$71,9,FALSE)*IF(Variables!$Y$23=1,$T109,$U109) -> 0 | AA109: =VLOOKUP($S109,$E$4:$O$71,10,FALSE)*IF(Variables!$Y$23=1,$T109,$U109) -> 0 | AC109: Mining Plant | AD109: P | AE109: 0 | AF109: 0 | AG109: =VLOOKUP($AD109,$E$4:$O$71,5,FALSE)*IF(Variables!$Y$23=1,$AE109,$AF109) -> 0 | AH109: =VLOOKUP($AD109,$E$4:$O$71,6,FALSE)*IF(Variables!$Y$23=1,$AE109,$AF109) -> 0 | AI109: =VLOOKUP($AD109,$E$4:$O$71,7,FALSE)*IF(Variables!$Y$23=1,$AE109,$AF109) -> 0 | AJ109: =VLOOKUP($AD109,$E$4:$O$71,8,FALSE)*IF(Variables!$Y$23=1,$AE109,$AF109) -> 0 | AK109: =VLOOKUP($AD109,$E$4:$O$71,9,FALSE)*IF(Variables!$Y$23=1,$AE109,$AF109) -> 0 | AL109: =VLOOKUP($AD109,$E$4:$O$71,10,FALSE)*IF(Variables!$Y$23=1,$AE109,$AF109) -> 0 | AT109: =Report!P298 -> 0
C110: =IF(Variables!Y23=1," ",Variables!AO19) -> 13-Month Average | AT110: =Report!P299 -> 0
C111: RESULTS OF OPERATIONS SUMMARY | R111: Total Pacific Division | T111: =SUM(T105:T109) -> 0 | U111: =SUM(U105:U109) -> 0 | V111: =SUM(V105:V109) -> 0 | W111: 0 | X111: 0 | Y111: 0 | Z111: 0 | AA111: 0 | AC111: Total Pacific Division | AE111: =SUM(AE105:AE109) -> 0 | AF111: 0 | AG111: 0 | AH111: 0 | AI111: 0 | AJ111: 0 | AK111: 0 | AL111: 0 | AT111: =Report!P300 -> 0
AT112: =Report!P301 -> 0
R113: Utah Division | AC113: Utah Division | AT113: =Report!P302 -> 0
H114: =IF(Variables!Y23=1,Variables!X23,Report!N115) -> UTAH | R114: Transmission | S114: T | T114: =Factors!C394 -> 0 | U114: =IF(Variables!$AO$3=12,Factors!H394+Factors!K394,CHOOSE(Variables!AO$3,Factors!D394,Factors!E394,Factors!F394,Factors!G394,Factors!H394,Factors!I394,Factors!J394,Factors!K394,Factors!L394,Factors!M394,Factors!N394)) -> 0 | V114: =VLOOKUP($S114,$E$4:$O$71,5,FALSE)*IF(Variables!$Y$23=1,$T114,$U114) -> 0 | W114: =VLOOKUP($S114,$E$4:$O$71,6,FALSE)*IF(Variables!$Y$23=1,$T114,$U114) -> 0 | X114: =VLOOKUP($S114,$E$4:$O$71,7,FALSE)*IF(Variables!$Y$23=1,$T114,$U114) -> 0 | Y114: =VLOOKUP($S114,$E$4:$O$71,8,FALSE)*IF(Variables!$Y$23=1,$T114,$U114) -> 0 | Z114: =VLOOKUP($S114,$E$4:$O$71,9,FALSE)*IF(Variables!$Y$23=1,$T114,$U114) -> 0 | AA114: =VLOOKUP($S114,$E$4:$O$71,10,FALSE)*IF(Variables!$Y$23=1,$T114,$U114) -> 0 | AC114: Transmission | AD114: T | AE114: =T114 -> 0 | AF114: 0 | AG114: =VLOOKUP($AD114,$E$4:$O$71,5,FALSE)*IF(Variables!$Y$23=1,$AE114,$AF114) -> 0 | AH114: =VLOOKUP($AD114,$E$4:$O$71,6,FALSE)*IF(Variables!$Y$23=1,$AE114,$AF114) -> 0 | AI114: =VLOOKUP($AD114,$E$4:$O$71,7,FALSE)*IF(Variables!$Y$23=1,$AE114,$AF114) -> 0 | AJ114: =VLOOKUP($AD114,$E$4:$O$71,8,FALSE)*IF(Variables!$Y$23=1,$AE114,$AF114) -> 0 | AK114: =VLOOKUP($AD114,$E$4:$O$71,9,FALSE)*IF(Variables!$Y$23=1,$AE114,$AF114) -> 0 | AL114: =VLOOKUP($AD114,$E$4:$O$71,10,FALSE)*IF(Variables!$Y$23=1,$AE114,$AF114) -> 0 | AT114: =Report!P303 -> 0
C115: Description of Account Summary: | H115: Normalized | I115: Production | J115: Transmission | K115: Distribution | L115: Distribution | M115: Retail | N115: Misc | R115: Distribution | S115: DPW | T115: =Factors!C395 -> 0 | U115: =IF(Variables!$AO$3=12,Factors!H395+Factors!K395,CHOOSE(Variables!AO$3,Factors!D395,Factors!E395,Factors!F395,Factors!G395,Factors!H395,Factors!I395,Factors!J395,Factors!K395,Factors!L395,Factors!M395,Factors!N395)) -> 0 | V115: =VLOOKUP($S115,$E$4:$O$71,5,FALSE)*IF(Variables!$Y$23=1,$T115,$U115) -> 0 | W115: =VLOOKUP($S115,$E$4:$O$71,6,FALSE)*IF(Variables!$Y$23=1,$T115,$U115) -> 0 | X115: =VLOOKUP($S115,$E$4:$O$71,7,FALSE)*IF(Variables!$Y$23=1,$T115,$U115) -> 0 | Y115: =VLOOKUP($S115,$E$4:$O$71,8,FALSE)*IF(Variables!$Y$23=1,$T115,$U115) -> 0 | Z115: =VLOOKUP($S115,$E$4:$O$71,9,FALSE)*IF(Variables!$Y$23=1,$T115,$U115) -> 0 | AA115: =VLOOKUP($S115,$E$4:$O$71,10,FALSE)*IF(Variables!$Y$23=1,$T115,$U115) -> 0 | AC115: Distribution | AD115: DPW | AE115: 0 | AF115: 0 | AG115: =VLOOKUP($AD115,$E$4:$O$71,5,FALSE)*IF(Variables!$Y$23=1,$AE115,$AF115) -> 0 | AH115: =VLOOKUP($AD115,$E$4:$O$71,6,FALSE)*IF(Variables!$Y$23=1,$AE115,$AF115) -> 0 | AI115: =VLOOKUP($AD115,$E$4:$O$71,7,FALSE)*IF(Variables!$Y$23=1,$AE115,$AF115) -> 0 | AJ115: =VLOOKUP($AD115,$E$4:$O$71,8,FALSE)*IF(Variables!$Y$23=1,$AE115,$AF115) -> 0 | AK115: =VLOOKUP($AD115,$E$4:$O$71,9,FALSE)*IF(Variables!$Y$23=1,$AE115,$AF115) -> 0 | AL115: =VLOOKUP($AD115,$E$4:$O$71,10,FALSE)*IF(Variables!$Y$23=1,$AE115,$AF115) -> 0 | AT115: =Report!P304 -> 0
R116: General | S116: G | T116: =Factors!C396 -> 0 | U116: =IF(Variables!$AO$3=12,Factors!H396+Factors!K396,CHOOSE(Variables!AO$3,Factors!D396,Factors!E396,Factors!F396,Factors!G396,Factors!H396,Factors!I396,Factors!J396,Factors!K396,Factors!L396,Factors!M396,Factors!N396)) -> 0 | V116: =VLOOKUP($S116,$E$4:$O$71,5,FALSE)*IF(Variables!$Y$23=1,$T116,$U116) -> 0 | W116: =VLOOKUP($S116,$E$4:$O$71,6,FALSE)*IF(Variables!$Y$23=1,$T116,$U116) -> 0 | X116: =VLOOKUP($S116,$E$4:$O$71,7,FALSE)*IF(Variables!$Y$23=1,$T116,$U116) -> 0 | Y116: =VLOOKUP($S116,$E$4:$O$71,8,FALSE)*IF(Variables!$Y$23=1,$T116,$U116) -> 0 | Z116: =VLOOKUP($S116,$E$4:$O$71,9,FALSE)*IF(Variables!$Y$23=1,$T116,$U116) -> 0 | AA116: =VLOOKUP($S116,$E$4:$O$71,10,FALSE)*IF(Variables!$Y$23=1,$T116,$U116) -> 0 | AC116: General | AD116: G | AE116: 0 | AF116: 0 | AG116: =VLOOKUP($AD116,$E$4:$O$71,5,FALSE)*IF(Variables!$Y$23=1,$AE116,$AF116) -> 0 | AH116: =VLOOKUP($AD116,$E$4:$O$71,6,FALSE)*IF(Variables!$Y$23=1,$AE116,$AF116) -> 0 | AI116: =VLOOKUP($AD116,$E$4:$O$71,7,FALSE)*IF(Variables!$Y$23=1,$AE116,$AF116) -> 0 | AJ116: =VLOOKUP($AD116,$E$4:$O$71,8,FALSE)*IF(Variables!$Y$23=1,$AE116,$AF116) -> 0 | AK116: =VLOOKUP($AD116,$E$4:$O$71,9,FALSE)*IF(Variables!$Y$23=1,$AE116,$AF116) -> 0 | AL116: =VLOOKUP($AD116,$E$4:$O$71,10,FALSE)*IF(Variables!$Y$23=1,$AE116,$AF116) -> 0 | AT116: =Report!P305 -> 0
A117: 1 | E117: General Business Revenues | H117: =H219-H118-H119 -> 2001695945 | I117: 977172367.9 | J117: 216383210.4 | K117: 380682946.1 | L117: 328900482.9 | M117: 98030572.23 | N117: -46248109.03 | AT117: =Report!P306 -> -75.16232479
A118: 2 | E118: General Business Revenues | H118: =H198+H199 -> 0 | I118: =I198+I199 -> 0 | J118: 0 | K118: 0 | L118: 0 | M118: 0 | N118: 0 | R118: Total Utah Division | T118: =SUM(T114:T116) -> 0 | U118: 0 | V118: 0 | W118: 0 | X118: 0 | Y118: 0 | Z118: 0 | AA118: 0 | AC118: Total Utah Division | AE118: =SUM(AE114:AE116) -> 0 | AF118: 0 | AG118: 0 | AH118: 0 | AI118: 0 | AJ118: 0 | AK118: 0 | AL118: 0 | AT118: =Report!P307 -> -75.16232479
A119: 3 | E119: Interdepartmental | H119: =H217 -> 0 | I119: 0 | J119: 0 | K119: =K217 -> 0 | L119: 0 | M119: 0 | N119: =N217 -> 0 | AT119: =Report!P308 -> 0
A120: 4 | E120: Special Sales | H120: =H233 -> 112290110.7 | I120: 112290110.7 | J120: 0 | K120: =K233 -> 0 | L120: 0 | M120: 0 | N120: =N233 -> 0 | R120: PACIFICORP | AC120: PACIFICORP | AT120: =Report!P309 -> 0
A121: 5 | E121: Other Operating Revenues | H121: =H277+H240 -> 74287207.93 | I121: 38403893.05 | J121: 28602704.43 | K121: 7280610.448 | L121: 4284660.971 | M121: 5658943.976 | N121: -2662994.498 | R121: Production | S121: P | T121: =Factors!C403 -> 0 | U121: =IF(Variables!$AO$3=12,Factors!H403+Factors!K403,CHOOSE(Variables!AO$3,Factors!D403,Factors!E403,Factors!F403,Factors!G403,Factors!H403,Factors!I403,Factors!J403,Factors!K403,Factors!L403,Factors!M403,Factors!N403)) -> 0 | V121: =VLOOKUP($S121,$E$4:$O$71,5,FALSE)*IF(Variables!$Y$23=1,$T121,$U121) -> 0 | W121: =VLOOKUP($S121,$E$4:$O$71,6,FALSE)*IF(Variables!$Y$23=1,$T121,$U121) -> 0 | X121: =VLOOKUP($S121,$E$4:$O$71,7,FALSE)*IF(Variables!$Y$23=1,$T121,$U121) -> 0 | Y121: =VLOOKUP($S121,$E$4:$O$71,8,FALSE)*IF(Variables!$Y$23=1,$T121,$U121) -> 0 | Z121: =VLOOKUP($S121,$E$4:$O$71,9,FALSE)*IF(Variables!$Y$23=1,$T121,$U121) -> 0 | AA121: =VLOOKUP($S121,$E$4:$O$71,10,FALSE)*IF(Variables!$Y$23=1,$T121,$U121) -> 0 | AC121: Production | AD121: P | AE121: =T121 -> 0 | AF121: =U121 -> 0 | AG121: =VLOOKUP($AD121,$E$4:$O$71,5,FALSE)*IF(Variables!$Y$23=1,$AE121,$AF121) -> 0 | AH121: =VLOOKUP($AD121,$E$4:$O$71,6,FALSE)*IF(Variables!$Y$23=1,$AE121,$AF121) -> 0 | AI121: =VLOOKUP($AD121,$E$4:$O$71,7,FALSE)*IF(Variables!$Y$23=1,$AE121,$AF121) -> 0 | AJ121: =VLOOKUP($AD121,$E$4:$O$71,8,FALSE)*IF(Variables!$Y$23=1,$AE121,$AF121) -> 0 | AK121: =VLOOKUP($AD121,$E$4:$O$71,9,FALSE)*IF(Variables!$Y$23=1,$AE121,$AF121) -> 0 | AL121: =VLOOKUP($AD121,$E$4:$O$71,10,FALSE)*IF(Variables!$Y$23=1,$AE121,$AF121) -> 0 | AT121: =Report!P310 -> 0
A122: 6 | E122: Total Operating Revenues | H122: =SUM(H117:H121) -> 2188273264 | I122: 1127866372 | J122: 244985914.8 | K122: 387963556.6 | L122: 333185143.9 | M122: 103689516.2 | N122: -48911103.53 | R122: Hydro - P | S122: P | T122: =Factors!C404 -> 0 | U122: =IF(Variables!$AO$3=12,Factors!H404+Factors!K404,CHOOSE(Variables!AO$3,Factors!D404,Factors!E404,Factors!F404,Factors!G404,Factors!H404,Factors!I404,Factors!J404,Factors!K404,Factors!L404,Factors!M404,Factors!N404)) -> 0 | V122: =VLOOKUP($S122,$E$4:$O$71,5,FALSE)*IF(Variables!$Y$23=1,$T122,$U122) -> 0 | W122: =VLOOKUP($S122,$E$4:$O$71,6,FALSE)*IF(Variables!$Y$23=1,$T122,$U122) -> 0 | X122: =VLOOKUP($S122,$E$4:$O$71,7,FALSE)*IF(Variables!$Y$23=1,$T122,$U122) -> 0 | Y122: =VLOOKUP($S122,$E$4:$O$71,8,FALSE)*IF(Variables!$Y$23=1,$T122,$U122) -> 0 | Z122: =VLOOKUP($S122,$E$4:$O$71,9,FALSE)*IF(Variables!$Y$23=1,$T122,$U122) -> 0 | AA122: =VLOOKUP($S122,$E$4:$O$71,10,FALSE)*IF(Variables!$Y$23=1,$T122,$U122) -> 0 | AC122: Hydro - P | AD122: P | AE122: 0 | AF122: 0 | AG122: =VLOOKUP($AD122,$E$4:$O$71,5,FALSE)*IF(Variables!$Y$23=1,$AE122,$AF122) -> 0 | AH122: =VLOOKUP($AD122,$E$4:$O$71,6,FALSE)*IF(Variables!$Y$23=1,$AE122,$AF122) -> 0 | AI122: =VLOOKUP($AD122,$E$4:$O$71,7,FALSE)*IF(Variables!$Y$23=1,$AE122,$AF122) -> 0 | AJ122: =VLOOKUP($AD122,$E$4:$O$71,8,FALSE)*IF(Variables!$Y$23=1,$AE122,$AF122) -> 0 | AK122: =VLOOKUP($AD122,$E$4:$O$71,9,FALSE)*IF(Variables!$Y$23=1,$AE122,$AF122) -> 0 | AL122: =VLOOKUP($AD122,$E$4:$O$71,10,FALSE)*IF(Variables!$Y$23=1,$AE122,$AF122) -> 0 | AT122: =Report!P311 -> 0
A123: 7 | R123: Hydro - U | S123: P | T123: =Factors!C405 -> 0 | U123: =IF(Variables!$AO$3=12,Factors!H405+Factors!K405,CHOOSE(Variables!AO$3,Factors!D405,Factors!E405,Factors!F405,Factors!G405,Factors!H405,Factors!I405,Factors!J405,Factors!K405,Factors!L405,Factors!M405,Factors!N405)) -> 0 | V123: =VLOOKUP($S123,$E$4:$O$71,5,FALSE)*IF(Variables!$Y$23=1,$T123,$U123) -> 0 | W123: =VLOOKUP($S123,$E$4:$O$71,6,FALSE)*IF(Variables!$Y$23=1,$T123,$U123) -> 0 | X123: =VLOOKUP($S123,$E$4:$O$71,7,FALSE)*IF(Variables!$Y$23=1,$T123,$U123) -> 0 | Y123: =VLOOKUP($S123,$E$4:$O$71,8,FALSE)*IF(Variables!$Y$23=1,$T123,$U123) -> 0 | Z123: =VLOOKUP($S123,$E$4:$O$71,9,FALSE)*IF(Variables!$Y$23=1,$T123,$U123) -> 0 | AA123: =VLOOKUP($S123,$E$4:$O$71,10,FALSE)*IF(Variables!$Y$23=1,$T123,$U123) -> 0 | AC123: Hydro - U | AD123: P | AE123: 0 | AF123: 0 | AG123: =VLOOKUP($AD123,$E$4:$O$71,5,FALSE)*IF(Variables!$Y$23=1,$AE123,$AF123) -> 0 | AH123: =VLOOKUP($AD123,$E$4:$O$71,6,FALSE)*IF(Variables!$Y$23=1,$AE123,$AF123) -> 0 | AI123: =VLOOKUP($AD123,$E$4:$O$71,7,FALSE)*IF(Variables!$Y$23=1,$AE123,$AF123) -> 0 | AJ123: =VLOOKUP($AD123,$E$4:$O$71,8,FALSE)*IF(Variables!$Y$23=1,$AE123,$AF123) -> 0 | AK123: =VLOOKUP($AD123,$E$4:$O$71,9,FALSE)*IF(Variables!$Y$23=1,$AE123,$AF123) -> 0 | AL123: =VLOOKUP($AD123,$E$4:$O$71,10,FALSE)*IF(Variables!$Y$23=1,$AE123,$AF123) -> 0 | AT123: =Report!P312 -> 0
A124: 8 | C124: Operating Expenses: | R124: Transmission | S124: T | T124: =Factors!C415 -> 0 | U124: =IF(Variables!$AO$3=12,Factors!H415+Factors!K415,CHOOSE(Variables!AO$3,Factors!D415,Factors!E415,Factors!F415,Factors!G415,Factors!H415,Factors!I415,Factors!J415,Factors!K415,Factors!L415,Factors!M415,Factors!N415)) -> 0 | V124: =VLOOKUP($S124,$E$4:$O$71,5,FALSE)*IF(Variables!$Y$23=1,$T124,$U124) -> 0 | W124: =VLOOKUP($S124,$E$4:$O$71,6,FALSE)*IF(Variables!$Y$23=1,$T124,$U124) -> 0 | X124: =VLOOKUP($S124,$E$4:$O$71,7,FALSE)*IF(Variables!$Y$23=1,$T124,$U124) -> 0 | Y124: =VLOOKUP($S124,$E$4:$O$71,8,FALSE)*IF(Variables!$Y$23=1,$T124,$U124) -> 0 | Z124: =VLOOKUP($S124,$E$4:$O$71,9,FALSE)*IF(Variables!$Y$23=1,$T124,$U124) -> 0 | AA124: =VLOOKUP($S124,$E$4:$O$71,10,FALSE)*IF(Variables!$Y$23=1,$T124,$U124) -> 0 | AC124: Transmission | AD124: T | AE124: 0 | AF124: 0 | AG124: =VLOOKUP($AD124,$E$4:$O$71,5,FALSE)*IF(Variables!$Y$23=1,$AE124,$AF124) -> 0 | AH124: =VLOOKUP($AD124,$E$4:$O$71,6,FALSE)*IF(Variables!$Y$23=1,$AE124,$AF124) -> 0 | AI124: =VLOOKUP($AD124,$E$4:$O$71,7,FALSE)*IF(Variables!$Y$23=1,$AE124,$AF124) -> 0 | AJ124: =VLOOKUP($AD124,$E$4:$O$71,8,FALSE)*IF(Variables!$Y$23=1,$AE124,$AF124) -> 0 | AK124: =VLOOKUP($AD124,$E$4:$O$71,9,FALSE)*IF(Variables!$Y$23=1,$AE124,$AF124) -> 0 | AL124: =VLOOKUP($AD124,$E$4:$O$71,10,FALSE)*IF(Variables!$Y$23=1,$AE124,$AF124) -> 0 | AT124: =Report!P313 -> 0
A125: 9 | D125: Steam Production | H125: =H415 -> 395449487.9 | I125: 395449487.9 | J125: 0 | K125: 0 | L125: 0 | M125: 0 | N125: 0 | R125: Distribution | S125: DPW | T125: =Factors!C416 -> 0 | U125: =IF(Variables!$AO$3=12,Factors!H416+Factors!K416,CHOOSE(Variables!AO$3,Factors!D416,Factors!E416,Factors!F416,Factors!G416,Factors!H416,Factors!I416,Factors!J416,Factors!K416,Factors!L416,Factors!M416,Factors!N416)) -> 0 | V125: =VLOOKUP($S125,$E$4:$O$71,5,FALSE)*IF(Variables!$Y$23=1,$T125,$U125) -> 0 | W125: =VLOOKUP($S125,$E$4:$O$71,6,FALSE)*IF(Variables!$Y$23=1,$T125,$U125) -> 0 | X125: =VLOOKUP($S125,$E$4:$O$71,7,FALSE)*IF(Variables!$Y$23=1,$T125,$U125) -> 0 | Y125: =VLOOKUP($S125,$E$4:$O$71,8,FALSE)*IF(Variables!$Y$23=1,$T125,$U125) -> 0 | Z125: =VLOOKUP($S125,$E$4:$O$71,9,FALSE)*IF(Variables!$Y$23=1,$T125,$U125) -> 0 | AA125: =VLOOKUP($S125,$E$4:$O$71,10,FALSE)*IF(Variables!$Y$23=1,$T125,$U125) -> 0 | AC125: Distribution | AD125: DPW | AE125: 0 | AF125: 0 | AG125: =VLOOKUP($AD125,$E$4:$O$71,5,FALSE)*IF(Variables!$Y$23=1,$AE125,$AF125) -> 0 | AH125: =VLOOKUP($AD125,$E$4:$O$71,6,FALSE)*IF(Variables!$Y$23=1,$AE125,$AF125) -> 0 | AI125: =VLOOKUP($AD125,$E$4:$O$71,7,FALSE)*IF(Variables!$Y$23=1,$AE125,$AF125) -> 0 | AJ125: =VLOOKUP($AD125,$E$4:$O$71,8,FALSE)*IF(Variables!$Y$23=1,$AE125,$AF125) -> 0 | AK125: =VLOOKUP($AD125,$E$4:$O$71,9,FALSE)*IF(Variables!$Y$23=1,$AE125,$AF125) -> 0 | AL125: =VLOOKUP($AD125,$E$4:$O$71,10,FALSE)*IF(Variables!$Y$23=1,$AE125,$AF125) -> 0 | AT125: =Report!P314 -> 0
A126: 10 | D126: Nuclear Production | H126: =H463 -> 0 | I126: 0 | J126: 0 | K126: 0 | L126: 0 | M126: 0 | N126: 0 | R126: General | S126: G | T126: =Factors!C417 -> 0 | U126: =IF(Variables!$AO$3=12,Factors!H417+Factors!K417,CHOOSE(Variables!AO$3,Factors!D417,Factors!E417,Factors!F417,Factors!G417,Factors!H417,Factors!I417,Factors!J417,Factors!K417,Factors!L417,Factors!M417,Factors!N417)) -> 0 | V126: =VLOOKUP($S126,$E$4:$O$71,5,FALSE)*IF(Variables!$Y$23=1,$T126,$U126) -> 0 | W126: =VLOOKUP($S126,$E$4:$O$71,6,FALSE)*IF(Variables!$Y$23=1,$T126,$U126) -> 0 | X126: =VLOOKUP($S126,$E$4:$O$71,7,FALSE)*IF(Variables!$Y$23=1,$T126,$U126) -> 0 | Y126: =VLOOKUP($S126,$E$4:$O$71,8,FALSE)*IF(Variables!$Y$23=1,$T126,$U126) -> 0 | Z126: =VLOOKUP($S126,$E$4:$O$71,9,FALSE)*IF(Variables!$Y$23=1,$T126,$U126) -> 0 | AA126: =VLOOKUP($S126,$E$4:$O$71,10,FALSE)*IF(Variables!$Y$23=1,$T126,$U126) -> 0 | AC126: General | AD126: G | AE126: 0 | AF126: 0 | AG126: =VLOOKUP($AD126,$E$4:$O$71,5,FALSE)*IF(Variables!$Y$23=1,$AE126,$AF126) -> 0 | AH126: =VLOOKUP($AD126,$E$4:$O$71,6,FALSE)*IF(Variables!$Y$23=1,$AE126,$AF126) -> 0 | AI126: =VLOOKUP($AD126,$E$4:$O$71,7,FALSE)*IF(Variables!$Y$23=1,$AE126,$AF126) -> 0 | AJ126: =VLOOKUP($AD126,$E$4:$O$71,8,FALSE)*IF(Variables!$Y$23=1,$AE126,$AF126) -> 0 | AK126: =VLOOKUP($AD126,$E$4:$O$71,9,FALSE)*IF(Variables!$Y$23=1,$AE126,$AF126) -> 0 | AL126: =VLOOKUP($AD126,$E$4:$O$71,10,FALSE)*IF(Variables!$Y$23=1,$AE126,$AF126) -> 0 | AT126: =Report!P315 -> 0
A127: 11 | D127: Hydro Production | H127: =H546 -> 20252471.49 | I127: 20252471.49 | J127: 0 | K127: 0 | L127: 0 | M127: 0 | N127: 0 | R127: Mining Plant | S127: P | T127: =Factors!C418 -> 0 | U127: =IF(Variables!$AO$3=12,Factors!H418+Factors!K418,CHOOSE(Variables!AO$3,Factors!D418,Factors!E418,Factors!F418,Factors!G418,Factors!H418,Factors!I418,Factors!J418,Factors!K418,Factors!L418,Factors!M418,Factors!N418)) -> 0 | V127: =VLOOKUP($S127,$E$4:$O$71,5,FALSE)*IF(Variables!$Y$23=1,$T127,$U127) -> 0 | W127: =VLOOKUP($S127,$E$4:$O$71,6,FALSE)*IF(Variables!$Y$23=1,$T127,$U127) -> 0 | X127: =VLOOKUP($S127,$E$4:$O$71,7,FALSE)*IF(Variables!$Y$23=1,$T127,$U127) -> 0 | Y127: =VLOOKUP($S127,$E$4:$O$71,8,FALSE)*IF(Variables!$Y$23=1,$T127,$U127) -> 0 | Z127: =VLOOKUP($S127,$E$4:$O$71,9,FALSE)*IF(Variables!$Y$23=1,$T127,$U127) -> 0 | AA127: =VLOOKUP($S127,$E$4:$O$71,10,FALSE)*IF(Variables!$Y$23=1,$T127,$U127) -> 0 | AC127: Mining Plant | AD127: P | AE127: 0 | AF127: 0 | AG127: =VLOOKUP($AD127,$E$4:$O$71,5,FALSE)*IF(Variables!$Y$23=1,$AE127,$AF127) -> 0 | AH127: =VLOOKUP($AD127,$E$4:$O$71,6,FALSE)*IF(Variables!$Y$23=1,$AE127,$AF127) -> 0 | AI127: =VLOOKUP($AD127,$E$4:$O$71,7,FALSE)*IF(Variables!$Y$23=1,$AE127,$AF127) -> 0 | AJ127: =VLOOKUP($AD127,$E$4:$O$71,8,FALSE)*IF(Variables!$Y$23=1,$AE127,$AF127) -> 0 | AK127: =VLOOKUP($AD127,$E$4:$O$71,9,FALSE)*IF(Variables!$Y$23=1,$AE127,$AF127) -> 0 | AL127: =VLOOKUP($AD127,$E$4:$O$71,10,FALSE)*IF(Variables!$Y$23=1,$AE127,$AF127) -> 0 | AT127: =Report!P316 -> 0
A128: 12 | D128: Other Power Supply | H128: =H604+H655 -> 432366901.7 | I128: 432366901.7 | J128: 0 | K128: 0 | L128: 0 | M128: 0 | N128: 0 | AT128: =Report!P317 -> 0
A129: 13 | D129: Transmission | H129: =H756 -> 97837978.22 | I129: 0 | J129: 97837978.22 | K129: 0 | L129: 0 | M129: 0 | N129: 0 | R129: Total PC (Post Merger) | T129: =SUM(T121:T127) -> 0 | U129: 0 | V129: 0 | W129: 0 | X129: 0 | Y129: 0 | Z129: 0 | AA129: 0 | AC129: Total PC (Post Merger) | AE129: =SUM(AE121:AE127) -> 0 | AF129: 0 | AG129: 0 | AH129: 0 | AI129: 0 | AJ129: 0 | AK129: 0 | AL129: 0 | AT129: =Report!P318 -> -91.02
A130: 14 | D130: Distribution | H130: =H857 -> 91150977.97 | I130: 0 | J130: 0 | K130: 91150977.97 | L130: 91150977.97 | M130: 0 | N130: 0 | AT130: =Report!P319 -> 0
A131: 15 | D131: Customer Accounts | H131: =H892 -> 35432367.49 | I131: 0 | J131: 0 | K131: 35432367.49 | L131: 0 | M131: 35432367.49 | N131: 0 | R131: Total Deferred Taxes | T131: =T111+T118+T129 -> 0 | U131: 0 | V131: 0 | W131: 0 | X131: 0 | Y131: 0 | Z131: 0 | AA131: 0 | AC131: Total Deferred Taxes | AE131: =AE111+AE118+AE129 -> 0 | AF131: 0 | AG131: 0 | AH131: 0 | AI131: 0 | AJ131: 0 | AK131: 0 | AL131: 0 | AT131: =Report!P320 -> 0
A132: 16 | D132: Customer Service | H132: =H923 -> 6935917.442 | I132: 0 | J132: 0 | K132: 6935917.442 | L132: 0 | M132: 6935917.442 | N132: 0 | AT132: =Report!P321 -> 0
A133: 17 | D133: Sales | H133: =H953 -> 0 | I133: 0 | J133: 0 | K133: 0 | L133: 0 | M133: 0 | N133: 0 | R133: DITEXPRL FACTOR | T133: =T131/T131 ->  | U133: =U131/U131 ->  | V133: =V131/IF(Variables!$Y$23=2,$U131,$T131) ->  | W133: =W131/IF(Variables!$Y$23=2,$U131,$T131) ->  | X133: =X131/IF(Variables!$Y$23=2,$U131,$T131) ->  | Y133: =Y131/IF(Variables!$Y$23=2,$U131,$T131) ->  | Z133: =Z131/IF(Variables!$Y$23=2,$U131,$T131) ->  | AA133: =AA131/IF(Variables!$Y$23=2,$U131,$T131) ->  | AC133: DITEXPMA FACTOR | AE133: =AE131/AE131 ->  | AF133: =AF131/AF131 ->  | AG133: =AG131/IF(Variables!$Y$23=2,$AF131,$AE131) ->  | AH133: =AH131/IF(Variables!$Y$23=2,$AF131,$AE131) ->  | AI133: =AI131/IF(Variables!$Y$23=2,$AF131,$AE131) ->  | AJ133: =AJ131/IF(Variables!$Y$23=2,$AF131,$AE131) ->  | AK133: =AK131/IF(Variables!$Y$23=2,$AF131,$AE131) ->  | AL133: =AL131/IF(Variables!$Y$23=2,$AF131,$AE131) ->  | AT133: =Report!P322 -> -1673.134266
A134: 18 | D134: Administrative & General | H134: =H1038 -> 54691997.75 | I134: 19707297.1 | J134: 15234810.09 | K134: 19749890.56 | L134: 12174655.48 | M134: -1362137.854 | N134: 8937372.94 | AT134: =Report!P323 -> -467272.2875
A135: 19 | AT135: =Report!P324 -> -469036.4418
A136: 20 | D136: Total O & M Expenses | H136: =SUM(H125:H134) -> 1134118100 | I136: 867776158.1 | J136: 113072788.3 | K136: 153269153.5 | L136: 103325633.4 | M136: 41006147.08 | N136: 8937372.94 | AT136: =Report!P325 -> 0
A137: 21 | AT137: =Report!P326 -> -469111.6041
A138: 22 | D138: Depreciation | H138: =H1128 -> 432146050 | I138: 275539695.2 | J138: 64046226.21 | K138: 92560128.59 | L138: 92112314.8 | M138: 447813.783 | N138: 0 | AT138: =Report!P327 -> 0
A139: 23 | D139: Amortization Expense | H139: =H1208 -> 6589987.528 | I139: 27583271.33 | J139: 4996426.032 | K139: -25989709.83 | L139: -31717632.28 | M139: 5727922.448 | N139: 0 | AT139: =Report!P328 -> 0
A140: 24 | D140: Taxes Other Than Income | H140: =H1236 -> 78246348.33 | I140: 40538946.58 | J140: 16578755.9 | K140: 21128645.85 | L140: 20644685.34 | M140: 483960.5095 | N140: 0 | AT140: =Report!P329 -> 681135.72
A141: 25 | D141: Income Taxes - Federal | H141: =H1445 -> -61730319.38 | I141: -184353089.4 | J141: 832577.8888 | K141: 32024133.72 | L141: 33707614.19 | M141: 10782009.31 | N141: -12465489.78 | AT141: =Report!P330 -> 681135.72
A142: 26 | D142: Income Taxes - State | H142: =H1412 -> -13829284.14 | I142: -20675835.48 | J142: 173489.2807 | K142: 6673062.062 | L142: 7023859.051 | M142: 2246712.367 | N142: -2597509.356 | AT142: =Report!P331 -> 681135.72
A143: 27 | D143: Income Taxes - Def Net | H143: =H1334 -> 52320516.82 | I143: 46930647.2 | J143: 21959054.86 | K143: -16569185.24 | L143: -16397613.6 | M143: -171571.6418 | N143: 0 | AT143: =Report!P332 -> 0
A144: 28 | D144: Investment Tax Credit Adj. | H144: =H1249 -> -1117293.714 | I144: -525575.6419 | J144: -296752.7758 | K144: -294965.2958 | L144: -294965.2958 | M144: 0 | N144: 0 | AT144: =Report!P333 -> 212024.1159
A145: 29 | D145: Misc Revenue & Expense | H145: =H333 -> 212024.1159 | I145: -468134.4932 | J145: -444.3838104 | K145: 680602.9929 | L145: -532.72708 | M145: 681135.72 | N145: 0 | AT145: =Report!P334 -> 0
A146: 30 | AT146: =Report!P335 -> 0
A147: 31 | D147: Total Operating Expenses | H147: =SUM(H136:H145) -> 1626956129 | I147: 1052346083 | J147: 221362121.3 | K147: 263481866.3 | L147: 208403362.9 | M147: 61204129.57 | N147: -6125626.2 | AT147: =Report!P336 -> 7543208.387
A148: 32 | AT148: =Report!P337 -> 973805.5824
A149: 33 | C149: Operating Revenue for Return | H149: =H122-H147 -> 561317134.6 | I149: 75520288.22 | J149: 23623793.46 | K149: 124481690.3 | L149: 124781781 | M149: 42485386.64 | N149: -42785477.33 | AT149: =Report!P339 -> 8517013.969
A150: 34 | AT150: =Report!P340 -> 0
A151: 35 | C151: Rate Base: | AT151: =Report!P341 -> 0
A152: 36 | D152: Electric Plant in Service | H152: =H2073 -> 1.370308086e+10 | I152: 6335383712 | J152: 3623572515 | K152: 3744124630 | L152: 3649151518 | M152: 94973111.95 | N152: 0 | AT152: =Report!P342 -> 0
A153: 37 | D153: Plant Held for Future Use | H153: =H2096 -> 6357563.966 | I153: 2783187.99 | J153: 141567.1855 | K153: 3432808.791 | L153: 3561434.266 | M153: -128625.4752 | N153: 0 | AT153: =Report!P343 -> 6534462.395
A154: 38 | D154: Misc Deferred Debits | H154: =H2204+H2215 -> 258956012.6 | I154: 101076374.2 | J154: 23900838.43 | K154: 133978800 | L154: 35180402.32 | M154: 268082.5649 | N154: 98530315.07 | AT154: =Report!P344 -> 0
A155: 39 | D155: Elec Plant Acq Adj | H155: =H2102+H2108 -> 12824731.74 | I155: 12824731.74 | J155: 0 | K155: 0 | L155: 0 | M155: 0 | N155: 0 | AT155: =Report!P345 -> 0
A156: 40 | D156: Nuclear Fuel | H156: =H2112 -> 15186767.67 | I156: 6486709.578 | J156: 1041061.932 | K156: 7658996.157 | L156: 5396439.01 | M156: 2262557.147 | N156: 0 | AT156: =Report!P346 -> 1227632.596
A157: 41 | D157: Prepayments | H157: =H2194 -> 16437130.37 | I157: 6502970.301 | J157: 3488146.623 | K157: 6446013.445 | L157: 3077287.365 | M157: 16031.04769 | N157: 3352695.032 | AT157: =Report!P347 -> 7762094.99
A158: 42 | D158: Fuel Stock | H158: =H2159 -> 74344484.22 | I158: 74344484.22 | J158: 0 | K158: 0 | L158: 0 | M158: 0 | N158: 0 | AT158: =Report!P348 -> 0
A159: 43 | D159: Material & Supplies | H159: =H2186 -> 101321806.5 | I159: 85423961.2 | J159: 657011.6125 | K159: 15240833.7 | L159: 15240833.7 | M159: 0 | N159: 0 | AT159: =Report!P349 -> 0
A160: 44 | D160: Working Capital | H160: =H2242 -> 12818051.15 | I160: 3155760.585 | J160: 3159620.984 | K160: 6502669.584 | L160: 5799423.998 | M160: 778685.1421 | N160: -75439.55547 | AT160: =Report!P350 -> 0
A161: 45 | D161: Weatherization Loans | H161: =H2134 -> -0.5273901222 | I161: 0 | J161: 0 | K161: -0.5273901222 | L161: 0 | M161: 0 | N161: -0.5273901222 | AT161: =Report!P351 -> 243279280.3
A162: 46 | D162: Miscellaneous Rate Base | H162: =H2262 -> 0 | I162: 0 | J162: 0 | K162: 0 | L162: 0 | M162: 0 | N162: 0 | AT162: =Report!P352 -> 0
A163: 47 | AT163: =Report!P353 -> 0
A164: 48 | D164: Total Electric Plant | H164: =SUM(H152:H163) -> 1.42013274e+10 | I164: 6627981892 | J164: 3655960761 | K164: 3917384751 | L164: 3717407339 | M164: 98169842.38 | N164: 101807570 | AT164: =Report!P354 -> 16734711.77
A165: 49 | AT165: =Report!P355 -> 260013992.1
A166: 50 | C166: Rate Base Deductions: | AT166: =Report!P356 -> 0
A167: 51 | D167: Accum Prov For Depr | H167: =H2565 -> -3977037084 | I167: -1833962637 | J167: -954983188.7 | K167: -1188091258 | L167: -1185488908 | M167: -2602349.666 | N167: 0 | AT167: =Report!P357 -> 267776087.1
A168: 52 | D168: Accum Prov For Amort | H168: =H2614 -> -276153828.1 | I168: -118837786 | J168: -45129003.06 | K168: -112187039 | L168: -35714133.74 | M168: -76472905.27 | N168: 0 | AT168: =Report!P358 -> 0
A169: 53 | D169: Accum Def Income Taxes | H169: =H2362 -> -1170687403 | I169: -550442456.6 | J169: -271457335.7 | K169: -348787610.2 | L169: -340127844.2 | M169: -8659766.002 | N169: 0 | AT169: =Report!P359 -> 0
A170: 54 | D170: Unamortized ITC | H170: =H2372 -> -84977.08456 | I170: -39973.27223 | J170: -22569.88061 | K170: -22433.93172 | L170: -22433.93172 | M170: 0 | N170: 0 | AT170: =Report!P360 -> 33499308.81
A171: 55 | D171: Customer Adv for Const | H171: =H2295 -> -38042159.69 | I171: 0 | J171: -25370657.53 | K171: -12671502.16 | L171: -12671502.16 | M171: 0 | N171: 0 | AT171: =Report!P361 -> 2161588.936
A172: 56 | D172: Customer Service Deposits | H172: =H2268 -> -16275584.48 | I172: =I2268 -> 0 | J172: 0 | K172: -16275584.48 | L172: 0 | M172: -16275584.48 | N172: 0 | AT172: =Report!P363 -> 35660897.74
A173: 57 | D173: Misc. Rate Base Deductions | H173: =H2275+H2280+H2286+H2306+H2299 -> -778729429.4 | I173: =I2275+I2280+I2286+I2306+I2299 -> -726796047.1 | J173: -20667666.05 | K173: -31265716.28 | L173: -27603335.34 | M173: -3662380.938 | N173: 0 | AT173: =Report!P364 -> 0
A174: 58 | AT174: =Report!P365 -> 0
A175: 59 | D175: Total Rate Base Deductions | H175: =SUM(H167:H173) -> -6257010465 | I175: -3230078900 | J175: -1317630421 | K175: -1709301144 | L175: -1601628157 | M175: -107672986.4 | N175: 0 | AT175: =Report!P366 -> 6096.704804
A176: 60 | P176: Functional Retail Revenue Spread | AT176: =Report!P367 -> 6096.704804
A177: 61 | C177: Total Rate Base | H177: =H164+H175 -> 7944316939 | I177: 3397902992 | J177: 2338330340 | K177: 2208083608 | L177: 2115779181 | M177: -9503143.983 | N177: 101807570 | Q177: =$I$115 -> Production | R177: =$J$115 -> Transmission | S177: =$K$115 -> Distribution | T177: =$L$115 -> Distribution | U177: Customer | V177: =$N$115 -> Misc | AT177: =Report!P368 -> 0
A178: 62 | P178: California | AT178: =Report!P369 -> 0
A179: 63 | C179: Return on Rate Base | H179: =H149/H177 -> 0.07065643766 | I179: 0.02222555747 | J179: 0.01010284691 | K179: 0.05637544243 | L179: 0.05897675054 | M179: -4.470666414 | N179: -0.42025831 | P179: Washington | AT179: =Report!P370 -> 1949954.176
A180: 64 | P180: Montana | AT180: =Report!P371 -> 1949954.176
A181: 65 | C181: Return on Equity | H181: =(+H179-Variables!$AT$3-Variables!$AT$4)/Variables!$AT$5 -> 0.09012440407 | I181: =(+I179-Variables!$AT$3-Variables!$AT$4)/Variables!$AT$5 -> -0.0001138672028 | J181: =(+J179-Variables!$AT$3-Variables!$AT$4)/Variables!$AT$5 -> -0.02270136592 | K181: =(+K179-Variables!$AT$3-Variables!$AT$4)/Variables!$AT$5 -> 0.06351550666 | L181: =(+L179-Variables!$AT$3-Variables!$AT$4)/Variables!$AT$5 -> 0.06836236359 | M181: =(+M179-Variables!$AT$3-Variables!$AT$4)/Variables!$AT$5 -> -8.371442304 | N181: =(+N179-Variables!$AT$3-Variables!$AT$4)/Variables!$AT$5 -> -0.8245667599 | P181: Wyoming - East | Q181: 127802829 | R181: 31696874 | S181: 50094096.44 | T181: 46928984 | U181: 1555189 | V181: 1610923.44 | AT181: =Report!P372 -> 0
A182: 66 | P182: Utah | Q182: 366003980 | R182: 104207074 | S182: 215005203.7 | T182: 197478510 | U182: 11984031 | V182: 5542662.72 | AT182: =Report!P373 -> 0
A183: 67 | C183: 100 Basis Points in Equity: | H183: =(H177*(Variables!$AT5*(H181+0.01)+Variables!$AT3+Variables!$AT4))-H149 -> 42637149.01 | I183: =(I177*(Variables!AT5*(I181+0.01)+Variables!AT3+Variables!AT4))-I149 -> 18236545.36 | J183: =(J177*(Variables!AU5*(J181+0.01)+Variables!AU3+Variables!AU4))-J149 -> 12549818.94 | K183: =(K177*(Variables!$AV5*(K181+0.01)+Variables!$AV3+Variables!$AV4))-K149 -> 11850784.72 | L183: =(L177*(Variables!$AV5*(L181+0.01)+Variables!$AV3+Variables!$AV4))-L149 -> 11355386.87 | M183: =(M177*(Variables!$AV5*(M181+0.01)+Variables!$AV3+Variables!$AV4))-M149 -> -51003.37376 | N183: =(N177*(Variables!$AV5*(N181+0.01)+Variables!$AV3+Variables!$AV4))-N149 -> 546401.2283 | P183: Idaho | Q183: 55561275 | R183: 14318016 | S183: 30397767.02 | T183: 27273473 | U183: 2038247 | V183: 1086047.02 | AT183: =Report!P374 -> 527597.832
A184: 68 | D184: Revenue Requirement Impact | H184: =H183*(1/(1-(INDEX(Variables!$F$15:$Q$15,1,Variables!$AO$3)))) -> 56537895.14 | I184: =I183*(1/(1-(INDEX(Variables!$F$15:$Q$15,1,Variables!$AO$3)))) -> 24182102.06 | J184: =J183*(1/(1-(INDEX(Variables!$F$15:$Q$15,1,Variables!$AO$3)))) -> 16641364.71 | K184: =K183*(1/(1-(INDEX(Variables!$F$15:$Q$15,1,Variables!$AO$3)))) -> 15714428.37 | L184: =L183*(1/(1-(INDEX(Variables!$F$15:$Q$15,1,Variables!$AO$3)))) -> 15057518.78 | M184: =M183*(1/(1-(INDEX(Variables!$F$15:$Q$15,1,Variables!$AO$3)))) -> -67631.71234 | N184: =N183*(1/(1-(INDEX(Variables!$F$15:$Q$15,1,Variables!$AO$3)))) -> 724541.2994 | P184: Wyoming - West | Q184: 19756255.66 | R184: 5006765.992 | S184: 9963427.118 | T184: 8733400.13 | U184: 996768.2125 | V184: 233258.5417 | AT184: =Report!P375 -> 133454.3589
A185: 69 | D185: Rate Base Decrease | H185: =(H149/(Variables!$AT5*(H181+0.01)+UTCR!$J7+UTCR!$J12))-H177 -> -560842160.3 | I185: =(I149/(Variables!$AT5*(I181+0.01)+UTCR!$J7+UTCR!$J12))-I177 -> -660922619.2 | J185: =(J149/(Variables!$AU5*(J181+0.01)+UTCR!$J7+UTCR!$J12))-J177 -> -811243899.6 | K185: =(K149/(Variables!$AV5*(K181+0.01)+UTCR!$J7+UTCR!$J12))-K177 -> -191939033.4 | L185: =(L149/(Variables!$AV5*(L181+0.01)+UTCR!$J7+UTCR!$J12))-L177 -> -176480027.5 | M185: =(M149/(Variables!$AV5*(M181+0.01)+UTCR!$J7+UTCR!$J12))-M177 -> -11422.1621 | N185: =(N149/(Variables!$AV5*(N181+0.01)+UTCR!$J7+UTCR!$J12))-N177 -> 1316974.386 | O185: Check | P185: Total Company | Q185: 1110556694 | R185: 308995072.2 | S185: 611877930.3 | T185: 566002564.9 | U185: 14881002.1 | V185: 30994363.59 | AT185: =Report!P377 -> 661052.1909
C186: =$C$109 -> 2020 PROTOCOL | W186: Check Total | AT186: =Report!P378 -> 0
C187: =$C$110 -> 13-Month Average | Q187: =($H179-I179)*I177*(1/(1-Variables!$F$15)) -> 218215108.6 | R187: =($H179-J179)*J177*(1/(1-Variables!$F$15)) -> 187757478.7 | S187: =($H179-K179)*K177*(1/(1-Variables!$F$15)) -> 41814361.22 | T187: =($H179-L179)*L177*(1/(1-Variables!$F$15)) -> 32768233.33 | U187: =($H179-M179)*M177*(1/(1-Variables!$F$15)) -> -57227024.56 | V187: =($H179-N179)*N177*(1/(1-Variables!$F$15)) -> 66273152.45 | W187: =ABS(SUM(Q187:V187)) -> 489601309.8 | AT187: =Report!P379 -> 0
C188: FERC | F188: BUSINESS | G188: PITA | H188: =$H$114 -> UTAH | Q188: =Q187+I192 -> 1195387476 | R188: 404140689.1 | S188: 422497307.4 | T188: 361668716.3 | U188: 40803547.68 | V188: 20025043.42 | W188: =SUM(Q188:V188,-S188) -> 2022025473 | AT188: =Report!P381 -> 12503962.32
C189: ACCT | E189: DESCRIPTION | F189: FUNCTION | G189: FACTOR | H189: =$H$115 -> Normalized | I189: =$I$115 -> Production | J189: =$J$115 -> Transmission | K189: =$K$115 -> Distribution | L189: =$L$115 -> Distribution | M189: =$M$115 -> Retail | N189: =$N$115 -> Misc | O189: Check | Q189: =$I$115 -> Production | R189: =$J$115 -> Transmission | S189: =$K$115 -> Distribution | T189: =$L$115 -> Distribution | U189: Customer | V189: =$N$115 -> Misc | AT189: =Report!P382 -> -10160082.59
A190: 70 | C190: Sales to Ultimate Customers | O190: Figure | AT190: =Report!P383 -> 885453.9177
A191: 71 | C191: 440 | D191: Residential Sales | I191: =($H179-I179)*I177*(1/(1-Variables!$F$15)) -> 218215108.6 | J191: =($H179-J179)*J177*(1/(1-Variables!$F$15)) -> 187757478.7 | K191: =($H179-K179)*K177*(1/(1-Variables!$F$15)) -> 41814361.22 | L191: =($H179-L179)*L177*(1/(1-Variables!$F$15)) -> 32768233.33 | M191: =($H179-M179)*M177*(1/(1-Variables!$F$15)) -> -57227024.56 | N191: =($H179-N179)*N177*(1/(1-Variables!$F$15)) -> 66273152.45 | O191: =H117 -> 2001695945 | AT191: =Report!P384 -> 3229333.645
A192: 72 | G192: =UTCR!H192 -> S | H192: =IF(Variables!$Y$23=2,Report!P192,NRO!I192) -> 754492620.2 | I192: 977172367.9 | J192: 216383210.4 | K192: 380682946.1 | L192: 328900482.9 | M192: 98030572.23 | N192: -46248109.03 | O192: =SUM(L192:N192)+J192+I192 -> 1574238524 | P192: =+O192-O191 -> -427457421 | Q192: =IF($F192=0,0,INDEX($I192:$N192,1,1)) -> 0 | R192: =IF($F192=0,0,INDEX($I192:$N192,1,2)) -> 0 | S192: =IF($F192=0,0,INDEX($I192:$N192,1,3)) -> 0 | T192: =IF($F192=0,0,INDEX($I192:$N192,1,4)) -> 0 | U192: =IF($F192=0,0,INDEX($I192:$N192,1,5)) -> 0 | V192: =IF($F192=0,0,INDEX($I192:$N192,1,6)) -> 0 | AT192: =Report!P385 -> 0
A193: 73 | Q193: 0 | R193: 0 | S193: 0 | T193: 0 | U193: 0 | V193: 0 | AT193: =Report!P386 -> 0
A194: 74 | H194: =SUBTOTAL(9,H192:H193) -> 754492620.2 | I194: 977172367.9 | J194: 216383210.4 | K194: 380682946.1 | L194: 328900482.9 | M194: 98030572.23 | N194: -46248109.03 | Q194: 0 | R194: 0 | S194: 0 | T194: 0 | U194: 0 | V194: 0 | AT194: =Report!P387 -> 212409.6088
A195: 75 | Q195: 0 | R195: 0 | S195: 0 | T195: 0 | U195: 0 | V195: 0 | AT195: =Report!P388 -> 0
A196: 76 | C196: 442 | D196: Commercial & Industrial Sales | Q196: 0 | R196: 0 | S196: 0 | T196: 0 | U196: 0 | V196: 0 | AT196: =Report!P389 -> 212409.6088
A197: 77 | G197: =UTCR!H197 -> S | H197: =IF(Variables!$Y$23=2,Report!P197,NRO!I197) -> 1240596131 | Q197: 0 | R197: 0 | S197: 0 | T197: 0 | U197: 0 | V197: 0 | AT197: =Report!P390 -> 0
A198: 78 | F198: P | G198: =UTCR!H198 -> SE | H198: =IF(Variables!$Y$23=2,Report!P198,NRO!I198) -> 0 | I198: =IF(F198=(VLOOKUP(F198,$E$4:$N$71,1)),VLOOKUP(F198,$E$4:$N$71,5),"#N/A")*H198 -> 0 | J198: =IF(F198=(VLOOKUP(F198,$E$4:$N$71,1)),VLOOKUP(F198,$E$4:$N$71,6),"#N/A")*H198 -> 0 | K198: =IF(F198=(VLOOKUP(F198,$E$4:$N$71,1)),VLOOKUP(F198,$E$4:$N$71,7),"#N/A")*H198 -> 0 | L198: =IF(F198=(VLOOKUP(F198,$E$4:$N$71,1)),VLOOKUP(F198,$E$4:$N$71,8),"#N/A")*H198 -> 0 | M198: =IF(F198=(VLOOKUP(F198,$E$4:$N$71,1)),VLOOKUP(F198,$E$4:$N$71,9),"#N/A")*H198 -> 0 | N198: =IF(F198=(VLOOKUP(F198,$E$4:$N$71,1)),VLOOKUP(F198,$E$4:$N$71,10),"#N/A")*H198 -> 0 | Q198: 0 | R198: 0 | S198: 0 | T198: 0 | U198: 0 | V198: 0 | AT198: =Report!P391 -> 0
A199: 79 | F199: PT | G199: =UTCR!H199 -> SG | H199: =IF(Variables!$Y$23=2,Report!P199,NRO!I199) -> 0 | I199: =(IF(F199=(VLOOKUP(F199,$E$4:$N$71,1)),VLOOKUP(F199,$E$4:$N$71,5),"#N/A")*H199)+0 -> 0 | J199: =(IF(F199=(VLOOKUP(F199,$E$4:$N$71,1)),VLOOKUP(F199,$E$4:$N$71,6),"#N/A")*H199)+0 -> 0 | K199: =(IF(F199=(VLOOKUP(F199,$E$4:$N$71,1)),VLOOKUP(F199,$E$4:$N$71,7),"#N/A")*H199)+0 -> 0 | L199: =(IF(F199=(VLOOKUP(F199,$E$4:$N$71,1)),VLOOKUP(F199,$E$4:$N$71,8),"#N/A")*H199)+0 -> 0 | M199: =(IF(F199=(VLOOKUP(F199,$E$4:$N$71,1)),VLOOKUP(F199,$E$4:$N$71,9),"#N/A")*H199)+0 -> 0 | N199: =(IF(F199=(VLOOKUP(F199,$E$4:$N$71,1)),VLOOKUP(F199,$E$4:$N$71,10),"#N/A")*H199)+0 -> 0 | Q199: 0 | R199: 0 | S199: 0 | T199: 0 | U199: 0 | V199: 0 | AT199: =Report!P392 -> 2331097.61
A200: 80 | Q200: 0 | R200: 0 | S200: 0 | T200: 0 | U200: 0 | V200: 0 | AT200: =Report!P393 -> 0
... 2046 more rows

Sheet Function1149 (hidden)
E1: =H114 -> UTAH | F1: =C111 -> RESULTS OF OPERATIONS SUMMARY | T1: UNADJUSTED RESULTS OF OPERATIONS
T2: =Variables!AE27 -> 2020 PROTOCOL
E3: Function | F3: Description | I3: Production | J3: Transmission | K3: Distribution | L3: Ancillary | M3: C_Billing | N3: C_Metering | O3: C_Service | P3: DSM | Q3: Total | T3: =Variables!AE28 -> 
F5: Internal Factors | W5: PACIFICORP | X5: PACIFICORP
E6: ACCMDIT | F6: Deferred Income Tax - Balance | I6: =X73 -> 0.8535806459 | J6: -0.07410905708 | K6: 0.2052171534 | L6: 0 | M6: 0.008441293088 | N6: 0.006869964722 | O6: 0 | P6: 0 | Q6: =SUM(I6:P6) -> 1 | T6: FERC | U6: DESCRIPTION | W6: LABOR | X6: O&M
E7: CWC | F7: Cash Working Capital | I7: =IF(ISERROR(X$70/$W$70),1,X$70/$W$70) -> 0.7230278977 | J7: 0.06934095319 | K7: 0.1579251043 | L7: -0.001218341695 | M7: 0.02095039095 | N7: 0.01519891407 | O7: 0.01477508147 | P7: 0 | Q7: =SUM(I7:P7) -> 1 | T7: ACCT | W7: ONLY | X7: TOTAL | Y7: =Variables!X24 -> UTAH
E8: D_SPLIT | F8: Distribution Slit between Functions | I8: 0 | J8: 0 | K8: =Y62 -> 0.9866641265 | L8: 0 | M8: 0 | N8: =Y63 -> 0.01333587349 | O8: 0 | P8: 0 | Q8: 1
E9: DITEXP | F9: Deferred Income Tax - Expense | I9: =X74 -> 
E10: FIT | F10: Federal Income Taxes | I10: =I$1434/$H$1434 -> 3.885223771 | J10: =IF(ISERROR(J$1434/$H$1434),1,J$1434/$H$1434) -> 0.8629364561 | K10: 0.04107231733 | L10: 0.01450983719 | M10: -0.009699298571 | N10: -0.0389666758 | O10: 0.05000156024 | P10: -1.623268087e-307 | Q10: 4.805077968 | T10: Production | W10: 90698845 | X10: =URO!I674 -> 1900483276 | Y10: =IF(Variables!AO3=12,URO!N674+URO!Q674,CHOOSE(Variables!AO3,URO!J674,URO!K674,URO!L674,URO!M674,URO!N674,URO!O674,URO!P674,URO!Q674,URO!R674,URO!S674,URO!T674)) -> 855588218.4 | AA10: Meter O&M Split
E11: GP | F11: Gross Plant | I11: =(I$152)/($H$152) -> 0.3962916983 | J11: =(J$152)/($H$152) -> 0.2812225533 | K11: 0.3044885464 | L11: 0 | M11: 0.005964444103 | N11: 0.008029197212 | O11: 0.004003560627 | P11: 0 | Q11: 1 | T11: Transmission | W11: 10748429 | X11: =URO!I775 -> 222364388.3 | Y11: =IF(Variables!AO3=12,URO!N775+URO!Q775,CHOOSE(Variables!AO3,URO!J775,URO!K775,URO!L775,URO!M775,URO!N775,URO!O775,URO!P775,URO!Q775,URO!R775,URO!S775,URO!T775)) -> 97790013.51 | AB11: 1998 | AC11: 1997 | AD11: Total | AE11: Percent
E12: IBT | F12: Income Before Taxes | I12: =I$1419/$H$1419 -> -8.569753807 | J12: =IF(ISERROR(J$1419/$H$1419),1,J$1419/$H$1419) -> -3.064838149 | K12: -0.1458740144 | L12: -0.05153369317 | M12: 0.03444840008 | N12: 0.1383955373 | O12: -0.1775874553 | P12: 5.765261074e-307 | Q12: -11.83674318 | T12: Distribution | W12: =W17 -> 41944504.6 | X12: 212801873.6 | Y12: 90068212.58 | AA12: Account 586 597 | AB12: =7716052+814586 -> 8530638 | AC12: =5317324+1141217 -> 6458541 | AD12: =AB12+AC12 -> 14989179 | AE12: =AD12/$AD$13 -> 0.0801081302
E13: NP | F13: Net Plant | I13: =(I$152+I$167+I$168)/($H$152+$H$167+$H$168) -> 0.3435699895 | J13: =(J$152+J$167+J$168)/($H$152+$H$167+$H$168) -> 0.3284103205 | K13: 0.3223310608 | L13: 0 | M13: 0.002113939564 | N13: 0.001638739663 | O13: 0.001935949989 | P13: 0 | Q13: 1 | T13: Customer Billing | W13: 35215299.05 | X13: 170122413.5 | Y13: 36925561.07 | AA13: TTL Dist Exp | AB13: 97117213 | AC13: 89994619 | AD13: =AB13+AC13 -> 187111832 | AE13: =AD13/$AD$13 -> 1
E14: PT | F14: Production / Transmission | I14: =IF(Variables!$Y$23=1,Function1149!X$51,Function1149!Y$51) -> 0.6391310705 | J14: =IF(Variables!$Y$23=1,Function1149!X$52,Function1149!Y$52) -> 0.3608689295 | K14: 0 | L14: 0 | M14: 0 | N14: 0 | O14: 0 | P14: 0 | Q14: 1 | T14: Customer Metering | W14: 15369458.98 | X14: 19011117.22 | Y14: 6525489.247
E15: PTD | F15: Prod, Trans, Dist Plant | I15: =IF(Variables!$Y$23=1,Function1149!X$44,Function1149!Y$44) -> 0.4704006078 | J15: =IF(Variables!$Y$23=1,Function1149!X$45,Function1149!Y$45) -> 0.2655996111 | K15: =IF(Variables!$Y$23=1,Function1149!X$46,Function1149!Y$46) -> 0.2604791134 | L15: 0 | M15: 0 | N15: =IF(Variables!$Y$23=1,Function1149!X$47,Function1149!Y$47) -> 0.003520667682 | O15: 0 | P15: 0 | Q15: 1 | T15: TOTAL | W15: =SUM(W10:W14) -> 193976536.6 | X15: =SUM(X10:X14) -> 2524783068 | Y15: =SUM(Y10:Y14) -> 1086897495 | AA15: Meter Reading Labor Split
E16: REVREQ | F16: Revenue Requirement | I16: =IF(ISERROR(I$122/$H$122),1,I$122/$H$122) -> 0.3563300633 | J16: =IF(ISERROR(J$122/$H$122),1,J$122/$H$122) -> 0.04852738286 | K16: 0.08979176741 | L16: -0.001930620809 | M16: 0.01178895039 | N16: 0.01146332227 | O16: 0.003122722142 | P16: 0 | Q16: =SUM(I16:P16) -> 0.5190935875 | AB16: 1998 | AC16: 1997 | AD16: Total | AE16: Percent
E17: T_SPLIT | F17: Transmission Split | I17: =I$1752/$H$1752 -> 0.02439548087 | J17: =J$1752/$H$1752 -> 0.9756045191 | K17: 0 | L17: 0 | M17: 0 | N17: 0 | O17: 0 | P17: 0 | Q17: 1 | T17: Poles & Wires | W17: =45597212*(1-AE12) -> 41944504.6 | X17: =URO!I876-URO!I869-URO!I815 -> 212801873.6 | Y17: =INDEX(URO!$J$876:$R$876,,Variables!$AO$3)-INDEX(URO!$J$869:$R$869,,Variables!$AO$3)-INDEX(URO!$J$815:$R$815,,Variables!$AO$3) -> 90068212.58 | AA17: Account 902 | AB17: 17740463 | AC17: 17582340 | AD17: =AB17+AC17 -> 35322803 | AE17: =AD17/$AD$18 -> 0.243929702
E18: TD | F18: Transmission / Distribution | I18: 0 | J18: =IF(Variables!$Y$23=1,Function1149!$X$56,Function1149!$Y$56) -> 0.5015104152 | K18: =IF(Variables!$Y$23=1,Function1149!$X$57,Function1149!$Y$57) -> 0.4918417907 | L18: 0 | M18: 0 | N18: =IF(Variables!$Y$23=1,Function1149!$X$58,Function1149!$Y$58) -> 0.006647794038 | O18: 0 | P18: 0 | Q18: =SUM(I18:P18) -> 1 | T18: Customer Billing | W18: =(38485186+6117793)-(38485186*$AE$17) -> 35215299.05 | X18: =URO!I911+URO!I980-URO!I893 -> 170122413.5 | Y18: =INDEX(URO!$J$911:$R$911,,Variables!$AO$3)+INDEX(URO!$J$980:$R$980,,Variables!$AO$3)-INDEX(URO!$J$893:$R$893,,Variables!$AO$3) -> 36925561.07 | AA18: Ttl Cust Service | AB18: 72030470 | AC18: 72776836 | AD18: =AB18+AC18 -> 144807306 | AE18: =AD18/$AD$18 -> 1
T19: Customer Metering | W19: =38485186*$AE$17+(74671310*AE12) -> 15369458.98 | X19: =URO!I869+URO!I815+URO!I893 -> 19011117.22 | Y19: =INDEX(URO!$J$869:$R$869,,Variables!$AO$3)+INDEX(URO!$J$815:$R$815,,Variables!$AO$3)+INDEX(URO!$J$893:$R$893,,Variables!$AO$3) -> 6525489.247
F20: External Factors | T20: Misc | AA20: Source: FERC FORM 1 Page 322
E21: ANC | F21: Ancillary Function | I21: 0 | J21: 0 | K21: 0 | L21: 1 | M21: 0 | N21: 0 | O21: 0 | P21: 0 | Q21: =SUM(I21:P21) -> 1 | T21: TOTAL DISTRIBUTION | W21: =SUM(W17:W20) -> 92529262.63 | X21: =SUM(X17:X20) -> 401935404.3 | Y21: =SUM(Y17:Y20) -> 133519262.9
E22: B_CENTER | F22: Business Centers | I22: 0 | J22: 0 | K22: 0 | L22: 0 | M22: 0.7453435853 | N22: 0 | O22: 0.2546564147 | P22: 0 | Q22: =SUM(I22:P22) -> 1
E23: BOOKDEPR | F23: Book Depreciation | I23: 0.4845650437 | J23: 0.1558154864 | K23: 0.3420665007 | L23: 0 | M23: 0.00362896348 | N23: 0.01392400566 | O23: 0 | P23: 0 | Q23: 1 | T23: Labor/O&M
E24: C_METER | F24: Customer Metering | I24: 0 | J24: 0 | K24: 0 | L24: 0 | M24: 0 | N24: 1 | O24: 0 | P24: 0 | Q24: 1 | T24: Production | W24: =W10/W$15 -> 0.4675763707 | X24: 0.7527313137 | Y24: 0.7871839088
E25: C_SERVICE | F25: Customer Other | I25: 0 | J25: 0 | K25: 0 | L25: 0 | M25: 0 | N25: 0 | O25: 1 | P25: 0 | Q25: 1 | T25: Transmission | W25: 0.05541097489 | X25: 0.08807267089 | Y25: 0.08997169832
E26: COM_EQ | F26: Communication Equipment Acct 397 | I26: 0.159434 | J26: 0.393847 | K26: 0.432754 | L26: 0 | M26: 0 | N26: 0 | O26: 0.013965 | P26: 0 | Q26: 1 | T26: Distribution | W26: 0.2162349392 | X26: 0.08428521098 | Y26: 0.08286725566
E27: CSS_SYS | F27: CSS System | I27: 0 | J27: 0 | K27: 0 | L27: 0 | M27: 0.55 | N27: 0.18 | O27: 0.27 | P27: 0 | Q27: 1 | T27: Customer Billing | W27: 0.1815441169 | X27: 0.06738100221 | Y27: 0.0339733611
E28: CUST | F28: Customer Billing | I28: 0 | J28: 0 | K28: 0 | L28: 0 | M28: 1 | N28: 0 | O28: 0 | P28: 0 | Q28: 1 | T28: Customer Metering | W28: 0.07923359827 | X28: 0.007529802249 | Y28: 0.00600377614
E29: CUST901 | F29: Supervision | I29: 0 | J29: 0 | K29: 0 | L29: 0 | M29: 0.6345753273 | N29: -0.06989238368 | O29: 0.4353170564 | P29: 0 | Q29: 1 | T29: TOTAL | W29: =SUM(W24:W28) -> 1 | X29: =SUM(X24:X28) -> 1 | Y29: =SUM(Y24:Y28) -> 1
E30: CUST903 | F30: Cust. Records & Coll. Exp. | I30: 0 | J30: 0 | K30: 0 | L30: 0 | M30: 0.5961416623 | N30: 0 | O30: 0.4038583377 | P30: 0 | Q30: 1
E31: CUST905 | F31: Misc. Customer Acct. Exp. | I31: 0 | J31: 0 | K31: 0 | L31: 0 | M31: 0.08871429249 | N31: 0.07696437586 | O31: 0.8343213317 | P31: 0 | Q31: 1 | T31: Distribution | W31: =W17/W$21 -> 0.4533106978 | X31: 0.5294429685 | Y31: 0.6745709243
E32: D | F32: Distribution Only | I32: 0 | J32: 0 | K32: 1 | L32: 0 | M32: 0 | N32: 0 | O32: 0 | P32: 0 | Q32: 1 | T32: Customer Billing | W32: 0.3805855364 | X32: 0.4232580949 | Y32: 0.2765560584
E33: DDS2 | F33: Deferred Debits - Situs | I33: 0.5072219508 | J33: 0.1845855021 | K33: 0.2834051309 | L33: 0 | M33: 0.01256905969 | N33: 0.01221835658 | O33: 0 | P33: 0 | Q33: 1 | T33: Customer Metering | W33: 0.1661037659 | X33: 0.04729893665 | Y33: 0.04887301731
E34: DDS6 | F34: Deferred Debits - Situs | I34: 0 | J34: 1 | K34: 0 | L34: 0 | M34: 0 | N34: 0 | O34: 0 | P34: 0 | Q34: 1 | T34: Total Distribution | W34: =SUM(W31:W33) -> 1 | X34: =SUM(X31:X33) -> 1 | Y34: =SUM(Y31:Y33) -> 1
E35: DDSO2 | F35: Deferred Debits - System Overhead | I35: 0.4171842688 | J35: 0.06670748689 | K35: 0.512731016 | L35: 0 | M35: 0 | N35: 0.003377228292 | O35: 0 | P35: 0 | Q35: 1
E36: DDSO6 | F36: Deferred Debits - System Overhead | I36: 0 | J36: 0 | K36: 1 | L36: 0 | M36: 0 | N36: 0 | O36: 0 | P36: 0 | Q36: 1
E37: DEFSG | F37: Deferred Debit - System Generation | I37: 0.2424591015 | J37: 0.7575408985 | K37: 0 | L37: 0 | M37: 0 | N37: 0 | O37: 0 | P37: 0 | Q37: 1 | T37: Total Production Plant | X37: =URO!I1722 -> 1.355713816e+10 | Y37: =IF(Variables!AO3=12,URO!N1722+URO!Q1722,CHOOSE(Variables!AO3,URO!J1722,URO!K1722,URO!L1722,URO!M1722,URO!N1722,URO!O1722,URO!P1722,URO!Q1722,URO!R1722,URO!S1722,URO!T1722)) -> 5964742813
E38: DSM | F38: Demand Side Management | I38: 0 | J38: 0 | K38: 1 | L38: 0 | M38: 0 | N38: 0 | O38: 0 | P38: 0 | Q38: 1 | T38: Total Transmission Plant | X38: =URO!I1786 -> 7654614110 | Y38: =IF(Variables!AO3=12,URO!N1786+URO!Q1786,CHOOSE(Variables!AO3,URO!J1786,URO!K1786,URO!L1786,URO!M1786,URO!N1786,URO!O1786,URO!P1786,URO!Q1786,URO!R1786,URO!S1786,URO!T1786)) -> 3367838700
E39: DPW | F39: Distribution Poles & Wires | I39: 0 | J39: 0 | K39: 0.9608865815 | L39: 0 | M39: 0 | N39: 0.03911341851 | O39: 0 | P39: 0 | Q39: =SUM(I39:P39) -> 1 | T39: Total Distribution Plant | X39: =URO!I1860 -> 7816742916 | Y39: =IF(Variables!AO3=12,URO!N1860+URO!Q1860,CHOOSE(Variables!AO3,URO!J1860,URO!K1860,URO!L1860,URO!M1860,URO!N1860,URO!O1860,URO!P1860,URO!Q1860,URO!R1860,URO!S1860,URO!T1860)) -> 3347552641
E40: ESD | F40: Environmental Services Department | I40: 0.3 | J40: 0.1 | K40: 0.6 | L40: 0 | M40: 0 | N40: 0 | O40: 0 | P40: 0 | Q40: 1 | T40: Total Account 370 | X40: =URO!I1836 -> 201888369.1 | Y40: =H1802 -> 44642538.52
E41: FERC | F41: FERC Fees | I41: 0.514717736 | J41: 0.485282264 | K41: 0 | L41: 0 | M41: 0 | N41: 0 | O41: 0 | P41: 0 | Q41: 1 | T41: TOTAL | X41: =SUM(X37:X40) -> 2.923038356e+10 | Y41: =SUM(Y37:Y40) -> 1.272477669e+10
E42: G | F42: General Plant | I42: 0.2569188767 | J42: 0.2193639593 | K42: 0.4775233865 | L42: 0 | M42: 0.02675592464 | N42: 0.01943785294 | O42: 0 | P42: 0 | Q42: 1
E43: G-DGP | F43: General Plant - DGP Factor | I43: 0.6855986064 | J43: 0.3144013936 | K43: 0 | O43: 0 | P43: 0 | Q43: 1 | T43: PTD
E44: G-DGU | F44: General Plant - DGU Factor | I44: 0.6855986064 | J44: 0.3144013936 | K44: 0 | O44: 0 | P44: 0 | Q44: 1 | T44: Total Production Plant | X44: =X37/SUM(X$37:X$39) -> 0.4670286239 | Y44: =Y37/SUM(Y$37:Y$39) -> 0.4704006078
E45: G-SG | F45: General Plant - SG Factor | I45: 0.6863049829 | J45: 0.3070705956 | K45: 0.006365317742 | L45: 0 | M45: 0 | N45: 0.000259103771 | O45: 0 | P45: 0 | Q45: 1 | T45: Total Transmission Plant | X45: =X38/SUM(X$37:X$39) -> 0.2636931078 | Y45: =Y38/SUM(Y$37:Y$39) -> 0.2655996111
E46: G-SITUS | F46: General Plant - SITUS Factor | I46: 0.0001467575033 | J46: 0.209679849 | K46: 0.7592670109 | L46: 0 | M46: 0 | N46: 0.03090638263 | O46: 0 | P46: 0 | Q46: 1 | T46: Total Distribution Plant | X46: =(X39-X40)/SUM(X$37:X$39) -> 0.2623234342 | Y46: =(Y39-Y40)/SUM(Y$37:Y$39) -> 0.2604791134
E47: I | F47: Intangible Plant | I47: 0.4702230682 | J47: 0.1465189551 | K47: 0.1997512069 | L47: 0 | M47: 0.09641524389 | N47: 0.0397376888 | O47: 0.0473538371 | P47: 0 | Q47: 1 | T47: Total Account 370 | X47: =(X40)/SUM(X$37:X$39) -> 0.00695483413 | Y47: =(Y40)/SUM(Y$37:Y$39) -> 0.003520667682
E48: I-DGP | F48: Intangible Plant - DGP Factor | I48: 1 | J48: 0 | K48: 0 | L48: 0 | M48: 0 | N48: 0 | O48: 0 | P48: 0 | Q48: 1 | T48: TOTAL | X48: =SUM(X44:X47) -> 1 | Y48: =SUM(Y44:Y47) -> 1
E49: I-DGU | F49: Intangible Plant - DGU Factor | I49: 1 | J49: 0 | K49: 0 | L49: 0 | M49: 0 | N49: 0 | O49: 0 | P49: 0 | Q49: 1
E50: I-SG | F50: Intangible Plant - SG Factor | I50: 0.8952466433 | J50: 0.1044295446 | K50: 0.0003111467083 | L50: 0 | M50: 0 | N50: 1.266539845e-05 | O50: 0 | P50: 0 | Q50: 1 | T50: PT
E51: I-SITUS | F51: Intangible Plant - SITUS Factor | I51: 0 | J51: 0.3714231392 | K51: 0.603991071 | L51: 0 | M51: 0 | N51: 0.02458578982 | O51: 0 | P51: 0 | Q51: 1 | T51: Total Production Plant | X51: =X37/(X$37+X$38) -> 0.639133344 | Y51: =Y37/(Y$37+Y$38) -> 0.6391310705
E52: LABOR | F52: Direct Labor Expense | I52: 0.4042442542 | J52: 0.04812701706 | K52: 0.3400063721 | L52: 0 | M52: 0.05441429262 | N52: 0.09789744243 | O52: 0.05531062156 | P52: 0 | Q52: 1 | T52: Total Transmission Plant | X52: =X38/(X$37+X$38) -> 0.360866656 | Y52: =Y38/(Y$37+Y$38) -> 0.3608689295
E53: MSS | F53: Materials & Supplies | I53: 0.8033119538 | J53: 0.06755266468 | K53: 0.1247572377 | L53: 0 | M53: 0 | N53: 0.004378143827 | O53: 0 | P53: 0 | Q53: 1 | T53: TOTAL | X53: =SUM(X51:X52) -> 1 | Y53: =SUM(Y51:Y52) -> 1
E54: NONE | F54: Not Functionalized | I54: 0 | J54: 0 | K54: 0 | L54: 0 | M54: 0 | N54: 0 | O54: 0 | P54: 0 | Q54: 0
E55: NUTIL | F55: Non-Utility | I55: 0 | J55: 0 | K55: 0 | L55: 0 | M55: 0 | N55: 0 | O55: 0 | P55: 0 | Q55: 0 | T55: TD
E56: OTHDGP | F56: Other Revenues - DGP Factor | I56: 0.4625870645 | J56: 0.5374129355 | K56: 0 | L56: 0 | M56: 0 | N56: 0 | O56: 0 | P56: 0 | Q56: 1 | T56: Total Transmission Plant | X56: =X38/SUM(X$38:X$39) -> 0.494760356 | Y56: =Y38/SUM(Y$38:Y$39) -> 0.5015104152
E57: OTHDGU | F57: Other Revenues - DGU Factor | I57: 0.4625870645 | J57: 0.5374129355 | K57: 0 | L57: 0 | M57: 0 | N57: 0 | O57: 0 | P57: 0 | Q57: 1 | T57: Total Distribution Plant | X57: =(X39-X40)/SUM(X$38:X$39) -> 0.4921904739 | Y57: =(Y39-Y40)/SUM(Y$38:Y$39) -> 0.4918417907
E58: OTHSE | F58: Other Revenues - SE Factor | I58: 0.0001727378942 | J58: 0.9998272621 | K58: 0 | L58: 0 | M58: 0 | N58: 0 | O58: 0 | P58: 0 | Q58: 1 | T58: Total Account 370 | X58: =X40/SUM(X$38:X$39) -> 0.01304917007 | Y58: =Y40/SUM(Y$38:Y$39) -> 0.006647794038
E59: OTHSG | F59: Other Revenues - SG Factor | I59: 0.4625870645 | J59: 0.5374129355 | K59: 0 | L59: 0 | M59: 0 | N59: 0 | O59: 0 | P59: 0 | Q59: 1 | T59: TOTAL | X59: =SUM(X56:X58) -> 1 | Y59: =SUM(Y56:Y58) -> 1
E60: OTHSGR | F60: Other Revenues - Rolled-In SG Factor | I60: 0.4625870645 | J60: 0.5374129355 | K60: 0 | L60: 0 | M60: 0 | N60: 0 | O60: 0 | P60: 0 | Q60: 1
E61: OTHSITUS | F61: Other Revenues - SITUS | I61: 0 | J61: 0 | K61: 1 | L61: 0 | M61: 0 | N61: 0 | O61: 0 | P61: 0 | Q61: 1 | T61: D_Split
E62: OTHSO | F62: Other Revenues - SO Factor | I62: 4.679293728e-05 | J62: 2.06904628e-05 | K62: 0.999931147 | L62: 0 | M62: 0 | N62: 0 | O62: 0 | P62: 0 | Q62: 0.9999986304 | T62: Total Distribution Plant | X62: =(X39-X40)/(X$39) -> 0.9741723156 | Y62: =(Y39-Y40)/(Y$39) -> 0.9866641265
E63: P | F63: Production | I63: 1 | J63: 0 | K63: 0 | L63: 0 | M63: 0 | N63: 0 | O63: 0 | P63: 0 | Q63: 1 | T63: Total Account 370 | X63: =X40/(X$39) -> 0.0258276844 | Y63: =Y40/(Y$39) -> 0.01333587349
E64: RETAIL | F64: Retail Function | I64: 0 | J64: 0 | K64: 0 | L64: 0 | M64: 0 | N64: 0 | O64: 0 | P64: 0 | Q64: 0 | T64: Total | X64: =SUM(X62:X63) -> 1 | Y64: =SUM(Y62:Y63) -> 1
E65: SCHMA | F65: Schedule M Additions | I65: 0.4190865141 | J65: 0.1641232291 | K65: 0.3761491918 | L65: 0 | M65: 0.005477940566 | N65: 0.01951171973 | O65: 0.0156514046 | P65: 0 | Q65: 1
E66: SCHMAF | F66: Schedule M Additions - Flow Through | I66: 1 | J66: 0 | K66: 0 | L66: 0 | M66: 0 | N66: 0 | O66: 0 | P66: 0 | Q66: 1
E67: SCHMAP | F67: Schedule M Additions - Permanent | I67: 0.4160970458 | J67: 0.06253452748 | K67: 0.3350010237 | L67: 0 | M67: 0.04850308641 | N67: 0.08856227243 | O67: 0.04930204415 | P67: 0 | Q67: 1 | X67: =I$3 -> Production | Y67: Transmission | Z67: Distribution | AA67: Ancillary | AB67: C_Billing | AC67: C_Metering | AD67: C_Service | AE67: DSM
E68: SCHMAP-SO | F68: Schedule M Additions - Permanent-SO | I68: 0.4059309643 | J68: 0.05308717123 | K68: 0.3396272537 | L68: 0 | M68: 0.05265863495 | N68: 0.09516993166 | O68: 0.05352604416 | P68: 0 | Q68: 1 | T68: (O&M + Taxes) / 365 | W68: =SUM(X68:AE68) -> 2403113.888 | X68: =((I1037+I1225+I1401+I1434)/365) -> 1737518.383 | Y68: 166634.2076 | Z68: 379512.0115 | AA68: -2927.813847 | AB68: 50346.17546 | AC68: 36524.72148 | AD68: 35506.20349 | AE68: 3.217706717e-302
E69: SCHMAT | F69: Schedule M Additions - Temporary | I69: 0.4191435536 | J69: 0.1660615541 | K69: 0.376934304 | L69: 0 | M69: 0.004657015452 | N69: 0.01819422663 | O69: 0.01500934623 | P69: 0 | Q69: 1 | T69: Net LAG Days | X69: =IF(Variables!$AO$3=12,Variables!$J20,IF(Variables!$Y23=2,CHOOSE(Variables!$AO3,Variables!$F20,Variables!$G20,Variables!$H20,Variables!$I20,Variables!$J20,Variables!$K20,Variables!$L20,Variables!$M20,Variables!$N20),Variables!$O20)) -> 4.068381533 | Y69: =IF(Variables!$AO$3=12,Variables!$J20,IF(Variables!$Y23=2,CHOOSE(Variables!$AO3,Variables!$F20,Variables!$G20,Variables!$H20,Variables!$I20,Variables!$J20,Variables!$K20,Variables!$L20,Variables!$M20,Variables!$N20),Variables!$O20)) -> 4.068381533 | Z69: =IF(Variables!$AO$3=12,Variables!$J20,IF(Variables!$Y23=2,CHOOSE(Variables!$AO3,Variables!$F20,Variables!$G20,Variables!$H20,Variables!$I20,Variables!$J20,Variables!$K20,Variables!$L20,Variables!$M20,Variables!$N20),Variables!$O20)) -> 4.068381533 | AA69: =IF(Variables!$AO$3=12,Variables!$J20,IF(Variables!$Y23=2,CHOOSE(Variables!$AO3,Variables!$F20,Variables!$G20,Variables!$H20,Variables!$I20,Variables!$J20,Variables!$K20,Variables!$L20,Variables!$M20,Variables!$N20),Variables!$O20)) -> 4.068381533 | AB69: =IF(Variables!$AO$3=12,Variables!$J20,IF(Variables!$Y23=2,CHOOSE(Variables!$AO3,Variables!$F20,Variables!$G20,Variables!$H20,Variables!$I20,Variables!$J20,Variables!$K20,Variables!$L20,Variables!$M20,Variables!$N20),Variables!$O20)) -> 4.068381533 | AC69: =IF(Variables!$AO$3=12,Variables!$J20,IF(Variables!$Y23=2,CHOOSE(Variables!$AO3,Variables!$F20,Variables!$G20,Variables!$H20,Variables!$I20,Variables!$J20,Variables!$K20,Variables!$L20,Variables!$M20,Variables!$N20),Variables!$O20)) -> 4.068381533 | AD69: =IF(Variables!$AO$3=12,Variables!$J20,IF(Variables!$Y23=2,CHOOSE(Variables!$AO3,Variables!$F20,Variables!$G20,Variables!$H20,Variables!$I20,Variables!$J20,Variables!$K20,Variables!$L20,Variables!$M20,Variables!$N20),Variables!$O20)) -> 4.068381533 | AE69: =IF(Variables!$AO$3=12,Variables!$J20,IF(Variables!$Y23=2,CHOOSE(Variables!$AO3,Variables!$F20,Variables!$G20,Variables!$H20,Variables!$I20,Variables!$J20,Variables!$K20,Variables!$L20,Variables!$M20,Variables!$N20),Variables!$O20)) -> 4.068381533
E70: SCHMAT-GPS | F70: Schedule M Additions - Temporary-GPS | I70: 0.4565079555 | J70: 0.2009823396 | K70: 0.3277488096 | L70: 0 | M70: 0.0008314080651 | N70: 0.0135501467 | O70: 0.0003793405869 | P70: 0 | Q70: 1 | T70: CWC | W70: =SUM(X70:AE70) -> 9776784.164 | X70: =X68*X69 -> 7068887.7 | Y70: 677931.533 | Z70: 1543999.659 | AA70: -11911.46379 | AB70: 204827.4505 | AC70: 148596.5024 | AD70: 144452.7826 | AE70: 1.309085858e-301
E71: SCHMAT-SE | F71: Schedule M Additions - Temporary-SE | I71: 0.9842508729 | J71: 0.001272263869 | K71: 0.00898825335 | L71: 0 | M71: 0.001438471417 | N71: 0.002587972129 | O71: 0.00146216636 | P71: 0 | Q71: =SUM(I71:P71) -> 1
E72: SCHMAT-SITUS | F72: Schedule M Additions - Temporary-SITUS | I72: 0.5055376977 | J72: 0.05463690133 | K72: 0.2959301989 | L72: 0 | M72: 0.0370623376 | N72: 0.0691600246 | O72: 0.0376728398 | P72: 0 | Q72: 1
E73: SCHMAT-SNP | F73: Schedule M Additions - Temporary-SNP | I73: 0.4565162898 | J73: 0.2015183426 | K73: 0.3280584593 | L73: 0 | M73: 0.0003239124031 | N73: 0.01343520669 | O73: 0.0001477891859 | P73: 0 | Q73: 1 | T73: ACCUMDIT | V73: =Variables!AE27 -> 2020 PROTOCOL | X73: =IF(Variables!$AD$24=2,Function1149!X110,Function1149!AK110) -> 0.8535806459 | Y73: =IF(Variables!$AD$24=2,Function1149!Y110,Function1149!AL110) -> -0.07410905708 | Z73: =IF(Variables!$AD$24=2,Function1149!Z110,Function1149!AM110) -> 0.2052171534 | AA73: =IF(Variables!$AD$24=2,Function1149!AA110,Function1149!AN110) -> 0 | AB73: =IF(Variables!$AD$24=2,Function1149!AB110,Function1149!AO110) -> 0.008441293088 | AC73: =IF(Variables!$AD$24=2,Function1149!AC110,Function1149!AP110) -> 0.006869964722 | AD73: =IF(Variables!$AD$24=2,Function1149!AD110,Function1149!AQ110) -> 0 | AE73: =IF(Variables!$AD$24=2,Function1149!AE110,Function1149!AR110) -> 0
E74: SCHMAT-SO | F74: Schedule M Additions - Temporary-SO | I74: 0.4186955507 | J74: 0.154156412 | K74: 0.3574530733 | L74: 0 | M74: 0.01129494904 | N74: 0.02910680568 | O74: 0.02929320916 | P74: 0 | Q74: 1 | T74: DITEXP | V74: =Variables!AE27 -> 2020 PROTOCOL | X74: =IF(Variables!$AD$24=2,Function1149!X143,Function1149!AK143) ->  | Y74: =IF(Variables!$AD$24=2,Function1149!Y143,Function1149!AL143) ->  | Z74: =IF(Variables!$AD$24=2,Function1149!Z143,Function1149!AM143) ->  | AA74: =IF(Variables!$AD$24=2,Function1149!AA143,Function1149!AN143) ->  | AB74: =IF(Variables!$AD$24=2,Function1149!AB143,Function1149!AO143) ->  | AC74: =IF(Variables!$AD$24=2,Function1149!AC143,Function1149!AP143) ->  | AD74: =IF(Variables!$AD$24=2,Function1149!AD143,Function1149!AQ143) ->  | AE74: =IF(Variables!$AD$24=2,Function1149!AE143,Function1149!AR143) -> 
E75: SCHMD | F75: Schedule M Deductions | I75: 0.5227884621 | J75: 0.1552876126 | K75: 0.3019214664 | L75: 0 | M75: 0.003191548108 | N75: 0.008795786426 | O75: 0.008015124335 | P75: 0 | Q75: 1
E76: SCHMDF | F76: Schedule M Deductions - Flow Through | I76: 1 | J76: 0 | K76: 0 | L76: 0 | M76: 0 | N76: 0 | O76: 0 | P76: 0 | Q76: 1
E77: SCHMDP | F77: Schedule M Deductions - Permanent | I77: 0.4990425753 | J77: 0.04223817146 | K77: 0.2861061775 | L77: 0 | M77: 0.04519973017 | N77: 0.08146907158 | O77: 0.045944274 | P77: 0 | Q77: 1 | T77: DITBALRL | AG77: DITBALMA
E78: SCHMDP-SO | F78: Schedule M Deductions - Permanent- SO | I78: 0.4042442012 | J78: 0.04812686127 | K78: 0.340006384 | L78: 0 | M78: 0.05441434776 | N78: 0.0978975281 | O78: 0.05531067761 | P78: 0 | Q78: 1 | T78: Pacific Division | V78: Total | W78: =Variables!X24 -> UTAH | X78: =I$3 -> Production | Y78: Transmission | Z78: Distribution | AA78: Ancillary | AB78: C_Billing | AC78: C_Metering | AD78: C_Service | AE78: DSM | AG78: Pacific Division | AI78: Total | AJ78: =Variables!X24 -> UTAH | AK78: =I$3 -> Production | AL78: Transmission | AM78: Distribution | AN78: Ancillary | AO78: C_Billing | AP78: C_Metering | AQ78: C_Service | AR78: DSM
E79: SCHMDT | F79: Schedule M Deductions - Temporary | I79: 0.5234441071 | J79: 0.1584090078 | K79: 0.3023581405 | L79: 0 | M79: 0.00203166501 | N79: 0.006789212682 | O79: 0.006967866933 | P79: 0 | Q79: 1 | T79: Pacific Division | AG79: Pacific Division
E80: SCHMDT-GPS | F80: Schedule M Deductions - Temporary-GPS | I80: 0.4565216092 | J80: 0.20186045 | K80: 0.3282560953 | L80: 0 | M80: 0 | N80: 0.01336184549 | O80: 0 | P80: 0 | Q80: 1 | T80: Production | U80: P | V80: =Factors!C440 -> 5194919 | W80: =IF(Variables!$AO$3=12,Factors!H440+Factors!K440,CHOOSE(Variables!AO$3,Factors!D440,Factors!E440,Factors!F440,Factors!G440,Factors!H440,Factors!I440,Factors!J440,Factors!K440,Factors!L440,Factors!M440,Factors!N440)) -> -4420617 | X80: =VLOOKUP($U80,Func_Ftrs,I$90,0)*IF(Variables!$Y$23=1,$V80,$W80) -> -4420617 | Y80: =VLOOKUP($U80,Func_Ftrs,J$90,0)*IF(Variables!$Y$23=1,$V80,$W80) -> 0 | Z80: =VLOOKUP($U80,Func_Ftrs,K$90,0)*IF(Variables!$Y$23=1,$V80,$W80) -> 0 | AA80: =VLOOKUP($U80,Func_Ftrs,L$90,0)*IF(Variables!$Y$23=1,$V80,$W80) -> 0 | AB80: =VLOOKUP($U80,Func_Ftrs,M$90,0)*IF(Variables!$Y$23=1,$V80,$W80) -> 0 | AC80: =VLOOKUP($U80,Func_Ftrs,N$90,0)*IF(Variables!$Y$23=1,$V80,$W80) -> 0 | AD80: =VLOOKUP($U80,Func_Ftrs,O$90,0)*IF(Variables!$Y$23=1,$V80,$W80) -> 0 | AE80: =VLOOKUP($U80,Func_Ftrs,P$90,0)*IF(Variables!$Y$23=1,$V80,$W80) -> 0 | AG80: Production | AH80: P | AI80: =V80 -> 5194919 | AJ80: -4420617 | AK80: =VLOOKUP($AH80,Func_Ftrs,I$90,0)*IF(Variables!$Y$23=1,$AI80,$AJ80) -> -4420617 | AL80: =VLOOKUP($AH80,Func_Ftrs,J$90,0)*IF(Variables!$Y$23=1,$AI80,$AJ80) -> 0 | AM80: =VLOOKUP($AH80,Func_Ftrs,K$90,0)*IF(Variables!$Y$23=1,$AI80,$AJ80) -> 0 | AN80: =VLOOKUP($AH80,Func_Ftrs,L$90,0)*IF(Variables!$Y$23=1,$AI80,$AJ80) -> 0 | AO80: =VLOOKUP($AH80,Func_Ftrs,M$90,0)*IF(Variables!$Y$23=1,$AI80,$AJ80) -> 0 | AP80: =VLOOKUP($AH80,Func_Ftrs,N$90,0)*IF(Variables!$Y$23=1,$AI80,$AJ80) -> 0 | AQ80: =VLOOKUP($AH80,Func_Ftrs,O$90,0)*IF(Variables!$Y$23=1,$AI80,$AJ80) -> 0 | AR80: =VLOOKUP($AH80,Func_Ftrs,P$90,0)*IF(Variables!$Y$23=1,$AI80,$AJ80) -> 0
E81: SCHMDT-SG | F81: Schedule M Deductions - Temporary-SG | I81: 0.4608190971 | J81: 0.1948405389 | K81: 0.3224945048 | L81: 0 | M81: 0.005105776225 | N81: 0.01441050707 | O81: 0.00232957585 | P81: 0 | Q81: 1 | T81: Transmission | U81: T | V81: =Factors!C441 -> 8659044 | W81: =IF(Variables!$AO$3=12,Factors!H441+Factors!K441,CHOOSE(Variables!AO$3,Factors!D441,Factors!E441,Factors!F441,Factors!G441,Factors!H441,Factors!I441,Factors!J441,Factors!K441,Factors!L441,Factors!M441,Factors!N441)) -> 268148 | X81: =VLOOKUP($U81,Func_Ftrs,I$90,0)*IF(Variables!$Y$23=1,$V81,$W81) -> 0 | Y81: =VLOOKUP($U81,Func_Ftrs,J$90,0)*IF(Variables!$Y$23=1,$V81,$W81) -> 268148 | Z81: =VLOOKUP($U81,Func_Ftrs,K$90,0)*IF(Variables!$Y$23=1,$V81,$W81) -> 0 | AA81: =VLOOKUP($U81,Func_Ftrs,L$90,0)*IF(Variables!$Y$23=1,$V81,$W81) -> 0 | AB81: =VLOOKUP($U81,Func_Ftrs,M$90,0)*IF(Variables!$Y$23=1,$V81,$W81) -> 0 | AC81: =VLOOKUP($U81,Func_Ftrs,N$90,0)*IF(Variables!$Y$23=1,$V81,$W81) -> 0 | AD81: =VLOOKUP($U81,Func_Ftrs,O$90,0)*IF(Variables!$Y$23=1,$V81,$W81) -> 0 | AE81: =VLOOKUP($U81,Func_Ftrs,P$90,0)*IF(Variables!$Y$23=1,$V81,$W81) -> 0 | AG81: Transmission | AH81: T | AI81: 8659044 | AJ81: 268148 | AK81: =VLOOKUP($AH81,Func_Ftrs,I$90,0)*IF(Variables!$Y$23=1,$AI81,$AJ81) -> 0 | AL81: =VLOOKUP($AH81,Func_Ftrs,J$90,0)*IF(Variables!$Y$23=1,$AI81,$AJ81) -> 268148 | AM81: =VLOOKUP($AH81,Func_Ftrs,K$90,0)*IF(Variables!$Y$23=1,$AI81,$AJ81) -> 0 | AN81: =VLOOKUP($AH81,Func_Ftrs,L$90,0)*IF(Variables!$Y$23=1,$AI81,$AJ81) -> 0 | AO81: =VLOOKUP($AH81,Func_Ftrs,M$90,0)*IF(Variables!$Y$23=1,$AI81,$AJ81) -> 0 | AP81: =VLOOKUP($AH81,Func_Ftrs,N$90,0)*IF(Variables!$Y$23=1,$AI81,$AJ81) -> 0 | AQ81: =VLOOKUP($AH81,Func_Ftrs,O$90,0)*IF(Variables!$Y$23=1,$AI81,$AJ81) -> 0 | AR81: =VLOOKUP($AH81,Func_Ftrs,P$90,0)*IF(Variables!$Y$23=1,$AI81,$AJ81) -> 0
E82: SCHMDT-SITUS | F82: Schedule M Deductions - Temporary-SITUS | I82: 0.3410559312 | J82: 0.1427612088 | K82: 0.4141191546 | L82: 0 | M82: 0.006128821526 | N82: 0.02200440681 | O82: 0.07393047712 | P82: 0 | Q82: 1 | T82: Distribution | U82: D_SPLIT | V82: =Factors!C442 -> -535900 | W82: =IF(Variables!$AO$3=12,Factors!H442+Factors!K442,CHOOSE(Variables!AO$3,Factors!D442,Factors!E442,Factors!F442,Factors!G442,Factors!H442,Factors!I442,Factors!J442,Factors!K442,Factors!L442,Factors!M442,Factors!N442)) -> -2614148 | X82: =VLOOKUP($U82,Func_Ftrs,I$90,0)*IF(Variables!$Y$23=1,$V82,$W82) -> 0 | Y82: =VLOOKUP($U82,Func_Ftrs,J$90,0)*IF(Variables!$Y$23=1,$V82,$W82) -> 0 | Z82: =VLOOKUP($U82,Func_Ftrs,K$90,0)*IF(Variables!$Y$23=1,$V82,$W82) -> -2579286.053 | AA82: =VLOOKUP($U82,Func_Ftrs,L$90,0)*IF(Variables!$Y$23=1,$V82,$W82) -> 0 | AB82: =VLOOKUP($U82,Func_Ftrs,M$90,0)*IF(Variables!$Y$23=1,$V82,$W82) -> 0 | AC82: =VLOOKUP($U82,Func_Ftrs,N$90,0)*IF(Variables!$Y$23=1,$V82,$W82) -> -34861.94701 | AD82: =VLOOKUP($U82,Func_Ftrs,O$90,0)*IF(Variables!$Y$23=1,$V82,$W82) -> 0 | AE82: =VLOOKUP($U82,Func_Ftrs,P$90,0)*IF(Variables!$Y$23=1,$V82,$W82) -> 0 | AG82: Distribution | AH82: D_SPLIT | AI82: -535900 | AJ82: -2614148 | AK82: =VLOOKUP($AH82,Func_Ftrs,I$90,0)*IF(Variables!$Y$23=1,$AI82,$AJ82) -> 0 | AL82: =VLOOKUP($AH82,Func_Ftrs,J$90,0)*IF(Variables!$Y$23=1,$AI82,$AJ82) -> 0 | AM82: =VLOOKUP($AH82,Func_Ftrs,K$90,0)*IF(Variables!$Y$23=1,$AI82,$AJ82) -> -2579286.053 | AN82: =VLOOKUP($AH82,Func_Ftrs,L$90,0)*IF(Variables!$Y$23=1,$AI82,$AJ82) -> 0 | AO82: =VLOOKUP($AH82,Func_Ftrs,M$90,0)*IF(Variables!$Y$23=1,$AI82,$AJ82) -> 0 | AP82: =VLOOKUP($AH82,Func_Ftrs,N$90,0)*IF(Variables!$Y$23=1,$AI82,$AJ82) -> -34861.94701 | AQ82: =VLOOKUP($AH82,Func_Ftrs,O$90,0)*IF(Variables!$Y$23=1,$AI82,$AJ82) -> 0 | AR82: =VLOOKUP($AH82,Func_Ftrs,P$90,0)*IF(Variables!$Y$23=1,$AI82,$AJ82) -> 0
E83: SCHMDT-SNP | F83: Schedule M Deductions - Temporary-SNP | I83: 0.4565216092 | J83: 0.20186045 | K83: 0.3282560953 | L83: 0 | M83: 0 | N83: 0.01336184549 | O83: 0 | P83: 0 | Q83: 1 | T83: General | U83: G | V83: =Factors!C443 -> -876235 | W83: =IF(Variables!$AO$3=12,Factors!H443+Factors!K443,CHOOSE(Variables!AO$3,Factors!D443,Factors!E443,Factors!F443,Factors!G443,Factors!H443,Factors!I443,Factors!J443,Factors!K443,Factors!L443,Factors!M443,Factors!N443)) -> -369774 | X83: =VLOOKUP($U83,Func_Ftrs,I$90,0)*IF(Variables!$Y$23=1,$V83,$W83) -> -95001.92071 | Y83: =VLOOKUP($U83,Func_Ftrs,J$90,0)*IF(Variables!$Y$23=1,$V83,$W83) -> -81115.08868 | Z83: =VLOOKUP($U83,Func_Ftrs,K$90,0)*IF(Variables!$Y$23=1,$V83,$W83) -> -176575.7327 | AA83: =VLOOKUP($U83,Func_Ftrs,L$90,0)*IF(Variables!$Y$23=1,$V83,$W83) -> 0 | AB83: =VLOOKUP($U83,Func_Ftrs,M$90,0)*IF(Variables!$Y$23=1,$V83,$W83) -> -9893.645277 | AC83: =VLOOKUP($U83,Func_Ftrs,N$90,0)*IF(Variables!$Y$23=1,$V83,$W83) -> -7187.612632 | AD83: =VLOOKUP($U83,Func_Ftrs,O$90,0)*IF(Variables!$Y$23=1,$V83,$W83) -> 0 | AE83: =VLOOKUP($U83,Func_Ftrs,P$90,0)*IF(Variables!$Y$23=1,$V83,$W83) -> 0 | AG83: General | AH83: G | AI83: -876235 | AJ83: -369774 | AK83: =VLOOKUP($AH83,Func_Ftrs,I$90,0)*IF(Variables!$Y$23=1,$AI83,$AJ83) -> -95001.92071 | AL83: =VLOOKUP($AH83,Func_Ftrs,J$90,0)*IF(Variables!$Y$23=1,$AI83,$AJ83) -> -81115.08868 | AM83: =VLOOKUP($AH83,Func_Ftrs,K$90,0)*IF(Variables!$Y$23=1,$AI83,$AJ83) -> -176575.7327 | AN83: =VLOOKUP($AH83,Func_Ftrs,L$90,0)*IF(Variables!$Y$23=1,$AI83,$AJ83) -> 0 | AO83: =VLOOKUP($AH83,Func_Ftrs,M$90,0)*IF(Variables!$Y$23=1,$AI83,$AJ83) -> -9893.645277 | AP83: =VLOOKUP($AH83,Func_Ftrs,N$90,0)*IF(Variables!$Y$23=1,$AI83,$AJ83) -> -7187.612632 | AQ83: =VLOOKUP($AH83,Func_Ftrs,O$90,0)*IF(Variables!$Y$23=1,$AI83,$AJ83) -> 0 | AR83: =VLOOKUP($AH83,Func_Ftrs,P$90,0)*IF(Variables!$Y$23=1,$AI83,$AJ83) -> 0
E84: SCHMDT-SO | F84: Schedule M Deductions - Temporary-SO | I84: 0.3991307728 | J84: 0.1406406649 | K84: 0.3597395907 | L84: 0 | M84: 0.0138620858 | N84: 0.02934318126 | O84: 0.05728370445 | P84: 0 | Q84: 1 | T84: Mining Plant | U84: P | V84: =Factors!C444 -> 4407 | W84: =IF(Variables!$AO$3=12,Factors!H444+Factors!K444,CHOOSE(Variables!AO$3,Factors!D444,Factors!E444,Factors!F444,Factors!G444,Factors!H444,Factors!I444,Factors!J444,Factors!K444,Factors!L444,Factors!M444,Factors!N444)) -> 1870 | X84: =VLOOKUP($U84,Func_Ftrs,I$90,0)*IF(Variables!$Y$23=1,$V84,$W84) -> 1870 | Y84: =VLOOKUP($U84,Func_Ftrs,J$90,0)*IF(Variables!$Y$23=1,$V84,$W84) -> 0 | Z84: =VLOOKUP($U84,Func_Ftrs,K$90,0)*IF(Variables!$Y$23=1,$V84,$W84) -> 0 | AA84: =VLOOKUP($U84,Func_Ftrs,L$90,0)*IF(Variables!$Y$23=1,$V84,$W84) -> 0 | AB84: =VLOOKUP($U84,Func_Ftrs,M$90,0)*IF(Variables!$Y$23=1,$V84,$W84) -> 0 | AC84: =VLOOKUP($U84,Func_Ftrs,N$90,0)*IF(Variables!$Y$23=1,$V84,$W84) -> 0 | AD84: =VLOOKUP($U84,Func_Ftrs,O$90,0)*IF(Variables!$Y$23=1,$V84,$W84) -> 0 | AE84: =VLOOKUP($U84,Func_Ftrs,P$90,0)*IF(Variables!$Y$23=1,$V84,$W84) -> 0 | AG84: Mining Plant | AH84: P | AI84: 4407 | AJ84: 1870 | AK84: =VLOOKUP($AH84,Func_Ftrs,I$90,0)*IF(Variables!$Y$23=1,$AI84,$AJ84) -> 1870 | AL84: =VLOOKUP($AH84,Func_Ftrs,J$90,0)*IF(Variables!$Y$23=1,$AI84,$AJ84) -> 0 | AM84: =VLOOKUP($AH84,Func_Ftrs,K$90,0)*IF(Variables!$Y$23=1,$AI84,$AJ84) -> 0 | AN84: =VLOOKUP($AH84,Func_Ftrs,L$90,0)*IF(Variables!$Y$23=1,$AI84,$AJ84) -> 0 | AO84: =VLOOKUP($AH84,Func_Ftrs,M$90,0)*IF(Variables!$Y$23=1,$AI84,$AJ84) -> 0 | AP84: =VLOOKUP($AH84,Func_Ftrs,N$90,0)*IF(Variables!$Y$23=1,$AI84,$AJ84) -> 0 | AQ84: =VLOOKUP($AH84,Func_Ftrs,O$90,0)*IF(Variables!$Y$23=1,$AI84,$AJ84) -> 0 | AR84: =VLOOKUP($AH84,Func_Ftrs,P$90,0)*IF(Variables!$Y$23=1,$AI84,$AJ84) -> 0
E85: STEP_UP | F85: Step-up Transformers | I85: 0.08489055306 | J85: 0.9151094469 | K85: 0 | L85: 0 | M85: 0 | N85: 0 | O85: 0 | P85: 0 | Q85: 1
E86: T | F86: Transmission | I86: 0 | J86: 1 | K86: 0 | L86: 0 | M86: 0 | N86: 0 | O86: 0 | P86: 0 | Q86: 1 | T86: Total Pacific Division | V86: =SUM(V80:V85) -> 12446235 | W86: -7134521 | X86: =SUM(X80:X85) -> -4513748.921 | Y86: =SUM(Y80:Y85) -> 187032.9113 | Z86: =SUM(Z80:Z85) -> -2755861.786 | AA86: 0 | AB86: -9893.645277 | AC86: -42049.55964 | AD86: 0 | AE86: 0 | AG86: Total Pacific Division | AI86: =SUM(AI80:AI85) -> 12446235 | AJ86: -7134521 | AK86: -4513748.921 | AL86: 187032.9113 | AM86: -2755861.786 | AN86: 0 | AO86: -9893.645277 | AP86: -42049.55964 | AQ86: 0 | AR86: 0
E87: TAXDEPR | F87: Tax Depreciation | I87: 0.538093851 | J87: 0.1599673196 | K87: 0.2956423354 | L87: 0 | M87: 0.001573456926 | N87: 0.003540275144 | O87: 0.001182761924 | P87: 0 | Q87: 1
E88: WSF | F88: Wholesale Sales Firm | I88: 0.795370473 | J88: 0.204629527 | K88: 0 | L88: 0 | M88: 0 | N88: 0 | O88: 0 | P88: 0 | Q88: 1 | T88: Utah Division | AG88: Utah Division
T89: Production | U89: P | V89: =Factors!C451 -> 11882458 | W89: =IF(Variables!$AO$3=12,Factors!H451+Factors!K451,CHOOSE(Variables!AO$3,Factors!D451,Factors!E451,Factors!F451,Factors!G451,Factors!H451,Factors!I451,Factors!J451,Factors!K451,Factors!L451,Factors!M451,Factors!N451)) -> 14155329 | X89: =VLOOKUP($U89,Func_Ftrs,I$90,0)*IF(Variables!$Y$23=1,$V89,$W89) -> 14155329 | Y89: =VLOOKUP($U89,Func_Ftrs,J$90,0)*IF(Variables!$Y$23=1,$V89,$W89) -> 0 | Z89: =VLOOKUP($U89,Func_Ftrs,K$90,0)*IF(Variables!$Y$23=1,$V89,$W89) -> 0 | AA89: =VLOOKUP($U89,Func_Ftrs,L$90,0)*IF(Variables!$Y$23=1,$V89,$W89) -> 0 | AB89: =VLOOKUP($U89,Func_Ftrs,M$90,0)*IF(Variables!$Y$23=1,$V89,$W89) -> 0 | AC89: =VLOOKUP($U89,Func_Ftrs,N$90,0)*IF(Variables!$Y$23=1,$V89,$W89) -> 0 | AD89: =VLOOKUP($U89,Func_Ftrs,O$90,0)*IF(Variables!$Y$23=1,$V89,$W89) -> 0 | AE89: =VLOOKUP($U89,Func_Ftrs,P$90,0)*IF(Variables!$Y$23=1,$V89,$W89) -> 0 | AG89: Production | AH89: P | AI89: =V89 -> 11882458 | AJ89: 14155329 | AK89: =VLOOKUP($AH89,Func_Ftrs,I$90,0)*IF(Variables!$Y$23=1,$AI89,$AJ89) -> 14155329 | AL89: =VLOOKUP($AH89,Func_Ftrs,J$90,0)*IF(Variables!$Y$23=1,$AI89,$AJ89) -> 0 | AM89: =VLOOKUP($AH89,Func_Ftrs,K$90,0)*IF(Variables!$Y$23=1,$AI89,$AJ89) -> 0 | AN89: =VLOOKUP($AH89,Func_Ftrs,L$90,0)*IF(Variables!$Y$23=1,$AI89,$AJ89) -> 0 | AO89: =VLOOKUP($AH89,Func_Ftrs,M$90,0)*IF(Variables!$Y$23=1,$AI89,$AJ89) -> 0 | AP89: =VLOOKUP($AH89,Func_Ftrs,N$90,0)*IF(Variables!$Y$23=1,$AI89,$AJ89) -> 0 | AQ89: =VLOOKUP($AH89,Func_Ftrs,O$90,0)*IF(Variables!$Y$23=1,$AI89,$AJ89) -> 0 | AR89: =VLOOKUP($AH89,Func_Ftrs,P$90,0)*IF(Variables!$Y$23=1,$AI89,$AJ89) -> 0
E90: 1 | F90: =E90+1 -> 2 | G90: 3 | H90: 4 | I90: 5 | J90: 6 | K90: 7 | L90: 8 | M90: 9 | N90: 10 | O90: 11 | P90: 12 | Q90: 13 | T90: Transmission | U90: T | V90: =Factors!C452 -> 19962447 | W90: =IF(Variables!$AO$3=12,Factors!H452+Factors!K452,CHOOSE(Variables!AO$3,Factors!D452,Factors!E452,Factors!F452,Factors!G452,Factors!H452,Factors!I452,Factors!J452,Factors!K452,Factors!L452,Factors!M452,Factors!N452)) -> 17238407 | X90: =VLOOKUP($U90,Func_Ftrs,I$90,0)*IF(Variables!$Y$23=1,$V90,$W90) -> 0 | Y90: =VLOOKUP($U90,Func_Ftrs,J$90,0)*IF(Variables!$Y$23=1,$V90,$W90) -> 17238407 | Z90: =VLOOKUP($U90,Func_Ftrs,K$90,0)*IF(Variables!$Y$23=1,$V90,$W90) -> 0 | AA90: =VLOOKUP($U90,Func_Ftrs,L$90,0)*IF(Variables!$Y$23=1,$V90,$W90) -> 0 | AB90: =VLOOKUP($U90,Func_Ftrs,M$90,0)*IF(Variables!$Y$23=1,$V90,$W90) -> 0 | AC90: =VLOOKUP($U90,Func_Ftrs,N$90,0)*IF(Variables!$Y$23=1,$V90,$W90) -> 0 | AD90: =VLOOKUP($U90,Func_Ftrs,O$90,0)*IF(Variables!$Y$23=1,$V90,$W90) -> 0 | AE90: =VLOOKUP($U90,Func_Ftrs,P$90,0)*IF(Variables!$Y$23=1,$V90,$W90) -> 0 | AG90: Transmission | AH90: T | AI90: 19962447 | AJ90: 17238407 | AK90: =VLOOKUP($AH90,Func_Ftrs,I$90,0)*IF(Variables!$Y$23=1,$AI90,$AJ90) -> 0 | AL90: =VLOOKUP($AH90,Func_Ftrs,J$90,0)*IF(Variables!$Y$23=1,$AI90,$AJ90) -> 17238407 | AM90: =VLOOKUP($AH90,Func_Ftrs,K$90,0)*IF(Variables!$Y$23=1,$AI90,$AJ90) -> 0 | AN90: =VLOOKUP($AH90,Func_Ftrs,L$90,0)*IF(Variables!$Y$23=1,$AI90,$AJ90) -> 0 | AO90: =VLOOKUP($AH90,Func_Ftrs,M$90,0)*IF(Variables!$Y$23=1,$AI90,$AJ90) -> 0 | AP90: =VLOOKUP($AH90,Func_Ftrs,N$90,0)*IF(Variables!$Y$23=1,$AI90,$AJ90) -> 0 | AQ90: =VLOOKUP($AH90,Func_Ftrs,O$90,0)*IF(Variables!$Y$23=1,$AI90,$AJ90) -> 0 | AR90: =VLOOKUP($AH90,Func_Ftrs,P$90,0)*IF(Variables!$Y$23=1,$AI90,$AJ90) -> 0
T91: Distribution | U91: D_SPLIT | V91: =Factors!C453 -> 18415994 | W91: =IF(Variables!$AO$3=12,Factors!H453+Factors!K453,CHOOSE(Variables!AO$3,Factors!D453,Factors!E453,Factors!F453,Factors!G453,Factors!H453,Factors!I453,Factors!J453,Factors!K453,Factors!L453,Factors!M453,Factors!N453)) -> 12800298 | X91: =VLOOKUP($U91,Func_Ftrs,I$90,0)*IF(Variables!$Y$23=1,$V91,$W91) -> 0 | Y91: =VLOOKUP($U91,Func_Ftrs,J$90,0)*IF(Variables!$Y$23=1,$V91,$W91) -> 0 | Z91: =VLOOKUP($U91,Func_Ftrs,K$90,0)*IF(Variables!$Y$23=1,$V91,$W91) -> 12629594.85 | AA91: =VLOOKUP($U91,Func_Ftrs,L$90,0)*IF(Variables!$Y$23=1,$V91,$W91) -> 0 | AB91: =VLOOKUP($U91,Func_Ftrs,M$90,0)*IF(Variables!$Y$23=1,$V91,$W91) -> 0 | AC91: =VLOOKUP($U91,Func_Ftrs,N$90,0)*IF(Variables!$Y$23=1,$V91,$W91) -> 170703.1547 | AD91: =VLOOKUP($U91,Func_Ftrs,O$90,0)*IF(Variables!$Y$23=1,$V91,$W91) -> 0 | AE91: =VLOOKUP($U91,Func_Ftrs,P$90,0)*IF(Variables!$Y$23=1,$V91,$W91) -> 0 | AG91: Distribution | AH91: D_SPLIT | AI91: 18415994 | AJ91: 12800298 | AK91: =VLOOKUP($AH91,Func_Ftrs,I$90,0)*IF(Variables!$Y$23=1,$AI91,$AJ91) -> 0 | AL91: =VLOOKUP($AH91,Func_Ftrs,J$90,0)*IF(Variables!$Y$23=1,$AI91,$AJ91) -> 0 | AM91: =VLOOKUP($AH91,Func_Ftrs,K$90,0)*IF(Variables!$Y$23=1,$AI91,$AJ91) -> 12629594.85 | AN91: =VLOOKUP($AH91,Func_Ftrs,L$90,0)*IF(Variables!$Y$23=1,$AI91,$AJ91) -> 0 | AO91: =VLOOKUP($AH91,Func_Ftrs,M$90,0)*IF(Variables!$Y$23=1,$AI91,$AJ91) -> 0 | AP91: =VLOOKUP($AH91,Func_Ftrs,N$90,0)*IF(Variables!$Y$23=1,$AI91,$AJ91) -> 170703.1547 | AQ91: =VLOOKUP($AH91,Func_Ftrs,O$90,0)*IF(Variables!$Y$23=1,$AI91,$AJ91) -> 0 | AR91: =VLOOKUP($AH91,Func_Ftrs,P$90,0)*IF(Variables!$Y$23=1,$AI91,$AJ91) -> 0
T92: General | U92: G | V92: =Factors!C454 -> -876914 | W92: =IF(Variables!$AO$3=12,Factors!H454+Factors!K454,CHOOSE(Variables!AO$3,Factors!D454,Factors!E454,Factors!F454,Factors!G454,Factors!H454,Factors!I454,Factors!J454,Factors!K454,Factors!L454,Factors!M454,Factors!N454)) -> -403328 | X92: =VLOOKUP($U92,Func_Ftrs,I$90,0)*IF(Variables!$Y$23=1,$V92,$W92) -> -103622.5767 | Y92: =VLOOKUP($U92,Func_Ftrs,J$90,0)*IF(Variables!$Y$23=1,$V92,$W92) -> -88475.62697 | Z92: =VLOOKUP($U92,Func_Ftrs,K$90,0)*IF(Variables!$Y$23=1,$V92,$W92) -> -192598.5524 | AA92: =VLOOKUP($U92,Func_Ftrs,L$90,0)*IF(Variables!$Y$23=1,$V92,$W92) -> 0 | AB92: =VLOOKUP($U92,Func_Ftrs,M$90,0)*IF(Variables!$Y$23=1,$V92,$W92) -> -10791.41357 | AC92: =VLOOKUP($U92,Func_Ftrs,N$90,0)*IF(Variables!$Y$23=1,$V92,$W92) -> -7839.83035 | AD92: =VLOOKUP($U92,Func_Ftrs,O$90,0)*IF(Variables!$Y$23=1,$V92,$W92) -> 0 | AE92: =VLOOKUP($U92,Func_Ftrs,P$90,0)*IF(Variables!$Y$23=1,$V92,$W92) -> 0 | AG92: General | AH92: G | AI92: -876914 | AJ92: -403328 | AK92: =VLOOKUP($AH92,Func_Ftrs,I$90,0)*IF(Variables!$Y$23=1,$AI92,$AJ92) -> -103622.5767 | AL92: =VLOOKUP($AH92,Func_Ftrs,J$90,0)*IF(Variables!$Y$23=1,$AI92,$AJ92) -> -88475.62697 | AM92: =VLOOKUP($AH92,Func_Ftrs,K$90,0)*IF(Variables!$Y$23=1,$AI92,$AJ92) -> -192598.5524 | AN92: =VLOOKUP($AH92,Func_Ftrs,L$90,0)*IF(Variables!$Y$23=1,$AI92,$AJ92) -> 0 | AO92: =VLOOKUP($AH92,Func_Ftrs,M$90,0)*IF(Variables!$Y$23=1,$AI92,$AJ92) -> -10791.41357 | AP92: =VLOOKUP($AH92,Func_Ftrs,N$90,0)*IF(Variables!$Y$23=1,$AI92,$AJ92) -> -7839.83035 | AQ92: =VLOOKUP($AH92,Func_Ftrs,O$90,0)*IF(Variables!$Y$23=1,$AI92,$AJ92) -> 0 | AR92: =VLOOKUP($AH92,Func_Ftrs,P$90,0)*IF(Variables!$Y$23=1,$AI92,$AJ92) -> 0
T93: Mining Plant | U93: P | V93: =Factors!C455 -> 9054 | W93: =IF(Variables!$AO$3=12,Factors!H455+Factors!K455,CHOOSE(Variables!AO$3,Factors!D455,Factors!E455,Factors!F455,Factors!G455,Factors!H455,Factors!I455,Factors!J455,Factors!K455,Factors!L455,Factors!M455,Factors!N455)) -> 3847 | X93: =VLOOKUP($U93,Func_Ftrs,I$90,0)*IF(Variables!$Y$23=1,$V93,$W93) -> 3847 | Y93: =VLOOKUP($U93,Func_Ftrs,J$90,0)*IF(Variables!$Y$23=1,$V93,$W93) -> 0 | Z93: =VLOOKUP($U93,Func_Ftrs,K$90,0)*IF(Variables!$Y$23=1,$V93,$W93) -> 0 | AA93: =VLOOKUP($U93,Func_Ftrs,L$90,0)*IF(Variables!$Y$23=1,$V93,$W93) -> 0 | AB93: =VLOOKUP($U93,Func_Ftrs,M$90,0)*IF(Variables!$Y$23=1,$V93,$W93) -> 0 | AC93: =VLOOKUP($U93,Func_Ftrs,N$90,0)*IF(Variables!$Y$23=1,$V93,$W93) -> 0 | AD93: =VLOOKUP($U93,Func_Ftrs,O$90,0)*IF(Variables!$Y$23=1,$V93,$W93) -> 0 | AE93: =VLOOKUP($U93,Func_Ftrs,P$90,0)*IF(Variables!$Y$23=1,$V93,$W93) -> 0 | AG93: Mining Plant | AH93: P | AI93: 9054 | AJ93: 3847 | AK93: =VLOOKUP($AH93,Func_Ftrs,I$90,0)*IF(Variables!$Y$23=1,$AI93,$AJ93) -> 3847 | AL93: =VLOOKUP($AH93,Func_Ftrs,J$90,0)*IF(Variables!$Y$23=1,$AI93,$AJ93) -> 0 | AM93: =VLOOKUP($AH93,Func_Ftrs,K$90,0)*IF(Variables!$Y$23=1,$AI93,$AJ93) -> 0 | AN93: =VLOOKUP($AH93,Func_Ftrs,L$90,0)*IF(Variables!$Y$23=1,$AI93,$AJ93) -> 0 | AO93: =VLOOKUP($AH93,Func_Ftrs,M$90,0)*IF(Variables!$Y$23=1,$AI93,$AJ93) -> 0 | AP93: =VLOOKUP($AH93,Func_Ftrs,N$90,0)*IF(Variables!$Y$23=1,$AI93,$AJ93) -> 0 | AQ93: =VLOOKUP($AH93,Func_Ftrs,O$90,0)*IF(Variables!$Y$23=1,$AI93,$AJ93) -> 0 | AR93: =VLOOKUP($AH93,Func_Ftrs,P$90,0)*IF(Variables!$Y$23=1,$AI93,$AJ93) -> 0
T95: Total Utah Division | V95: =SUM(V89:V94) -> 49393039 | W95: 43794553 | X95: =SUM(X89:X94) -> 14055553.42 | Y95: 17149931.37 | Z95: 12436996.29 | AA95: 0 | AB95: -10791.41357 | AC95: 162863.3244 | AD95: 0 | AE95: 0 | AG95: Total Utah Division | AI95: =SUM(AI89:AI94) -> 49393039 | AJ95: 43794553 | AK95: 14055553.42 | AL95: 17149931.37 | AM95: 12436996.29 | AN95: 0 | AO95: -10791.41357 | AP95: 162863.3244 | AQ95: 0 | AR95: 0
T97: PACIFICORP | AG97: PACIFICORP
T98: Production | U98: P | V98: =Factors!C461 -> 226980776 | W98: =IF(Variables!$AO$3=12,Factors!H461+Factors!K461,CHOOSE(Variables!AO$3,Factors!D461,Factors!E461,Factors!F461,Factors!G461,Factors!H461,Factors!I461,Factors!J461,Factors!K461,Factors!L461,Factors!M461,Factors!N461)) -> 93039883 | X98: =VLOOKUP($U98,Func_Ftrs,I$90,0)*IF(Variables!$Y$23=1,$V98,$W98) -> 93039883 | Y98: =VLOOKUP($U98,Func_Ftrs,J$90,0)*IF(Variables!$Y$23=1,$V98,$W98) -> 0 | Z98: =VLOOKUP($U98,Func_Ftrs,K$90,0)*IF(Variables!$Y$23=1,$V98,$W98) -> 0 | AA98: =VLOOKUP($U98,Func_Ftrs,L$90,0)*IF(Variables!$Y$23=1,$V98,$W98) -> 0 | AB98: =VLOOKUP($U98,Func_Ftrs,M$90,0)*IF(Variables!$Y$23=1,$V98,$W98) -> 0 | AC98: =VLOOKUP($U98,Func_Ftrs,N$90,0)*IF(Variables!$Y$23=1,$V98,$W98) -> 0 | AD98: =VLOOKUP($U98,Func_Ftrs,O$90,0)*IF(Variables!$Y$23=1,$V98,$W98) -> 0 | AE98: =VLOOKUP($U98,Func_Ftrs,P$90,0)*IF(Variables!$Y$23=1,$V98,$W98) -> 0 | AG98: Production | AH98: P | AI98: =V98 -> 226980776 | AJ98: =W98 -> 93039883 | AK98: =VLOOKUP($AH98,Func_Ftrs,I$90,0)*IF(Variables!$Y$23=1,$AI98,$AJ98) -> 93039883 | AL98: =VLOOKUP($AH98,Func_Ftrs,J$90,0)*IF(Variables!$Y$23=1,$AI98,$AJ98) -> 0 | AM98: =VLOOKUP($AH98,Func_Ftrs,K$90,0)*IF(Variables!$Y$23=1,$AI98,$AJ98) -> 0 | AN98: =VLOOKUP($AH98,Func_Ftrs,L$90,0)*IF(Variables!$Y$23=1,$AI98,$AJ98) -> 0 | AO98: =VLOOKUP($AH98,Func_Ftrs,M$90,0)*IF(Variables!$Y$23=1,$AI98,$AJ98) -> 0 | AP98: =VLOOKUP($AH98,Func_Ftrs,N$90,0)*IF(Variables!$Y$23=1,$AI98,$AJ98) -> 0 | AQ98: =VLOOKUP($AH98,Func_Ftrs,O$90,0)*IF(Variables!$Y$23=1,$AI98,$AJ98) -> 0 | AR98: =VLOOKUP($AH98,Func_Ftrs,P$90,0)*IF(Variables!$Y$23=1,$AI98,$AJ98) -> 0
T99: Hydro - P | U99: P | V99: =Factors!C462 -> -18791242 | W99: =IF(Variables!$AO$3=12,Factors!H462+Factors!K462,CHOOSE(Variables!AO$3,Factors!D462,Factors!E462,Factors!F462,Factors!G462,Factors!H462,Factors!I462,Factors!J462,Factors!K462,Factors!L462,Factors!M462,Factors!N462)) -> -8214437 | X99: =VLOOKUP($U99,Func_Ftrs,I$90,0)*IF(Variables!$Y$23=1,$V99,$W99) -> -8214437 | Y99: =VLOOKUP($U99,Func_Ftrs,J$90,0)*IF(Variables!$Y$23=1,$V99,$W99) -> 0 | Z99: =VLOOKUP($U99,Func_Ftrs,K$90,0)*IF(Variables!$Y$23=1,$V99,$W99) -> 0 | AA99: =VLOOKUP($U99,Func_Ftrs,L$90,0)*IF(Variables!$Y$23=1,$V99,$W99) -> 0 | AB99: =VLOOKUP($U99,Func_Ftrs,M$90,0)*IF(Variables!$Y$23=1,$V99,$W99) -> 0 | AC99: =VLOOKUP($U99,Func_Ftrs,N$90,0)*IF(Variables!$Y$23=1,$V99,$W99) -> 0 | AD99: =VLOOKUP($U99,Func_Ftrs,O$90,0)*IF(Variables!$Y$23=1,$V99,$W99) -> 0 | AE99: =VLOOKUP($U99,Func_Ftrs,P$90,0)*IF(Variables!$Y$23=1,$V99,$W99) -> 0 | AG99: Hydro - P | AH99: P | AI99: -18791242 | AJ99: -8214437 | AK99: =VLOOKUP($AH99,Func_Ftrs,I$90,0)*IF(Variables!$Y$23=1,$AI99,$AJ99) -> -8214437 | AL99: =VLOOKUP($AH99,Func_Ftrs,J$90,0)*IF(Variables!$Y$23=1,$AI99,$AJ99) -> 0 | AM99: =VLOOKUP($AH99,Func_Ftrs,K$90,0)*IF(Variables!$Y$23=1,$AI99,$AJ99) -> 0 | AN99: =VLOOKUP($AH99,Func_Ftrs,L$90,0)*IF(Variables!$Y$23=1,$AI99,$AJ99) -> 0 | AO99: =VLOOKUP($AH99,Func_Ftrs,M$90,0)*IF(Variables!$Y$23=1,$AI99,$AJ99) -> 0 | AP99: =VLOOKUP($AH99,Func_Ftrs,N$90,0)*IF(Variables!$Y$23=1,$AI99,$AJ99) -> 0 | AQ99: =VLOOKUP($AH99,Func_Ftrs,O$90,0)*IF(Variables!$Y$23=1,$AI99,$AJ99) -> 0 | AR99: =VLOOKUP($AH99,Func_Ftrs,P$90,0)*IF(Variables!$Y$23=1,$AI99,$AJ99) -> 0
T100: Hydro - U | U100: P | V100: =Factors!C463 -> 4322427 | W100: =IF(Variables!$AO$3=12,Factors!H463+Factors!K463,CHOOSE(Variables!AO$3,Factors!D463,Factors!E463,Factors!F463,Factors!G463,Factors!H463,Factors!I463,Factors!J463,Factors!K463,Factors!L463,Factors!M463,Factors!N463)) -> 1875398 | X100: =VLOOKUP($U100,Func_Ftrs,I$90,0)*IF(Variables!$Y$23=1,$V100,$W100) -> 1875398 | Y100: =VLOOKUP($U100,Func_Ftrs,J$90,0)*IF(Variables!$Y$23=1,$V100,$W100) -> 0 | Z100: =VLOOKUP($U100,Func_Ftrs,K$90,0)*IF(Variables!$Y$23=1,$V100,$W100) -> 0 | AA100: =VLOOKUP($U100,Func_Ftrs,L$90,0)*IF(Variables!$Y$23=1,$V100,$W100) -> 0 | AB100: =VLOOKUP($U100,Func_Ftrs,M$90,0)*IF(Variables!$Y$23=1,$V100,$W100) -> 0 | AC100: =VLOOKUP($U100,Func_Ftrs,N$90,0)*IF(Variables!$Y$23=1,$V100,$W100) -> 0 | AD100: =VLOOKUP($U100,Func_Ftrs,O$90,0)*IF(Variables!$Y$23=1,$V100,$W100) -> 0 | AE100: =VLOOKUP($U100,Func_Ftrs,P$90,0)*IF(Variables!$Y$23=1,$V100,$W100) -> 0 | AG100: Hydro - U | AH100: P | AI100: 4322427 | AJ100: 1875398 | AK100: =VLOOKUP($AH100,Func_Ftrs,I$90,0)*IF(Variables!$Y$23=1,$AI100,$AJ100) -> 1875398 | AL100: =VLOOKUP($AH100,Func_Ftrs,J$90,0)*IF(Variables!$Y$23=1,$AI100,$AJ100) -> 0 | AM100: =VLOOKUP($AH100,Func_Ftrs,K$90,0)*IF(Variables!$Y$23=1,$AI100,$AJ100) -> 0 | AN100: =VLOOKUP($AH100,Func_Ftrs,L$90,0)*IF(Variables!$Y$23=1,$AI100,$AJ100) -> 0 | AO100: =VLOOKUP($AH100,Func_Ftrs,M$90,0)*IF(Variables!$Y$23=1,$AI100,$AJ100) -> 0 | AP100: =VLOOKUP($AH100,Func_Ftrs,N$90,0)*IF(Variables!$Y$23=1,$AI100,$AJ100) -> 0 | AQ100: =VLOOKUP($AH100,Func_Ftrs,O$90,0)*IF(Variables!$Y$23=1,$AI100,$AJ100) -> 0 | AR100: =VLOOKUP($AH100,Func_Ftrs,P$90,0)*IF(Variables!$Y$23=1,$AI100,$AJ100) -> 0
T101: Transmission | U101: T | V101: =Factors!C473 -> -43905412 | W101: =IF(Variables!$AO$3=12,Factors!H473+Factors!K473,CHOOSE(Variables!AO$3,Factors!D473,Factors!E473,Factors!F473,Factors!G473,Factors!H473,Factors!I473,Factors!J473,Factors!K473,Factors!L473,Factors!M473,Factors!N473)) -> -43905412 | X101: =VLOOKUP($U101,Func_Ftrs,I$90,0)*IF(Variables!$Y$23=1,$V101,$W101) -> 0 | Y101: =VLOOKUP($U101,Func_Ftrs,J$90,0)*IF(Variables!$Y$23=1,$V101,$W101) -> -43905412 | Z101: =VLOOKUP($U101,Func_Ftrs,K$90,0)*IF(Variables!$Y$23=1,$V101,$W101) -> 0 | AA101: =VLOOKUP($U101,Func_Ftrs,L$90,0)*IF(Variables!$Y$23=1,$V101,$W101) -> 0 | AB101: =VLOOKUP($U101,Func_Ftrs,M$90,0)*IF(Variables!$Y$23=1,$V101,$W101) -> 0 | AC101: =VLOOKUP($U101,Func_Ftrs,N$90,0)*IF(Variables!$Y$23=1,$V101,$W101) -> 0 | AD101: =VLOOKUP($U101,Func_Ftrs,O$90,0)*IF(Variables!$Y$23=1,$V101,$W101) -> 0 | AE101: =VLOOKUP($U101,Func_Ftrs,P$90,0)*IF(Variables!$Y$23=1,$V101,$W101) -> 0 | AG101: Transmission | AH101: T | AI101: -43905412 | AJ101: -43905412 | AK101: =VLOOKUP($AH101,Func_Ftrs,I$90,0)*IF(Variables!$Y$23=1,$AI101,$AJ101) -> 0 | AL101: =VLOOKUP($AH101,Func_Ftrs,J$90,0)*IF(Variables!$Y$23=1,$AI101,$AJ101) -> -43905412 | AM101: =VLOOKUP($AH101,Func_Ftrs,K$90,0)*IF(Variables!$Y$23=1,$AI101,$AJ101) -> 0 | AN101: =VLOOKUP($AH101,Func_Ftrs,L$90,0)*IF(Variables!$Y$23=1,$AI101,$AJ101) -> 0 | AO101: =VLOOKUP($AH101,Func_Ftrs,M$90,0)*IF(Variables!$Y$23=1,$AI101,$AJ101) -> 0 | AP101: =VLOOKUP($AH101,Func_Ftrs,N$90,0)*IF(Variables!$Y$23=1,$AI101,$AJ101) -> 0 | AQ101: =VLOOKUP($AH101,Func_Ftrs,O$90,0)*IF(Variables!$Y$23=1,$AI101,$AJ101) -> 0 | AR101: =VLOOKUP($AH101,Func_Ftrs,P$90,0)*IF(Variables!$Y$23=1,$AI101,$AJ101) -> 0
T102: Distribution | U102: D_SPLIT | V102: =Factors!C474 -> 0 | W102: =IF(Variables!$AO$3=12,Factors!H474+Factors!K474,CHOOSE(Variables!AO$3,Factors!D474,Factors!E474,Factors!F474,Factors!G474,Factors!H474,Factors!I474,Factors!J474,Factors!K474,Factors!L474,Factors!M474,Factors!N474)) -> 0 | X102: =VLOOKUP($U102,Func_Ftrs,I$90,0)*IF(Variables!$Y$23=1,$V102,$W102) -> 0 | Y102: =VLOOKUP($U102,Func_Ftrs,J$90,0)*IF(Variables!$Y$23=1,$V102,$W102) -> 0 | Z102: =VLOOKUP($U102,Func_Ftrs,K$90,0)*IF(Variables!$Y$23=1,$V102,$W102) -> 0 | AA102: =VLOOKUP($U102,Func_Ftrs,L$90,0)*IF(Variables!$Y$23=1,$V102,$W102) -> 0 | AB102: =VLOOKUP($U102,Func_Ftrs,M$90,0)*IF(Variables!$Y$23=1,$V102,$W102) -> 0 | AC102: =VLOOKUP($U102,Func_Ftrs,N$90,0)*IF(Variables!$Y$23=1,$V102,$W102) -> 0 | AD102: =VLOOKUP($U102,Func_Ftrs,O$90,0)*IF(Variables!$Y$23=1,$V102,$W102) -> 0 | AE102: =VLOOKUP($U102,Func_Ftrs,P$90,0)*IF(Variables!$Y$23=1,$V102,$W102) -> 0 | AG102: Distribution | AH102: D_SPLIT | AI102: 0 | AJ102: 0 | AK102: =VLOOKUP($AH102,Func_Ftrs,I$90,0)*IF(Variables!$Y$23=1,$AI102,$AJ102) -> 0 | AL102: =VLOOKUP($AH102,Func_Ftrs,J$90,0)*IF(Variables!$Y$23=1,$AI102,$AJ102) -> 0 | AM102: =VLOOKUP($AH102,Func_Ftrs,K$90,0)*IF(Variables!$Y$23=1,$AI102,$AJ102) -> 0 | AN102: =VLOOKUP($AH102,Func_Ftrs,L$90,0)*IF(Variables!$Y$23=1,$AI102,$AJ102) -> 0 | AO102: =VLOOKUP($AH102,Func_Ftrs,M$90,0)*IF(Variables!$Y$23=1,$AI102,$AJ102) -> 0 | AP102: =VLOOKUP($AH102,Func_Ftrs,N$90,0)*IF(Variables!$Y$23=1,$AI102,$AJ102) -> 0 | AQ102: =VLOOKUP($AH102,Func_Ftrs,O$90,0)*IF(Variables!$Y$23=1,$AI102,$AJ102) -> 0 | AR102: =VLOOKUP($AH102,Func_Ftrs,P$90,0)*IF(Variables!$Y$23=1,$AI102,$AJ102) -> 0
T103: General | U103: G | V103: =Factors!C475 -> 137547091 | W103: =IF(Variables!$AO$3=12,Factors!H475+Factors!K475,CHOOSE(Variables!AO$3,Factors!D475,Factors!E475,Factors!F475,Factors!G475,Factors!H475,Factors!I475,Factors!J475,Factors!K475,Factors!L475,Factors!M475,Factors!N475)) -> 58886628 | X103: =VLOOKUP($U103,Func_Ftrs,I$90,0)*IF(Variables!$Y$23=1,$V103,$W103) -> 15129086.32 | Y103: =VLOOKUP($U103,Func_Ftrs,J$90,0)*IF(Variables!$Y$23=1,$V103,$W103) -> 12917603.87 | Z103: =VLOOKUP($U103,Func_Ftrs,K$90,0)*IF(Variables!$Y$23=1,$V103,$W103) -> 28119742.02 | AA103: =VLOOKUP($U103,Func_Ftrs,L$90,0)*IF(Variables!$Y$23=1,$V103,$W103) -> 0 | AB103: =VLOOKUP($U103,Func_Ftrs,M$90,0)*IF(Variables!$Y$23=1,$V103,$W103) -> 1575566.181 | AC103: =VLOOKUP($U103,Func_Ftrs,N$90,0)*IF(Variables!$Y$23=1,$V103,$W103) -> 1144629.615 | AD103: =VLOOKUP($U103,Func_Ftrs,O$90,0)*IF(Variables!$Y$23=1,$V103,$W103) -> 0 | AE103: =VLOOKUP($U103,Func_Ftrs,P$90,0)*IF(Variables!$Y$23=1,$V103,$W103) -> 0 | AG103: General | AH103: G | AI103: 137547091 | AJ103: 58886628 | AK103: =VLOOKUP($AH103,Func_Ftrs,I$90,0)*IF(Variables!$Y$23=1,$AI103,$AJ103) -> 15129086.32 | AL103: =VLOOKUP($AH103,Func_Ftrs,J$90,0)*IF(Variables!$Y$23=1,$AI103,$AJ103) -> 12917603.87 | AM103: =VLOOKUP($AH103,Func_Ftrs,K$90,0)*IF(Variables!$Y$23=1,$AI103,$AJ103) -> 28119742.02 | AN103: =VLOOKUP($AH103,Func_Ftrs,L$90,0)*IF(Variables!$Y$23=1,$AI103,$AJ103) -> 0 | AO103: =VLOOKUP($AH103,Func_Ftrs,M$90,0)*IF(Variables!$Y$23=1,$AI103,$AJ103) -> 1575566.181 | AP103: =VLOOKUP($AH103,Func_Ftrs,N$90,0)*IF(Variables!$Y$23=1,$AI103,$AJ103) -> 1144629.615 | AQ103: =VLOOKUP($AH103,Func_Ftrs,O$90,0)*IF(Variables!$Y$23=1,$AI103,$AJ103) -> 0 | AR103: =VLOOKUP($AH103,Func_Ftrs,P$90,0)*IF(Variables!$Y$23=1,$AI103,$AJ103) -> 0
T104: Mining Plant | U104: P | V104: =Factors!C476 -> 106021297 | W104: =IF(Variables!$AO$3=12,Factors!H476+Factors!K476,CHOOSE(Variables!AO$3,Factors!D476,Factors!E476,Factors!F476,Factors!G476,Factors!H476,Factors!I476,Factors!J476,Factors!K476,Factors!L476,Factors!M476,Factors!N476)) -> 45857308 | X104: =VLOOKUP($U104,Func_Ftrs,I$90,0)*IF(Variables!$Y$23=1,$V104,$W104) -> 45857308 | Y104: =VLOOKUP($U104,Func_Ftrs,J$90,0)*IF(Variables!$Y$23=1,$V104,$W104) -> 0 | Z104: =VLOOKUP($U104,Func_Ftrs,K$90,0)*IF(Variables!$Y$23=1,$V104,$W104) -> 0 | AA104: =VLOOKUP($U104,Func_Ftrs,L$90,0)*IF(Variables!$Y$23=1,$V104,$W104) -> 0 | AB104: =VLOOKUP($U104,Func_Ftrs,M$90,0)*IF(Variables!$Y$23=1,$V104,$W104) -> 0 | AC104: =VLOOKUP($U104,Func_Ftrs,N$90,0)*IF(Variables!$Y$23=1,$V104,$W104) -> 0 | AD104: =VLOOKUP($U104,Func_Ftrs,O$90,0)*IF(Variables!$Y$23=1,$V104,$W104) -> 0 | AE104: =VLOOKUP($U104,Func_Ftrs,P$90,0)*IF(Variables!$Y$23=1,$V104,$W104) -> 0 | AG104: Mining Plant | AH104: P | AI104: 106021297 | AJ104: 45857308 | AK104: =VLOOKUP($AH104,Func_Ftrs,I$90,0)*IF(Variables!$Y$23=1,$AI104,$AJ104) -> 45857308 | AL104: =VLOOKUP($AH104,Func_Ftrs,J$90,0)*IF(Variables!$Y$23=1,$AI104,$AJ104) -> 0 | AM104: =VLOOKUP($AH104,Func_Ftrs,K$90,0)*IF(Variables!$Y$23=1,$AI104,$AJ104) -> 0 | AN104: =VLOOKUP($AH104,Func_Ftrs,L$90,0)*IF(Variables!$Y$23=1,$AI104,$AJ104) -> 0 | AO104: =VLOOKUP($AH104,Func_Ftrs,M$90,0)*IF(Variables!$Y$23=1,$AI104,$AJ104) -> 0 | AP104: =VLOOKUP($AH104,Func_Ftrs,N$90,0)*IF(Variables!$Y$23=1,$AI104,$AJ104) -> 0 | AQ104: =VLOOKUP($AH104,Func_Ftrs,O$90,0)*IF(Variables!$Y$23=1,$AI104,$AJ104) -> 0 | AR104: =VLOOKUP($AH104,Func_Ftrs,P$90,0)*IF(Variables!$Y$23=1,$AI104,$AJ104) -> 0
T106: Total PC (Post Merger) | V106: =SUM(V98:V105) -> 412174937 | W106: 147539368 | X106: 147687238.3 | Y106: -30987808.13 | Z106: 28119742.02 | AA106: 0 | AB106: 1575566.181 | AC106: 1144629.615 | AD106: 0 | AE106: 0 | AG106: Total PC (Post Merger) | AI106: =SUM(AI98:AI105) -> 412174937 | AJ106: 147539368 | AK106: 147687238.3 | AL106: -30987808.13 | AM106: 28119742.02 | AN106: 0 | AO106: 1575566.181 | AP106: 1144629.615 | AQ106: 0 | AR106: 0
T108: Total Deferred Taxes | V108: =V86+V95+V106 -> 474014211 | W108: 184199400 | X108: 157229042.8 | Y108: -13650843.85 | Z108: 37800876.53 | AA108: 0 | AB108: 1554881.122 | AC108: 1265443.38 | AD108: 0 | AE108: 0 | AG108: Total Deferred Taxes | AI108: =AI86+AI95+AI106 -> 474014211 | AJ108: 184199400 | AK108: 157229042.8 | AL108: -13650843.85 | AM108: 37800876.53 | AN108: 0 | AO108: 1554881.122 | AP108: 1265443.38 | AQ108: 0 | AR108: 0
C109: =Variables!AE27 -> 2020 PROTOCOL
C110: =IF(Variables!Y21=1," ",Variables!AO17) -> Year End | T110: ACCMDITRL FACTOR | V110: =V108/$V108 -> 1 | W110: =W108/$W108 -> 1 | X110: =X108/IF(Variables!$Y$23=2,$W108,$V108) -> 0.8535806459 | Y110: =Y108/IF(Variables!$Y$23=2,$W108,$V108) -> -0.07410905708 | Z110: =Z108/IF(Variables!$Y$23=2,$W108,$V108) -> 0.2052171534 | AA110: =AA108/IF(Variables!$Y$23=2,$W108,$V108) -> 0 | AB110: =AB108/IF(Variables!$Y$23=2,$W108,$V108) -> 0.008441293088 | AC110: =AC108/IF(Variables!$Y$23=2,$W108,$V108) -> 0.006869964722 | AD110: =AD108/IF(Variables!$Y$23=2,$W108,$V108) -> 0 | AE110: =AE108/IF(Variables!$Y$23=2,$W108,$V108) -> 0 | AG110: ACCMDITMA FACTOR | AI110: =AI108/$AI108 -> 1 | AJ110: =AJ108/$AJ108 -> 1 | AK110: =AK108/IF(Variables!$Y23=2,$AJ108,$AI108) -> 0.8535806459 | AL110: =AL108/IF(Variables!$Y23=2,$AJ108,$AI108) -> -0.07410905708 | AM110: =AM108/IF(Variables!$Y23=2,$AJ108,$AI108) -> 0.2052171534 | AN110: =AN108/IF(Variables!$Y23=2,$AJ108,$AI108) -> 0 | AO110: =AO108/IF(Variables!$Y23=2,$AJ108,$AI108) -> 0.008441293088 | AP110: =AP108/IF(Variables!$Y23=2,$AJ108,$AI108) -> 0.006869964722 | AQ110: =AQ108/IF(Variables!$Y23=2,$AJ108,$AI108) -> 0 | AR110: =AR108/IF(Variables!$Y23=2,$AJ108,$AI108) -> 0
C111: RESULTS OF OPERATIONS SUMMARY
T112: DITEXPRL | AG112: DITEXPMA
T113: Pacific Division | V113: Total | W113: =Variables!X24 -> UTAH | X113: =I$3 -> Production | Y113: Transmission | Z113: Distribution | AA113: Ancillary | AB113: C_Billing | AC113: C_Metering | AD113: C_Service | AE113: DSM | AG113: Pacific Division | AI113: Total | AJ113: =Variables!X24 -> UTAH | AK113: =I$3 -> Production | AL113: Transmission | AM113: Distribution | AN113: Ancillary | AO113: C_Billing | AP113: C_Metering | AQ113: C_Service | AR113: DSM
C114: =+Variables!AE29 -> 2020 PROTOCOL | H114: =IF(Variables!Y23=1,Variables!X23,Report!N115) -> UTAH | T114: Production | U114: P | V114: =Factors!C383 -> 0 | W114: =IF(Variables!$AO$3=12,Factors!H383+Factors!K383,CHOOSE(Variables!AO$3,Factors!D383,Factors!E383,Factors!F383,Factors!G383,Factors!H383,Factors!I383,Factors!J383,Factors!K383,Factors!L383,Factors!M383,Factors!N383)) -> 0 | X114: =VLOOKUP($U114,Func_Ftrs,I$90,0)*IF(Variables!$Y$23=1,$V114,$W114) -> 0 | Y114: =VLOOKUP($U114,Func_Ftrs,J$90,0)*IF(Variables!$Y$23=1,$V114,$W114) -> 0 | Z114: =VLOOKUP($U114,Func_Ftrs,K$90,0)*IF(Variables!$Y$23=1,$V114,$W114) -> 0 | AA114: =VLOOKUP($U114,Func_Ftrs,L$90,0)*IF(Variables!$Y$23=1,$V114,$W114) -> 0 | AB114: =VLOOKUP($U114,Func_Ftrs,M$90,0)*IF(Variables!$Y$23=1,$V114,$W114) -> 0 | AC114: =VLOOKUP($U114,Func_Ftrs,N$90,0)*IF(Variables!$Y$23=1,$V114,$W114) -> 0 | AD114: =VLOOKUP($U114,Func_Ftrs,O$90,0)*IF(Variables!$Y$23=1,$V114,$W114) -> 0 | AE114: =VLOOKUP($U114,Func_Ftrs,P$90,0)*IF(Variables!$Y$23=1,$V114,$W114) -> 0 | AG114: Production | AH114: P | AI114: =V114 -> 0 | AJ114: 0 | AK114: =VLOOKUP($AH114,Func_Ftrs,I$90,0)*IF(Variables!$Y$23=1,$AI114,$AJ114) -> 0 | AL114: =VLOOKUP($AH114,Func_Ftrs,J$90,0)*IF(Variables!$Y$23=1,$AI114,$AJ114) -> 0 | AM114: =VLOOKUP($AH114,Func_Ftrs,K$90,0)*IF(Variables!$Y$23=1,$AI114,$AJ114) -> 0 | AN114: =VLOOKUP($AH114,Func_Ftrs,L$90,0)*IF(Variables!$Y$23=1,$AI114,$AJ114) -> 0 | AO114: =VLOOKUP($AH114,Func_Ftrs,M$90,0)*IF(Variables!$Y$23=1,$AI114,$AJ114) -> 0 | AP114: =VLOOKUP($AH114,Func_Ftrs,N$90,0)*IF(Variables!$Y$23=1,$AI114,$AJ114) -> 0 | AQ114: =VLOOKUP($AH114,Func_Ftrs,O$90,0)*IF(Variables!$Y$23=1,$AI114,$AJ114) -> 0 | AR114: =VLOOKUP($AH114,Func_Ftrs,P$90,0)*IF(Variables!$Y$23=1,$AI114,$AJ114) -> 0
C115: Description of Account Summary: | H115: Normalized | I115: =I3 -> Production | J115: Transmission | K115: Distribution | L115: Ancillary | M115: C_Billing | N115: C_Metering | O115: C_Service | P115: DSM | T115: Transmission | U115: T | V115: =Factors!C384 -> 0 | W115: =IF(Variables!$AO$3=12,Factors!H384+Factors!K384,CHOOSE(Variables!AO$3,Factors!D384,Factors!E384,Factors!F384,Factors!G384,Factors!H384,Factors!I384,Factors!J384,Factors!K384,Factors!L384,Factors!M384,Factors!N384)) -> 0 | X115: =VLOOKUP($U115,Func_Ftrs,I$90,0)*IF(Variables!$Y$23=1,$V115,$W115) -> 0 | Y115: =VLOOKUP($U115,Func_Ftrs,J$90,0)*IF(Variables!$Y$23=1,$V115,$W115) -> 0 | Z115: =VLOOKUP($U115,Func_Ftrs,K$90,0)*IF(Variables!$Y$23=1,$V115,$W115) -> 0 | AA115: =VLOOKUP($U115,Func_Ftrs,L$90,0)*IF(Variables!$Y$23=1,$V115,$W115) -> 0 | AB115: =VLOOKUP($U115,Func_Ftrs,M$90,0)*IF(Variables!$Y$23=1,$V115,$W115) -> 0 | AC115: =VLOOKUP($U115,Func_Ftrs,N$90,0)*IF(Variables!$Y$23=1,$V115,$W115) -> 0 | AD115: =VLOOKUP($U115,Func_Ftrs,O$90,0)*IF(Variables!$Y$23=1,$V115,$W115) -> 0 | AE115: =VLOOKUP($U115,Func_Ftrs,P$90,0)*IF(Variables!$Y$23=1,$V115,$W115) -> 0 | AG115: Transmission | AH115: T | AI115: 0 | AJ115: 0 | AK115: =VLOOKUP($AH115,Func_Ftrs,I$90,0)*IF(Variables!$Y$23=1,$AI115,$AJ115) -> 0 | AL115: =VLOOKUP($AH115,Func_Ftrs,J$90,0)*IF(Variables!$Y$23=1,$AI115,$AJ115) -> 0 | AM115: =VLOOKUP($AH115,Func_Ftrs,K$90,0)*IF(Variables!$Y$23=1,$AI115,$AJ115) -> 0 | AN115: =VLOOKUP($AH115,Func_Ftrs,L$90,0)*IF(Variables!$Y$23=1,$AI115,$AJ115) -> 0 | AO115: =VLOOKUP($AH115,Func_Ftrs,M$90,0)*IF(Variables!$Y$23=1,$AI115,$AJ115) -> 0 | AP115: =VLOOKUP($AH115,Func_Ftrs,N$90,0)*IF(Variables!$Y$23=1,$AI115,$AJ115) -> 0 | AQ115: =VLOOKUP($AH115,Func_Ftrs,O$90,0)*IF(Variables!$Y$23=1,$AI115,$AJ115) -> 0 | AR115: =VLOOKUP($AH115,Func_Ftrs,P$90,0)*IF(Variables!$Y$23=1,$AI115,$AJ115) -> 0
T116: Distribution | U116: D_SPLIT | V116: =Factors!C385 -> 0 | W116: =IF(Variables!$AO$3=12,Factors!H385+Factors!K385,CHOOSE(Variables!AO$3,Factors!D385,Factors!E385,Factors!F385,Factors!G385,Factors!H385,Factors!I385,Factors!J385,Factors!K385,Factors!L385,Factors!M385,Factors!N385)) -> 0 | X116: =VLOOKUP($U116,Func_Ftrs,I$90,0)*IF(Variables!$Y$23=1,$V116,$W116) -> 0 | Y116: =VLOOKUP($U116,Func_Ftrs,J$90,0)*IF(Variables!$Y$23=1,$V116,$W116) -> 0 | Z116: =VLOOKUP($U116,Func_Ftrs,K$90,0)*IF(Variables!$Y$23=1,$V116,$W116) -> 0 | AA116: =VLOOKUP($U116,Func_Ftrs,L$90,0)*IF(Variables!$Y$23=1,$V116,$W116) -> 0 | AB116: =VLOOKUP($U116,Func_Ftrs,M$90,0)*IF(Variables!$Y$23=1,$V116,$W116) -> 0 | AC116: =VLOOKUP($U116,Func_Ftrs,N$90,0)*IF(Variables!$Y$23=1,$V116,$W116) -> 0 | AD116: =VLOOKUP($U116,Func_Ftrs,O$90,0)*IF(Variables!$Y$23=1,$V116,$W116) -> 0 | AE116: =VLOOKUP($U116,Func_Ftrs,P$90,0)*IF(Variables!$Y$23=1,$V116,$W116) -> 0 | AG116: Distribution | AH116: D_SPLIT | AI116: 0 | AJ116: 0 | AK116: =VLOOKUP($AH116,Func_Ftrs,I$90,0)*IF(Variables!$Y$23=1,$AI116,$AJ116) -> 0 | AL116: =VLOOKUP($AH116,Func_Ftrs,J$90,0)*IF(Variables!$Y$23=1,$AI116,$AJ116) -> 0 | AM116: =VLOOKUP($AH116,Func_Ftrs,K$90,0)*IF(Variables!$Y$23=1,$AI116,$AJ116) -> 0 | AN116: =VLOOKUP($AH116,Func_Ftrs,L$90,0)*IF(Variables!$Y$23=1,$AI116,$AJ116) -> 0 | AO116: =VLOOKUP($AH116,Func_Ftrs,M$90,0)*IF(Variables!$Y$23=1,$AI116,$AJ116) -> 0 | AP116: =VLOOKUP($AH116,Func_Ftrs,N$90,0)*IF(Variables!$Y$23=1,$AI116,$AJ116) -> 0 | AQ116: =VLOOKUP($AH116,Func_Ftrs,O$90,0)*IF(Variables!$Y$23=1,$AI116,$AJ116) -> 0 | AR116: =VLOOKUP($AH116,Func_Ftrs,P$90,0)*IF(Variables!$Y$23=1,$AI116,$AJ116) -> 0
A117: 1 | E117: General Business Revenues | H117: =H219-H118-H119 -> 2001695945 | I117: 652206238.2 | J117: 43324568.75 | K117: 194817363.5 | L117: 6949653.101 | M117: 20138960.93 | N117: 25075718.33 | O117: 6828800.312 | P117: 4.705277175e-299 | T117: Mining Plant | U117: P | V117: =Factors!C387 -> 0 | W117: =IF(Variables!$AO$3=12,Factors!H387+Factors!K387,CHOOSE(Variables!AO$3,Factors!D387,Factors!E387,Factors!F387,Factors!G387,Factors!H387,Factors!I387,Factors!J387,Factors!K387,Factors!L387,Factors!M387,Factors!N387)) -> 0 | X117: =VLOOKUP($U117,Func_Ftrs,I$90,0)*IF(Variables!$Y$23=1,$V117,$W117) -> 0 | Y117: =VLOOKUP($U117,Func_Ftrs,J$90,0)*IF(Variables!$Y$23=1,$V117,$W117) -> 0 | Z117: =VLOOKUP($U117,Func_Ftrs,K$90,0)*IF(Variables!$Y$23=1,$V117,$W117) -> 0 | AA117: =VLOOKUP($U117,Func_Ftrs,L$90,0)*IF(Variables!$Y$23=1,$V117,$W117) -> 0 | AB117: =VLOOKUP($U117,Func_Ftrs,M$90,0)*IF(Variables!$Y$23=1,$V117,$W117) -> 0 | AC117: =VLOOKUP($U117,Func_Ftrs,N$90,0)*IF(Variables!$Y$23=1,$V117,$W117) -> 0 | AD117: =VLOOKUP($U117,Func_Ftrs,O$90,0)*IF(Variables!$Y$23=1,$V117,$W117) -> 0 | AE117: =VLOOKUP($U117,Func_Ftrs,P$90,0)*IF(Variables!$Y$23=1,$V117,$W117) -> 0 | AG117: Mining Plant | AH117: P | AI117: 0 | AJ117: 0 | AK117: =VLOOKUP($AH117,Func_Ftrs,I$90,0)*IF(Variables!$Y$23=1,$AI117,$AJ117) -> 0 | AL117: =VLOOKUP($AH117,Func_Ftrs,J$90,0)*IF(Variables!$Y$23=1,$AI117,$AJ117) -> 0 | AM117: =VLOOKUP($AH117,Func_Ftrs,K$90,0)*IF(Variables!$Y$23=1,$AI117,$AJ117) -> 0 | AN117: =VLOOKUP($AH117,Func_Ftrs,L$90,0)*IF(Variables!$Y$23=1,$AI117,$AJ117) -> 0 | AO117: =VLOOKUP($AH117,Func_Ftrs,M$90,0)*IF(Variables!$Y$23=1,$AI117,$AJ117) -> 0 | AP117: =VLOOKUP($AH117,Func_Ftrs,N$90,0)*IF(Variables!$Y$23=1,$AI117,$AJ117) -> 0 | AQ117: =VLOOKUP($AH117,Func_Ftrs,O$90,0)*IF(Variables!$Y$23=1,$AI117,$AJ117) -> 0 | AR117: =VLOOKUP($AH117,Func_Ftrs,P$90,0)*IF(Variables!$Y$23=1,$AI117,$AJ117) -> 0
A118: 2 | E118: General Business Revenues | H118: =H198+H199 -> 0 | I118: 0 | J118: 0 | K118: 0 | L118: 0 | M118: 0 | N118: =N198+N199 -> 0 | O118: =O198+O199 -> 0 | P118: =P198+P199 -> 0
A119: 3 | E119: Interdepartmental | H119: =H217 -> 0 | I119: 0 | J119: 0 | K119: =K217 -> 0 | L119: 0 | M119: 0 | N119: =N217 -> 0 | O119: =O217 -> 0 | P119: =P217 -> 0 | T119: Total Pacific Division | V119: =SUM(V114:V117) -> 0 | W119: 0 | X119: 0 | Y119: 0 | Z119: 0 | AA119: 0 | AB119: 0 | AC119: 0 | AD119: 0 | AE119: 0 | AG119: Total Pacific Division | AI119: =SUM(AI114:AI117) -> 0 | AJ119: 0 | AK119: 0 | AL119: 0 | AM119: 0 | AN119: 0 | AO119: 0 | AP119: 0 | AQ119: 0 | AR119: 0
A120: 4 | E120: Special Sales | H120: =H233 -> 112290110.7 | I120: 89312238.46 | J120: 22977872.24 | K120: =K233 -> 0 | L120: 0 | M120: 0 | N120: =N233 -> 0 | O120: =O233 -> 0 | P120: =P233 -> 0
A121: 5 | E121: Other Operating Revenues | H121: =H276+H240 -> 74287207.93 | I121: 38229073.92 | J121: 39888733.49 | K121: 1671560.481 | L121: -11174379 | M121: 5658484.027 | N121: 9163.317432 | O121: 4569.061629 | P121: 0 | T121: Utah Division | AG121: Utah Division
A122: 6 | E122: Total Operating Revenues | H122: =SUM(H117:H121) -> 2188273264 | I122: 779747550.6 | J122: 106191174.5 | K122: 196488923.9 | L122: -4224725.899 | M122: 25797444.96 | N122: =SUM(N117:N121) -> 25084881.65 | O122: =SUM(O117:O121) -> 6833369.374 | P122: =SUM(P117:P121) -> 4.705277175e-299 | T122: Production | U122: P | V122: =Factors!C393 -> 0 | W122: =IF(Variables!$AO$3=12,Factors!H393+Factors!K393,CHOOSE(Variables!AO$3,Factors!D393,Factors!E393,Factors!F393,Factors!G393,Factors!H393,Factors!I393,Factors!J393,Factors!K393,Factors!L393,Factors!M393,Factors!N393)) -> 0 | X122: =VLOOKUP($U122,Func_Ftrs,I$90,0)*IF(Variables!$Y$23=1,$V122,$W122) -> 0 | Y122: =VLOOKUP($U122,Func_Ftrs,J$90,0)*IF(Variables!$Y$23=1,$V122,$W122) -> 0 | Z122: =VLOOKUP($U122,Func_Ftrs,K$90,0)*IF(Variables!$Y$23=1,$V122,$W122) -> 0 | AA122: =VLOOKUP($U122,Func_Ftrs,L$90,0)*IF(Variables!$Y$23=1,$V122,$W122) -> 0 | AB122: =VLOOKUP($U122,Func_Ftrs,M$90,0)*IF(Variables!$Y$23=1,$V122,$W122) -> 0 | AC122: =VLOOKUP($U122,Func_Ftrs,N$90,0)*IF(Variables!$Y$23=1,$V122,$W122) -> 0 | AD122: =VLOOKUP($U122,Func_Ftrs,O$90,0)*IF(Variables!$Y$23=1,$V122,$W122) -> 0 | AE122: =VLOOKUP($U122,Func_Ftrs,P$90,0)*IF(Variables!$Y$23=1,$V122,$W122) -> 0 | AG122: Production | AH122: P | AI122: =V122 -> 0 | AJ122: 0 | AK122: =VLOOKUP($AH122,Func_Ftrs,I$90,0)*IF(Variables!$Y$23=1,$AI122,$AJ122) -> 0 | AL122: =VLOOKUP($AH122,Func_Ftrs,J$90,0)*IF(Variables!$Y$23=1,$AI122,$AJ122) -> 0 | AM122: =VLOOKUP($AH122,Func_Ftrs,K$90,0)*IF(Variables!$Y$23=1,$AI122,$AJ122) -> 0 | AN122: =VLOOKUP($AH122,Func_Ftrs,L$90,0)*IF(Variables!$Y$23=1,$AI122,$AJ122) -> 0 | AO122: =VLOOKUP($AH122,Func_Ftrs,M$90,0)*IF(Variables!$Y$23=1,$AI122,$AJ122) -> 0 | AP122: =VLOOKUP($AH122,Func_Ftrs,N$90,0)*IF(Variables!$Y$23=1,$AI122,$AJ122) -> 0 | AQ122: =VLOOKUP($AH122,Func_Ftrs,O$90,0)*IF(Variables!$Y$23=1,$AI122,$AJ122) -> 0 | AR122: =VLOOKUP($AH122,Func_Ftrs,P$90,0)*IF(Variables!$Y$23=1,$AI122,$AJ122) -> 0
A123: 7 | T123: Transmission | U123: T | V123: =Factors!C394 -> 0 | W123: =IF(Variables!$AO$3=12,Factors!H394+Factors!K394,CHOOSE(Variables!AO$3,Factors!D394,Factors!E394,Factors!F394,Factors!G394,Factors!H394,Factors!I394,Factors!J394,Factors!K394,Factors!L394,Factors!M394,Factors!N394)) -> 0 | X123: =VLOOKUP($U123,Func_Ftrs,I$90,0)*IF(Variables!$Y$23=1,$V123,$W123) -> 0 | Y123: =VLOOKUP($U123,Func_Ftrs,J$90,0)*IF(Variables!$Y$23=1,$V123,$W123) -> 0 | Z123: =VLOOKUP($U123,Func_Ftrs,K$90,0)*IF(Variables!$Y$23=1,$V123,$W123) -> 0 | AA123: =VLOOKUP($U123,Func_Ftrs,L$90,0)*IF(Variables!$Y$23=1,$V123,$W123) -> 0 | AB123: =VLOOKUP($U123,Func_Ftrs,M$90,0)*IF(Variables!$Y$23=1,$V123,$W123) -> 0 | AC123: =VLOOKUP($U123,Func_Ftrs,N$90,0)*IF(Variables!$Y$23=1,$V123,$W123) -> 0 | AD123: =VLOOKUP($U123,Func_Ftrs,O$90,0)*IF(Variables!$Y$23=1,$V123,$W123) -> 0 | AE123: =VLOOKUP($U123,Func_Ftrs,P$90,0)*IF(Variables!$Y$23=1,$V123,$W123) -> 0 | AG123: Transmission | AH123: T | AI123: 0 | AJ123: 0 | AK123: =VLOOKUP($AH123,Func_Ftrs,I$90,0)*IF(Variables!$Y$23=1,$AI123,$AJ123) -> 0 | AL123: =VLOOKUP($AH123,Func_Ftrs,J$90,0)*IF(Variables!$Y$23=1,$AI123,$AJ123) -> 0 | AM123: =VLOOKUP($AH123,Func_Ftrs,K$90,0)*IF(Variables!$Y$23=1,$AI123,$AJ123) -> 0 | AN123: =VLOOKUP($AH123,Func_Ftrs,L$90,0)*IF(Variables!$Y$23=1,$AI123,$AJ123) -> 0 | AO123: =VLOOKUP($AH123,Func_Ftrs,M$90,0)*IF(Variables!$Y$23=1,$AI123,$AJ123) -> 0 | AP123: =VLOOKUP($AH123,Func_Ftrs,N$90,0)*IF(Variables!$Y$23=1,$AI123,$AJ123) -> 0 | AQ123: =VLOOKUP($AH123,Func_Ftrs,O$90,0)*IF(Variables!$Y$23=1,$AI123,$AJ123) -> 0 | AR123: =VLOOKUP($AH123,Func_Ftrs,P$90,0)*IF(Variables!$Y$23=1,$AI123,$AJ123) -> 0
A124: 8 | C124: Operating Expenses: | T124: Distribution | U124: D_SPLIT | V124: =Factors!C395 -> 0 | W124: =IF(Variables!$AO$3=12,Factors!H395+Factors!K395,CHOOSE(Variables!AO$3,Factors!D395,Factors!E395,Factors!F395,Factors!G395,Factors!H395,Factors!I395,Factors!J395,Factors!K395,Factors!L395,Factors!M395,Factors!N395)) -> 0 | X124: =VLOOKUP($U124,Func_Ftrs,I$90,0)*IF(Variables!$Y$23=1,$V124,$W124) -> 0 | Y124: =VLOOKUP($U124,Func_Ftrs,J$90,0)*IF(Variables!$Y$23=1,$V124,$W124) -> 0 | Z124: =VLOOKUP($U124,Func_Ftrs,K$90,0)*IF(Variables!$Y$23=1,$V124,$W124) -> 0 | AA124: =VLOOKUP($U124,Func_Ftrs,L$90,0)*IF(Variables!$Y$23=1,$V124,$W124) -> 0 | AB124: =VLOOKUP($U124,Func_Ftrs,M$90,0)*IF(Variables!$Y$23=1,$V124,$W124) -> 0 | AC124: =VLOOKUP($U124,Func_Ftrs,N$90,0)*IF(Variables!$Y$23=1,$V124,$W124) -> 0 | AD124: =VLOOKUP($U124,Func_Ftrs,O$90,0)*IF(Variables!$Y$23=1,$V124,$W124) -> 0 | AE124: =VLOOKUP($U124,Func_Ftrs,P$90,0)*IF(Variables!$Y$23=1,$V124,$W124) -> 0 | AG124: Distribution | AH124: D_SPLIT | AI124: 0 | AJ124: 0 | AK124: =VLOOKUP($AH124,Func_Ftrs,I$90,0)*IF(Variables!$Y$23=1,$AI124,$AJ124) -> 0 | AL124: =VLOOKUP($AH124,Func_Ftrs,J$90,0)*IF(Variables!$Y$23=1,$AI124,$AJ124) -> 0 | AM124: =VLOOKUP($AH124,Func_Ftrs,K$90,0)*IF(Variables!$Y$23=1,$AI124,$AJ124) -> 0 | AN124: =VLOOKUP($AH124,Func_Ftrs,L$90,0)*IF(Variables!$Y$23=1,$AI124,$AJ124) -> 0 | AO124: =VLOOKUP($AH124,Func_Ftrs,M$90,0)*IF(Variables!$Y$23=1,$AI124,$AJ124) -> 0 | AP124: =VLOOKUP($AH124,Func_Ftrs,N$90,0)*IF(Variables!$Y$23=1,$AI124,$AJ124) -> 0 | AQ124: =VLOOKUP($AH124,Func_Ftrs,O$90,0)*IF(Variables!$Y$23=1,$AI124,$AJ124) -> 0 | AR124: =VLOOKUP($AH124,Func_Ftrs,P$90,0)*IF(Variables!$Y$23=1,$AI124,$AJ124) -> 0
A125: 9 | D125: Steam Production | H125: =H414 -> 395449487.9 | I125: 395449487.9 | J125: 0 | K125: 0 | L125: 0 | M125: 0 | N125: =N414 -> 0 | O125: =O414 -> 0 | P125: =P414 -> 0 | T125: General | U125: G | V125: =Factors!C396 -> 0 | W125: =IF(Variables!$AO$3=12,Factors!H396+Factors!K396,CHOOSE(Variables!AO$3,Factors!D396,Factors!E396,Factors!F396,Factors!G396,Factors!H396,Factors!I396,Factors!J396,Factors!K396,Factors!L396,Factors!M396,Factors!N396)) -> 0 | X125: =VLOOKUP($U125,Func_Ftrs,I$90,0)*IF(Variables!$Y$23=1,$V125,$W125) -> 0 | Y125: =VLOOKUP($U125,Func_Ftrs,J$90,0)*IF(Variables!$Y$23=1,$V125,$W125) -> 0 | Z125: =VLOOKUP($U125,Func_Ftrs,K$90,0)*IF(Variables!$Y$23=1,$V125,$W125) -> 0 | AA125: =VLOOKUP($U125,Func_Ftrs,L$90,0)*IF(Variables!$Y$23=1,$V125,$W125) -> 0 | AB125: =VLOOKUP($U125,Func_Ftrs,M$90,0)*IF(Variables!$Y$23=1,$V125,$W125) -> 0 | AC125: =VLOOKUP($U125,Func_Ftrs,N$90,0)*IF(Variables!$Y$23=1,$V125,$W125) -> 0 | AD125: =VLOOKUP($U125,Func_Ftrs,O$90,0)*IF(Variables!$Y$23=1,$V125,$W125) -> 0 | AE125: =VLOOKUP($U125,Func_Ftrs,P$90,0)*IF(Variables!$Y$23=1,$V125,$W125) -> 0 | AG125: General | AH125: G | AI125: 0 | AJ125: 0 | AK125: =VLOOKUP($AH125,Func_Ftrs,I$90,0)*IF(Variables!$Y$23=1,$AI125,$AJ125) -> 0 | AL125: =VLOOKUP($AH125,Func_Ftrs,J$90,0)*IF(Variables!$Y$23=1,$AI125,$AJ125) -> 0 | AM125: =VLOOKUP($AH125,Func_Ftrs,K$90,0)*IF(Variables!$Y$23=1,$AI125,$AJ125) -> 0 | AN125: =VLOOKUP($AH125,Func_Ftrs,L$90,0)*IF(Variables!$Y$23=1,$AI125,$AJ125) -> 0 | AO125: =VLOOKUP($AH125,Func_Ftrs,M$90,0)*IF(Variables!$Y$23=1,$AI125,$AJ125) -> 0 | AP125: =VLOOKUP($AH125,Func_Ftrs,N$90,0)*IF(Variables!$Y$23=1,$AI125,$AJ125) -> 0 | AQ125: =VLOOKUP($AH125,Func_Ftrs,O$90,0)*IF(Variables!$Y$23=1,$AI125,$AJ125) -> 0 | AR125: =VLOOKUP($AH125,Func_Ftrs,P$90,0)*IF(Variables!$Y$23=1,$AI125,$AJ125) -> 0
A126: 10 | D126: Nuclear Production | H126: =H462 -> 0 | I126: 0 | J126: 0 | K126: 0 | L126: 0 | M126: 0 | N126: =N462 -> 0 | O126: =O462 -> 0 | P126: =P462 -> 0 | T126: Mining Plant | U126: P | V126: =Factors!C397 -> 0 | W126: =IF(Variables!$AO$3=12,Factors!H397+Factors!K397,CHOOSE(Variables!AO$3,Factors!D397,Factors!E397,Factors!F397,Factors!G397,Factors!H397,Factors!I397,Factors!J397,Factors!K397,Factors!L397,Factors!M397,Factors!N397)) -> 0 | X126: =VLOOKUP($U126,Func_Ftrs,I$90,0)*IF(Variables!$Y$23=1,$V126,$W126) -> 0 | Y126: =VLOOKUP($U126,Func_Ftrs,J$90,0)*IF(Variables!$Y$23=1,$V126,$W126) -> 0 | Z126: =VLOOKUP($U126,Func_Ftrs,K$90,0)*IF(Variables!$Y$23=1,$V126,$W126) -> 0 | AA126: =VLOOKUP($U126,Func_Ftrs,L$90,0)*IF(Variables!$Y$23=1,$V126,$W126) -> 0 | AB126: =VLOOKUP($U126,Func_Ftrs,M$90,0)*IF(Variables!$Y$23=1,$V126,$W126) -> 0 | AC126: =VLOOKUP($U126,Func_Ftrs,N$90,0)*IF(Variables!$Y$23=1,$V126,$W126) -> 0 | AD126: =VLOOKUP($U126,Func_Ftrs,O$90,0)*IF(Variables!$Y$23=1,$V126,$W126) -> 0 | AE126: =VLOOKUP($U126,Func_Ftrs,P$90,0)*IF(Variables!$Y$23=1,$V126,$W126) -> 0 | AG126: Mining Plant | AH126: P | AI126: 0 | AJ126: 0 | AK126: =VLOOKUP($AH126,Func_Ftrs,I$90,0)*IF(Variables!$Y$23=1,$AI126,$AJ126) -> 0 | AL126: =VLOOKUP($AH126,Func_Ftrs,J$90,0)*IF(Variables!$Y$23=1,$AI126,$AJ126) -> 0 | AM126: =VLOOKUP($AH126,Func_Ftrs,K$90,0)*IF(Variables!$Y$23=1,$AI126,$AJ126) -> 0 | AN126: =VLOOKUP($AH126,Func_Ftrs,L$90,0)*IF(Variables!$Y$23=1,$AI126,$AJ126) -> 0 | AO126: =VLOOKUP($AH126,Func_Ftrs,M$90,0)*IF(Variables!$Y$23=1,$AI126,$AJ126) -> 0 | AP126: =VLOOKUP($AH126,Func_Ftrs,N$90,0)*IF(Variables!$Y$23=1,$AI126,$AJ126) -> 0 | AQ126: =VLOOKUP($AH126,Func_Ftrs,O$90,0)*IF(Variables!$Y$23=1,$AI126,$AJ126) -> 0 | AR126: =VLOOKUP($AH126,Func_Ftrs,P$90,0)*IF(Variables!$Y$23=1,$AI126,$AJ126) -> 0
A127: 11 | D127: Hydro Production | H127: =H545 -> 20252471.49 | I127: 20252471.49 | J127: 0 | K127: 0 | L127: 0 | M127: 0 | N127: =N545 -> 0 | O127: =O545 -> 0 | P127: =P545 -> 0
A128: 12 | D128: Other Power Supply | H128: =H601+H644 -> 428565685.7 | I128: 428565685.7 | J128: 0 | K128: 0 | L128: 0 | M128: 0 | N128: 0 | O128: 0 | P128: 0 | T128: Total Utah Division | V128: =SUM(V122:V126) -> 0 | W128: 0 | X128: 0 | Y128: 0 | Z128: 0 | AA128: 0 | AB128: 0 | AC128: 0 | AD128: 0 | AE128: 0 | AG128: Total Utah Division | AI128: =SUM(AI122:AI126) -> 0 | AJ128: 0 | AK128: 0 | AL128: 0 | AM128: 0 | AN128: 0 | AO128: 0 | AP128: 0 | AQ128: 0 | AR128: 0
A129: 13 | D129: Transmission | H129: =H748 -> 97837978.22 | I129: 464002.9305 | J129: 97373975.29 | K129: 0 | L129: 0 | M129: 0 | N129: =N748 -> 0 | O129: =O748 -> 0 | P129: =P748 -> 0
A130: 14 | D130: Distribution | H130: =H849 -> 91150977.97 | I130: 0 | J130: 0 | K130: 89963072.76 | L130: 0 | M130: 0 | N130: =N849 -> 1187905.209 | O130: =O849 -> 0 | P130: =P849 -> 0 | T130: PACIFICORP | AG130: PACIFICORP
A131: 15 | D131: Customer Accounts | H131: =H884 -> 35432367.49 | I131: 1565745.962 | J131: 213233.6325 | K131: 394553.0051 | L131: -8483.319394 | M131: 15182790.89 | N131: =N884 -> 5436971.903 | O131: =O884 -> 10534409.91 | P131: =P884 -> 0 | T131: Production | U131: P | V131: =Factors!C403 -> 0 | W131: =IF(Variables!$AO$3=12,Factors!H403+Factors!K403,CHOOSE(Variables!AO$3,Factors!D403,Factors!E403,Factors!F403,Factors!G403,Factors!H403,Factors!I403,Factors!J403,Factors!K403,Factors!L403,Factors!M403,Factors!N403)) -> 0 | X131: =VLOOKUP($U131,Func_Ftrs,I$90,0)*IF(Variables!$Y$23=1,$V131,$W131) -> 0 | Y131: =VLOOKUP($U131,Func_Ftrs,J$90,0)*IF(Variables!$Y$23=1,$V131,$W131) -> 0 | Z131: =VLOOKUP($U131,Func_Ftrs,K$90,0)*IF(Variables!$Y$23=1,$V131,$W131) -> 0 | AA131: =VLOOKUP($U131,Func_Ftrs,L$90,0)*IF(Variables!$Y$23=1,$V131,$W131) -> 0 | AB131: =VLOOKUP($U131,Func_Ftrs,M$90,0)*IF(Variables!$Y$23=1,$V131,$W131) -> 0 | AC131: =VLOOKUP($U131,Func_Ftrs,N$90,0)*IF(Variables!$Y$23=1,$V131,$W131) -> 0 | AD131: =VLOOKUP($U131,Func_Ftrs,O$90,0)*IF(Variables!$Y$23=1,$V131,$W131) -> 0 | AE131: =VLOOKUP($U131,Func_Ftrs,P$90,0)*IF(Variables!$Y$23=1,$V131,$W131) -> 0 | AG131: Production | AH131: P | AI131: =V131 -> 0 | AJ131: =W131 -> 0 | AK131: =VLOOKUP($AH131,Func_Ftrs,I$90,0)*IF(Variables!$Y$23=1,$AI131,$AJ131) -> 0 | AL131: =VLOOKUP($AH131,Func_Ftrs,J$90,0)*IF(Variables!$Y$23=1,$AI131,$AJ131) -> 0 | AM131: =VLOOKUP($AH131,Func_Ftrs,K$90,0)*IF(Variables!$Y$23=1,$AI131,$AJ131) -> 0 | AN131: =VLOOKUP($AH131,Func_Ftrs,L$90,0)*IF(Variables!$Y$23=1,$AI131,$AJ131) -> 0 | AO131: =VLOOKUP($AH131,Func_Ftrs,M$90,0)*IF(Variables!$Y$23=1,$AI131,$AJ131) -> 0 | AP131: =VLOOKUP($AH131,Func_Ftrs,N$90,0)*IF(Variables!$Y$23=1,$AI131,$AJ131) -> 0 | AQ131: =VLOOKUP($AH131,Func_Ftrs,O$90,0)*IF(Variables!$Y$23=1,$AI131,$AJ131) -> 0 | AR131: =VLOOKUP($AH131,Func_Ftrs,P$90,0)*IF(Variables!$Y$23=1,$AI131,$AJ131) -> 0
A132: 16 | D132: Customer Service | H132: =H915 -> 6935917.442 | I132: 0 | J132: 0 | K132: 2916229.524 | L132: 0 | M132: 0 | N132: =N915 -> 0 | O132: =O915 -> 4019687.918 | P132: =P915 -> 0 | T132: Hydro - P | U132: P | V132: =Factors!C404 -> 0 | W132: =IF(Variables!$AO$3=12,Factors!H404+Factors!K404,CHOOSE(Variables!AO$3,Factors!D404,Factors!E404,Factors!F404,Factors!G404,Factors!H404,Factors!I404,Factors!J404,Factors!K404,Factors!L404,Factors!M404,Factors!N404)) -> 0 | X132: =VLOOKUP($U132,Func_Ftrs,I$90,0)*IF(Variables!$Y$23=1,$V132,$W132) -> 0 | Y132: =VLOOKUP($U132,Func_Ftrs,J$90,0)*IF(Variables!$Y$23=1,$V132,$W132) -> 0 | Z132: =VLOOKUP($U132,Func_Ftrs,K$90,0)*IF(Variables!$Y$23=1,$V132,$W132) -> 0 | AA132: =VLOOKUP($U132,Func_Ftrs,L$90,0)*IF(Variables!$Y$23=1,$V132,$W132) -> 0 | AB132: =VLOOKUP($U132,Func_Ftrs,M$90,0)*IF(Variables!$Y$23=1,$V132,$W132) -> 0 | AC132: =VLOOKUP($U132,Func_Ftrs,N$90,0)*IF(Variables!$Y$23=1,$V132,$W132) -> 0 | AD132: =VLOOKUP($U132,Func_Ftrs,O$90,0)*IF(Variables!$Y$23=1,$V132,$W132) -> 0 | AE132: =VLOOKUP($U132,Func_Ftrs,P$90,0)*IF(Variables!$Y$23=1,$V132,$W132) -> 0 | AG132: Hydro - P | AH132: P | AI132: 0 | AJ132: 0 | AK132: =VLOOKUP($AH132,Func_Ftrs,I$90,0)*IF(Variables!$Y$23=1,$AI132,$AJ132) -> 0 | AL132: =VLOOKUP($AH132,Func_Ftrs,J$90,0)*IF(Variables!$Y$23=1,$AI132,$AJ132) -> 0 | AM132: =VLOOKUP($AH132,Func_Ftrs,K$90,0)*IF(Variables!$Y$23=1,$AI132,$AJ132) -> 0 | AN132: =VLOOKUP($AH132,Func_Ftrs,L$90,0)*IF(Variables!$Y$23=1,$AI132,$AJ132) -> 0 | AO132: =VLOOKUP($AH132,Func_Ftrs,M$90,0)*IF(Variables!$Y$23=1,$AI132,$AJ132) -> 0 | AP132: =VLOOKUP($AH132,Func_Ftrs,N$90,0)*IF(Variables!$Y$23=1,$AI132,$AJ132) -> 0 | AQ132: =VLOOKUP($AH132,Func_Ftrs,O$90,0)*IF(Variables!$Y$23=1,$AI132,$AJ132) -> 0 | AR132: =VLOOKUP($AH132,Func_Ftrs,P$90,0)*IF(Variables!$Y$23=1,$AI132,$AJ132) -> 0
A133: 17 | D133: Sales | H133: =H945 -> 0 | I133: 0 | J133: 0 | K133: 0 | L133: 0 | M133: 0 | N133: =N945 -> 0 | O133: =O945 -> 0 | P133: =P945 -> 0 | T133: Hydro - U | U133: P | V133: =Factors!C405 -> 0 | W133: =IF(Variables!$AO$3=12,Factors!H405+Factors!K405,CHOOSE(Variables!AO$3,Factors!D405,Factors!E405,Factors!F405,Factors!G405,Factors!H405,Factors!I405,Factors!J405,Factors!K405,Factors!L405,Factors!M405,Factors!N405)) -> 0 | X133: =VLOOKUP($U133,Func_Ftrs,I$90,0)*IF(Variables!$Y$23=1,$V133,$W133) -> 0 | Y133: =VLOOKUP($U133,Func_Ftrs,J$90,0)*IF(Variables!$Y$23=1,$V133,$W133) -> 0 | Z133: =VLOOKUP($U133,Func_Ftrs,K$90,0)*IF(Variables!$Y$23=1,$V133,$W133) -> 0 | AA133: =VLOOKUP($U133,Func_Ftrs,L$90,0)*IF(Variables!$Y$23=1,$V133,$W133) -> 0 | AB133: =VLOOKUP($U133,Func_Ftrs,M$90,0)*IF(Variables!$Y$23=1,$V133,$W133) -> 0 | AC133: =VLOOKUP($U133,Func_Ftrs,N$90,0)*IF(Variables!$Y$23=1,$V133,$W133) -> 0 | AD133: =VLOOKUP($U133,Func_Ftrs,O$90,0)*IF(Variables!$Y$23=1,$V133,$W133) -> 0 | AE133: =VLOOKUP($U133,Func_Ftrs,P$90,0)*IF(Variables!$Y$23=1,$V133,$W133) -> 0 | AG133: Hydro - U | AH133: P | AI133: 0 | AJ133: 0 | AK133: =VLOOKUP($AH133,Func_Ftrs,I$90,0)*IF(Variables!$Y$23=1,$AI133,$AJ133) -> 0 | AL133: =VLOOKUP($AH133,Func_Ftrs,J$90,0)*IF(Variables!$Y$23=1,$AI133,$AJ133) -> 0 | AM133: =VLOOKUP($AH133,Func_Ftrs,K$90,0)*IF(Variables!$Y$23=1,$AI133,$AJ133) -> 0 | AN133: =VLOOKUP($AH133,Func_Ftrs,L$90,0)*IF(Variables!$Y$23=1,$AI133,$AJ133) -> 0 | AO133: =VLOOKUP($AH133,Func_Ftrs,M$90,0)*IF(Variables!$Y$23=1,$AI133,$AJ133) -> 0 | AP133: =VLOOKUP($AH133,Func_Ftrs,N$90,0)*IF(Variables!$Y$23=1,$AI133,$AJ133) -> 0 | AQ133: =VLOOKUP($AH133,Func_Ftrs,O$90,0)*IF(Variables!$Y$23=1,$AI133,$AJ133) -> 0 | AR133: =VLOOKUP($AH133,Func_Ftrs,P$90,0)*IF(Variables!$Y$23=1,$AI133,$AJ133) -> 0
A134: 18 | D134: Administrative & General | H134: =H1028 -> 54218387.33 | I134: 16976290.25 | J134: 5308687.037 | K134: 24958728.06 | L134: 0 | M134: 2002256.092 | N134: =N1028 -> 3251962.665 | O134: =O1028 -> 1720463.227 | P134: =P1028 -> 0 | T134: Transmission | U134: T | V134: =Factors!C415 -> 0 | W134: =IF(Variables!$AO$3=12,Factors!H415+Factors!K415,CHOOSE(Variables!AO$3,Factors!D415,Factors!E415,Factors!F415,Factors!G415,Factors!H415,Factors!I415,Factors!J415,Factors!K415,Factors!L415,Factors!M415,Factors!N415)) -> 0 | X134: =VLOOKUP($U134,Func_Ftrs,I$90,0)*IF(Variables!$Y$23=1,$V134,$W134) -> 0 | Y134: =VLOOKUP($U134,Func_Ftrs,J$90,0)*IF(Variables!$Y$23=1,$V134,$W134) -> 0 | Z134: =VLOOKUP($U134,Func_Ftrs,K$90,0)*IF(Variables!$Y$23=1,$V134,$W134) -> 0 | AA134: =VLOOKUP($U134,Func_Ftrs,L$90,0)*IF(Variables!$Y$23=1,$V134,$W134) -> 0 | AB134: =VLOOKUP($U134,Func_Ftrs,M$90,0)*IF(Variables!$Y$23=1,$V134,$W134) -> 0 | AC134: =VLOOKUP($U134,Func_Ftrs,N$90,0)*IF(Variables!$Y$23=1,$V134,$W134) -> 0 | AD134: =VLOOKUP($U134,Func_Ftrs,O$90,0)*IF(Variables!$Y$23=1,$V134,$W134) -> 0 | AE134: =VLOOKUP($U134,Func_Ftrs,P$90,0)*IF(Variables!$Y$23=1,$V134,$W134) -> 0 | AG134: Transmission | AH134: T | AI134: 0 | AJ134: 0 | AK134: =VLOOKUP($AH134,Func_Ftrs,I$90,0)*IF(Variables!$Y$23=1,$AI134,$AJ134) -> 0 | AL134: =VLOOKUP($AH134,Func_Ftrs,J$90,0)*IF(Variables!$Y$23=1,$AI134,$AJ134) -> 0 | AM134: =VLOOKUP($AH134,Func_Ftrs,K$90,0)*IF(Variables!$Y$23=1,$AI134,$AJ134) -> 0 | AN134: =VLOOKUP($AH134,Func_Ftrs,L$90,0)*IF(Variables!$Y$23=1,$AI134,$AJ134) -> 0 | AO134: =VLOOKUP($AH134,Func_Ftrs,M$90,0)*IF(Variables!$Y$23=1,$AI134,$AJ134) -> 0 | AP134: =VLOOKUP($AH134,Func_Ftrs,N$90,0)*IF(Variables!$Y$23=1,$AI134,$AJ134) -> 0 | AQ134: =VLOOKUP($AH134,Func_Ftrs,O$90,0)*IF(Variables!$Y$23=1,$AI134,$AJ134) -> 0 | AR134: =VLOOKUP($AH134,Func_Ftrs,P$90,0)*IF(Variables!$Y$23=1,$AI134,$AJ134) -> 0
A135: 19 | T135: Distribution | U135: D_SPLIT | V135: =Factors!C416 -> 0 | W135: =IF(Variables!$AO$3=12,Factors!H416+Factors!K416,CHOOSE(Variables!AO$3,Factors!D416,Factors!E416,Factors!F416,Factors!G416,Factors!H416,Factors!I416,Factors!J416,Factors!K416,Factors!L416,Factors!M416,Factors!N416)) -> 0 | X135: =VLOOKUP($U135,Func_Ftrs,I$90,0)*IF(Variables!$Y$23=1,$V135,$W135) -> 0 | Y135: =VLOOKUP($U135,Func_Ftrs,J$90,0)*IF(Variables!$Y$23=1,$V135,$W135) -> 0 | Z135: =VLOOKUP($U135,Func_Ftrs,K$90,0)*IF(Variables!$Y$23=1,$V135,$W135) -> 0 | AA135: =VLOOKUP($U135,Func_Ftrs,L$90,0)*IF(Variables!$Y$23=1,$V135,$W135) -> 0 | AB135: =VLOOKUP($U135,Func_Ftrs,M$90,0)*IF(Variables!$Y$23=1,$V135,$W135) -> 0 | AC135: =VLOOKUP($U135,Func_Ftrs,N$90,0)*IF(Variables!$Y$23=1,$V135,$W135) -> 0 | AD135: =VLOOKUP($U135,Func_Ftrs,O$90,0)*IF(Variables!$Y$23=1,$V135,$W135) -> 0 | AE135: =VLOOKUP($U135,Func_Ftrs,P$90,0)*IF(Variables!$Y$23=1,$V135,$W135) -> 0 | AG135: Distribution | AH135: D_SPLIT | AI135: 0 | AJ135: 0 | AK135: =VLOOKUP($AH135,Func_Ftrs,I$90,0)*IF(Variables!$Y$23=1,$AI135,$AJ135) -> 0 | AL135: =VLOOKUP($AH135,Func_Ftrs,J$90,0)*IF(Variables!$Y$23=1,$AI135,$AJ135) -> 0 | AM135: =VLOOKUP($AH135,Func_Ftrs,K$90,0)*IF(Variables!$Y$23=1,$AI135,$AJ135) -> 0 | AN135: =VLOOKUP($AH135,Func_Ftrs,L$90,0)*IF(Variables!$Y$23=1,$AI135,$AJ135) -> 0 | AO135: =VLOOKUP($AH135,Func_Ftrs,M$90,0)*IF(Variables!$Y$23=1,$AI135,$AJ135) -> 0 | AP135: =VLOOKUP($AH135,Func_Ftrs,N$90,0)*IF(Variables!$Y$23=1,$AI135,$AJ135) -> 0 | AQ135: =VLOOKUP($AH135,Func_Ftrs,O$90,0)*IF(Variables!$Y$23=1,$AI135,$AJ135) -> 0 | AR135: =VLOOKUP($AH135,Func_Ftrs,P$90,0)*IF(Variables!$Y$23=1,$AI135,$AJ135) -> 0
A136: 20 | D136: Total O & M Expenses | H136: =SUM(H125:H134) -> 1129843273 | I136: 863273684.2 | J136: 102895896 | K136: 118232583.4 | L136: -8483.319394 | M136: 17185046.98 | N136: =SUM(N125:N134) -> 9876839.777 | O136: =SUM(O125:O134) -> 16274561.05 | P136: =SUM(P125:P134) -> 0 | T136: General | U136: G | V136: =Factors!C417 -> 0 | W136: =IF(Variables!$AO$3=12,Factors!H417+Factors!K417,CHOOSE(Variables!AO$3,Factors!D417,Factors!E417,Factors!F417,Factors!G417,Factors!H417,Factors!I417,Factors!J417,Factors!K417,Factors!L417,Factors!M417,Factors!N417)) -> 0 | X136: =VLOOKUP($U136,Func_Ftrs,I$90,0)*IF(Variables!$Y$23=1,$V136,$W136) -> 0 | Y136: =VLOOKUP($U136,Func_Ftrs,J$90,0)*IF(Variables!$Y$23=1,$V136,$W136) -> 0 | Z136: =VLOOKUP($U136,Func_Ftrs,K$90,0)*IF(Variables!$Y$23=1,$V136,$W136) -> 0 | AA136: =VLOOKUP($U136,Func_Ftrs,L$90,0)*IF(Variables!$Y$23=1,$V136,$W136) -> 0 | AB136: =VLOOKUP($U136,Func_Ftrs,M$90,0)*IF(Variables!$Y$23=1,$V136,$W136) -> 0 | AC136: =VLOOKUP($U136,Func_Ftrs,N$90,0)*IF(Variables!$Y$23=1,$V136,$W136) -> 0 | AD136: =VLOOKUP($U136,Func_Ftrs,O$90,0)*IF(Variables!$Y$23=1,$V136,$W136) -> 0 | AE136: =VLOOKUP($U136,Func_Ftrs,P$90,0)*IF(Variables!$Y$23=1,$V136,$W136) -> 0 | AG136: General | AH136: G | AI136: 0 | AJ136: 0 | AK136: =VLOOKUP($AH136,Func_Ftrs,I$90,0)*IF(Variables!$Y$23=1,$AI136,$AJ136) -> 0 | AL136: =VLOOKUP($AH136,Func_Ftrs,J$90,0)*IF(Variables!$Y$23=1,$AI136,$AJ136) -> 0 | AM136: =VLOOKUP($AH136,Func_Ftrs,K$90,0)*IF(Variables!$Y$23=1,$AI136,$AJ136) -> 0 | AN136: =VLOOKUP($AH136,Func_Ftrs,L$90,0)*IF(Variables!$Y$23=1,$AI136,$AJ136) -> 0 | AO136: =VLOOKUP($AH136,Func_Ftrs,M$90,0)*IF(Variables!$Y$23=1,$AI136,$AJ136) -> 0 | AP136: =VLOOKUP($AH136,Func_Ftrs,N$90,0)*IF(Variables!$Y$23=1,$AI136,$AJ136) -> 0 | AQ136: =VLOOKUP($AH136,Func_Ftrs,O$90,0)*IF(Variables!$Y$23=1,$AI136,$AJ136) -> 0 | AR136: =VLOOKUP($AH136,Func_Ftrs,P$90,0)*IF(Variables!$Y$23=1,$AI136,$AJ136) -> 0
A137: 21 | T137: Mining Plant | U137: P | V137: =Factors!C418 -> 0 | W137: =IF(Variables!$AO$3=12,Factors!H418+Factors!K418,CHOOSE(Variables!AO$3,Factors!D418,Factors!E418,Factors!F418,Factors!G418,Factors!H418,Factors!I418,Factors!J418,Factors!K418,Factors!L418,Factors!M418,Factors!N418)) -> 0 | X137: =VLOOKUP($U137,Func_Ftrs,I$90,0)*IF(Variables!$Y$23=1,$V137,$W137) -> 0 | Y137: =VLOOKUP($U137,Func_Ftrs,J$90,0)*IF(Variables!$Y$23=1,$V137,$W137) -> 0 | Z137: =VLOOKUP($U137,Func_Ftrs,K$90,0)*IF(Variables!$Y$23=1,$V137,$W137) -> 0 | AA137: =VLOOKUP($U137,Func_Ftrs,L$90,0)*IF(Variables!$Y$23=1,$V137,$W137) -> 0 | AB137: =VLOOKUP($U137,Func_Ftrs,M$90,0)*IF(Variables!$Y$23=1,$V137,$W137) -> 0 | AC137: =VLOOKUP($U137,Func_Ftrs,N$90,0)*IF(Variables!$Y$23=1,$V137,$W137) -> 0 | AD137: =VLOOKUP($U137,Func_Ftrs,O$90,0)*IF(Variables!$Y$23=1,$V137,$W137) -> 0 | AE137: =VLOOKUP($U137,Func_Ftrs,P$90,0)*IF(Variables!$Y$23=1,$V137,$W137) -> 0 | AG137: Mining Plant | AH137: P | AI137: 0 | AJ137: 0 | AK137: =VLOOKUP($AH137,Func_Ftrs,I$90,0)*IF(Variables!$Y$23=1,$AI137,$AJ137) -> 0 | AL137: =VLOOKUP($AH137,Func_Ftrs,J$90,0)*IF(Variables!$Y$23=1,$AI137,$AJ137) -> 0 | AM137: =VLOOKUP($AH137,Func_Ftrs,K$90,0)*IF(Variables!$Y$23=1,$AI137,$AJ137) -> 0 | AN137: =VLOOKUP($AH137,Func_Ftrs,L$90,0)*IF(Variables!$Y$23=1,$AI137,$AJ137) -> 0 | AO137: =VLOOKUP($AH137,Func_Ftrs,M$90,0)*IF(Variables!$Y$23=1,$AI137,$AJ137) -> 0 | AP137: =VLOOKUP($AH137,Func_Ftrs,N$90,0)*IF(Variables!$Y$23=1,$AI137,$AJ137) -> 0 | AQ137: =VLOOKUP($AH137,Func_Ftrs,O$90,0)*IF(Variables!$Y$23=1,$AI137,$AJ137) -> 0 | AR137: =VLOOKUP($AH137,Func_Ftrs,P$90,0)*IF(Variables!$Y$23=1,$AI137,$AJ137) -> 0
A138: 22 | D138: Depreciation | H138: =H1117 -> 432146050 | I138: 277489610.1 | J138: 61630288.78 | K138: 88127450.17 | L138: 0 | M138: 439039.3745 | N138: =N1117 -> 4007136.484 | O138: =O1117 -> 452525.0854 | P138: =P1117 -> 0
A139: 23 | D139: Amortization Expense | H139: =H1197 -> 6589987.528 | I139: 27056343.72 | J139: 3043834.497 | K139: -30616482.58 | L139: 0 | M139: 3630680.724 | N139: =N1197 -> 1440836.692 | O139: =O1197 -> 2034774.473 | P139: =P1197 -> 0 | T139: Total PC (Post Merger) | V139: =SUM(V131:V137) -> 0 | W139: 0 | X139: 0 | Y139: 0 | Z139: 0 | AA139: 0 | AB139: 0 | AC139: 0 | AD139: 0 | AE139: 0 | AG139: Total PC (Post Merger) | AI139: =SUM(AI131:AI137) -> 0 | AJ139: 0 | AK139: 0 | AL139: 0 | AM139: 0 | AN139: 0 | AO139: 0 | AP139: 0 | AQ139: 0 | AR139: 0
A140: 24 | D140: Taxes Other Than Income | H140: =H1225 -> 78246348.33 | I140: 30627611.25 | J140: 20360556.99 | K140: 23260955.1 | L140: -10356.5474 | M140: 489545.7887 | N140: =N1225 -> 635376.1773 | O140: =O1225 -> 302903.8636 | P140: =P1225 -> 0
A141: 25 | D141: Income Taxes - Federal | H141: =H1434 -> -57819831.3 | I141: -224642983 | J141: -49894840.31 | K141: -2374794.459 | L141: -838956.3385 | M141: 560811.8071 | N141: =N1434 -> 2253046.621 | O141: =O1434 -> -2891081.778 | P141: =P1434 -> 9.385708695e-300 | T141: Total Deferred Taxes | V141: =V119+V128+V139 -> 0 | W141: 0 | X141: 0 | Y141: 0 | Z141: 0 | AA141: 0 | AB141: 0 | AC141: 0 | AD141: 0 | AE141: 0 | AG141: Total Deferred Taxes | AI141: =AI119+AI128+AI139 -> 0 | AJ141: 0 | AK141: 0 | AL141: 0 | AM141: 0 | AN141: 0 | AO141: 0 | AP141: 0 | AQ141: 0 | AR141: 0
A142: 26 | D142: Income Taxes - State | H142: =H1401 -> -48431353.9 | I142: -35064102.78 | J142: -12540126.85 | K142: -596859.7871 | L142: -210855.8489 | M142: 140949.4681 | N142: =N1401 -> 566260.7648 | O142: =O1401 -> -726618.865 | P142: =P1401 -> 2.35892082e-300
A143: 27 | D143: Income Taxes - Def Net | H143: =H1323 -> 73009256.84 | N143: =N1323 ->  | O143: =O1323 ->  | P143: =P1323 ->  | T143: DITEXPRL FACTOR | V143: =V141/V141 ->  | W143: =W141/W141 ->  | X143: =X141/IF(Variables!$Y$23=2,$W141,$V141) ->  | Y143: =Y141/IF(Variables!$Y$23=2,$W141,$V141) ->  | Z143: =Z141/IF(Variables!$Y$23=2,$W141,$V141) ->  | AA143: =AA141/IF(Variables!$Y$23=2,$W141,$V141) ->  | AB143: =AB141/IF(Variables!$Y$23=2,$W141,$V141) ->  | AC143: =AC141/IF(Variables!$Y$23=2,$W141,$V141) ->  | AD143: =AD141/IF(Variables!$Y$23=2,$W141,$V141) ->  | AE143: =AE141/IF(Variables!$Y$23=2,$W141,$V141) ->  | AG143: DITEXPMA FACTOR | AI143: =AI141/AI141 ->  | AJ143: =AJ141/AJ141 ->  | AK143: =AK141/IF(Variables!$Y$23=2,$AJ141,$AI141) ->  | AL143: =AL141/IF(Variables!$Y$23=2,$AJ141,$AI141) ->  | AM143: =AM141/IF(Variables!$Y$23=2,$AJ141,$AI141) ->  | AN143: =AN141/IF(Variables!$Y$23=2,$AJ141,$AI141) ->  | AO143: =AO141/IF(Variables!$Y$23=2,$AJ141,$AI141) ->  | AP143: =AP141/IF(Variables!$Y$23=2,$AJ141,$AI141) ->  | AQ143: =AQ141/IF(Variables!$Y$23=2,$AJ141,$AI141) ->  | AR143: =AR141/IF(Variables!$Y$23=2,$AJ141,$AI141) -> 
A144: 28 | D144: Investment Tax Credit Adj. | H144: =H1238 -> -1117293.714 | I144: -525575.6419 | J144: -296752.7758 | K144: -291031.6759 | L144: 0 | M144: 0 | N144: =N1238 -> -3933.619868 | O144: =O1238 -> 0 | P144: =P1238 -> 0
A145: 29 | D145: Misc Revenue & Expense | H145: =H332 -> 212024.1159 | I145: -468134.4932 | J145: -444.3838104 | K145: -526.8365303 | L145: 0 | M145: 681135.72 | N145: =N332 -> -5.890549738 | O145: =O332 -> 0 | P145: =P332 -> 0
A146: 30
A147: 31 | D147: Total Operating Expenses | H147: =SUM(H136:H145) -> 1612678461 | N147: =SUM(N136:N145) ->  | O147: =SUM(O136:O145) ->  | P147: =SUM(P136:P145) -> 
A148: 32
A149: 33 | C149: Operating Revenue for Return | H149: =H122-H147 -> 575594802.7 | N149: =N122-N147 ->  | O149: =O122-O147 ->  | P149: =P122-P147 -> 
A150: 34
A151: 35 | C151: Rate Base:
A152: 36 | D152: Electric Plant in Service | H152: =H2059 -> 1.216558437e+10 | I152: 4821120091 | J152: 3421236700 | K152: 3704281101 | L152: 0 | M152: 72560947.96 | N152: =N2059 -> 97679876.12 | O152: =O2059 -> 48705654.6 | P152: =P2059 -> 0
A153: 37 | D153: Plant Held for Future Use | H153: =H2082 -> 6357563.966 | I153: 2665015.631 | J153: 532537.5801 | K153: 3310318.271 | L153: 0 | M153: -131323.9049 | N153: =N2082 -> -18983.61023 | O153: =O2082 -> 0 | P153: =P2082 -> 0
A154: 38 | D154: Misc Deferred Debits | H154: =H2190+H2201 -> 258956012.6 | I154: 127068970.6 | J154: 45246115.51 | K154: 53950920.25 | L154: 0 | M154: 8577927.783 | N154: 15414800.85 | O154: 8697277.554 | P154: 0
A155: 39 | D155: Elec Plant Acq Adj | H155: =H2088+H2094 -> 12824731.74 | I155: 12824731.74 | J155: 0 | K155: 0 | L155: 0 | M155: 0 | N155: 0 | O155: 0 | P155: 0
A156: 40 | D156: Nuclear Fuel | H156: =H2098 -> 15186767.67 | I156: 15186767.67 | J156: 0 | K156: 0 | L156: 0 | M156: 0 | N156: =N2098 -> 0 | O156: =O2098 -> 0 | P156: =P2098 -> 0
A157: 41 | D157: Prepayments | H157: =H2180 -> 16437130.37 | I157: 6970949.827 | J157: 1844501.177 | K157: 4997460.187 | L157: 0 | M157: 690938.95 | N157: =N2180 -> 1236200.953 | O157: =O2180 -> 697079.2748 | P157: =P2180 -> 0
A158: 42 | D158: Fuel Stock | H158: =H2145 -> 74344484.22 | I158: 74344484.22 | J158: 0 | K158: 0 | L158: 0 | M158: 0 | N158: =N2145 -> 0 | O158: =O2145 -> 0 | P158: =P2145 -> 0
A159: 43 | D159: Material & Supplies | H159: =H2172 -> 101321806.5 | I159: 81393018.35 | J159: 6844558.02 | K159: 12640628.7 | L159: 0 | M159: 0 | N159: =N2172 -> 443601.4417 | O159: =O2172 -> 0 | P159: =P2172 -> 0
A160: 44 | D160: Working Capital | H160: =H2228 -> 12818051.15 | I160: 916296.9354 | J160: 1567077.31 | K160: 6790608.612 | L160: -15710.15631 | M160: 1031008.463 | N160: =N2228 -> 1564857.21 | O160: =O2228 -> 963912.7802 | P160: =P2228 -> 0
A161: 45 | D161: Weatherization Loans | H161: =H2120 -> -0.5273901222 | I161: 0 | J161: 0 | K161: -0.5273901222 | L161: 0 | M161: 0 | N161: =N2120 -> 0 | O161: =O2120 -> 0 | P161: =P2120 -> 0
A162: 46 | D162: Miscellaneous Rate Base | H162: =H2248 -> 0 | I162: 0 | J162: 0 | K162: 0 | L162: 0 | M162: 0 | N162: =N2248 -> 0 | O162: =O2248 -> 0 | P162: =P2248 -> 0
A163: 47
A164: 48 | D164: Total Electric Plant | H164: =SUM(H152:H163) -> 1.266383092e+10 | I164: 5142490326 | J164: 3477271489 | K164: 3785971037 | L164: -15710.15631 | M164: 82729499.25 | N164: =SUM(N152:N163) -> 116320353 | O164: =SUM(O152:O163) -> 59063924.21 | P164: =SUM(P152:P163) -> 0
A165: 49
A166: 50 | C166: Rate Base Deductions:
A167: 51 | D167: Accum Prov For Depr | H167: =H2549 -> -4199936296 | I167: -2087898307 | J167: -885205899.8 | K167: -1165057174 | L167: 0 | M167: -4560748.883 | N167: =N2549 -> -53887181.53 | O167: =O2549 -> -3326984.922 | P167: =P2549 -> 0
A168: 52 | D168: Accum Prov For Amort | H168: =H2598 -> -276153828.1 | I168: -91342326.57 | J168: -10721530.12 | K168: -60661089.72 | L168: 0 | M168: -51745072.96 | N168: =N2598 -> -31191615.37 | O168: =O2598 -> -30492193.37 | P168: =P2598 -> 0
A169: 53 | D169: Accum Def Income Taxes | H169: =H2346 -> -1170687403 | I169: -573637144.9 | J169: -353253256.1 | K169: -221948993 | L169: 0 | M169: -7193433.318 | N169: =N2346 -> -8991404.036 | O169: =O2346 -> -5663171.168 | P169: =P2346 -> 0
A170: 54 | D170: Unamortized ITC | H170: =H2356 -> -84977.08456 | I170: -34351.49817 | J170: -4089.693598 | K170: -28892.75024 | L170: 0 | M170: -4623.967945 | N170: =N2356 -> -8319.039244 | O170: =O2356 -> -4700.135365 | P170: =P2356 -> 0
A171: 55 | D171: Customer Adv for Const | H171: =H2280 -> -38042159.69 | I171: 0 | J171: -25370657.53 | K171: -12502516.61 | L171: 0 | M171: 0 | N171: =N2280 -> -168985.5498 | O171: =O2280 -> 0 | P171: =P2280 -> 0
A172: 56 | D172: Customer Service Deposits | H172: =H2254 -> -16275584.48 | I172: 0 | J172: 0 | K172: 0 | L172: 0 | M172: -16275584.48 | N172: =N2254 -> 0 | O172: =O2254 -> 0 | P172: =P2254 -> 0
A173: 57 | D173: Misc. Rate Base Deductions | H173: =H2261+H2266+H2272+H2291+H2284 -> -778729429.4 | I173: =I2261+I2266+I2272+I2291+I2284 -> -720634692 | J173: -4622748.073 | K173: -33517613.46 | L173: 0 | M173: -5226660.236 | N173: -9414960.315 | O173: -5312755.389 | P173: 0
A174: 58
A175: 59 | D175: Total Rate Base Deductions | H175: =SUM(H167:H173) -> -6479909677 | I175: -3473546822 | J175: -1279178181 | K175: -1493716279 | L175: 0 | M175: -85006123.85 | N175: =SUM(N167:N173) -> -103662465.8 | O175: =SUM(O167:O173) -> -44799804.98 | P175: =SUM(P167:P173) -> 0
A176: 60 | R176: Functional Retail Revenue Spread
A177: 61 | C177: Total Rate Base | H177: =H164+H175 -> 6183921242 | I177: 1668943504 | J177: 2198093308 | K177: 2292254757 | L177: =MAX(L164+L175,1) -> 1 | M177: -2276624.597 | N177: =N164+N175 -> 12657887.12 | O177: =O164+O175 -> 14264119.22 | P177: =P164+P175 -> 0 | S177: =$I$115 -> Production | T177: =$J$115 -> Transmission | U177: =$K$115 -> Distribution | V177: =$L$115 -> Ancillary | W177: =$M$115 -> C_Billing | X177: =$N$115 -> C_Metering | Y177: =$O$115 -> C_Service | Z177: =$P$115 -> DSM
A178: 62 | R178: California
A179: 63 | C179: Return on Rate Base | H179: =H149/H177 -> 0.09307925832 | P179: 0 | R179: Washington
A180: 64 | R180: Montana
A181: 65 | C181: Return on Equity | H181: =(+H179-Variables!$AT$3-Variables!$AT$4)/Variables!$AT$5 -> 0.1319034625 | I181: =(+I179-Variables!$AT$3-Variables!$AT$4)/Variables!$AT$5 ->  | J181: =(+J179-Variables!$AT$3-Variables!$AT$4)/Variables!$AT$5 ->  | K181: =(+K179-Variables!$AT$3-Variables!$AT$4)/Variables!$AT$5 ->  | L181: =(+L179-Variables!$AT$3-Variables!$AT$4)/Variables!$AT$5 ->  | M181: =(+M179-Variables!$AT$3-Variables!$AT$4)/Variables!$AT$5 ->  | N181: =(+N179-Variables!$AT$3-Variables!$AT$4)/Variables!$AT$5 ->  | O181: =(+O179-Variables!$AT$3-Variables!$AT$4)/Variables!$AT$5 ->  | P181: 0 | R181: Wyoming - East | S181: 127802829 | T181: 31696874 | U181: 50094096.44 | V181: 46928984 | W181: 1555189 | X181: 1610923.44
A182: 66 | R182: Utah | S182: 366003980 | T182: 104207074 | U182: 215005203.7 | V182: 197478510 | W182: 11984031 | X182: 5542662.72
A183: 67 | C183: 100 Basis Points in Equity: | H183: =(H177*(Variables!$AT5*(H181+0.01)+Variables!$AT3+Variables!$AT4))-H149 -> 33189105.3 | I183: =(I177*(Variables!AT5*(I181+0.01)+Variables!AT3+Variables!AT4))-I149 ->  | J183: =(J177*(Variables!AU5*(J181+0.01)+Variables!AU3+Variables!AU4))-J149 ->  | K183: =(K177*(Variables!$AV5*(K181+0.01)+Variables!$AV3+Variables!$AV4))-K149 ->  | L183: =(L177*(Variables!$AV5*(L181+0.01)+Variables!$AV3+Variables!$AV4))-L149 ->  | M183: =(M177*(Variables!$AV5*(M181+0.01)+Variables!$AV3+Variables!$AV4))-M149 ->  | N183: =(N177*(Variables!$AV5*(N181+0.01)+Variables!$AV3+Variables!$AV4))-N149 ->  | O183: =(O177*(Variables!$AV5*(O181+0.01)+Variables!$AV3+Variables!$AV4))-O149 ->  | P183: =(P177*(Variables!$AV5*(P181+0.01)+Variables!$AV3+Variables!$AV4))-P149 ->  | R183: Idaho | S183: 55561275 | T183: 14318016 | U183: 30397767.02 | V183: 27273473 | W183: 2038247 | X183: 1086047.02
A184: 68 | D184: Revenue Requirement Impact | H184: =H183*(1/(1-(INDEX(Variables!$F$15:$Q$15,1,Variables!$AO$3)))) -> 44009559.71 | I184: =I183*(1/(1-(INDEX(Variables!$F$15:$Q$15,1,Variables!$AO$3)))) ->  | J184: =J183*(1/(1-(INDEX(Variables!$F$15:$Q$15,1,Variables!$AO$3)))) ->  | K184: =K183*(1/(1-(INDEX(Variables!$F$15:$Q$15,1,Variables!$AO$3)))) ->  | L184: =L183*(1/(1-(INDEX(Variables!$F$15:$Q$15,1,Variables!$AO$3)))) ->  | M184: =M183*(1/(1-(INDEX(Variables!$F$15:$Q$15,1,Variables!$AO$3)))) ->  | N184: =N183*(1/(1-(INDEX(Variables!$F$15:$Q$15,1,Variables!$AO$3)))) ->  | O184: =O183*(1/(1-(INDEX(Variables!$F$15:$Q$15,1,Variables!$AO$3)))) ->  | P184: =P183*(1/(1-(INDEX(Variables!$F$15:$Q$15,1,Variables!$AO$3)))) ->  | R184: Wyoming - West | S184: 19756255.66 | T184: 5006765.992 | U184: 9963427.118 | V184: 8733400.13 | W184: 996768.2125 | X184: 233258.5417
A185: 69 | D185: Rate Base Decrease | H185: =(H149/(Variables!$AT5*(H181+0.01)+UTCR!$J7+UTCR!$J12))-H177 -> -337129169.5 | I185: =(I149/(Variables!$AT5*(I181+0.01)+UTCR!$J7+UTCR!$J12))-I177 ->  | J185: =(J149/(Variables!$AU5*(J181+0.01)+UTCR!$J7+UTCR!$J12))-J177 ->  | K185: =(K149/(Variables!$AV5*(K181+0.01)+UTCR!$J7+UTCR!$J12))-K177 ->  | L185: =(L149/(Variables!$AV5*(L181+0.01)+UTCR!$J7+UTCR!$J12))-L177 ->  | M185: =(M149/(Variables!$AV5*(M181+0.01)+UTCR!$J7+UTCR!$J12))-M177 ->  | N185: =(N149/(Variables!$AV5*(N181+0.01)+UTCR!$J7+UTCR!$J12))-N177 ->  | O185: =(O149/(Variables!$AV5*(O181+0.01)+UTCR!$J7+UTCR!$J12))-O177 ->  | P185: =(P149/(Variables!$AV5*(P181+0.01)+UTCR!$J7+UTCR!$J12))-P177 ->  | R185: Total Company | S185: 1110556694 | T185: 308995072.2 | U185: 611877930.3 | V185: 566002564.9 | W185: 14881002.1 | X185: 30994363.59
C186: =$C$111 -> RESULTS OF OPERATIONS SUMMARY | AA186: Check Total
C187: =+$C$114 -> 2020 PROTOCOL | S187: =($H179-I179)*I177*(1/(1-Variables!$F$15)) ->  | T187: =($H179-J179)*J177*(1/(1-Variables!$F$15)) ->  | U187: =($H179-K179)*K177*(1/(1-Variables!$F$15)) ->  | V187: =($H179-L179)*L177*(1/(1-Variables!$F$15)) ->  | W187: =($H179-M179)*M177*(1/(1-Variables!$F$15)) ->  | X187: =($H179-N179)*N177*(1/(1-Variables!$F$15)) ->  | Y187: =($H179-O179)*O177*(1/(1-Variables!$F$15)) ->  | Z187: =($H179-P179)*P177*(1/(1-Variables!$F$15)) -> 0 | AA187: =ABS(SUM(S187:Z187)) -> 
C188: FERC | F188: BUSINESS | G188: PITA | H188: =$H$114 -> UTAH | S188: =S187+I192 ->  | Z188: 4.705277175e-299 | AA188: =SUM(S188:Z188) -> 
C189: ACCT | E189: DESCRIPTION | F189: FUNCTION | G189: FACTOR | H189: =$H$115 -> Normalized | I189: =$I$115 -> Production | J189: =$J$115 -> Transmission | K189: =$K$115 -> Distribution | L189: =$L$115 -> Ancillary | M189: =$M$115 -> C_Billing | N189: =$N$115 -> C_Metering | O189: =$O$115 -> C_Service | P189: =$P$115 -> DSM | Q189: Check | S189: =$I$115 -> Production | T189: =$J$115 -> Transmission | U189: =$K$115 -> Distribution | V189: =$L$115 -> Ancillary | W189: Customer | X189: DSM
A190: 70 | C190: Sales to Ultimate Customers | Q190: Figure | R190: Variance
A191: 71 | C191: 440 | D191: Residential Sales | I191: =($H179-I179)*I177*(1/(1-Variables!$F$15)) ->  | J191: =($H179-J179)*J177*(1/(1-Variables!$F$15)) ->  | K191: =($H179-K179)*K177*(1/(1-Variables!$F$15)) ->  | L191: =($H179-L179)*L177*(1/(1-Variables!$F$15)) ->  | M191: =($H179-M179)*M177*(1/(1-Variables!$F$15)) ->  | N191: =($H179-N179)*N177*(1/(1-Variables!$F$15)) ->  | O191: =($H179-O179)*O177*(1/(1-Variables!$F$15)) ->  | P191: =($H179-P179)*P177*(1/(1-Variables!$F$15)) -> 0 | Q191: =H117 -> 2001695945
A192: 72 | G192: =UTCR!H192 -> S | H192: =IF(Variables!$Y$23=2,Report!P192,NRO!I192) -> 754492620.2 | I192: 652206238.2 | J192: 43324568.75 | K192: 194817363.5 | L192: 6949653.101 | M192: 20138960.93 | N192: 25075718.33 | O192: 6828800.312 | P192: 4.705277175e-299 | Q192: =SUM(I192:P192) -> 949341303.1 | R192: =ROUND(Q191-Q192,0) -> 1052354642 | S192: =IF($F192=0,0,INDEX($I192:$P192,1,1)) -> 0 | T192: =IF($F192=0,0,INDEX($I192:$P192,1,2)) -> 0 | U192: =IF($F192=0,0,INDEX($I192:$P192,1,3)) -> 0 | V192: =IF($F192=0,0,INDEX($I192:$P192,1,4)) -> 0 | W192: =IF($F192=0,0,INDEX($I192:$P192,1,5)) -> 0 | X192: =IF($F192=0,0,INDEX($I192:$P192,1,6)) -> 0
A193: 73 | S193: 0 | T193: 0 | U193: 0 | V193: 0 | W193: 0 | X193: 0
A194: 74 | H194: =SUBTOTAL(9,H192:H193) -> 754492620.2 | S194: 0 | T194: 0 | U194: 0 | V194: 0 | W194: 0 | X194: 0
A195: 75 | S195: 0 | T195: 0 | U195: 0 | V195: 0 | W195: 0 | X195: 0
A196: 76 | C196: 442 | D196: Commercial & Industrial Sales | S196: 0 | T196: 0 | U196: 0 | V196: 0 | W196: 0 | X196: 0
A197: 77 | G197: =UTCR!H197 -> S | H197: =IF(Variables!$Y$23=2,Report!P197,NRO!I197) -> 1240596131 | S197: 0 | T197: 0 | U197: 0 | V197: 0 | W197: 0 | X197: 0
A198: 78 | F198: P | G198: =UTCR!H198 -> SE | H198: =IF(Variables!$Y$23=2,Report!P198,NRO!I198) -> 0 | I198: =IF(F198=(VLOOKUP(F198,Func_Ftrs,1)),VLOOKUP(F198,Func_Ftrs,5),"#N/A")*H198 -> 0 | J198: =IF(F198=(VLOOKUP(F198,Func_Ftrs,1)),VLOOKUP(F198,Func_Ftrs,6),"#N/A")*H198 -> 0 | K198: =IF(F198=(VLOOKUP(F198,Func_Ftrs,1)),VLOOKUP(F198,Func_Ftrs,7),"#N/A")*H198 -> 0 | L198: =IF(F198=(VLOOKUP(F198,Func_Ftrs,1)),VLOOKUP(F198,Func_Ftrs,8),"#N/A")*H198 -> 0 | M198: =IF(F198=(VLOOKUP(F198,Func_Ftrs,1)),VLOOKUP(F198,Func_Ftrs,9),"#N/A")*H198 -> 0 | N198: =IF($F198=(VLOOKUP($F198,Func_Ftrs,1)),VLOOKUP($F198,Func_Ftrs,10),"#N/A")*$H198 -> 0 | O198: =IF($F198=(VLOOKUP($F198,Func_Ftrs,1)),VLOOKUP($F198,Func_Ftrs,11),"#N/A")*$H198 -> 0 | P198: =IF($F198=(VLOOKUP($F198,Func_Ftrs,1)),VLOOKUP($F198,Func_Ftrs,12),"#N/A")*$H198 -> 0 | S198: 0 | T198: 0 | U198: 0 | V198: 0 | W198: 0 | X198: 0
A199: 79 | F199: PT | G199: =UTCR!H199 -> SG | H199: =IF(Variables!$Y$23=2,Report!P199,NRO!I199) -> 0 | I199: =IF(F199=(VLOOKUP(F199,Func_Ftrs,1,0)),VLOOKUP(F199,Func_Ftrs,5,0),"#N/A")*H199 -> 0 | J199: =IF(F199=(VLOOKUP(F199,Func_Ftrs,1,0)),VLOOKUP(F199,Func_Ftrs,6,0),"#N/A")*H199 -> 0 | K199: =IF(F199=(VLOOKUP(F199,Func_Ftrs,1,0)),VLOOKUP(F199,Func_Ftrs,7,0),"#N/A")*H199 -> 0 | L199: =IF(F199=(VLOOKUP(F199,Func_Ftrs,1,0)),VLOOKUP(F199,Func_Ftrs,8,0),"#N/A")*H199 -> 0 | M199: =IF(F199=(VLOOKUP(F199,Func_Ftrs,1,0)),VLOOKUP(F199,Func_Ftrs,9,0),"#N/A")*H199 -> 0 | N199: =IF($F199=(VLOOKUP($F199,Func_Ftrs,1,0)),VLOOKUP($F199,Func_Ftrs,10,0),"#N/A")*$H199 -> 0 | O199: =IF($F199=(VLOOKUP($F199,Func_Ftrs,1,0)),VLOOKUP($F199,Func_Ftrs,11,0),"#N/A")*$H199 -> 0 | P199: =IF($F199=(VLOOKUP($F199,Func_Ftrs,1,0)),VLOOKUP($F199,Func_Ftrs,12,0),"#N/A")*$H199 -> 0 | S199: 0 | T199: 0 | U199: 0 | V199: 0 | W199: 0 | X199: 0
A200: 80 | S200: 0 | T200: 0 | U200: 0 | V200: 0 | W200: 0 | X200: 0
A201: 81 | S201: 0 | T201: 0 | U201: 0 | V201: 0 | W201: 0 | X201: 0
A202: 82 | H202: =SUBTOTAL(9,H197:H200) -> 1240596131 | I202: 0 | J202: 0 | K202: 0 | L202: 0 | M202: 0 | N202: =SUBTOTAL(9,N197:N200) -> 0 | O202: =SUBTOTAL(9,O197:O200) -> 0 | P202: =SUBTOTAL(9,P197:P200) -> 0 | S202: 0 | T202: 0 | U202: 0 | V202: 0 | W202: 0 | X202: 0
A203: 83 | S203: 0 | T203: 0 | U203: 0 | V203: 0 | W203: 0 | X203: 0
A204: 84 | C204: 444 | D204: Public Street & Highway Lighting | S204: 0 | T204: 0 | U204: 0 | V204: 0 | W204: 0 | X204: 0
A205: 85 | G205: =UTCR!H205 -> S | H205: =IF(Variables!$Y$23=2,Report!P205,NRO!I205) -> 6607193.901 | S205: 0 | T205: 0 | U205: 0 | V205: 0 | W205: 0 | X205: 0
... 2400 more rows

Sheet Non-NPC Results (hidden)
A1: =Results!A1 -> Rocky Mountain Power | J1: Page 1.0
A2: =Results!A2 -> UTAH
A3: =Results!A3 -> Normalized Results of Operations - 2020 PROTOCOL
A4: =Results!A4 -> Twelve Months Ending December 2021
C6: (1) | D6: (2) | E6: (3) | G6: (4) | H6: (5) | I6: (6)
D7: (3) - (1) | E7: Ref. Page 1.2 | I7: (3) + (4) + (5)
G8: ECAM | H8: GRC
H9: Requested | I9: Total Normalized
C10: NPC-Related | D10: Non-NPC Related | E10: Total Adjusted | G10: NPC-Related | H10: Non-NPC Related | I10: Results with
C11: Results | D11: Results | E11: Results | G11: Under Recovery | H11: Price Change | I11: Price Change
A12: 1 | B12: Operating Revenues:
A13: 2 | B13: General Business Revenues | C13: =Report!N182 -> 620793937.3 | D13: =E13-C13 -> 1380902008 | E13: =Report!P118 -> 2001695945 | G13: =-C44-C36-C37 -> 0 | H13: =Results!D43-'Non-NPC Results'!G13 -> 18804820.67 | I13: =SUM(E13:H13) -> 2020500766
A14: 3 | B14: Interdepartmental | D14: =E14-C14 -> 0 | E14: =Report!P119 -> 0 | I14: =SUM(E14:H14) -> 0
A15: 4 | B15: Special Sales | C15: =Report!N231 -> 98331705.22 | D15: =E15-C15 -> 13958405.48 | E15: =Report!P120 -> 112290110.7 | I15: =SUM(E15:H15) -> 112290110.7
A16: 5 | B16: Other Operating Revenues | D16: =E16-C16 -> 74287207.93 | E16: =Report!P121 -> 74287207.93 | I16: =SUM(E16:H16) -> 74287207.93
A17: 6 | B17: Total Operating Revenues | C17: =SUM(C13:C16) -> 719125642.5 | D17: =SUM(D13:D16) -> 1469147622 | E17: =SUM(E13:E16) -> 2188273264 | G17: =SUM(G13:G16) -> 0 | H17: =SUM(H13:H16) -> 18804820.67 | I17: =SUM(E17:H17) -> 2207078085
A18: 7
A19: 8 | B19: Operating Expenses:
A20: 9 | B20: Steam Production | C20: =Report!N355+Report!N371 -> 261963946.3 | D20: =E20-C20 -> 131865998.1 | E20: =Report!P125 -> 393829944.4 | I20: =SUM(E20:H20) -> 393829944.4
A21: 10 | B21: Nuclear Production | D21: 0 | E21: =Report!P126 -> 0 | I21: 0
A22: 11 | B22: Hydro Production | D22: 20252471.49 | E22: =Report!P127 -> 20252471.49 | I22: 20252471.49
A23: 12 | B23: Other Power Supply | C23: =Report!N572+Report!N633 -> 392639752 | D23: 48866050.55 | E23: =Report!P128 -> 441505802.6 | I23: 441505802.6
A24: 13 | B24: Transmission | C24: =Report!N730 -> 64521944.2 | D24: 33268069.31 | E24: =Report!P129 -> 97790013.51 | I24: 97790013.51
A25: 14 | B25: Distribution | D25: 91150977.97 | E25: =Report!P130 -> 91150977.97 | I25: 91150977.97
A26: 15 | B26: Customer Accounting | D26: 35432367.49 | E26: =Report!P131 -> 35432367.49 | H26: =Results!D56-G26 -> 36812.54074 | I26: 35469180.03
A27: 16 | B27: Customer Service & Info | D27: 6935917.442 | E27: =Report!P132 -> 6935917.442 | I27: 6935917.442
A28: 17 | B28: Sales | D28: 0 | E28: =Report!P133 -> 0 | I28: 0
A29: 18 | B29: Administrative & General | D29: 54691997.75 | E29: =Report!P134 -> 54691997.75 | I29: 54691997.75
A30: 19
A31: 20 | B31: Total O&M Expenses | C31: =SUM(C20:C29) -> 719125642.5 | D31: =SUM(D20:D29) -> 422463850.1 | E31: =Report!P136 -> 1141589493 | G31: =SUM(G20:G29) -> 0 | H31: =SUM(H20:H29) -> 36812.54074 | I31: =SUM(E31:H31) -> 1141626305
A32: 21
A33: 22 | B33: Depreciation | D33: =E33-C33 -> 432146050 | E33: =Report!P138 -> 432146050 | I33: =SUM(E33:H33) -> 432146050
A34: 23 | B34: Amortization | D34: 6589987.528 | E34: =Report!P139 -> 6589987.528 | I34: 6589987.528
A35: 24 | B35: Taxes Other Than Income | D35: 78246348.33 | E35: =Report!P140 -> 78246348.33 | H35: =Results!D65-G35 -> 56414.46201 | I35: 78302762.79
A36: 25 | B36: Income Taxes - Federal | C36: =(C17-C31-C37)*Report!J78 -> 0 | D36: -67062699.92 | E36: =Report!P141 -> -67062699.92 | G36: =(G13-G37)*Report!J78 -> 0 | H36: =Results!D66-G36 -> 3751038.336 | I36: -63311661.59
A37: 26 | B37: Income Taxes - State | C37: =(C17-C31)*Report!J79 -> 0 | D37: 4091611.447 | E37: =Report!P142 -> 4091611.447 | G37: =G17*0.0454 -> 0 | H37: =Results!D67-G37 -> 849506.3524 | I37: 4941117.799
A38: 27 | B38: Income Taxes - Def Net | D38: 52320516.82 | E38: =Report!P143 -> 52320516.82 | I38: 52320516.82
A39: 28 | B39: Investment Tax Credit Adj. | D39: -1117293.714 | E39: =Report!P144 -> -1117293.714 | I39: -1117293.714
A40: 29 | B40: Misc Revenue & Expense | D40: 212024.1159 | E40: =Report!P145 -> 212024.1159 | I40: 212024.1159
A41: 30
A42: 31 | B42: Total Operating Expenses: | C42: =SUM(C31:C40) -> 719125642.5 | D42: =SUM(D31:D40) -> 927890394.7 | E42: =Report!P147 -> 1647016037 | G42: =SUM(G31:G40) -> 0 | H42: =SUM(H26,H35:H37) -> 4693771.691 | I42: =SUM(E42:H42) -> 1651709809
A43: 32
A44: 33 | B44: Operating Rev For Return: | C44: =C17-C42 -> 0 | D44: =D17-D42 -> 541257226.9 | E44: =E17-E42 -> 541257226.9 | G44: =G17-G42 -> 0 | H44: =H13-H42 -> 14111048.98 | I44: =SUM(E44:H44) -> 555368275.9
A45: 34
A46: 35 | B46: Rate Base:
A47: 36 | B47: Electric Plant In Service | D47: =E47-C47 -> 1.370308086e+10 | E47: =Report!P152 -> 1.370308086e+10 | I47: =SUM(E47:H47) -> 1.370308086e+10
A48: 37 | B48: Plant Held for Future Use | D48: 6357563.966 | E48: =Report!P153 -> 6357563.966 | I48: 6357563.966
A49: 38 | B49: Misc Deferred Debits | D49: 258956012.6 | E49: =Report!P154 -> 258956012.6 | I49: 258956012.6
A50: 39 | B50: Elec Plant Acq Adj | D50: 12824731.74 | E50: =Report!P155 -> 12824731.74 | I50: 12824731.74
A51: 40 | B51: Nuclear Fuel | D51: 15186767.67 | E51: =Report!P156 -> 15186767.67 | I51: 15186767.67
A52: 41 | B52: Prepayments | D52: 16437130.37 | E52: =Report!P157 -> 16437130.37 | I52: 16437130.37
A53: 42 | B53: Fuel Stock | D53: 74344484.22 | E53: =Report!P158 -> 74344484.22 | I53: 74344484.22
A54: 43 | B54: Material & Supplies | D54: 101321806.5 | E54: =Report!P159 -> 101321806.5 | I54: 101321806.5
A55: 44 | B55: Working Capital | D55: 12818051.15 | E55: =Report!P160 -> 12818051.15 | I55: 12818051.15
A56: 45 | B56: Weatherization Loans | D56: -0.5273901222 | E56: =Report!P161 -> -0.5273901222 | I56: -0.5273901222
A57: 46 | B57: Misc Rate Base | D57: 0 | E57: =Report!P162 -> 0 | I57: 0
A58: 47
A59: 48 | B59: Total Electric Plant: | C59: =SUM(C47:C57) -> 0 | D59: =SUM(D47:D57) -> 1.42013274e+10 | E59: =Report!P164 -> 1.42013274e+10 | I59: =SUM(E59:H59) -> 1.42013274e+10
A60: 49
A61: 50 | B61: Rate Base Deductions:
A62: 51 | B62: Accum Prov For Deprec | D62: =E62-C62 -> -4199936296 | E62: =Report!P167 -> -4199936296 | I62: =SUM(E62:H62) -> -4199936296
A63: 52 | B63: Accum Prov For Amort | D63: -276153828.1 | E63: =Report!P168 -> -276153828.1 | I63: -276153828.1
A64: 53 | B64: Accum Def Income Tax | D64: -1170687403 | E64: =Report!P169 -> -1170687403 | I64: -1170687403
A65: 54 | B65: Unamortized ITC | D65: -84977.08456 | E65: =Report!P170 -> -84977.08456 | I65: -84977.08456
A66: 55 | B66: Customer Adv For Const | D66: -38042159.69 | E66: =Report!P171 -> -38042159.69 | I66: -38042159.69
A67: 56 | B67: Customer Service Deposits | D67: -16275584.48 | E67: =Report!P172 -> -16275584.48 | I67: -16275584.48
A68: 57 | B68: Misc Rate Base Deductions | D68: -779344816.4 | E68: =Report!P173 -> -779344816.4 | I68: -779344816.4
A69: 58
A70: 59 | B70: Total Rate Base Deductions | C70: =SUM(C62:C68) -> 0 | D70: =SUM(D62:D68) -> -6480525064 | E70: =Report!P175 -> -6480525064 | I70: =SUM(E70:H70) -> -6480525064
A71: 60
A72: 61 | B72: Total Rate Base: | C72: =C59+C70 -> 0 | D72: =D59+D70 -> 7720802340 | E72: =SUM(E59,E70) -> 7720802340 | I72: =SUM(E72:H72) -> 7720802340
A73: 62
A74: 63 | B74: Return on Rate Base | E74: =E44/E72 -> 0.07010375386 | I74: =I44/I72 -> 0.07193142
A75: 64
A76: 65 | B76: Return on Equity | E76: =(+E74-UTCR!$K$7-UTCR!$K$12)/UTCR!$K$15 -> 0.08909462244 | I76: =(+I74-UTCR!K7-UTCR!K12)/UTCR!K15 -> 0.0925
I78: Ref. Page 1.2
B81: NPC Above | C81: =SUM(-C15,C20,C23:C24) -> 620793937.3
B82: NPC from REPORT | C82: =Report!N182 -> 620793937.3
B83: Check | C83: =C81-C82 -> 0

Sheet Report
C50: =VLOOKUP(VLOOKUP(Variables!$AO$3,Variables!$AL$3:'Variables'!$AL$14,1,FALSE),Variables!$AL$3:'Variables'!$AP$14,5,FALSE) -> Rocky Mountain Power
C51: RESULTS OF OPERATIONS
C54: USER SPECIFIC INFORMATION
F56: STATE: | I56: =VLOOKUP(VLOOKUP(Variables!$AO$3,Variables!$AL$3:'Variables'!$AM$14,1,FALSE),Variables!$AL$3:'Variables'!$AM$14,2,FALSE) -> UTAH
F57: PERIOD: | I57: =UPPER(TEXT(Variables!A5,"Mmm yyyy")) -> TWELVE MONTHS ENDING DECEMBER 2021
F59: FILE: | I59: =+Variables!A2 -> UT GRC JAM DEC 2021 Test Period
F60: PREPARED BY: | I60: Revenue Requirement Department
F61: DATE: | I61: =NOW() -> 2020-10-06T08:13:10.030
F62: TIME: | I62: =NOW() -> 44110.34248
F64: TYPE OF RATE BASE: | I64: =Variables!AO19 -> 13-Month Average
F65: ALLOCATION METHOD: | I65: =Variables!AE27&"" -> 2020 PROTOCOL
F67: FERC JURISDICTION: | I67: =IF(Variables!AD16=1,Variables!AC16,Variables!AC17) -> Separate Jurisdiction
F69: 8 OR 12 CP: | I69: =IF(Variables!AD20=1,Variables!AC20,Variables!AC21) -> 12 Coincident Peaks
F71: DEMAND % | I71: =VLOOKUP(Variables!Y16,Variables!W16:X20,2) -> 75% Demand
F72: ENERGY % | I72: =VLOOKUP(Variables!Y16,Variables!T16:U20,2) -> 25% Energy
C75: TAX INFORMATION
F77: TAX RATE ASSUMPTIONS: | J77: TAX RATE
F78: FEDERAL RATE | J78: =IF(Variables!AO3=12,INDEX(Variables!F12:N12,5),INDEX(Variables!F12:N12,Variables!$AO$3)) -> 0.21
F79: STATE EFFECTIVE RATE | J79: =IF(Variables!AO3=12,INDEX(Variables!F14:N14,5),INDEX(Variables!F14:N14,Variables!$AO$3)) -> 0.0454
F80: NET TO GROSS BUMP-UP FACTOR | J80: =1/(+Results!D200) -> 1.332630955
F81: FEDERAL/STATE COMBINED RATE | J81: =IF(Variables!AO3=12,INDEX(Variables!$F15:$N15,5),INDEX(Variables!$F15:$N15,Variables!$AO$3)) -> 0.245866
C85: CAPITAL STRUCTURE INFORMATION
G89: CAPITAL | I89: EMBEDDED | J89: WEIGHTED
G90: STRUCTURE | I90: COST | J90: COST
D93: DEBT | G93: =IF(Variables!AO3=12,INDEX(Variables!F3:N3,5),INDEX(Variables!F3:N3,Variables!$AO$3)) -> 0.4632 | I93: =IF(Variables!AO3=12,INDEX(Variables!F7:N7,5),INDEX(Variables!F7:N7,Variables!$AO$3)) -> 0.0481 | J93: =G93*I93 -> 0.02227992
D94: PREFERRED | G94: =IF(Variables!AO3=12,INDEX(Variables!F4:N4,5),INDEX(Variables!F4:N4,Variables!$AO$3)) -> 0.0001 | I94: =IF(Variables!AO3=12,INDEX(Variables!F8:N8,5),INDEX(Variables!F8:N8,Variables!$AO$3)) -> 0.0675 | J94: =G94*I94 -> 6.75e-06
D95: COMMON | G95: =IF(Variables!AO3=12,INDEX(Variables!F5:N5,5),INDEX(Variables!F5:N5,Variables!$AO$3)) -> 0.5367 | I95: =IF(Variables!AO3=12,INDEX(Variables!F9:N9,5),INDEX(Variables!F9:N9,Variables!$AO$3)) -> 0.0925 | J95: =G95*I95 -> 0.04964475
G96: =SUM(G93:G95) -> 1 | J96: =SUM(J93:J95) -> 0.07193142
C99: OTHER INFORMATION
B109: =Variables!AE29 -> 2020 PROTOCOL
B110: =Variables!AO19 -> 13-Month Average
C111: RESULTS OF OPERATIONS SUMMARY
I113: DECEMBER 2019 | L113: DECEMBER 2021
I114: UNADJUSTED RESULTS | L114: NORMALIZED RESULTS | O114: =N115 -> UTAH
C115: Description of Account Summary: | H115: Ref | I115: TOTAL | J115: =I56 -> UTAH | L115: TOTAL | M115: OTHER | N115: =VLOOKUP(Variables!$AO$3,Variables!$AL$3:$AM$14,2) -> UTAH | O115: ADJUSTMENTS | P115: ADJ TOTAL
A117: 1 | C117: Operating Revenues
A118: 2 | D118: General Business Revenues | H118: 2.2 | I118: 4697555109 | J118: 1988715510 | L118: =L219-L217 -> 4710535544 | M118: =M219-M217 -> 2708839599 | N118: =N219-N217 -> 2001695945 | O118: =O219-O217 -> 0 | P118: =P219-P217 -> 2001695945
A119: 3 | D119: Interdepartmental | H119: 2.2 | I119: 0 | J119: 0 | L119: =L217 -> 0 | M119: =M217 -> 0 | N119: =N217 -> 0 | O119: =O217 -> 0 | P119: =P217 -> 0
A120: 4 | D120: Special Sales | H120: 2.2 | I120: 192271656.8 | J120: 78282917.26 | L120: =L233 -> 238153810 | M120: =M233 -> 125863699.3 | N120: =N233 -> 112290110.7 | O120: =O233 -> 0 | P120: =P233 -> 112290110.7
A121: 5 | D121: Other Operating Revenues | H121: 2.3 | I121: 175882372 | J121: 70080471.33 | L121: =L277+L240 -> 185350373.5 | M121: =M277+M240 -> 111063165.6 | N121: =N277+N240 -> 74287207.93 | O121: =O277+O240 -> 0 | P121: =P277+P240 -> 74287207.93
A122: 6 | E122: Total Operating Revenues | H122: 2.3 | I122: 5065709138 | J122: 2137078899 | L122: =SUM(L118:L121) -> 5134039728 | M122: =SUM(M118:M121) -> 2945766464 | N122: =SUM(N118:N121) -> 2188273264 | O122: =SUM(O118:O121) -> 0 | P122: =SUM(P118:P121) -> 2188273264
A123: 7
A124: 8 | C124: Operating Expenses:
A125: 9 | D125: Steam Production | H125: 2.5 | I125: 1040566325 | J125: 451142930.6 | L125: =L423 -> 908135848.2 | M125: =M423 -> 514305903.8 | N125: =N423 -> 393829944.4 | O125: =O423 -> 0 | P125: =P423 -> 393829944.4
A126: 10 | D126: Nuclear Production | H126: 2.5 | I126: 0 | J126: 0 | L126: =L471 -> 0 | M126: =M471 -> 0 | N126: =N471 -> 0 | O126: =O471 -> 0 | P126: =P471 -> 0
A127: 11 | D127: Hydro Production | H127: 2.6 | I127: 44115769.81 | J127: 19409835 | L127: =L556 -> 46030961.64 | M127: =M556 -> 25778490.15 | N127: =N556 -> 20252471.49 | O127: =O556 -> 0 | P127: =P556 -> 20252471.49
A128: 12 | D128: Other Power Supply | H128: 2.7, .8 | I128: 989873255.4 | J128: 462939589.1 | L128: =L621+L672 -> 946316465.9 | M128: =M621+M672 -> 504810663.3 | N128: =N621+N672 -> 441505802.6 | O128: =O621+O672 -> 0 | P128: =P621+P672 -> 441505802.6
A129: 13 | D129: Transmission | H129: 2.9 | I129: 218366627 | J129: 96044206.51 | L129: =L775 -> 222364388.3 | M129: =M775 -> 124574374.7 | N129: =N775 -> 97790013.51 | O129: =O775 -> 0 | P129: =P775 -> 97790013.51
A130: 14 | D130: Distribution | H130: 2.1 | I130: 202761779.2 | J130: 85367096.61 | L130: =L876 -> 216090157.9 | M130: =M876 -> 124939180 | N130: =N876 -> 91150977.97 | O130: =O876 -> 0 | P130: =P876 -> 91150977.97
A131: 15 | D131: Customer Accounting | H131: 2.11 | I131: 76859683.96 | J131: 33249314.51 | L131: =L911 -> 81636177.72 | M131: =M911 -> 46203810.23 | N131: =N911 -> 35432367.49 | O131: =O911 -> 0 | P131: =P911 -> 35432367.49
A132: 16 | D132: Customer Service & Infor | H132: 2.12 | I132: 101544683.1 | J132: 6511448.776 | L132: =L942 -> 104209068.7 | M132: =M942 -> 97273151.23 | N132: =N942 -> 6935917.442 | O132: =O942 -> 0 | P132: =P942 -> 6935917.442
A133: 17 | D133: Sales | H133: 2.12 | I133: 0 | J133: 0 | L133: =L972 -> 0 | M133: =M972 -> 0 | N133: =N972 -> 0 | O133: =O972 -> 0 | P133: =P972 -> 0
A134: 18 | D134: Administrative & General | H134: 2.13 | I134: 123122911 | J134: 50488544.36 | L134: =L1057 -> 134619050.9 | M134: =M1057 -> 79927053.19 | N134: =N1057 -> 54691997.75 | O134: =O1057 -> 0 | P134: =P1057 -> 54691997.75
A135: 19
A136: 20 | E136: Total O & M Expenses | H136: 2.13 | I136: 2797211034 | J136: 1205152965 | L136: =SUM(L125:L134) -> 2659402119 | M136: =SUM(M125:M134) -> 1517812627 | N136: =SUM(N125:N134) -> 1141589493 | O136: =SUM(O125:O134) -> 0 | P136: =SUM(P125:P134) -> 1141589493
A137: 21
A138: 22 | D138: Depreciation | H138: 2.14 | I138: 731135346.4 | J138: 305145817.4 | L138: =L1147 -> 994171196.2 | M138: =M1147 -> 562025146.3 | N138: =N1147 -> 432146050 | O138: =O1147 -> 0 | P138: =P1147 -> 432146050
A139: 23 | D139: Amortization | H139: 2.15 | I139: 55249227.45 | J139: 20733796.79 | L139: =L1227 -> 59738583.71 | M139: =M1227 -> 53148596.18 | N139: =N1227 -> 6589987.528 | O139: =O1227 -> 0 | P139: =P1227 -> 6589987.528
A140: 24 | D140: Taxes Other Than Income | H140: 2.15 | I140: 199137026.1 | J140: 71208743.12 | L140: =L1255 -> 214588311.1 | M140: =M1255 -> 136341962.8 | N140: =N1255 -> 78246348.33 | O140: =O1255 -> 0 | P140: =P1255 -> 78246348.33
A141: 25 | D141: Income Taxes - Federal | H141: 2.18 | I141: 180479644.9 | J141: 71146595.98 | L141: =L1464 -> -151527910.1 | M141: =M1464 -> -84465210.13 | N141: =N1464 -> -67062699.92 | O141: =O1464 -> 0 | P141: =P1464 -> -67062699.92
A142: 26 | D142: Income Taxes - State | H142: 2.17 | I142: 47186903.72 | J142: 18890290.78 | L142: =L1431 -> 9502626.324 | M142: =M1431 -> 5411014.877 | N142: =N1431 -> 4091611.447 | O142: =O1431 -> 0 | P142: =P1431 -> 4091611.447
A143: 27 | D143: Income Taxes - Def Net | H143: 2.16 | I143: -36203210.56 | J143: -7623562.568 | L143: =L1353 -> 106643568.6 | M143: =M1353 -> 54323051.75 | N143: =N1353 -> 52320516.82 | O143: =O1353 -> 0 | P143: =P1353 -> 52320516.82
A144: 28 | D144: Investment Tax Credit Adj. | H144: 2.15 | I144: -2738724.08 | J144: -2284952.603 | L144: =L1268 -> -1339178.412 | M144: =M1268 -> -221884.6983 | N144: =N1268 -> -1117293.714 | O144: =O1268 -> 0 | P144: =P1268 -> -1117293.714
A145: 29 | D145: Misc Revenue & Expense | H145: 2.3 | I145: -3395390.25 | J145: -1584839.98 | L145: =L333 -> 410159.02 | M145: =M333 -> 198134.9041 | N145: =N333 -> 212024.1159 | O145: =O333 -> 0 | P145: =P333 -> 212024.1159
A146: 30
A147: 31 | E147: Total Operating Expenses | H147: 2.18 | I147: 3968061858 | J147: 1680784854 | L147: =SUM(L136:L145) -> 3891589476 | M147: =SUM(M136:M145) -> 2244573439 | N147: =SUM(N136:N145) -> 1647016037 | O147: =SUM(O136:O145) -> 0 | P147: =SUM(P136:P145) -> 1647016037
A148: 32
A149: 33 | C149: Operating Revenue for Return | I149: 1097647280 | J149: 456294044.5 | L149: =L122-L147 -> 1242450252 | M149: =M122-M147 -> 701193025.2 | N149: =N122-N147 -> 541257226.9 | O149: =O122-O147 -> 0 | P149: =P122-P147 -> 541257226.9
A150: 34
A151: 35 | C151: Rate Base:
A152: 36 | D152: Electric Plant in Service | H152: 2.26 | I152: 2.820484285e+10 | J152: 1.224048735e+10 | L152: =L2092 -> 3.143920817e+10 | M152: =M2092 -> 1.773612731e+10 | N152: =N2092 -> 1.370308086e+10 | O152: =O2092 -> 0 | P152: =P2092 -> 1.370308086e+10
A153: 37 | D153: Plant Held for Future Use | H153: 2.26 | I153: 26174621.18 | J153: 11265781.74 | L153: =L2115 -> 15018946.46 | M153: =M2115 -> 8661382.489 | N153: =N2115 -> 6357563.966 | O153: =O2115 -> 0 | P153: =P2115 -> 6357563.966
A154: 38 | D154: Misc Deferred Debits | H154: 2.28 | I154: 867962720 | J154: 331155678.6 | L154: =L2223+L2234 -> 698917519.4 | M154: =M2223+M2234 -> 439961506.8 | N154: =N2223+N2234 -> 258956012.6 | O154: =O2223+O2234 -> 0 | P154: =P2223+P2234 -> 258956012.6
A155: 39 | D155: Elec Plant Acq Adj | H155: 2.26,.27 | I155: 26756853.92 | J155: 17635535.68 | L155: =L2121+L2127 -> 16590464.24 | M155: =M2121+M2127 -> 3765732.501 | N155: =N2121+N2127 -> 12824731.74 | O155: =O2121+O2127 -> 0 | P155: =P2121+P2127 -> 12824731.74
A156: 40 | D156: Pensions | H156: 2.27 | I156: 4464715.665 | J156: 1937620.994 | L156: =L2131 -> 34843255.7 | M156: =M2131 -> 19656488.03 | N156: =N2131 -> 15186767.67 | O156: =O2131 -> 0 | P156: =P2131 -> 15186767.67
A157: 41 | D157: Prepayments | H157: 2.28 | I157: 49459713.84 | J157: 16387198.93 | L157: =L2213 -> 49459713.84 | M157: =M2213 -> 33022583.47 | N157: =N2213 -> 16437130.37 | O157: =O2213 -> 0 | P157: =P2213 -> 16437130.37
A158: 42 | D158: Fuel Stock | H158: 2.27 | I158: 167980843.6 | J158: 72830126.46 | L158: =L2178 -> 171473671.4 | M158: =M2178 -> 97129187.21 | N158: =N2178 -> 74344484.22 | O158: =O2178 -> 0 | P158: =P2178 -> 74344484.22
A159: 43 | D159: Material & Supplies | H159: 2.28 | I159: 246195997.5 | J159: 104248439.3 | L159: =L2205 -> 239530020.8 | M159: =M2205 -> 138208214.3 | N159: =N2205 -> 101321806.5 | O159: =O2205 -> 0 | P159: =P2205 -> 101321806.5
A160: 44 | D160: Working Capital | H160: 2.28 | I160: 44217537.22 | J160: 24210969.11 | L160: =L2261 -> 19018132.21 | M160: =M2261 -> 6200081.051 | N160: =N2261 -> 12818051.15 | O160: =O2261 -> 0 | P160: =P2261 -> 12818051.15
A161: 45 | D161: Weatherization Loans | H161: 2.27 | I161: -11565455.24 | J161: 2319.073287 | L161: =L2153 -> -11564940.95 | M161: =M2153 -> -11564940.42 | N161: =N2153 -> -0.5273901222 | O161: =O2153 -> 0 | P161: =P2153 -> -0.5273901222
A162: 46 | D162: Miscellaneous Rate Base | H162: 2.29 | I162: 0 | J162: 0 | L162: =L2281 -> 0 | M162: =M2281 -> 0 | N162: =N2281 -> 0 | O162: =O2281 -> 0 | P162: =P2281 -> 0
A163: 47
A164: 48 | E164: Total Electric Plant | I164: 2.96264904e+10 | J164: 1.282016102e+10 | L164: =SUM(L152:L163) -> 3.267249495e+10 | M164: =SUM(M152:M163) -> 1.847116755e+10 | N164: =SUM(N152:N163) -> 1.42013274e+10 | O164: =SUM(O152:O163) -> 0 | P164: =SUM(P152:P163) -> 1.42013274e+10
A165: 49
A166: 50 | C166: Rate Base Deductions:
A167: 51 | D167: Accum Prov For Depr | H167: 2.32 | I167: -9906332026 | J167: -4060171405 | L167: =L2584 -> -9930447910 | M167: =M2584 -> -5730511614 | N167: =N2584 -> -4199936296 | O167: =O2584 -> 0 | P167: =P2584 -> -4199936296
A168: 52 | D168: Accum Prov For Amort | H168: 2.33 | I168: -618645394.3 | J168: -253248583.7 | L168: =L2633 -> -629617784.1 | M168: =M2633 -> -353463956 | N168: =N2633 -> -276153828.1 | O168: =O2633 -> 0 | P168: =P2633 -> -276153828.1
A169: 53 | D169: Accum Def Income Taxes | H169: 2.3 | I169: -4083287763 | J169: -1787562057 | L169: =L2381 -> -2854325204 | M169: =M2381 -> -1683637802 | N169: =N2381 -> -1170687403 | O169: =O2381 -> 0 | P169: =P2381 -> -1170687403
A170: 54 | D170: Unamortized ITC | H170: 2.3 | I170: -297462.95 | J170: -115230.339 | L170: =L2391 -> -221327.6974 | M170: =M2391 -> -136350.6129 | N170: =N2391 -> -84977.08456 | O170: =O2391 -> 0 | P170: =P2391 -> -84977.08456
A171: 55 | D171: Customer Adv for Const | H171: 2.29 | I171: -74342020.84 | J171: -31278618.07 | L171: =L2314 -> -74342020.84 | M171: =M2314 -> -36299861.15 | N171: =N2314 -> -38042159.69 | O171: =O2314 -> 0 | P171: =P2314 -> -38042159.69
A172: 56 | D172: Customer Service Deposits | H172: 2.29 | I172: 0 | J172: 0 | L172: =L2287 -> -16275584.48 | M172: =M2287 -> 0 | N172: =N2287 -> -16275584.48 | O172: =O2287 -> 0 | P172: =P2287 -> -16275584.48
A173: 57 | D173: Misc. Rate Base Deductions | H173: 2.29 | I173: -889649950.2 | J173: -240962826 | L173: =L2295+L2300+L2306+L2318+L2325 -> -1380425566 | M173: =M2295+M2300+M2306+M2318+M2325 -> -601080749.6 | N173: =N2295+N2300+N2306+N2318+N2325 -> -779344816.4 | O173: =O2295+O2300+O2306+O2318+O2325 -> 0 | P173: =P2295+P2300+P2306+P2318+P2325 -> -779344816.4
A174: 58
A175: 59 | E175: Total Rate Base Deductions | I175: -1.557255462e+10 | J175: -6373338720 | L175: =SUM(L167:L173) -> -1.48856554e+10 | M175: =SUM(M167:M173) -> -8405130333 | N175: =SUM(N167:N173) -> -6480525064 | O175: =SUM(O167:O173) -> 0 | P175: =SUM(P167:P173) -> -6480525064
A176: 60
A177: 61 | C177: Total Rate Base | I177: 1.405393578e+10 | J177: 6446822303 | L177: =L164+L175 -> 1.778683955e+10 | M177: =M164+M175 -> 1.006603721e+10 | N177: =N164+N175 -> 7720802340 | O177: =O164+O175 -> 0 | P177: =P164+P175 -> 7720802340
A178: 62
A179: 63 | C179: Return on Rate Base | L179: =L149/L177 -> 0.06985222126 | N179: =N149/N177 -> 0.07010375386 | P179: =P149/P177 -> 0.07010375386
A180: 64
A181: 65 | C181: Return on Equity | L181: =(+L179-Report!$J$93-Report!$J$94)/Report!$G$95 -> 0.08862595725 | N181: =(+N179-Report!$J$93-Report!$J$94)/Report!$G$95 -> 0.08909462244 | P181: =(+P179-Report!$J$93-Report!$J$94)/Report!$G$95 -> 0.08909462244
A182: 66 | C182: Net Power Costs | L182: =-L231+L355+L371+L572+L633+L730 -> 1422907773 | N182: =-N231+N355+N371+N572+N633+N730 -> 620793937.3 | P182: =-P231+P355+P371+P572+P633+P730 -> 620793937.3
A183: 67 | C183: 100 Basis Points in Equity: | L183: =(L177*(Report!$G$95*(L181+0.01)+Report!$J$93+Report!$J$94))-L149 -> 95461967.89 | N183: =(N177*(Report!$G$95*(N181+0.01)+Report!$J$93+Report!$J$94))-N149 -> 41437546.16 | P183: =(P177*(Report!$G$95*(P181+0.01)+Report!$J$93+Report!$J$94))-P149 -> 41437546.16
A184: 68 | D184: Revenue Requirement Impact | L184: =L183*(1/(1-(INDEX(Variables!$F$15:$N$15,1,IF(Variables!$AO$3=12,5,Variables!$AO$3))))) -> 126584887.9 | N184: =N183*(1/(1-(INDEX(Variables!$F$15:$N$15,1,IF(Variables!$AO$3=12,5,Variables!$AO$3))))) -> 54947192.62 | P184: =P183*(1/(1-(INDEX(Variables!$F$15:$N$15,1,IF(Variables!$AO$3=12,5,Variables!$AO$3))))) -> 54947192.62
A185: 69 | D185: Rate Base Decrease | L185: =(L149/(Report!$G$95*(L181+0.01)+(Report!$I$93*Report!$G$93)+(Report!$I$94*Report!$G$94)))-L177 -> -1269116674 | N185: =(N149/(Report!$G$95*(N181+0.01)+(Report!$I$93*Report!$G$93)+(Report!$I$94*Report!$G$94)))-N177 -> -549054356 | P185: =(P149/(Report!$G$95*(P181+0.01)+(Report!I$93*Report!$G$93)+(Report!$I$94*Report!$G$94)))-P177 -> -549054356
C186: =$B$109 -> 2020 PROTOCOL
C187: =$B$110 -> 13-Month Average | I187: =I113 -> DECEMBER 2019 | L187: =+L113 -> DECEMBER 2021
C188: FERC | F188: BUS | I188: =I114 -> UNADJUSTED RESULTS | L188: =+L114 -> NORMALIZED RESULTS | O188: =$N$115 -> UTAH
C189: ACCT | D189: DESCRIP | F189: FUNC | G189: FACTOR | H189: Ref | I189: TOTAL | J189: =J115 -> UTAH | L189: TOTAL | M189: OTHER | N189: =$N$115 -> UTAH | O189: ADJUSTMENT | P189: ADJ TOTAL
A190: 70 | C190: Sales to Ultimate Customers
A191: 71 | C191: 440 | D191: Residential Sales
A192: 72 | F192: =+Function!F192 -> 0 | G192: =UTCR!H192 -> S | I192: 1815760353 | J192: 762483088.6 | L192: =IF(VLOOKUP(Variables!$AO$3,Variables!$AL$3:$AN$14,3)=2,UTCR!J192,UTCR!AF192) -> 1807769884 | M192: =L192-N192 -> 1053277264 | N192: =IF(Variables!$AO$3=12,IF(VLOOKUP(Variables!$AO$3,Variables!$AL$3:$AN$14,3)=2,INDEX(UTCR!K192:U192,1,5)+INDEX(UTCR!K192:U192,1,8),INDEX(UTCR!AG192:AQ192,1,5)+INDEX(UTCR!AG192:AQ192,1,8)),IF(VLOOKUP(Variables!$AO$3,Variables!$AL$3:$AN$14,3)=2,INDEX(UTCR!K192:U192,1,Variables!$AO$3),INDEX(UTCR!AG192:AQ192,1,Variables!$AO$3))) -> 754492620.2 | O192: =P192-N192 -> 0 | P192: =IF(Variables!$AO$3=12,INDEX(NRO!J192:T192,1,5)+INDEX(NRO!J192:T192,1,8),INDEX(NRO!J192:T192,1,Variables!$AO$3)) -> 754492620.2
A193: 73
A194: 74 | H194: B1 | I194: 1815760353 | J194: 762483088.6 | L194: =SUBTOTAL(9,L192:L193) -> 1807769884 | M194: =SUBTOTAL(9,M192:M193) -> 1053277264 | N194: =SUBTOTAL(9,N192:N193) -> 754492620.2 | O194: =SUBTOTAL(9,O192:O193) -> 0 | P194: =SUBTOTAL(9,P192:P193) -> 754492620.2
A195: 75
A196: 76 | C196: 442 | D196: Commercial & Industrial Sales
A197: 77 | F197: =+Function!F197 -> 0 | G197: =UTCR!H197 -> S | I197: 2863596713 | J197: 1218669565 | L197: =IF(VLOOKUP(Variables!$AO$3,Variables!$AL$3:$AN$14,3)=2,UTCR!J197,UTCR!AF197) -> 2885523279 | M197: =L197-N197 -> 1644927148 | N197: =IF(Variables!$AO$3=12,IF(VLOOKUP(Variables!$AO$3,Variables!$AL$3:$AN$14,3)=2,INDEX(UTCR!K197:U197,1,5)+INDEX(UTCR!K197:U197,1,8),INDEX(UTCR!AG197:AQ197,1,5)+INDEX(UTCR!AG197:AQ197,1,8)),IF(VLOOKUP(Variables!$AO$3,Variables!$AL$3:$AN$14,3)=2,INDEX(UTCR!K197:U197,1,Variables!$AO$3),INDEX(UTCR!AG197:AQ197,1,Variables!$AO$3))) -> 1240596131 | O197: =P197-N197 -> 0 | P197: =IF(Variables!$AO$3=12,INDEX(NRO!J197:T197,1,5)+INDEX(NRO!J197:T197,1,8),INDEX(NRO!J197:T197,1,Variables!$AO$3)) -> 1240596131
A198: 78 | F198: =+Function!F198 -> P | G198: =UTCR!H198 -> SE | I198: 0 | J198: 0 | L198: =IF(VLOOKUP(Variables!$AO$3,Variables!$AL$3:$AN$14,3)=2,UTCR!J198,UTCR!AF198) -> 0 | M198: =L198-N198 -> 0 | N198: =IF(Variables!$AO$3=12,IF(VLOOKUP(Variables!$AO$3,Variables!$AL$3:$AN$14,3)=2,INDEX(UTCR!K198:U198,1,5)+INDEX(UTCR!K198:U198,1,8),INDEX(UTCR!AG198:AQ198,1,5)+INDEX(UTCR!AG198:AQ198,1,8)),IF(VLOOKUP(Variables!$AO$3,Variables!$AL$3:$AN$14,3)=2,INDEX(UTCR!K198:U198,1,Variables!$AO$3),INDEX(UTCR!AG198:AQ198,1,Variables!$AO$3))) -> 0 | O198: =P198-N198 -> 0 | P198: =IF(Variables!$AO$3=12,INDEX(NRO!J198:T198,1,5)+INDEX(NRO!J198:T198,1,8),INDEX(NRO!J198:T198,1,Variables!$AO$3)) -> 0
A199: 79 | F199: =+Function!F199 -> PT | G199: =UTCR!H199 -> SG | I199: 0 | J199: 0 | L199: =IF(VLOOKUP(Variables!$AO$3,Variables!$AL$3:$AN$14,3)=2,UTCR!J199,UTCR!AF199) -> 0 | M199: =L199-N199 -> 0 | N199: =IF(Variables!$AO$3=12,IF(VLOOKUP(Variables!$AO$3,Variables!$AL$3:$AN$14,3)=2,INDEX(UTCR!K199:U199,1,5)+INDEX(UTCR!K199:U199,1,8),INDEX(UTCR!AG199:AQ199,1,5)+INDEX(UTCR!AG199:AQ199,1,8)),IF(VLOOKUP(Variables!$AO$3,Variables!$AL$3:$AN$14,3)=2,INDEX(UTCR!K199:U199,1,Variables!$AO$3),INDEX(UTCR!AG199:AQ199,1,Variables!$AO$3))) -> 0 | O199: =P199-N199 -> 0 | P199: =IF(Variables!$AO$3=12,INDEX(NRO!J199:T199,1,5)+INDEX(NRO!J199:T199,1,8),INDEX(NRO!J199:T199,1,Variables!$AO$3)) -> 0
A200: 80
A201: 81
A202: 82 | H202: B1 | I202: 2863596713 | J202: 1218669565 | L202: =SUBTOTAL(9,L197:L201) -> 2885523279 | M202: =SUBTOTAL(9,M197:M201) -> 1644927148 | N202: =SUBTOTAL(9,N197:N201) -> 1240596131 | O202: =SUBTOTAL(9,O197:O201) -> 0 | P202: =SUBTOTAL(9,P197:P201) -> 1240596131
A203: 83
A204: 84 | C204: 444 | D204: Public Street & Highway Lighting
A205: 85 | F205: =+Function!F205 -> 0 | G205: =UTCR!H205 -> S | I205: 18198043.64 | J205: 7562856.34 | L205: =IF(VLOOKUP(Variables!$AO$3,Variables!$AL$3:$AN$14,3)=2,UTCR!J205,UTCR!AF205) -> 17242381.2 | M205: =L205-N205 -> 10635187.3 | N205: =IF(Variables!$AO$3=12,IF(VLOOKUP(Variables!$AO$3,Variables!$AL$3:$AN$14,3)=2,INDEX(UTCR!K205:U205,1,5)+INDEX(UTCR!K205:U205,1,8),INDEX(UTCR!AG205:AQ205,1,5)+INDEX(UTCR!AG205:AQ205,1,8)),IF(VLOOKUP(Variables!$AO$3,Variables!$AL$3:$AN$14,3)=2,INDEX(UTCR!K205:U205,1,Variables!$AO$3),INDEX(UTCR!AG205:AQ205,1,Variables!$AO$3))) -> 6607193.901 | O205: =P205-N205 -> 0 | P205: =IF(Variables!$AO$3=12,INDEX(NRO!J205:T205,1,5)+INDEX(NRO!J205:T205,1,8),INDEX(NRO!J205:T205,1,Variables!$AO$3)) -> 6607193.901
A206: 86 | F206: =+Function!F206 -> 0 | G206: =UTCR!H206 -> SO | I206: 0 | J206: 0 | L206: =IF(VLOOKUP(Variables!$AO$3,Variables!$AL$3:$AN$14,3)=2,UTCR!J206,UTCR!AF206) -> 0 | M206: =L206-N206 -> 0 | N206: =IF(Variables!$AO$3=12,IF(VLOOKUP(Variables!$AO$3,Variables!$AL$3:$AN$14,3)=2,INDEX(UTCR!K206:U206,1,5)+INDEX(UTCR!K206:U206,1,8),INDEX(UTCR!AG206:AQ206,1,5)+INDEX(UTCR!AG206:AQ206,1,8)),IF(VLOOKUP(Variables!$AO$3,Variables!$AL$3:$AN$14,3)=2,INDEX(UTCR!K206:U206,1,Variables!$AO$3),INDEX(UTCR!AG206:AQ206,1,Variables!$AO$3))) -> 0 | O206: =P206-N206 -> 0 | P206: =IF(Variables!$AO$3=12,INDEX(NRO!J206:T206,1,5)+INDEX(NRO!J206:T206,1,8),INDEX(NRO!J206:T206,1,Variables!$AO$3)) -> 0
A207: 87 | H207: B1 | I207: 18198043.64 | J207: 7562856.34 | L207: =SUBTOTAL(9,L205:L206) -> 17242381.2 | M207: =SUBTOTAL(9,M205:M206) -> 10635187.3 | N207: =SUBTOTAL(9,N205:N206) -> 6607193.901 | O207: =SUBTOTAL(9,O205:O206) -> 0 | P207: =SUBTOTAL(9,P205:P206) -> 6607193.901
A208: 88
A209: 89 | C209: 445 | D209: Other Sales to Public Authority
A210: 90 | F210: =+Function!F210 -> 0 | G210: =UTCR!H210 -> S | I210: 0 | J210: 0 | L210: =IF(VLOOKUP(Variables!$AO$3,Variables!$AL$3:$AN$14,3)=2,UTCR!J210,UTCR!AF210) -> 0 | M210: =L210-N210 -> 0 | N210: =IF(Variables!$AO$3=12,IF(VLOOKUP(Variables!$AO$3,Variables!$AL$3:$AN$14,3)=2,INDEX(UTCR!K210:U210,1,5)+INDEX(UTCR!K210:U210,1,8),INDEX(UTCR!AG210:AQ210,1,5)+INDEX(UTCR!AG210:AQ210,1,8)),IF(VLOOKUP(Variables!$AO$3,Variables!$AL$3:$AN$14,3)=2,INDEX(UTCR!K210:U210,1,Variables!$AO$3),INDEX(UTCR!AG210:AQ210,1,Variables!$AO$3))) -> 0 | O210: =P210-N210 -> 0 | P210: =IF(Variables!$AO$3=12,INDEX(NRO!J210:T210,1,5)+INDEX(NRO!J210:T210,1,8),INDEX(NRO!J210:T210,1,Variables!$AO$3)) -> 0
A211: 91
A212: 92 | H212: B1 | I212: 0 | J212: 0 | L212: =SUBTOTAL(9,L210:L211) -> 0 | M212: =SUBTOTAL(9,M210:M211) -> 0 | N212: =SUBTOTAL(9,N210:N211) -> 0 | O212: =SUBTOTAL(9,O210:O211) -> 0 | P212: =SUBTOTAL(9,P210:P211) -> 0
A213: 93
A214: 94 | C214: 448 | D214: Interdepartmental
A215: 95 | F215: =+Function!F215 -> DPW | G215: =UTCR!H215 -> S | I215: 0 | J215: 0 | L215: =IF(VLOOKUP(Variables!$AO$3,Variables!$AL$3:$AN$14,3)=2,UTCR!J215,UTCR!AF215) -> 0 | M215: =L215-N215 -> 0 | N215: =IF(Variables!$AO$3=12,IF(VLOOKUP(Variables!$AO$3,Variables!$AL$3:$AN$14,3)=2,INDEX(UTCR!K215:U215,1,5)+INDEX(UTCR!K215:U215,1,8),INDEX(UTCR!AG215:AQ215,1,5)+INDEX(UTCR!AG215:AQ215,1,8)),IF(VLOOKUP(Variables!$AO$3,Variables!$AL$3:$AN$14,3)=2,INDEX(UTCR!K215:U215,1,Variables!$AO$3),INDEX(UTCR!AG215:AQ215,1,Variables!$AO$3))) -> 0 | O215: =P215-N215 -> 0 | P215: =IF(Variables!$AO$3=12,INDEX(NRO!J215:T215,1,5)+INDEX(NRO!J215:T215,1,8),INDEX(NRO!J215:T215,1,Variables!$AO$3)) -> 0
A216: 96 | F216: =+Function!F216 -> GP | G216: =UTCR!H216 -> SO | I216: 0 | J216: 0 | L216: =IF(VLOOKUP(Variables!$AO$3,Variables!$AL$3:$AN$14,3)=2,UTCR!J216,UTCR!AF216) -> 0 | M216: =L216-N216 -> 0 | N216: =IF(Variables!$AO$3=12,IF(VLOOKUP(Variables!$AO$3,Variables!$AL$3:$AN$14,3)=2,INDEX(UTCR!K216:U216,1,5)+INDEX(UTCR!K216:U216,1,8),INDEX(UTCR!AG216:AQ216,1,5)+INDEX(UTCR!AG216:AQ216,1,8)),IF(VLOOKUP(Variables!$AO$3,Variables!$AL$3:$AN$14,3)=2,INDEX(UTCR!K216:U216,1,Variables!$AO$3),INDEX(UTCR!AG216:AQ216,1,Variables!$AO$3))) -> 0 | O216: =P216-N216 -> 0 | P216: =IF(Variables!$AO$3=12,INDEX(NRO!J216:T216,1,5)+INDEX(NRO!J216:T216,1,8),INDEX(NRO!J216:T216,1,Variables!$AO$3)) -> 0
A217: 97 | H217: B1 | I217: 0 | J217: 0 | L217: =SUBTOTAL(9,L215:L216) -> 0 | M217: =SUBTOTAL(9,M215:M216) -> 0 | N217: =SUBTOTAL(9,N215:N216) -> 0 | O217: =SUBTOTAL(9,O215:O216) -> 0 | P217: =SUBTOTAL(9,P215:P216) -> 0
A218: 98
A219: 99 | C219: Total Sales to Ultimate Customers | H219: B1 | I219: 4697555109 | J219: 1988715510 | L219: =SUBTOTAL(9,L192:L217) -> 4710535544 | M219: =SUBTOTAL(9,M192:M217) -> 2708839599 | N219: =SUBTOTAL(9,N192:N217) -> 2001695945 | O219: =SUBTOTAL(9,O192:O217) -> 0 | P219: =SUBTOTAL(9,P192:P217) -> 2001695945
A220: 100
A221: 101
A222: 102
A223: 103 | C223: 447 | D223: Sales for Resale-Non NPC
A224: 104 | F224: =+Function!F224 -> P | G224: =UTCR!H224 -> S | I224: 14230442.66 | J224: -77250.37 | L224: =IF(VLOOKUP(Variables!$AO$3,Variables!$AL$3:$AN$14,3)=2,UTCR!J224,UTCR!AF224) -> 14659953.75 | M224: =L224-N224 -> 701548.27 | N224: =IF(Variables!$AO$3=12,IF(VLOOKUP(Variables!$AO$3,Variables!$AL$3:$AN$14,3)=2,INDEX(UTCR!K224:U224,1,5)+INDEX(UTCR!K224:U224,1,8),INDEX(UTCR!AG224:AQ224,1,5)+INDEX(UTCR!AG224:AQ224,1,8)),IF(VLOOKUP(Variables!$AO$3,Variables!$AL$3:$AN$14,3)=2,INDEX(UTCR!K224:U224,1,Variables!$AO$3),INDEX(UTCR!AG224:AQ224,1,Variables!$AO$3))) -> 13958405.48 | O224: =P224-N224 -> 0 | P224: =IF(Variables!$AO$3=12,INDEX(NRO!J224:T224,1,5)+INDEX(NRO!J224:T224,1,8),INDEX(NRO!J224:T224,1,Variables!$AO$3)) -> 13958405.48
A225: 105 | H225: B1 | I225: 14230442.66 | J225: -77250.37 | L225: =SUBTOTAL(9,L224:L224) -> 14659953.75 | M225: =SUBTOTAL(9,M224:M224) -> 701548.27 | N225: =SUBTOTAL(9,N224:N224) -> 13958405.48 | O225: =SUBTOTAL(9,O224:O224) -> 0 | P225: =SUBTOTAL(9,P224:P224) -> 13958405.48
A226: 106
A227: 107 | C227: 447NPC | D227: Sales for Resale-NPC
A228: 108 | F228: =+Function!F228 -> P | G228: =UTCR!H228 -> SG | I228: 182171613.2 | J228: 80150952.11 | L228: =IF(VLOOKUP(Variables!$AO$3,Variables!$AL$3:$AN$14,3)=2,UTCR!J228,UTCR!AF228) -> 223493856.2 | M228: =L228-N228 -> 125162151 | N228: =IF(Variables!$AO$3=12,IF(VLOOKUP(Variables!$AO$3,Variables!$AL$3:$AN$14,3)=2,INDEX(UTCR!K228:U228,1,5)+INDEX(UTCR!K228:U228,1,8),INDEX(UTCR!AG228:AQ228,1,5)+INDEX(UTCR!AG228:AQ228,1,8)),IF(VLOOKUP(Variables!$AO$3,Variables!$AL$3:$AN$14,3)=2,INDEX(UTCR!K228:U228,1,Variables!$AO$3),INDEX(UTCR!AG228:AQ228,1,Variables!$AO$3))) -> 98331705.22 | O228: =P228-N228 -> 0 | P228: =IF(Variables!$AO$3=12,INDEX(NRO!J228:T228,1,5)+INDEX(NRO!J228:T228,1,8),INDEX(NRO!J228:T228,1,Variables!$AO$3)) -> 98331705.22
A229: 109 | F229: =+Function!F229 -> P | G229: =UTCR!H229 -> SE | I229: -4130399.07 | J229: -1790784.474 | L229: =IF(VLOOKUP(Variables!$AO$3,Variables!$AL$3:$AN$14,3)=2,UTCR!J229,UTCR!AF229) -> 0 | M229: =L229-N229 -> 0 | N229: =IF(Variables!$AO$3=12,IF(VLOOKUP(Variables!$AO$3,Variables!$AL$3:$AN$14,3)=2,INDEX(UTCR!K229:U229,1,5)+INDEX(UTCR!K229:U229,1,8),INDEX(UTCR!AG229:AQ229,1,5)+INDEX(UTCR!AG229:AQ229,1,8)),IF(VLOOKUP(Variables!$AO$3,Variables!$AL$3:$AN$14,3)=2,INDEX(UTCR!K229:U229,1,Variables!$AO$3),INDEX(UTCR!AG229:AQ229,1,Variables!$AO$3))) -> 0 | O229: =P229-N229 -> 0 | P229: =IF(Variables!$AO$3=12,INDEX(NRO!J229:T229,1,5)+INDEX(NRO!J229:T229,1,8),INDEX(NRO!J229:T229,1,Variables!$AO$3)) -> 0
A230: 110 | F230: =+Function!F230 -> P | G230: =UTCR!H230 -> SG | I230: 0 | J230: 0 | L230: =IF(VLOOKUP(Variables!$AO$3,Variables!$AL$3:$AN$14,3)=2,UTCR!J230,UTCR!AF230) -> 0 | M230: =L230-N230 -> 0 | N230: =IF(Variables!$AO$3=12,IF(VLOOKUP(Variables!$AO$3,Variables!$AL$3:$AN$14,3)=2,INDEX(UTCR!K230:U230,1,5)+INDEX(UTCR!K230:U230,1,8),INDEX(UTCR!AG230:AQ230,1,5)+INDEX(UTCR!AG230:AQ230,1,8)),IF(VLOOKUP(Variables!$AO$3,Variables!$AL$3:$AN$14,3)=2,INDEX(UTCR!K230:U230,1,Variables!$AO$3),INDEX(UTCR!AG230:AQ230,1,Variables!$AO$3))) -> 0 | O230: =P230-N230 -> 0 | P230: =IF(Variables!$AO$3=12,INDEX(NRO!J230:T230,1,5)+INDEX(NRO!J230:T230,1,8),INDEX(NRO!J230:T230,1,Variables!$AO$3)) -> 0
A231: 111 | H231: B1 | I231: 178041214.1 | J231: 78360167.63 | L231: =SUBTOTAL(9,L228:L230) -> 223493856.2 | M231: =SUBTOTAL(9,M228:M230) -> 125162151 | N231: =SUBTOTAL(9,N228:N230) -> 98331705.22 | O231: =SUBTOTAL(9,O228:O230) -> 0 | P231: =SUBTOTAL(9,P228:P230) -> 98331705.22
A232: 112
A233: 113 | D233: Total Sales for Resale | H233: B1 | I233: 192271656.8 | J233: 78282917.26 | L233: =SUBTOTAL(9,L224:L230) -> 238153810 | M233: =SUBTOTAL(9,M224:M230) -> 125863699.3 | N233: =SUBTOTAL(9,N224:N230) -> 112290110.7 | O233: =SUBTOTAL(9,O224:O231) -> 0 | P233: =SUBTOTAL(9,P224:P231) -> 112290110.7
A234: 114
A235: 115 | C235: 449 | D235: Provision for Rate Refund
A236: 116 | F236: =+Function!F236 -> P | G236: =UTCR!H236 -> S | I236: 0 | J236: 0 | L236: =IF(VLOOKUP(Variables!$AO$3,Variables!$AL$3:$AN$14,3)=2,UTCR!J236,UTCR!AF236) -> 0 | M236: =L236-N236 -> 0 | N236: =IF(Variables!$AO$3=12,IF(VLOOKUP(Variables!$AO$3,Variables!$AL$3:$AN$14,3)=2,INDEX(UTCR!K236:U236,1,5)+INDEX(UTCR!K236:U236,1,8),INDEX(UTCR!AG236:AQ236,1,5)+INDEX(UTCR!AG236:AQ236,1,8)),IF(VLOOKUP(Variables!$AO$3,Variables!$AL$3:$AN$14,3)=2,INDEX(UTCR!K236:U236,1,Variables!$AO$3),INDEX(UTCR!AG236:AQ236,1,Variables!$AO$3))) -> 0 | O236: =P236-N236 -> 0 | P236: =IF(Variables!$AO$3=12,INDEX(NRO!J236:T236,1,5)+INDEX(NRO!J236:T236,1,8),INDEX(NRO!J236:T236,1,Variables!$AO$3)) -> 0
A237: 117 | F237: =+Function!F237 -> P | G237: =UTCR!H237 -> SG | I237: 0 | J237: 0 | L237: =IF(VLOOKUP(Variables!$AO$3,Variables!$AL$3:$AN$14,3)=2,UTCR!J237,UTCR!AF237) -> 0 | M237: =L237-N237 -> 0 | N237: =IF(Variables!$AO$3=12,IF(VLOOKUP(Variables!$AO$3,Variables!$AL$3:$AN$14,3)=2,INDEX(UTCR!K237:U237,1,5)+INDEX(UTCR!K237:U237,1,8),INDEX(UTCR!AG237:AQ237,1,5)+INDEX(UTCR!AG237:AQ237,1,8)),IF(VLOOKUP(Variables!$AO$3,Variables!$AL$3:$AN$14,3)=2,INDEX(UTCR!K237:U237,1,Variables!$AO$3),INDEX(UTCR!AG237:AQ237,1,Variables!$AO$3))) -> 0 | O237: =P237-N237 -> 0 | P237: =IF(Variables!$AO$3=12,INDEX(NRO!J237:T237,1,5)+INDEX(NRO!J237:T237,1,8),INDEX(NRO!J237:T237,1,Variables!$AO$3)) -> 0
A238: 118
A239: 119
A240: 120 | H240: B1 | I240: 0 | J240: 0 | L240: =SUBTOTAL(9,L236:L239) -> 0 | M240: =SUBTOTAL(9,M236:M239) -> 0 | N240: =SUBTOTAL(9,N236:N239) -> 0 | O240: =SUBTOTAL(9,O236:O239) -> 0 | P240: =SUBTOTAL(9,P236:P239) -> 0
A241: 121
A242: 122 | C242: Total Sales from Electricity | H242: B1 | I242: 4889826766 | J242: 2066998428 | L242: =SUBTOTAL(9,L224:L240)+L219 -> 4948689354 | M242: =SUBTOTAL(9,M224:M240)+M219 -> 2834703298 | N242: =SUBTOTAL(9,N224:N240)+N219 -> 2113986056 | O242: =SUBTOTAL(9,O224:O240)+O219 -> 0 | P242: =SUBTOTAL(9,P224:P240)+P219 -> 2113986056
A243: 123 | C243: 450 | D243: Forfeited Discounts & Interest
A244: 124 | F244: =+Function!F244 -> CUST | G244: =UTCR!H244 -> S | I244: 9415630.45 | J244: 3311424.15 | L244: =IF(VLOOKUP(Variables!$AO$3,Variables!$AL$3:$AN$14,3)=2,UTCR!J244,UTCR!AF244) -> 9415630.45 | M244: =L244-N244 -> 6104206.3 | N244: =IF(Variables!$AO$3=12,IF(VLOOKUP(Variables!$AO$3,Variables!$AL$3:$AN$14,3)=2,INDEX(UTCR!K244:U244,1,5)+INDEX(UTCR!K244:U244,1,8),INDEX(UTCR!AG244:AQ244,1,5)+INDEX(UTCR!AG244:AQ244,1,8)),IF(VLOOKUP(Variables!$AO$3,Variables!$AL$3:$AN$14,3)=2,INDEX(UTCR!K244:U244,1,Variables!$AO$3),INDEX(UTCR!AG244:AQ244,1,Variables!$AO$3))) -> 3311424.15 | O244: =P244-N244 -> 0 | P244: =IF(Variables!$AO$3=12,INDEX(NRO!J244:T244,1,5)+INDEX(NRO!J244:T244,1,8),INDEX(NRO!J244:T244,1,Variables!$AO$3)) -> 3311424.15
A245: 125 | F245: =+Function!F245 -> CUST | G245: =UTCR!H245 -> SO | I245: 0 | J245: 0 | L245: =IF(VLOOKUP(Variables!$AO$3,Variables!$AL$3:$AN$14,3)=2,UTCR!J245,UTCR!AF245) -> 0 | M245: =L245-N245 -> 0 | N245: =IF(Variables!$AO$3=12,IF(VLOOKUP(Variables!$AO$3,Variables!$AL$3:$AN$14,3)=2,INDEX(UTCR!K245:U245,1,5)+INDEX(UTCR!K245:U245,1,8),INDEX(UTCR!AG245:AQ245,1,5)+INDEX(UTCR!AG245:AQ245,1,8)),IF(VLOOKUP(Variables!$AO$3,Variables!$AL$3:$AN$14,3)=2,INDEX(UTCR!K245:U245,1,Variables!$AO$3),INDEX(UTCR!AG245:AQ245,1,Variables!$AO$3))) -> 0 | O245: =P245-N245 -> 0 | P245: =IF(Variables!$AO$3=12,INDEX(NRO!J245:T245,1,5)+INDEX(NRO!J245:T245,1,8),INDEX(NRO!J245:T245,1,Variables!$AO$3)) -> 0
A246: 126 | H246: B1 | I246: 9415630.45 | J246: 3311424.15 | L246: =SUBTOTAL(9,L244:L245) -> 9415630.45 | M246: =SUBTOTAL(9,M244:M245) -> 6104206.3 | N246: =SUBTOTAL(9,N244:N245) -> 3311424.15 | O246: =SUBTOTAL(9,O244:O245) -> 0 | P246: =SUBTOTAL(9,P244:P245) -> 3311424.15
A247: 127
A248: 128 | C248: 451 | D248: Misc Electric Revenue
A249: 129 | F249: =+Function!F249 -> CUST | G249: =UTCR!H249 -> S | I249: 8817083.46 | J249: 4310261.29 | L249: =IF(VLOOKUP(Variables!$AO$3,Variables!$AL$3:$AN$14,3)=2,UTCR!J249,UTCR!AF249) -> 6847075.128 | M249: =L249-N249 -> 4506822.17 | N249: =IF(Variables!$AO$3=12,IF(VLOOKUP(Variables!$AO$3,Variables!$AL$3:$AN$14,3)=2,INDEX(UTCR!K249:U249,1,5)+INDEX(UTCR!K249:U249,1,8),INDEX(UTCR!AG249:AQ249,1,5)+INDEX(UTCR!AG249:AQ249,1,8)),IF(VLOOKUP(Variables!$AO$3,Variables!$AL$3:$AN$14,3)=2,INDEX(UTCR!K249:U249,1,Variables!$AO$3),INDEX(UTCR!AG249:AQ249,1,Variables!$AO$3))) -> 2340252.958 | O249: =P249-N249 -> 0 | P249: =IF(Variables!$AO$3=12,INDEX(NRO!J249:T249,1,5)+INDEX(NRO!J249:T249,1,8),INDEX(NRO!J249:T249,1,Variables!$AO$3)) -> 2340252.958
A250: 130 | F250: =+Function!F250 -> GP | G250: =UTCR!H250 -> SG | I250: 0 | J250: 0 | L250: =IF(VLOOKUP(Variables!$AO$3,Variables!$AL$3:$AN$14,3)=2,UTCR!J250,UTCR!AF250) -> 0 | M250: =L250-N250 -> 0 | N250: =IF(Variables!$AO$3=12,IF(VLOOKUP(Variables!$AO$3,Variables!$AL$3:$AN$14,3)=2,INDEX(UTCR!K250:U250,1,5)+INDEX(UTCR!K250:U250,1,8),INDEX(UTCR!AG250:AQ250,1,5)+INDEX(UTCR!AG250:AQ250,1,8)),IF(VLOOKUP(Variables!$AO$3,Variables!$AL$3:$AN$14,3)=2,INDEX(UTCR!K250:U250,1,Variables!$AO$3),INDEX(UTCR!AG250:AQ250,1,Variables!$AO$3))) -> 0 | O250: =P250-N250 -> 0 | P250: =IF(Variables!$AO$3=12,INDEX(NRO!J250:T250,1,5)+INDEX(NRO!J250:T250,1,8),INDEX(NRO!J250:T250,1,Variables!$AO$3)) -> 0
A251: 131 | F251: =+Function!F251 -> GP | G251: =UTCR!H251 -> SO | I251: 28719.73 | J251: 12463.94081 | L251: =IF(VLOOKUP(Variables!$AO$3,Variables!$AL$3:$AN$14,3)=2,UTCR!J251,UTCR!AF251) -> 28719.73 | M251: =L251-N251 -> 16201.95982 | N251: =IF(Variables!$AO$3=12,IF(VLOOKUP(Variables!$AO$3,Variables!$AL$3:$AN$14,3)=2,INDEX(UTCR!K251:U251,1,5)+INDEX(UTCR!K251:U251,1,8),INDEX(UTCR!AG251:AQ251,1,5)+INDEX(UTCR!AG251:AQ251,1,8)),IF(VLOOKUP(Variables!$AO$3,Variables!$AL$3:$AN$14,3)=2,INDEX(UTCR!K251:U251,1,Variables!$AO$3),INDEX(UTCR!AG251:AQ251,1,Variables!$AO$3))) -> 12517.77018 | O251: =P251-N251 -> 0 | P251: =IF(Variables!$AO$3=12,INDEX(NRO!J251:T251,1,5)+INDEX(NRO!J251:T251,1,8),INDEX(NRO!J251:T251,1,Variables!$AO$3)) -> 12517.77018
A252: 132 | H252: B1 | I252: 8845803.19 | J252: 4322725.231 | L252: =SUBTOTAL(9,L249:L251) -> 6875794.858 | M252: =SUBTOTAL(9,M249:M251) -> 4523024.13 | N252: =SUBTOTAL(9,N249:N251) -> 2352770.728 | O252: =SUBTOTAL(9,O249:O251) -> 0 | P252: =SUBTOTAL(9,P249:P251) -> 2352770.728
A253: 133
A254: 134 | C254: 453 | D254: Water Sales
A255: 135 | F255: =+Function!F255 -> P | G255: =UTCR!H255 -> SG | I255: 53658.17 | J255: 23608.25234 | L255: =IF(VLOOKUP(Variables!$AO$3,Variables!$AL$3:$AN$14,3)=2,UTCR!J255,UTCR!AF255) -> 53658.17 | M255: =L255-N255 -> 30049.91766 | N255: =IF(Variables!$AO$3=12,IF(VLOOKUP(Variables!$AO$3,Variables!$AL$3:$AN$14,3)=2,INDEX(UTCR!K255:U255,1,5)+INDEX(UTCR!K255:U255,1,8),INDEX(UTCR!AG255:AQ255,1,5)+INDEX(UTCR!AG255:AQ255,1,8)),IF(VLOOKUP(Variables!$AO$3,Variables!$AL$3:$AN$14,3)=2,INDEX(UTCR!K255:U255,1,Variables!$AO$3),INDEX(UTCR!AG255:AQ255,1,Variables!$AO$3))) -> 23608.25234 | O255: =P255-N255 -> 0 | P255: =IF(Variables!$AO$3=12,INDEX(NRO!J255:T255,1,5)+INDEX(NRO!J255:T255,1,8),INDEX(NRO!J255:T255,1,Variables!$AO$3)) -> 23608.25234
A256: 136 | H256: B1 | I256: 53658.17 | J256: 23608.25234 | L256: =SUBTOTAL(9,L255) -> 53658.17 | M256: =SUBTOTAL(9,M255) -> 30049.91766 | N256: =SUBTOTAL(9,N255) -> 23608.25234 | O256: =SUBTOTAL(9,O255) -> 0 | P256: =SUBTOTAL(9,P255) -> 23608.25234
A257: 137
A258: 138 | C258: 454 | D258: Rent of Electric Property
A259: 139 | F259: =+Function!F259 -> DPW | G259: =UTCR!H259 -> S | I259: 9431667.03 | J259: 3537422.44 | L259: =IF(VLOOKUP(Variables!$AO$3,Variables!$AL$3:$AN$14,3)=2,UTCR!J259,UTCR!AF259) -> 9868917.03 | M259: =L259-N259 -> 5894244.59 | N259: =IF(Variables!$AO$3=12,IF(VLOOKUP(Variables!$AO$3,Variables!$AL$3:$AN$14,3)=2,INDEX(UTCR!K259:U259,1,5)+INDEX(UTCR!K259:U259,1,8),INDEX(UTCR!AG259:AQ259,1,5)+INDEX(UTCR!AG259:AQ259,1,8)),IF(VLOOKUP(Variables!$AO$3,Variables!$AL$3:$AN$14,3)=2,INDEX(UTCR!K259:U259,1,Variables!$AO$3),INDEX(UTCR!AG259:AQ259,1,Variables!$AO$3))) -> 3974672.44 | O259: =P259-N259 -> 0 | P259: =IF(Variables!$AO$3=12,INDEX(NRO!J259:T259,1,5)+INDEX(NRO!J259:T259,1,8),INDEX(NRO!J259:T259,1,Variables!$AO$3)) -> 3974672.44
A260: 140 | F260: =+Function!F260 -> T | G260: =UTCR!H260 -> SG | I260: 5409673.04 | J260: 2380120.795 | L260: =IF(VLOOKUP(Variables!$AO$3,Variables!$AL$3:$AN$14,3)=2,UTCR!J260,UTCR!AF260) -> 5409673.04 | M260: =L260-N260 -> 3029552.245 | N260: =IF(Variables!$AO$3=12,IF(VLOOKUP(Variables!$AO$3,Variables!$AL$3:$AN$14,3)=2,INDEX(UTCR!K260:U260,1,5)+INDEX(UTCR!K260:U260,1,8),INDEX(UTCR!AG260:AQ260,1,5)+INDEX(UTCR!AG260:AQ260,1,8)),IF(VLOOKUP(Variables!$AO$3,Variables!$AL$3:$AN$14,3)=2,INDEX(UTCR!K260:U260,1,Variables!$AO$3),INDEX(UTCR!AG260:AQ260,1,Variables!$AO$3))) -> 2380120.795 | O260: =P260-N260 -> 0 | P260: =IF(Variables!$AO$3=12,INDEX(NRO!J260:T260,1,5)+INDEX(NRO!J260:T260,1,8),INDEX(NRO!J260:T260,1,Variables!$AO$3)) -> 2380120.795
A261: 141 | F261: =+Function!F261 -> T | G261: =UTCR!H261 -> SG | I261: 0 | J261: 0 | L261: =IF(VLOOKUP(Variables!$AO$3,Variables!$AL$3:$AN$14,3)=2,UTCR!J261,UTCR!AF261) -> 0 | M261: =L261-N261 -> 0 | N261: =IF(Variables!$AO$3=12,IF(VLOOKUP(Variables!$AO$3,Variables!$AL$3:$AN$14,3)=2,INDEX(UTCR!K261:U261,1,5)+INDEX(UTCR!K261:U261,1,8),INDEX(UTCR!AG261:AQ261,1,5)+INDEX(UTCR!AG261:AQ261,1,8)),IF(VLOOKUP(Variables!$AO$3,Variables!$AL$3:$AN$14,3)=2,INDEX(UTCR!K261:U261,1,Variables!$AO$3),INDEX(UTCR!AG261:AQ261,1,Variables!$AO$3))) -> 0 | O261: =P261-N261 -> 0 | P261: =IF(Variables!$AO$3=12,INDEX(NRO!J261:T261,1,5)+INDEX(NRO!J261:T261,1,8),INDEX(NRO!J261:T261,1,Variables!$AO$3)) -> 0
A262: 142 | F262: =+Function!F262 -> GP | G262: =UTCR!H262 -> SO | I262: 2618387.9 | J262: 1136341.874 | L262: =IF(VLOOKUP(Variables!$AO$3,Variables!$AL$3:$AN$14,3)=2,UTCR!J262,UTCR!AF262) -> 2618387.9 | M262: =L262-N262 -> 1477138.384 | N262: =IF(Variables!$AO$3=12,IF(VLOOKUP(Variables!$AO$3,Variables!$AL$3:$AN$14,3)=2,INDEX(UTCR!K262:U262,1,5)+INDEX(UTCR!K262:U262,1,8),INDEX(UTCR!AG262:AQ262,1,5)+INDEX(UTCR!AG262:AQ262,1,8)),IF(VLOOKUP(Variables!$AO$3,Variables!$AL$3:$AN$14,3)=2,INDEX(UTCR!K262:U262,1,Variables!$AO$3),INDEX(UTCR!AG262:AQ262,1,Variables!$AO$3))) -> 1141249.516 | O262: =P262-N262 -> 0 | P262: =IF(Variables!$AO$3=12,INDEX(NRO!J262:T262,1,5)+INDEX(NRO!J262:T262,1,8),INDEX(NRO!J262:T262,1,Variables!$AO$3)) -> 1141249.516
A263: 143 | H263: B1 | I263: 17459727.97 | J263: 7053885.108 | L263: =SUBTOTAL(9,L259:L262) -> 17896977.97 | M263: =SUBTOTAL(9,M259:M262) -> 10400935.22 | N263: =SUBTOTAL(9,N259:N262) -> 7496042.751 | O263: =SUBTOTAL(9,O259:O262) -> 0 | P263: =SUBTOTAL(9,P259:P262) -> 7496042.751
A264: 144
A265: 145
A266: 146
A267: 147 | C267: 456 | D267: Other Electric Revenue
A268: 148 | F268: =+Function!F268 -> DMSC | G268: =UTCR!H268 -> S | I268: 3243617.96 | J268: -4728043.66 | L268: =IF(VLOOKUP(Variables!$AO$3,Variables!$AL$3:$AN$14,3)=2,UTCR!J268,UTCR!AF268) -> 1544605.24 | M268: =L268-N268 -> 6133981.55 | N268: =IF(Variables!$AO$3=12,IF(VLOOKUP(Variables!$AO$3,Variables!$AL$3:$AN$14,3)=2,INDEX(UTCR!K268:U268,1,5)+INDEX(UTCR!K268:U268,1,8),INDEX(UTCR!AG268:AQ268,1,5)+INDEX(UTCR!AG268:AQ268,1,8)),IF(VLOOKUP(Variables!$AO$3,Variables!$AL$3:$AN$14,3)=2,INDEX(UTCR!K268:U268,1,Variables!$AO$3),INDEX(UTCR!AG268:AQ268,1,Variables!$AO$3))) -> -4589376.31 | O268: =P268-N268 -> 0 | P268: =IF(Variables!$AO$3=12,INDEX(NRO!J268:T268,1,5)+INDEX(NRO!J268:T268,1,8),INDEX(NRO!J268:T268,1,Variables!$AO$3)) -> -4589376.31
A269: 149 | F269: =+Function!F269 -> CUST | G269: =UTCR!H269 -> CN | I269: 0 | J269: 0 | L269: =IF(VLOOKUP(Variables!$AO$3,Variables!$AL$3:$AN$14,3)=2,UTCR!J269,UTCR!AF269) -> 0 | M269: =L269-N269 -> 0 | N269: =IF(Variables!$AO$3=12,IF(VLOOKUP(Variables!$AO$3,Variables!$AL$3:$AN$14,3)=2,INDEX(UTCR!K269:U269,1,5)+INDEX(UTCR!K269:U269,1,8),INDEX(UTCR!AG269:AQ269,1,5)+INDEX(UTCR!AG269:AQ269,1,8)),IF(VLOOKUP(Variables!$AO$3,Variables!$AL$3:$AN$14,3)=2,INDEX(UTCR!K269:U269,1,Variables!$AO$3),INDEX(UTCR!AG269:AQ269,1,Variables!$AO$3))) -> 0 | O269: =P269-N269 -> 0 | P269: =IF(Variables!$AO$3=12,INDEX(NRO!J269:T269,1,5)+INDEX(NRO!J269:T269,1,8),INDEX(NRO!J269:T269,1,Variables!$AO$3)) -> 0
A270: 150 | F270: =+Function!F270 -> OTHSE | G270: =UTCR!H270 -> SE | I270: 14558486.44 | J270: 6312007.881 | L270: =IF(VLOOKUP(Variables!$AO$3,Variables!$AL$3:$AN$14,3)=2,UTCR!J270,UTCR!AF270) -> 14558486.44 | M270: =L270-N270 -> 8246478.559 | N270: =IF(Variables!$AO$3=12,IF(VLOOKUP(Variables!$AO$3,Variables!$AL$3:$AN$14,3)=2,INDEX(UTCR!K270:U270,1,5)+INDEX(UTCR!K270:U270,1,8),INDEX(UTCR!AG270:AQ270,1,5)+INDEX(UTCR!AG270:AQ270,1,8)),IF(VLOOKUP(Variables!$AO$3,Variables!$AL$3:$AN$14,3)=2,INDEX(UTCR!K270:U270,1,Variables!$AO$3),INDEX(UTCR!AG270:AQ270,1,Variables!$AO$3))) -> 6312007.881 | O270: =P270-N270 -> 0 | P270: =IF(Variables!$AO$3=12,INDEX(NRO!J270:T270,1,5)+INDEX(NRO!J270:T270,1,8),INDEX(NRO!J270:T270,1,Variables!$AO$3)) -> 6312007.881
A271: 151 | F271: =+Function!F271 -> OTHSO | G271: =UTCR!H271 -> SO | I271: 4419730.09 | J271: 1918097.915 | L271: =IF(VLOOKUP(Variables!$AO$3,Variables!$AL$3:$AN$14,3)=2,UTCR!J271,UTCR!AF271) -> 4419730.09 | M271: =L271-N271 -> 2493348.278 | N271: =IF(Variables!$AO$3=12,IF(VLOOKUP(Variables!$AO$3,Variables!$AL$3:$AN$14,3)=2,INDEX(UTCR!K271:U271,1,5)+INDEX(UTCR!K271:U271,1,8),INDEX(UTCR!AG271:AQ271,1,5)+INDEX(UTCR!AG271:AQ271,1,8)),IF(VLOOKUP(Variables!$AO$3,Variables!$AL$3:$AN$14,3)=2,INDEX(UTCR!K271:U271,1,Variables!$AO$3),INDEX(UTCR!AG271:AQ271,1,Variables!$AO$3))) -> 1926381.812 | O271: =P271-N271 -> 0 | P271: =IF(Variables!$AO$3=12,INDEX(NRO!J271:T271,1,5)+INDEX(NRO!J271:T271,1,8),INDEX(NRO!J271:T271,1,Variables!$AO$3)) -> 1926381.812
A272: 152 | F272: =+Function!F272 -> OTHSGR | G272: =UTCR!H272 -> SG | I272: 117885717.7 | J272: 51866766.45 | L272: =IF(VLOOKUP(Variables!$AO$3,Variables!$AL$3:$AN$14,3)=2,UTCR!J272,UTCR!AF272) -> 130585490.3 | M272: =L272-N272 -> 73131141.66 | N272: =IF(Variables!$AO$3=12,IF(VLOOKUP(Variables!$AO$3,Variables!$AL$3:$AN$14,3)=2,INDEX(UTCR!K272:U272,1,5)+INDEX(UTCR!K272:U272,1,8),INDEX(UTCR!AG272:AQ272,1,5)+INDEX(UTCR!AG272:AQ272,1,8)),IF(VLOOKUP(Variables!$AO$3,Variables!$AL$3:$AN$14,3)=2,INDEX(UTCR!K272:U272,1,Variables!$AO$3),INDEX(UTCR!AG272:AQ272,1,Variables!$AO$3))) -> 57454348.67 | O272: =P272-N272 -> 0 | P272: =IF(Variables!$AO$3=12,INDEX(NRO!J272:T272,1,5)+INDEX(NRO!J272:T272,1,8),INDEX(NRO!J272:T272,1,Variables!$AO$3)) -> 57454348.67
A273: 153
A274: 154
A275: 155 | H275: B1 | I275: 140107552.2 | J275: 55368828.58 | L275: =SUBTOTAL(9,L268:L274) -> 151108312.1 | M275: =SUBTOTAL(9,M268:M274) -> 90004950.04 | N275: =SUBTOTAL(9,N268:N274) -> 61103362.05 | O275: =SUBTOTAL(9,O268:O274) -> 0 | P275: =SUBTOTAL(9,P268:P274) -> 61103362.05
A276: 156
A277: 157 | C277: Total Other Electric Revenues | H277: B1 | I277: 175882372 | J277: 70080471.33 | L277: =SUBTOTAL(9,L244:L275) -> 185350373.5 | M277: =SUBTOTAL(9,M244:M275) -> 111063165.6 | N277: =SUBTOTAL(9,N244:N275) -> 74287207.93 | O277: =SUBTOTAL(9,O244:O275) -> 0 | P277: =SUBTOTAL(9,P244:P275) -> 74287207.93
A278: 158
A279: 159 | C279: Total Electric Operating Revenues | H279: B1 | I279: 5065709138 | J279: 2137078899 | L279: =L277+L242 -> 5134039728 | M279: =M277+M242 -> 2945766464 | N279: =N277+N242 -> 2188273264 | O279: =O277+O242 -> 0 | P279: =P277+P242 -> 2188273264
A280: 160
A281: 161 | C281: Summary of Revenues by Factor
... 2368 more rows

Sheet Results
A1: =VLOOKUP(VLOOKUP(Variables!$AO$3,Variables!$AL$3:'Variables'!$AL$14,1,FALSE),Variables!$AL$3:'Variables'!$AP$14,5,FALSE) -> Rocky Mountain Power | G1: Page 1.0
A2: =Report!I56 -> UTAH
A3: ="Normalized Results of Operations - "&Variables!AE27 -> Normalized Results of Operations - 2020 PROTOCOL
A4: =PROPER(Report!I57) -> Twelve Months Ending December 2021
A7: (1) | B7: ="Test Period "& PROPER(Variables!AE27)&" Revenue Requirement" -> Test Period 2020 Protocol Revenue Requirement | E7: =E43 -> 2020500766 | F7: Page 1.1
A9: (2) | B9: Normalized General Business Revenues | E9: =C43 -> 2001695945 | F9: Page 1.1
A11: (3) | B11: =PROPER(Variables!AE27)&" Price Change" -> 2020 Protocol Price Change | E11: =D43 -> 18804820.67 | F11: Page 1.1
A34: =VLOOKUP(VLOOKUP(Variables!$AO$3,Variables!$AL$3:'Variables'!$AL$14,1,FALSE),Variables!$AL$3:'Variables'!$AP$14,5,FALSE) -> Rocky Mountain Power | G34: Page 1.1
A35: =Report!I56 -> UTAH
A36: ="Normalized Results of Operations - "&Variables!AE27 -> Normalized Results of Operations - 2020 PROTOCOL
A37: =A4 -> Twelve Months Ending December 2021
C39: (1) | D39: (2) | E39: (3)
C40: Total Adjusted | E40: Results with | L40: PREVIOUS | M40: ADJUSTED
C41: Results | D41: Price Change | E41: Price Change | L41: RESULTS | M41: RESULTS | N41: DIFFERENCE
A42: 1 | B42: Operating Revenues: | J42: 1 | K42: Operating Revenues:
A43: 2 | B43: General Business Revenues | C43: =Report!P118 -> 2001695945 | D43: =-(C74-(C102*Report!J96))*(1/NetToGross) -> 18804820.67 | E43: =SUM(C43:D43) -> 2020500766 | J43: 2 | K43: General Business Revenues | L43: 2001695945 | M43: =C43 -> 2001695945 | N43: =M43-L43 -> 0
A44: 3 | B44: Interdepartmental | C44: =Report!P119 -> 0 | J44: 3 | K44: Interdepartmental | L44: 0 | M44: =C44 -> 0 | N44: =M44-L44 -> 0
A45: 4 | B45: Special Sales | C45: =Report!P120 -> 112290110.7 | J45: 4 | K45: Special Sales | L45: 112290110.7 | M45: =C45 -> 112290110.7 | N45: =M45-L45 -> 0
A46: 5 | B46: Other Operating Revenues | C46: =Report!P121 -> 74287207.93 | J46: 5 | K46: Other Operating Revenues | L46: 74287207.93 | M46: =C46 -> 74287207.93 | N46: =M46-L46 -> 0
A47: 6 | B47: Total Operating Revenues | C47: =SUM(C43:C46) -> 2188273264 | J47: 6 | K47: Total Operating Revenues | L47: 2188273264 | M47: =C47 -> 2188273264 | N47: =M47-L47 -> 0
A48: 7 | J48: 7
A49: 8 | B49: Operating Expenses: | J49: 8 | K49: Operating Expenses:
A50: 9 | B50: Steam Production | C50: =Report!P125 -> 393829944.4 | J50: 9 | K50: Steam Production | L50: 393829944.4 | M50: =C50 -> 393829944.4 | N50: =M50-L50 -> 0
A51: 10 | B51: Nuclear Production | C51: =Report!P126 -> 0 | J51: 10 | K51: Nuclear Production | L51: 0 | M51: 0 | N51: 0
A52: 11 | B52: Hydro Production | C52: =Report!P127 -> 20252471.49 | J52: 11 | K52: Hydro Production | L52: 20252471.49 | M52: 20252471.49 | N52: 0
A53: 12 | B53: Other Power Supply | C53: =Report!P128 -> 441505802.6 | J53: 12 | K53: Other Power Supply | L53: 441505802.6 | M53: 441505802.6 | N53: 0
A54: 13 | B54: Transmission | C54: =Report!P129 -> 97790013.51 | J54: 13 | K54: Transmission | L54: 97790013.51 | M54: 97790013.51 | N54: 0
A55: 14 | B55: Distribution | C55: =Report!P130 -> 91150977.97 | J55: 14 | K55: Distribution | L55: 91150977.97 | M55: =C55 -> 91150977.97 | N55: 0
A56: 15 | B56: Customer Accounting | C56: =Report!P131 -> 35432367.49 | D56: =D43*UncollectibleAccounts -> 36812.54074 | E56: =SUM(C56:D56) -> 35469180.03 | J56: 15 | K56: Customer Accounting | L56: 35432367.49 | M56: 35432367.49 | N56: 0
A57: 16 | B57: Customer Service & Info | C57: =Report!P132 -> 6935917.442 | J57: 16 | K57: Customer Service & Info | L57: 6935917.442 | M57: 6935917.442 | N57: 0
A58: 17 | B58: Sales | C58: =Report!P133 -> 0 | J58: 17 | K58: Sales | L58: 0 | M58: 0 | N58: 0
A59: 18 | B59: Administrative & General | C59: =Report!P134 -> 54691997.75 | J59: 18 | K59: Administrative & General | L59: 54691997.75 | M59: 54691997.75 | N59: 0
A60: 19 | J60: 19
A61: 20 | B61: Total O&M Expenses | C61: =Report!P136 -> 1141589493 | J61: 20 | K61: Total O&M Expenses | L61: 1141589493 | M61: =C61 -> 1141589493 | N61: =M61-L61 -> 0
A62: 21 | J62: 21
A63: 22 | B63: Depreciation | C63: =Report!P138 -> 432146050 | J63: 22 | K63: Depreciation | L63: 432146050 | M63: =C63 -> 432146050 | N63: =M63-L63 -> 0
A64: 23 | B64: Amortization | C64: =Report!P139 -> 6589987.528 | J64: 23 | K64: Amortization | L64: 6589987.528 | M64: 6589987.528 | N64: 0
A65: 24 | B65: Taxes Other Than Income | C65: =Report!P140 -> 78246348.33 | D65: =((D43)*(FranchiseTax+RevenueTax+ResourceSupplier+PUCFees)) -> 56414.46201 | E65: =SUM(C65:D65) -> 78302762.79 | J65: 24 | K65: Taxes Other Than Income | L65: 78246348.33 | M65: 78246348.33 | N65: 0
A66: 25 | B66: Income Taxes - Federal | C66: =Report!P141 -> -67062699.92 | D66: =(D43-D56-D65-D67)*Report!J78 -> 3751038.336 | E66: =SUM(C66:D66) -> -63311661.59 | J66: 25 | K66: Income Taxes - Federal | L66: -67062699.92 | M66: -67062699.92 | N66: 0
A67: 26 | B67: Income Taxes - State | C67: =Report!P142 -> 4091611.447 | D67: =(D43-D56-D65)*Report!J79 -> 849506.3524 | E67: =SUM(C67:D67) -> 4941117.799 | J67: 26 | K67: Income Taxes - State | L67: 4091611.447 | M67: 4091611.447 | N67: 0
A68: 27 | B68: Income Taxes - Def Net | C68: =Report!P143 -> 52320516.82 | J68: 27 | K68: Income Taxes - Def Net | L68: 52320516.82 | M68: 52320516.82 | N68: 0
A69: 28 | B69: Investment Tax Credit Adj. | C69: =Report!P144 -> -1117293.714 | J69: 28 | K69: Investment Tax Credit Adj. | L69: -1117293.714 | M69: -1117293.714 | N69: 0
A70: 29 | B70: Misc Revenue & Expense | C70: =Report!P145 -> 212024.1159 | J70: 29 | K70: Misc Revenue & Expense | L70: 212024.1159 | M70: =C70 -> 212024.1159 | N70: 0
A71: 30 | J71: 30
A72: 31 | B72: Total Operating Expenses: | C72: =Report!P147 -> 1647016037 | D72: =SUM(D56,D65:D67) -> 4693771.691 | E72: =C72+D72 -> 1651709809 | J72: 31 | K72: Total Operating Expenses: | L72: 1647016037 | M72: =C72 -> 1647016037 | N72: =M72-L72 -> 0
A73: 32 | J73: 32
A74: 33 | B74: Operating Rev For Return: | C74: =C47-C72 -> 541257226.9 | D74: =D43-D72 -> 14111048.98 | E74: =(C74+D43-D56-D65-D66-D67) -> 555368275.9 | J74: 33 | K74: Operating Rev For Return: | L74: 541257226.9 | M74: =C74 -> 541257226.9 | N74: =M74-L74 -> 0
A75: 34 | J75: 34
A76: 35 | B76: Rate Base: | J76: 35 | K76: Rate Base:
A77: 36 | B77: Electric Plant In Service | C77: =Report!P152 -> 1.370308086e+10 | J77: 36 | K77: Electric Plant In Service | L77: 1.370308086e+10 | M77: =C77 -> 1.370308086e+10 | N77: =M77-L77 -> 0
A78: 37 | B78: Plant Held for Future Use | C78: =Report!P153 -> 6357563.966 | J78: 37 | K78: Plant Held for Future Use | L78: 6357563.966 | M78: 6357563.966 | N78: 0
A79: 38 | B79: Misc Deferred Debits | C79: =Report!P154 -> 258956012.6 | J79: 38 | K79: Misc Deferred Debits | L79: 258956012.6 | M79: 258956012.6 | N79: 0
A80: 39 | B80: Elec Plant Acq Adj | C80: =Report!P155 -> 12824731.74 | J80: 39 | K80: Elec Plant Acq Adj | L80: 12824731.74 | M80: 12824731.74 | N80: 0
A81: 40 | B81: Nuclear Fuel | C81: =Report!P156 -> 15186767.67 | J81: 40 | K81: Pensions | L81: 15186767.67 | M81: 15186767.67 | N81: 0
A82: 41 | B82: Prepayments | C82: =Report!P157 -> 16437130.37 | J82: 41 | K82: Prepayments | L82: 16437130.37 | M82: 16437130.37 | N82: 0
A83: 42 | B83: Fuel Stock | C83: =Report!P158 -> 74344484.22 | J83: 42 | K83: Fuel Stock | L83: 74344484.22 | M83: 74344484.22 | N83: 0
A84: 43 | B84: Material & Supplies | C84: =Report!P159 -> 101321806.5 | J84: 43 | K84: Material & Supplies | L84: 101321806.5 | M84: 101321806.5 | N84: 0
A85: 44 | B85: Working Capital | C85: =Report!P160 -> 12818051.15 | J85: 44 | K85: Working Capital | L85: 12818051.15 | M85: 12818051.15 | N85: 0
A86: 45 | B86: Weatherization Loans | C86: =Report!P161 -> -0.5273901222 | J86: 45 | K86: Weatherization Loans | L86: -0.5273901222 | M86: -0.5273901222 | N86: 0
A87: 46 | B87: Misc Rate Base | C87: =Report!P162 -> 0 | J87: 46 | K87: Misc Rate Base | L87: 0 | M87: 0 | N87: 0
A88: 47 | J88: 47
A89: 48 | B89: Total Electric Plant: | C89: =Report!P164 -> 1.42013274e+10 | D89: 0 | E89: =SUM(C89:D89) -> 1.42013274e+10 | J89: 48 | K89: Total Electric Plant: | L89: 1.42013274e+10 | M89: =C89 -> 1.42013274e+10 | N89: =M89-L89 -> 0
A90: 49 | J90: 49
A91: 50 | B91: Rate Base Deductions: | J91: 50 | K91: Rate Base Deductions:
A92: 51 | B92: Accum Prov For Deprec | C92: =Report!P167 -> -4199936296 | J92: 51 | K92: Accum Prov For Deprec | L92: -4199936296 | M92: =C92 -> -4199936296 | N92: =M92-L92 -> 0
A93: 52 | B93: Accum Prov For Amort | C93: =Report!P168 -> -276153828.1 | J93: 52 | K93: Accum Prov For Amort | L93: -276153828.1 | M93: -276153828.1 | N93: 0
A94: 53 | B94: Accum Def Income Tax | C94: =Report!P169 -> -1170687403 | J94: 53 | K94: Accum Def Income Tax | L94: -1170687403 | M94: -1170687403 | N94: 0
A95: 54 | B95: Unamortized ITC | C95: =Report!P170 -> -84977.08456 | J95: 54 | K95: Unamortized ITC | L95: -84977.08456 | M95: -84977.08456 | N95: 0
A96: 55 | B96: Customer Adv For Const | C96: =Report!P171 -> -38042159.69 | J96: 55 | K96: Customer Adv For Const | L96: -38042159.69 | M96: -38042159.69 | N96: 0
A97: 56 | B97: Customer Service Deposits | C97: =Report!P172 -> -16275584.48 | J97: 56 | K97: Customer Service Deposits | L97: -16275584.48 | M97: -16275584.48 | N97: 0
A98: 57 | B98: Misc Rate Base Deductions | C98: =Report!P173 -> -779344816.4 | J98: 57 | K98: Misc Rate Base Deductions | L98: -779344816.4 | M98: -779344816.4 | N98: 0
A99: 58 | J99: 58
A100: 59 | B100: Total Rate Base Deductions | C100: =Report!P175 -> -6480525064 | D100: 0 | E100: =SUM(C100:D100) -> -6480525064 | J100: 59 | K100: Total Rate Base Deductions | L100: -6480525064 | M100: =C100 -> -6480525064 | N100: =M100-L100 -> 0
A101: 60 | J101: 60
A102: 61 | B102: Total Rate Base: | C102: =SUM(C89,C100) -> 7720802340 | D102: 0 | E102: =SUM(C102:D102) -> 7720802340 | J102: 61 | K102: Total Rate Base: | L102: 7720802340 | M102: =C102 -> 7720802340 | N102: =M102-L102 -> 0
A103: 62 | J103: 62
A104: 63 | B104: Return on Rate Base | C104: =C74/C102 -> 0.07010375386 | E104: =E74/E102 -> 0.07193142 | J104: 63 | K104: Return on Rate Base | L104: 0.07010375386 | M104: =C104 -> 0.07010375386 | N104: =M104-L104 -> 0
A105: 64 | J105: 64
A106: 65 | B106: Return on Equity | C106: =(+C104-Report!$J$93-Report!$J$94)/Report!$G$95 -> 0.08909462244 | E106: =(+E104-Report!$J$93-Report!$J$94)/Report!$G$95 -> 0.0925 | J106: 65 | K106: Return on Equity | L106: 0.08909462244 | M106: =C106 -> 0.08909462244 | N106: =M106-L106 -> 0
A107: 66 | J107: 66
A108: 67 | B108: TAX CALCULATION: | J108: 67 | K108: TAX CALCULATION:
A109: 68 | B109: Operating Revenue | C109: =C47-C61-C63-C64-C65-C70 -> 529489361.5 | D109: =D43-D56-D65 -> 18711593.67 | E109: =SUM(C109:D109) -> 548200955.2 | J109: 68 | K109: Operating Revenue | L109: 529489361.5 | M109: =C109 -> 529489361.5 | N109: =M109-L109 -> 0
A110: 69 | B110: Other Deductions | J110: 69 | K110: Other Deductions
A111: 70 | B111: Interest (AFUDC) | C111: =Report!P1310 -> -20255524.34 | D111: 0 | E111: =SUM(C111:D111) -> -20255524.34 | J111: 70 | K111: Interest (AFUDC) | L111: -20255524.34 | M111: =C111 -> -20255524.34 | N111: =M111-L111 -> 0
A112: 71 | B112: Interest | C112: =Report!P1294 -> 168838358.8 | D112: 0 | E112: =SUM(C112:D112) -> 168838358.8 | J112: 71 | K112: Interest | L112: 168838358.8 | M112: =C112 -> 168838358.8 | N112: =M112-L112 -> 0
A113: 72 | B113: Schedule "M" Additions | C113: =Report!P1389 -> 521536465.3 | D113: 0 | E113: =SUM(C113:D113) -> 521536465.3 | J113: 72 | K113: Schedule "M" Additions | L113: 521536465.3 | M113: =C113 -> 521536465.3 | N113: =M113-L113 -> 0
A114: 73 | B114: Schedule "M" Deductions | C114: =Report!P1420 -> 812319392.2 | D114: 0 | E114: =SUM(C114:D114) -> 812319392.2 | J114: 73 | K114: Schedule "M" Deductions | L114: 812319392.2 | M114: =C114 -> 812319392.2 | N114: =M114-L114 -> 0
A115: 74 | B115: Income Before Tax | C115: =C109-C111-C112+C113-C114 -> 90123600.15 | D115: =D109-D111-D112+D113-D114 -> 18711593.67 | E115: =E109-E111-E112+E113-E114 -> 108835193.8 | J115: 74 | K115: Income Before Tax | L115: 90123600.15 | M115: =C115 -> 90123600.15 | N115: =M115-L115 -> 0
A116: 75 | J116: 75
A117: 76 | B117: State Income Taxes | C117: =C67 -> 4091611.447 | D117: =D67 -> 849506.3524 | E117: =SUM(C117:D117) -> 4941117.799 | J117: 76 | K117: State Income Taxes | L117: 4091611.447 | M117: =C117 -> 4091611.447 | N117: =M117-L117 -> 0
A118: 77 | B118: Taxable Income | C118: =C115-C117 -> 86031988.71 | D118: =D115-D117 -> 17862087.31 | E118: =E115-E117 -> 103894076 | J118: 77 | K118: Taxable Income | L118: 86031988.71 | M118: =C118 -> 86031988.71 | N118: =M118-L118 -> 0
A119: 78 | J119: 78
A120: 79 | B120: Federal Income Taxes + Other | C120: =C66 -> -67062699.92 | D120: =D66 -> 3751038.336 | E120: =SUM(C120:D120) -> -63311661.59 | J120: 79 | K120: Federal Income Taxes + Other | L120: -67062699.92 | M120: =C120 -> -67062699.92 | N120: =M120-L120 -> 0
C122: Ref. Page 2.0 | K122: PRICE CHANGE | L122: 18804820.67 | M122: =D43 -> 18804820.67 | N122: =M122-L122 -> 0
A124: =A34 -> Rocky Mountain Power | G124: Page 1.2
A125: =+A35 -> UTAH
A126: =A36 -> Normalized Results of Operations - 2020 PROTOCOL
A127: =A4 -> Twelve Months Ending December 2021
B131: Net Rate Base | D131: =C102 -> 7720802340 | E131: Ref. Page 1.1
B132: Return on Rate Base Requested | D132: =Report!J96 -> 0.07193142 | E132: Ref. Page 2.1
B134: Revenues Required to Earn Requested Return | D134: =E74 -> 555368275.9 | E134: Ref. Page 1.1
B135: Less Current Operating Revenues | D135: =-C74 -> -541257226.9 | E135: Ref. Page 1.1
B137: Increase to Current Revenues | D137: =D134+D135 -> 14111048.98
B138: Net to Gross Bump-up | D138: =1/NetToGross -> 1.332630955
B140: Price Change Required for Requested Return | D140: =D43 -> 18804820.67 | E140: Ref. Page 1.1
B143: Requested Price Change | D143: =D140 -> 18804820.67
B144: Uncollectible Percent | D144: =UncollectibleAccounts -> 0.001957611901 | E144: Ref. Page 1.3
B145: Increased Uncollectible Expense | D145: =D143*D144 -> 36812.54074
B148: Requested Price Change | D148: =D140 -> 18804820.67
B149: Franchise Tax | D149: =FranchiseTax -> 0 | E149: Ref. Page 1.3
B150: Revenue Tax | D150: =RevenueTax -> 0 | E150: Ref. Page 1.3
B151: Resource Supplier Tax | D151: =ResourceSupplier -> 0 | E151: Ref. Page 1.3
B152: PUC Fees Based on General Business Revenues | D152: =PUCFees -> 0.003 | E152: Ref. Page 1.3
B153: Increase Taxes Other Than Income | D153: =SUM(D149:D152)*D148 -> 56414.46201
B156: Requested Price Change | D156: =D140 -> 18804820.67
B157: Uncollectible Expense | D157: =-D145 -> -36812.54074 | E157: Ref. Page 1.1
B158: Taxes Other Than Income | D158: =-D153 -> -56414.46201
B159: Income Before Taxes | D159: =SUM(D156:D158) -> 18711593.67
B161: State Effective Tax Rate | D161: =+Report!J79 -> 0.0454 | E161: Ref. Page 2.0
B162: State Income Taxes | D162: =D159*D161 -> 849506.3524
B164: Taxable Income | D164: =D159-D162 -> 17862087.31
B165: Federal Income Tax Rate | D165: =+Report!J78 -> 0.21 | E165: Ref. Page 2.0
B166: Federal Income Taxes | D166: =D164*D165 -> 3751038.336
B169: Operating Income | D169: 1
B170: Net Operating Income | D170: =D200 -> 0.7503952963 | E170: Ref. Page 1.3
B171: Net to Gross Bump-Up | D171: =D169/D170 -> 1.332630955
A176: =A$34 -> Rocky Mountain Power | G176: Page 1.3
A177: =A$35 -> UTAH
A178: =A$36 -> Normalized Results of Operations - 2020 PROTOCOL
A179: =A4 -> Twelve Months Ending December 2021
A183: Operating Revenue | D183: 1
A185: Operating Deductions
A186: Uncollectible Accounts | D186: =UncollectibleAccounts -> 0.001957611901 | E186: See Note (1) Below
A187: Taxes Other - Franchise Tax | D187: =FranchiseTax -> 0
A188: Taxes Other - Revenue Tax | D188: =RevenueTax -> 0
A189: Taxes Other - Resource Supplier | D189: =ResourceSupplier -> 0
A190: PUC Fees Based on General Business Revenues | D190: =PUCFees -> 0.003
A192: Sub-Total | D192: =D183-SUM(D185:D190) -> 0.9950423881
A194: State Income Tax @ 4.54% | D194: =D192*Report!J79 -> 0.04517492442
A196: Sub-Total | D196: =D192-D194 -> 0.9498674637
A198: Federal Income Tax @ 21.00% | D198: =D196*Report!J78 -> 0.1994721674
A200: Net Operating Income | D200: =D196-D198 -> 0.7503952963
B203: (1) Uncollectible Accounts = | C203: =Report!N901 -> 3918543.805 | D203: =+"Pg 2.11, "& Report!I56&" Situs from Account 904" -> Pg 2.11, UTAH Situs from Account 904
C204: =Report!N118 -> 2001695945 | D204: Pg. 2.2, General Business Revenues

Sheet UTCR
E1: =VLOOKUP(VLOOKUP(Variables!$AO$3,Variables!$AL$3:'Variables'!$AL$14,1,FALSE),Variables!$AL$3:'Variables'!$AP$14,5,FALSE) -> Rocky Mountain Power | AA1: =+E1 -> Rocky Mountain Power | AS1: PITA ALLOCATION STEPS | BH1: INTERNAL CHECKS | CF1: INTERNAL CHECKS
E2: JURISDICTIONAL CAPITAL STRUCTURE | AA2: JURISDICTIONAL CAPITAL STRUCTURE | BH2: YEAR END BALANCES | CF2: THIRTEEN-MONTH AVERAGE BALANCES
E4: Description | J4: TOTAL | K4: California | L4: Oregon | M4: Washington | N4: Montana | O4: Wyo-PPL | P4: Utah | Q4: Idaho | R4: Wyo-UPL | S4: FERC | T4: OTHER | U4: NON-REGULATED | AA4: Description | AF4: TOTAL | AG4: California | AH4: Oregon | AI4: Washington | AJ4: Montana | AK4: Wyo-PPL | AL4: Utah | AM4: Idaho | AN4: Wyo-UPL | AO4: FERC | AP4: OTHER | AQ4: NON-REGULATED | BH4: Download Total | BK4: =Checksumend -> 3.021402381e+10 | BM4: Account Comparison | CF4: Download Total | CG4: =Checksumavg -> 3.021402381e+10 | CI4: Account Comparison
E5: Debt | J5: =Variables!$E3 -> 0.4632 | K5: =Variables!$F3 -> 0.4632 | L5: =Variables!$G3 -> 0.4632 | M5: =Variables!$H3 -> 0.4632 | N5: =Variables!$I3 -> 0.4632 | O5: =Variables!$J3 -> 0.4632 | P5: =Variables!$K3 -> 0.4632 | Q5: =Variables!$L3 -> 0.4632 | R5: =Variables!$M3 -> 0.4632 | S5: =Variables!$N3 -> 0.4632 | AA5: Debt | AF5: =Variables!$E3 -> 0.4632 | AG5: =Variables!$F3 -> 0.4632 | AH5: =Variables!$G3 -> 0.4632 | AI5: =Variables!$H3 -> 0.4632 | AJ5: =Variables!$I3 -> 0.4632 | AK5: =Variables!$J3 -> 0.4632 | AL5: =Variables!$K3 -> 0.4632 | AM5: =Variables!$L3 -> 0.4632 | AN5: =Variables!$M3 -> 0.4632 | AO5: =Variables!$N3 -> 0.4632
E6: Embedded Cost | J6: =Variables!$E7 -> 0.0481 | K6: =Variables!$F7 -> 0.0481 | L6: =Variables!$G7 -> 0.0481 | M6: =Variables!$H7 -> 0.0481 | N6: =Variables!$I7 -> 0.0481 | O6: =Variables!$J7 -> 0.0481 | P6: =Variables!$K7 -> 0.0481 | Q6: =Variables!$L7 -> 0.0481 | R6: =Variables!$M7 -> 0.0481 | S6: =Variables!N7 -> 0.0481 | AA6: Embedded Cost | AF6: =Variables!$E7 -> 0.0481 | AG6: =Variables!$F7 -> 0.0481 | AH6: =Variables!$G7 -> 0.0481 | AI6: =Variables!$H7 -> 0.0481 | AJ6: =Variables!$I7 -> 0.0481 | AK6: =Variables!$J7 -> 0.0481 | AL6: =Variables!$K7 -> 0.0481 | AM6: =Variables!$L7 -> 0.0481 | AN6: =Variables!$M7 -> 0.0481 | AO6: =Variables!N7 -> 0.0481 | BH6: Revenues Summary | BK6: =-J279 -> -5134039728 | BM6: 440 | BN6: =SUMIF(Inputs!$B$3:$B$2156,BM6,Inputs!$D$3:$D$2156)-J194 -> 0 | BO6: 524 | BP6: =SUMIF(Inputs!$B$3:$B$2156,BO6,Inputs!$D$3:$D$2156)-J449 -> 0 | BQ6: 568 | BR6: =SUMIF(Inputs!$B$3:$B$2156,BQ6,Inputs!$D$3:$D$2156)-J747 -> 0 | BS6: 913 | BT6: =SUMIF(Inputs!$B$3:$B$2156,BS6,Inputs!$D$3:$D$2156)-J965 -> 0 | BU6: 404IP | BV6: =SUMIF(Inputs!$B$3:$B$2156,BU6,Inputs!$D$3:$D$2156)-J1186 -> 0 | BW6: 321 | BX6: =SUMIF(Inputs!$B$3:$B$2156,BW6,Inputs!$D$3:$D$2156)-J1539 -> 0 | BY6: 365 | BZ6: =SUMIF(Inputs!$B$3:$B$2156,BY6,Inputs!$D$3:$D$2156)-J1814 -> 0 | CA6: 151 | CB6: =SUMIF(Inputs!$B$3:$B$2156,CA6,Inputs!$D$3:$D$2156)-J2160 -> 0 | CC6: 108SP | CD6: =SUMIF(Inputs!$B$3:$B$2156,CC6,Inputs!$D$3:$D$2156)-J2404 -> 0 | CF6: Revenues Summary | CG6: =-AF279 -> -5134039728 | CI6: 440 | CJ6: =SUMIF(Inputs!$G$3:$G$2156,CI6,Inputs!$I$3:$I$2156)-AF194 -> 0 | CK6: 524 | CL6: =SUMIF(Inputs!$G$3:$G$2156,CK6,Inputs!$I$3:$I$2156)-AF449 -> 0 | CM6: 568 | CN6: =SUMIF(Inputs!$G$3:$G$2156,CM6,Inputs!$I$3:$I$2156)-AF747 -> 0 | CO6: 913 | CP6: =SUMIF(Inputs!$G$3:$G$2156,CO6,Inputs!$I$3:$I$2156)-AF965 -> 0 | CQ6: 404IP | CR6: =SUMIF(Inputs!$G$3:$G$2156,CQ6,Inputs!$I$3:$I$2156)-AF1186 -> 0 | CS6: 321 | CT6: =SUMIF(Inputs!$G$3:$G$2156,CS6,Inputs!$I$3:$I$2156)-AF1539 -> 0 | CU6: 365 | CV6: =SUMIF(Inputs!$G$3:$G$2156,CU6,Inputs!$I$3:$I$2156)-AF1814 -> 0 | CW6: 151 | CX6: =SUMIF(Inputs!$G$3:$G$2156,CW6,Inputs!$I$3:$I$2156)-AF2160 -> 0 | CY6: 108SP | CZ6: =SUMIF(Inputs!$G$3:$G$2156,CY6,Inputs!$I$3:$I$2156)-AF2404 -> 0
E7: Debt Weighted Cost | J7: =J5*J6 -> 0.02227992 | K7: 0.02227992 | L7: 0.02227992 | M7: 0.02227992 | N7: 0.02227992 | O7: =O5*O6 -> 0.02227992 | P7: 0.02227992 | Q7: 0.02227992 | R7: 0.02227992 | S7: =S5*S6 -> 0.02227992 | AA7: Debt Weighted Cost | AF7: =AF5*AF6 -> 0.02227992 | AG7: =AG5*AG6 -> 0.02227992 | AH7: 0.02227992 | AI7: 0.02227992 | AJ7: 0.02227992 | AK7: 0.02227992 | AL7: 0.02227992 | AM7: 0.02227992 | AN7: 0.02227992 | AO7: =AO5*AO6 -> 0.02227992 | BM7: 442 | BN7: =SUMIF(Inputs!$B$3:$B$2156,BM7,Inputs!$D$3:$D$2156)-J202 -> 0 | BO7: 528 | BP7: =SUMIF(Inputs!$B$3:$B$2156,BO7,Inputs!$D$3:$D$2156)-J453 -> 0 | BQ7: 569 | BR7: =SUMIF(Inputs!$B$3:$B$2156,BQ7,Inputs!$D$3:$D$2156)-J752 -> 0 | BS7: 916 | BT7: =SUMIF(Inputs!$B$3:$B$2156,BS7,Inputs!$D$3:$D$2156)-J970 -> 0 | BU7: 404MP | BV7: =SUMIF(Inputs!$B$3:$B$2156,BU7,Inputs!$D$3:$D$2156)-J1190 -> 0 | BW7: 322 | BX7: =SUMIF(Inputs!$B$3:$B$2156,BW7,Inputs!$D$3:$D$2156)-J1544 -> 0 | BY7: 366 | BZ7: =SUMIF(Inputs!$B$3:$B$2156,BY7,Inputs!$D$3:$D$2156)-J1818 -> 0 | CA7: 152 | CB7: =SUMIF(Inputs!$B$3:$B$2156,CA7,Inputs!$D$3:$D$2156)-J2164 -> 0 | CC7: 108NP | CD7: =SUMIF(Inputs!$B$3:$B$2156,CC7,Inputs!$D$3:$D$2156)-J2410 -> 0 | CI7: 442 | CJ7: =SUMIF(Inputs!$G$3:$G$2156,CI7,Inputs!$I$3:$I$2156)-AF202 -> 0 | CK7: 528 | CL7: =SUMIF(Inputs!$G$3:$G$2156,CK7,Inputs!$I$3:$I$2156)-AF453 -> 0 | CM7: 569 | CN7: =SUMIF(Inputs!$G$3:$G$2156,CM7,Inputs!$I$3:$I$2156)-AF752 -> 0 | CO7: 916 | CP7: =SUMIF(Inputs!$G$3:$G$2156,CO7,Inputs!$I$3:$I$2156)-AF970 -> 0 | CQ7: 404MP | CR7: =SUMIF(Inputs!$G$3:$G$2156,CQ7,Inputs!$I$3:$I$2156)-AF1190 -> 0 | CS7: 322 | CT7: =SUMIF(Inputs!$G$3:$G$2156,CS7,Inputs!$I$3:$I$2156)-AF1544 -> 0 | CU7: 366 | CV7: =SUMIF(Inputs!$G$3:$G$2156,CU7,Inputs!$I$3:$I$2156)-AF1818 -> 0 | CW7: 152 | CX7: =SUMIF(Inputs!$G$3:$G$2156,CW7,Inputs!$I$3:$I$2156)-AF2164 -> 0 | CY7: 108NP | CZ7: =SUMIF(Inputs!$G$3:$G$2156,CY7,Inputs!$I$3:$I$2156)-AF2410 -> 0
BH8: Steam O&M | BK8: =-J423 -> -908135848.2 | BM8: 444 | BN8: =SUMIF(Inputs!$B$3:$B$2156,BM8,Inputs!$D$3:$D$2156)-J207 -> 0 | BO8: 529 | BP8: =SUMIF(Inputs!$B$3:$B$2156,BO8,Inputs!$D$3:$D$2156)-J457 -> 0 | BQ8: 570 | BR8: =SUMIF(Inputs!$B$3:$B$2156,BQ8,Inputs!$D$3:$D$2156)-J757 -> 0 | BS8: 920 | BT8: =SUMIF(Inputs!$B$3:$B$2156,BS8,Inputs!$D$3:$D$2156)-J985 -> 0 | BU8: 404OP | BV8: =SUMIF(Inputs!$B$3:$B$2156,BU8,Inputs!$D$3:$D$2156)-J1194 -> 0 | BW8: 323 | BX8: =SUMIF(Inputs!$B$3:$B$2156,BW8,Inputs!$D$3:$D$2156)-J1549 -> 0 | BY8: 367 | BZ8: =SUMIF(Inputs!$B$3:$B$2156,BY8,Inputs!$D$3:$D$2156)-J1825 -> 0 | CA8: 25316 | CB8: =SUMIF(Inputs!$B$3:$B$2156,CA8,Inputs!$D$3:$D$2156)-J2168 -> 0 | CC8: 108HP | CD8: =SUMIF(Inputs!$B$3:$B$2156,CC8,Inputs!$D$3:$D$2156)-J2419 -> 0 | CF8: Steam O&M | CG8: =-AF423 -> -908135848.2 | CI8: 444 | CJ8: =SUMIF(Inputs!$G$3:$G$2156,CI8,Inputs!$I$3:$I$2156)-AF207 -> 0 | CK8: 529 | CL8: =SUMIF(Inputs!$G$3:$G$2156,CK8,Inputs!$I$3:$I$2156)-AF457 -> 0 | CM8: 570 | CN8: =SUMIF(Inputs!$G$3:$G$2156,CM8,Inputs!$I$3:$I$2156)-AF757 -> 0 | CO8: 920 | CP8: =SUMIF(Inputs!$G$3:$G$2156,CO8,Inputs!$I$3:$I$2156)-AF985 -> 0 | CQ8: 404OP | CR8: =SUMIF(Inputs!$G$3:$G$2156,CQ8,Inputs!$I$3:$I$2156)-AF1194 -> 0 | CS8: 323 | CT8: =SUMIF(Inputs!$G$3:$G$2156,CS8,Inputs!$I$3:$I$2156)-AF1549 -> 0 | CU8: 367 | CV8: =SUMIF(Inputs!$G$3:$G$2156,CU8,Inputs!$I$3:$I$2156)-AF1825 -> 0 | CW8: 25316 | CX8: =SUMIF(Inputs!$G$3:$G$2156,CW8,Inputs!$I$3:$I$2156)-AF2168 -> 0 | CY8: 108HP | CZ8: =SUMIF(Inputs!$G$3:$G$2156,CY8,Inputs!$I$3:$I$2156)-AF2419 -> 0
BH9: Nuclear O&M | BK9: =-J471 -> 0 | BM9: 445 | BN9: =SUMIF(Inputs!$B$3:$B$2156,BM9,Inputs!$D$3:$D$2156)-J212 -> 0 | BO9: 530 | BP9: =SUMIF(Inputs!$B$3:$B$2156,BO9,Inputs!$D$3:$D$2156)-J461 -> 0 | BQ9: 571 | BR9: =SUMIF(Inputs!$B$3:$B$2156,BQ9,Inputs!$D$3:$D$2156)-J763 -> 0 | BS9: 921 | BT9: =SUMIF(Inputs!$B$3:$B$2156,BS9,Inputs!$D$3:$D$2156)-J991 -> 0 | BU9: 404HP | BV9: =SUMIF(Inputs!$B$3:$B$2156,BU9,Inputs!$D$3:$D$2156)-J1201 -> 0 | BW9: 324 | BX9: =SUMIF(Inputs!$B$3:$B$2156,BW9,Inputs!$D$3:$D$2156)-J1554 -> 0 | BY9: 368 | BZ9: =SUMIF(Inputs!$B$3:$B$2156,BY9,Inputs!$D$3:$D$2156)-J1829 -> 0 | CA9: 25317 | CB9: =SUMIF(Inputs!$B$3:$B$2156,CA9,Inputs!$D$3:$D$2156)-J2172 -> 0 | CC9: 108OP | CD9: =SUMIF(Inputs!$B$3:$B$2156,CC9,Inputs!$D$3:$D$2156)-J2427 -> 0 | CF9: Nuclear O&M | CG9: =-AF471 -> 0 | CI9: 445 | CJ9: =SUMIF(Inputs!$G$3:$G$2156,CI9,Inputs!$I$3:$I$2156)-AF212 -> 0 | CK9: 530 | CL9: =SUMIF(Inputs!$G$3:$G$2156,CK9,Inputs!$I$3:$I$2156)-AF461 -> 0 | CM9: 571 | CN9: =SUMIF(Inputs!$G$3:$G$2156,CM9,Inputs!$I$3:$I$2156)-AF763 -> 0 | CO9: 921 | CP9: =SUMIF(Inputs!$G$3:$G$2156,CO9,Inputs!$I$3:$I$2156)-AF991 -> 0 | CQ9: 404HP | CR9: =SUMIF(Inputs!$G$3:$G$2156,CQ9,Inputs!$I$3:$I$2156)-AF1201 -> 0 | CS9: 324 | CT9: =SUMIF(Inputs!$G$3:$G$2156,CS9,Inputs!$I$3:$I$2156)-AF1554 -> 0 | CU9: 368 | CV9: =SUMIF(Inputs!$G$3:$G$2156,CU9,Inputs!$I$3:$I$2156)-AF1829 -> 0 | CW9: 25317 | CX9: =SUMIF(Inputs!$G$3:$G$2156,CW9,Inputs!$I$3:$I$2156)-AF2172 -> 0 | CY9: 108OP | CZ9: =SUMIF(Inputs!$G$3:$G$2156,CY9,Inputs!$I$3:$I$2156)-AF2427 -> 0
E10: Preferred | J10: =Variables!$E4 -> 0.0001 | K10: =Variables!$F4 -> 0.0001 | L10: =Variables!$G4 -> 0.0001 | M10: =Variables!$H4 -> 0.0001 | N10: =Variables!$I4 -> 0.0001 | O10: =Variables!$J4 -> 0.0001 | P10: =Variables!$K4 -> 0.0001 | Q10: =Variables!$L4 -> 0.0001 | R10: =Variables!$M4 -> 0.0001 | S10: =Variables!$N4 -> 0.0001 | AA10: Preferred | AF10: =Variables!$E4 -> 0.0001 | AG10: =Variables!$F4 -> 0.0001 | AH10: =Variables!$G4 -> 0.0001 | AI10: =Variables!$H4 -> 0.0001 | AJ10: =Variables!$I4 -> 0.0001 | AK10: =Variables!$J4 -> 0.0001 | AL10: =Variables!$K4 -> 0.0001 | AM10: =Variables!$L4 -> 0.0001 | AN10: =Variables!$M4 -> 0.0001 | AO10: =Variables!$N4 -> 0.0001 | BH10: Hydro O&M | BK10: =-J556 -> -46030961.64 | BM10: 447 | BN10: =SUMIF(Inputs!$B$3:$B$2156,BM10,Inputs!$D$3:$D$2156)-J225 -> 0 | BO10: 531 | BP10: =SUMIF(Inputs!$B$3:$B$2156,BO10,Inputs!$D$3:$D$2156)-J465 -> 0 | BQ10: 572 | BR10: =SUMIF(Inputs!$B$3:$B$2156,BQ10,Inputs!$D$3:$D$2156)-J768 -> 0 | BS10: 922 | BT10: =SUMIF(Inputs!$B$3:$B$2156,BS10,Inputs!$D$3:$D$2156)-J997 -> 0 | BU10: 405 | BV10: =SUMIF(Inputs!$B$3:$B$2156,BU10,Inputs!$D$3:$D$2156)-J1209 -> 0 | BW10: 325 | BX10: =SUMIF(Inputs!$B$3:$B$2156,BW10,Inputs!$D$3:$D$2156)-J1559 -> 0 | BY10: 369 | BZ10: =SUMIF(Inputs!$B$3:$B$2156,BY10,Inputs!$D$3:$D$2156)-J1833 -> 0 | CA10: 25319 | CB10: =SUMIF(Inputs!$B$3:$B$2156,CA10,Inputs!$D$3:$D$2156)-J2176 -> 0 | CC10: 108EP | CD10: =SUMIF(Inputs!$B$3:$B$2156,CC10,Inputs!$D$3:$D$2156)-J2432 -> 0 | CF10: Hydro O&M | CG10: =-AF556 -> -46030961.64 | CI10: 447 | CJ10: =SUMIF(Inputs!$G$3:$G$2156,CI10,Inputs!$I$3:$I$2156)-AF225 -> 0 | CK10: 531 | CL10: =SUMIF(Inputs!$G$3:$G$2156,CK10,Inputs!$I$3:$I$2156)-AF465 -> 0 | CM10: 572 | CN10: =SUMIF(Inputs!$G$3:$G$2156,CM10,Inputs!$I$3:$I$2156)-AF768 -> 0 | CO10: 922 | CP10: =SUMIF(Inputs!$G$3:$G$2156,CO10,Inputs!$I$3:$I$2156)-AF997 -> 0 | CQ10: 405 | CR10: =SUMIF(Inputs!$G$3:$G$2156,CQ10,Inputs!$I$3:$I$2156)-AF1209 -> 0 | CS10: 325 | CT10: =SUMIF(Inputs!$G$3:$G$2156,CS10,Inputs!$I$3:$I$2156)-AF1559 -> 0 | CU10: 369 | CV10: =SUMIF(Inputs!$G$3:$G$2156,CU10,Inputs!$I$3:$I$2156)-AF1833 -> 0 | CW10: 25319 | CX10: =SUMIF(Inputs!$G$3:$G$2156,CW10,Inputs!$I$3:$I$2156)-AF2176 -> 0 | CY10: 108EP | CZ10: =SUMIF(Inputs!$G$3:$G$2156,CY10,Inputs!$I$3:$I$2156)-AF2432 -> 0
E11: Embedded Cost | J11: =Variables!$E8 -> 0.0675 | K11: =Variables!$F8 -> 0.0675 | L11: =Variables!$G8 -> 0.0675 | M11: =Variables!$H8 -> 0.0675 | N11: =Variables!$I8 -> 0.0675 | O11: =Variables!$J8 -> 0.0675 | P11: =Variables!$K8 -> 0.0675 | Q11: =Variables!$L8 -> 0.0675 | R11: =Variables!$M8 -> 0.0675 | S11: =Variables!$N8 -> 0.0675 | AA11: Embedded Cost | AF11: =Variables!$E8 -> 0.0675 | AG11: =Variables!$F8 -> 0.0675 | AH11: =Variables!$G8 -> 0.0675 | AI11: =Variables!$H8 -> 0.0675 | AJ11: =Variables!$I8 -> 0.0675 | AK11: =Variables!$J8 -> 0.0675 | AL11: =Variables!$K8 -> 0.0675 | AM11: =Variables!$L8 -> 0.0675 | AN11: =Variables!$M8 -> 0.0675 | AO11: =Variables!$N8 -> 0.0675 | BH11: Other Prod O&M | BK11: =-J621 -> -361510733.3 | BM11: 447NPC | BN11: =SUMIF(Inputs!$B$3:$B$2156,BM11,Inputs!$D$3:$D$2156)-J231 -> 0 | BO11: 532 | BP11: =SUMIF(Inputs!$B$3:$B$2156,BO11,Inputs!$D$3:$D$2156)-J469 -> 0 | BQ11: 573 | BR11: =SUMIF(Inputs!$B$3:$B$2156,BQ11,Inputs!$D$3:$D$2156)-J773 -> 0 | BS11: 923 | BT11: =SUMIF(Inputs!$B$3:$B$2156,BS11,Inputs!$D$3:$D$2156)-J1003 -> 0 | BU11: 406 | BV11: =SUMIF(Inputs!$B$3:$B$2156,BU11,Inputs!$D$3:$D$2156)-J1217 -> 0 | BW11: NP | BX11: =SUMIF(Inputs!$B$3:$B$2156,BW11,Inputs!$D$3:$D$2156)-J1564 -> 0 | BY11: 370 | BZ11: =SUMIF(Inputs!$B$3:$B$2156,BY11,Inputs!$D$3:$D$2156)-J1837 -> 0 | CA11: 154 | CB11: =SUMIF(Inputs!$B$3:$B$2156,CA11,Inputs!$D$3:$D$2156)-J2193 -> 0 | CC11: 108TP | CD11: =SUMIF(Inputs!$B$3:$B$2156,CC11,Inputs!$D$3:$D$2156)-J2450 -> 0 | CF11: Other Prod O&M | CG11: =-AF621 -> -361510733.3 | CI11: 447NPC | CJ11: =SUMIF(Inputs!$G$3:$G$2156,CI11,Inputs!$I$3:$I$2156)-AF231 -> 0 | CK11: 532 | CL11: =SUMIF(Inputs!$G$3:$G$2156,CK11,Inputs!$I$3:$I$2156)-AF469 -> 0 | CM11: 573 | CN11: =SUMIF(Inputs!$G$3:$G$2156,CM11,Inputs!$I$3:$I$2156)-AF773 -> 0 | CO11: 923 | CP11: =SUMIF(Inputs!$G$3:$G$2156,CO11,Inputs!$I$3:$I$2156)-AF1003 -> 0 | CQ11: 406 | CR11: =SUMIF(Inputs!$G$3:$G$2156,CQ11,Inputs!$I$3:$I$2156)-AF1217 -> 0 | CS11: NP | CT11: =SUMIF(Inputs!$G$3:$G$2156,CS11,Inputs!$I$3:$I$2156)-AF1564 -> 0 | CU11: 370 | CV11: =SUMIF(Inputs!$G$3:$G$2156,CU11,Inputs!$I$3:$I$2156)-AF1837 -> 0 | CW11: 154 | CX11: =SUMIF(Inputs!$G$3:$G$2156,CW11,Inputs!$I$3:$I$2156)-AF2193 -> 0 | CY11: 108TP | CZ11: =SUMIF(Inputs!$G$3:$G$2156,CY11,Inputs!$I$3:$I$2156)-AF2450 -> 0
E12: Preferred Weighted Cost | J12: =J10*J11 -> 6.75e-06 | K12: =K10*K11 -> 6.75e-06 | L12: 6.75e-06 | M12: 6.75e-06 | N12: 6.75e-06 | O12: 6.75e-06 | P12: 6.75e-06 | Q12: 6.75e-06 | R12: 6.75e-06 | S12: =S10*S11 -> 6.75e-06 | AA12: Preferred Weighted Cost | AF12: =AF10*AF11 -> 6.75e-06 | AG12: =AG10*AG11 -> 6.75e-06 | AH12: 6.75e-06 | AI12: 6.75e-06 | AJ12: 6.75e-06 | AK12: 6.75e-06 | AL12: 6.75e-06 | AM12: 6.75e-06 | AN12: 6.75e-06 | AO12: =AO10*AO11 -> 6.75e-06 | BH12: Power Supply | BK12: =-J672 -> -584805732.6 | BM12: 448 | BN12: =SUMIF(Inputs!$B$3:$B$2156,BM12,Inputs!$D$3:$D$2156)-J217 -> 0 | BO12: 535 | BP12: =SUMIF(Inputs!$B$3:$B$2156,BO12,Inputs!$D$3:$D$2156)-J479 -> 0 | BQ12: 580 | BR12: =SUMIF(Inputs!$B$3:$B$2156,BQ12,Inputs!$D$3:$D$2156)-J785 -> 0 | BS12: 924 | BT12: =SUMIF(Inputs!$B$3:$B$2156,BS12,Inputs!$D$3:$D$2156)-J1009 -> 0 | BU12: 407 | BV12: =SUMIF(Inputs!$B$3:$B$2156,BU12,Inputs!$D$3:$D$2156)-J1225 -> 0 | BW12: 330 | BX12: =SUMIF(Inputs!$B$3:$B$2156,BW12,Inputs!$D$3:$D$2156)-J1583 -> 0 | BY12: 371 | BZ12: =SUMIF(Inputs!$B$3:$B$2156,BY12,Inputs!$D$3:$D$2156)-J1841 -> 0 | CA12: 163 | CB12: =SUMIF(Inputs!$B$3:$B$2156,CA12,Inputs!$D$3:$D$2156)-J2198 -> 0 | CC12: 108360 | CD12: =SUMIF(Inputs!$B$3:$B$2156,CC12,Inputs!$D$3:$D$2156)-J2453 -> 0 | CF12: Power Supply | CG12: =-AF672 -> -584805732.6 | CI12: 448 | CJ12: =SUMIF(Inputs!$G$3:$G$2156,CI12,Inputs!$I$3:$I$2156)-AF217 -> 0 | CK12: 535 | CL12: =SUMIF(Inputs!$G$3:$G$2156,CK12,Inputs!$I$3:$I$2156)-AF479 -> 0 | CM12: 580 | CN12: =SUMIF(Inputs!$G$3:$G$2156,CM12,Inputs!$I$3:$I$2156)-AF785 -> 0 | CO12: 924 | CP12: =SUMIF(Inputs!$G$3:$G$2156,CO12,Inputs!$I$3:$I$2156)-AF1009 -> 0 | CQ12: 407 | CR12: =SUMIF(Inputs!$G$3:$G$2156,CQ12,Inputs!$I$3:$I$2156)-AF1225 -> 0 | CS12: 330 | CT12: =SUMIF(Inputs!$G$3:$G$2156,CS12,Inputs!$I$3:$I$2156)-AF1583 -> 0 | CU12: 371 | CV12: =SUMIF(Inputs!$G$3:$G$2156,CU12,Inputs!$I$3:$I$2156)-AF1841 -> 0 | CW12: 163 | CX12: =SUMIF(Inputs!$G$3:$G$2156,CW12,Inputs!$I$3:$I$2156)-AF2198 -> 0 | CY12: 108360 | CZ12: =SUMIF(Inputs!$G$3:$G$2156,CY12,Inputs!$I$3:$I$2156)-AF2453 -> 0
BH13: Trans O&M | BK13: =-J775 -> -222364388.3 | BM13: 449 | BN13: =SUMIF(Inputs!$B$3:$B$2156,BM13,Inputs!$D$3:$D$2156)-J240 -> 0 | BO13: 536 | BP13: =SUMIF(Inputs!$B$3:$B$2156,BO13,Inputs!$D$3:$D$2156)-J486 -> 0 | BQ13: 581 | BR13: =SUMIF(Inputs!$B$3:$B$2156,BQ13,Inputs!$D$3:$D$2156)-J790 -> 0 | BS13: 925 | BT13: =SUMIF(Inputs!$B$3:$B$2156,BS13,Inputs!$D$3:$D$2156)-J1014 -> 0 | BU13: 408 | BV13: =SUMIF(Inputs!$B$3:$B$2156,BU13,Inputs!$D$3:$D$2156)-J1255 -> 0 | BW13: 331 | BX13: =SUMIF(Inputs!$B$3:$B$2156,BW13,Inputs!$D$3:$D$2156)-J1590 -> 0 | BY13: 372 | BZ13: =SUMIF(Inputs!$B$3:$B$2156,BY13,Inputs!$D$3:$D$2156)-J1845 -> 0 | CA13: 25318 | CB13: =SUMIF(Inputs!$B$3:$B$2156,CA13,Inputs!$D$3:$D$2156)-J2203 -> 0 | CC13: 108361 | CD13: =SUMIF(Inputs!$B$3:$B$2156,CC13,Inputs!$D$3:$D$2156)-J2457 -> 0 | CF13: Trans O&M | CG13: =-AF775 -> -222364388.3 | CI13: 449 | CJ13: =SUMIF(Inputs!$G$3:$G$2156,CI13,Inputs!$I$3:$I$2156)-AF240 -> 0 | CK13: 536 | CL13: =SUMIF(Inputs!$G$3:$G$2156,CK13,Inputs!$I$3:$I$2156)-AF486 -> 0 | CM13: 581 | CN13: =SUMIF(Inputs!$G$3:$G$2156,CM13,Inputs!$I$3:$I$2156)-AF790 -> 0 | CO13: 925 | CP13: =SUMIF(Inputs!$G$3:$G$2156,CO13,Inputs!$I$3:$I$2156)-AF1014 -> 0 | CQ13: 408 | CR13: =SUMIF(Inputs!$G$3:$G$2156,CQ13,Inputs!$I$3:$I$2156)-AF1255 -> 0 | CS13: 331 | CT13: =SUMIF(Inputs!$G$3:$G$2156,CS13,Inputs!$I$3:$I$2156)-AF1590 -> 0 | CU13: 372 | CV13: =SUMIF(Inputs!$G$3:$G$2156,CU13,Inputs!$I$3:$I$2156)-AF1845 -> 0 | CW13: 25318 | CX13: =SUMIF(Inputs!$G$3:$G$2156,CW13,Inputs!$I$3:$I$2156)-AF2203 -> 0 | CY13: 108361 | CZ13: =SUMIF(Inputs!$G$3:$G$2156,CY13,Inputs!$I$3:$I$2156)-AF2457 -> 0
BH14: Dist O&M | BK14: =-J876 -> -216090157.9 | BM14: 450 | BN14: =SUMIF(Inputs!$B$3:$B$2156,BM14,Inputs!$D$3:$D$2156)-J246 -> 0 | BO14: 537 | BP14: =SUMIF(Inputs!$B$3:$B$2156,BO14,Inputs!$D$3:$D$2156)-J493 -> 0 | BQ14: 582 | BR14: =SUMIF(Inputs!$B$3:$B$2156,BQ14,Inputs!$D$3:$D$2156)-J795 -> 0 | BS14: 926 | BT14: =SUMIF(Inputs!$B$3:$B$2156,BS14,Inputs!$D$3:$D$2156)-J1020 -> 0 | BU14: 41140 | BV14: =SUMIF(Inputs!$B$3:$B$2156,BU14,Inputs!$D$3:$D$2156)-J1261 -> 0 | BW14: 332 | BX14: =SUMIF(Inputs!$B$3:$B$2156,BW14,Inputs!$D$3:$D$2156)-J1597 -> 0 | BY14: 373 | BZ14: =SUMIF(Inputs!$B$3:$B$2156,BY14,Inputs!$D$3:$D$2156)-J1849 -> 0 | CA14: 165 | CB14: =SUMIF(Inputs!$B$3:$B$2156,CA14,Inputs!$D$3:$D$2156)-J2213 -> 0 | CC14: 108362 | CD14: =SUMIF(Inputs!$B$3:$B$2156,CC14,Inputs!$D$3:$D$2156)-J2461 -> 0 | CF14: Dist O&M | CG14: =-AF876 -> -216090157.9 | CI14: 450 | CJ14: =SUMIF(Inputs!$G$3:$G$2156,CI14,Inputs!$I$3:$I$2156)-AF246 -> 0 | CK14: 537 | CL14: =SUMIF(Inputs!$G$3:$G$2156,CK14,Inputs!$I$3:$I$2156)-AF493 -> 0 | CM14: 582 | CN14: =SUMIF(Inputs!$G$3:$G$2156,CM14,Inputs!$I$3:$I$2156)-AF795 -> 0 | CO14: 926 | CP14: =SUMIF(Inputs!$G$3:$G$2156,CO14,Inputs!$I$3:$I$2156)-AF1020 -> 0 | CQ14: 41140 | CR14: =SUMIF(Inputs!$G$3:$G$2156,CQ14,Inputs!$I$3:$I$2156)-AF1261 -> 0 | CS14: 332 | CT14: =SUMIF(Inputs!$G$3:$G$2156,CS14,Inputs!$I$3:$I$2156)-AF1597 -> 0 | CU14: 373 | CV14: =SUMIF(Inputs!$G$3:$G$2156,CU14,Inputs!$I$3:$I$2156)-AF1849 -> 0 | CW14: 165 | CX14: =SUMIF(Inputs!$G$3:$G$2156,CW14,Inputs!$I$3:$I$2156)-AF2213 -> 0 | CY14: 108362 | CZ14: =SUMIF(Inputs!$G$3:$G$2156,CY14,Inputs!$I$3:$I$2156)-AF2461 -> 0
E15: Common | J15: =Variables!$E5 -> 0.5367 | K15: =Variables!$F5 -> 0.5367 | L15: =Variables!$G5 -> 0.5367 | M15: =Variables!$H5 -> 0.5367 | N15: =Variables!$I5 -> 0.5367 | O15: =Variables!$J5 -> 0.5367 | P15: =Variables!$K5 -> 0.5367 | Q15: =Variables!$L5 -> 0.5367 | R15: =Variables!$M5 -> 0.5367 | S15: =Variables!$N5 -> 0.5367 | AA15: Common | AF15: =Variables!$E5 -> 0.5367 | AG15: =Variables!$F5 -> 0.5367 | AH15: =Variables!$G5 -> 0.5367 | AI15: =Variables!$H5 -> 0.5367 | AJ15: =Variables!$I5 -> 0.5367 | AK15: =Variables!$J5 -> 0.5367 | AL15: =Variables!$K5 -> 0.5367 | AM15: =Variables!$L5 -> 0.5367 | AN15: =Variables!$M5 -> 0.5367 | AO15: =Variables!$N5 -> 0.5367 | BH15: Customer Accts | BK15: =-J911-J980 -> -185845246.4 | BM15: 451 | BN15: =SUMIF(Inputs!$B$3:$B$2156,BM15,Inputs!$D$3:$D$2156)-J252 -> 0 | BO15: 538 | BP15: =SUMIF(Inputs!$B$3:$B$2156,BO15,Inputs!$D$3:$D$2156)-J500 -> 0 | BQ15: 583 | BR15: =SUMIF(Inputs!$B$3:$B$2156,BQ15,Inputs!$D$3:$D$2156)-J800 -> 0 | BS15: 927 | BT15: =SUMIF(Inputs!$B$3:$B$2156,BS15,Inputs!$D$3:$D$2156)-J1025 -> 0 | BU15: 41141 | BV15: =SUMIF(Inputs!$B$3:$B$2156,BU15,Inputs!$D$3:$D$2156)-J1266 -> 0 | BW15: 333 | BX15: =SUMIF(Inputs!$B$3:$B$2156,BW15,Inputs!$D$3:$D$2156)-J1604 -> 0 | BY15: DP | BZ15: =SUMIF(Inputs!$B$3:$B$2156,BY15,Inputs!$D$3:$D$2156)-J1853 -> 0 | CA15: 182M | CB15: =SUMIF(Inputs!$B$3:$B$2156,CA15,Inputs!$D$3:$D$2156)-J2223 -> 0 | CC15: 108363 | CD15: =SUMIF(Inputs!$B$3:$B$2156,CC15,Inputs!$D$3:$D$2156)-J2465 -> 0 | CF15: Customer Accts | CG15: =-AF911-AF980 -> -185845246.4 | CI15: 451 | CJ15: =SUMIF(Inputs!$G$3:$G$2156,CI15,Inputs!$I$3:$I$2156)-AF252 -> 0 | CK15: 538 | CL15: =SUMIF(Inputs!$G$3:$G$2156,CK15,Inputs!$I$3:$I$2156)-AF500 -> 0 | CM15: 583 | CN15: =SUMIF(Inputs!$G$3:$G$2156,CM15,Inputs!$I$3:$I$2156)-AF800 -> 0 | CO15: 927 | CP15: =SUMIF(Inputs!$G$3:$G$2156,CO15,Inputs!$I$3:$I$2156)-AF1025 -> 0 | CQ15: 41141 | CR15: =SUMIF(Inputs!$G$3:$G$2156,CQ15,Inputs!$I$3:$I$2156)-AF1266 -> 0 | CS15: 333 | CT15: =SUMIF(Inputs!$G$3:$G$2156,CS15,Inputs!$I$3:$I$2156)-AF1604 -> 0 | CU15: DP | CV15: =SUMIF(Inputs!$G$3:$G$2156,CU15,Inputs!$I$3:$I$2156)-AF1853 -> 0 | CW15: 182M | CX15: =SUMIF(Inputs!$G$3:$G$2156,CW15,Inputs!$I$3:$I$2156)-AF2223 -> 0 | CY15: 108363 | CZ15: =SUMIF(Inputs!$G$3:$G$2156,CY15,Inputs!$I$3:$I$2156)-AF2465 -> 0
E16: Embedded Cost | J16: =Variables!$E9 -> 0.0925 | K16: =Variables!$F9 -> 0.102 | L16: =Variables!$G9 -> 0.102 | M16: =Variables!$H9 -> 0.102 | N16: =Variables!$I9 -> 0.102 | O16: =Variables!$J9 -> 0.102 | P16: =Variables!$K9 -> 0.0925 | Q16: =Variables!$L9 -> 0.102 | R16: =Variables!$M9 -> 0.102 | S16: =Variables!$N9 -> 0.102 | AA16: Embedded Cost | AF16: =Variables!$E9 -> 0.0925 | AG16: =Variables!$F9 -> 0.102 | AH16: =Variables!$G9 -> 0.102 | AI16: =Variables!$H9 -> 0.102 | AJ16: =Variables!$I9 -> 0.102 | AK16: =Variables!$J9 -> 0.102 | AL16: =Variables!$K9 -> 0.0925 | AM16: =Variables!$L9 -> 0.102 | AN16: =Variables!$M9 -> 0.102 | AO16: =Variables!$N9 -> 0.102 | BH16: A&G | BK16: =-J1057 -> -134619050.9 | BM16: 453 | BN16: =SUMIF(Inputs!$B$3:$B$2156,BM16,Inputs!$D$3:$D$2156)-J256 -> 0 | BO16: 539 | BP16: =SUMIF(Inputs!$B$3:$B$2156,BO16,Inputs!$D$3:$D$2156)-J508 -> 0 | BQ16: 584 | BR16: =SUMIF(Inputs!$B$3:$B$2156,BQ16,Inputs!$D$3:$D$2156)-J805 -> 0 | BS16: 928 | BT16: =SUMIF(Inputs!$B$3:$B$2156,BS16,Inputs!$D$3:$D$2156)-J1032 -> 0 | BU16: 427 | BV16: =SUMIF(Inputs!$B$3:$B$2156,BU16,Inputs!$D$3:$D$2156)-J1274 -> -26436103.57 | BW16: 334 | BX16: =SUMIF(Inputs!$B$3:$B$2156,BW16,Inputs!$D$3:$D$2156)-J1611 -> 0 | BY16: DSO | BZ16: =SUMIF(Inputs!$B$3:$B$2156,BY16,Inputs!$D$3:$D$2156)-J1857 -> 0 | CA16: 186M | CB16: =SUMIF(Inputs!$B$3:$B$2156,CA16,Inputs!$D$3:$D$2156)-J2234 -> 0 | CC16: 108364 | CD16: =SUMIF(Inputs!$B$3:$B$2156,CC16,Inputs!$D$3:$D$2156)-J2469 -> 0 | CF16: A&G | CG16: =-AF1057 -> -134619050.9 | CI16: 453 | CJ16: =SUMIF(Inputs!$G$3:$G$2156,CI16,Inputs!$I$3:$I$2156)-AF256 -> 0 | CK16: 539 | CL16: =SUMIF(Inputs!$G$3:$G$2156,CK16,Inputs!$I$3:$I$2156)-AF508 -> 0 | CM16: 584 | CN16: =SUMIF(Inputs!$G$3:$G$2156,CM16,Inputs!$I$3:$I$2156)-AF805 -> 0 | CO16: 928 | CP16: =SUMIF(Inputs!$G$3:$G$2156,CO16,Inputs!$I$3:$I$2156)-AF1032 -> 0 | CQ16: 427 | CR16: =SUMIF(Inputs!$G$3:$G$2156,CQ16,Inputs!$I$3:$I$2156)-AF1274-AF1297 -> -26436103.57 | CS16: 334 | CT16: =SUMIF(Inputs!$G$3:$G$2156,CS16,Inputs!$I$3:$I$2156)-AF1611 -> 0 | CU16: DSO | CV16: =SUMIF(Inputs!$G$3:$G$2156,CU16,Inputs!$I$3:$I$2156)-AF1857 -> 0 | CW16: 186M | CX16: =SUMIF(Inputs!$G$3:$G$2156,CW16,Inputs!$I$3:$I$2156)-AF2234 -> 0 | CY16: 108364 | CZ16: =SUMIF(Inputs!$G$3:$G$2156,CY16,Inputs!$I$3:$I$2156)-AF2469 -> 0
E17: Common Weighted Cost | J17: =J15*J16 -> 0.04964475 | K17: =K15*K16 -> 0.0547434 | L17: 0.0547434 | M17: 0.0547434 | N17: 0.0547434 | O17: 0.0547434 | P17: 0.04964475 | Q17: 0.0547434 | R17: 0.0547434 | S17: =S15*S16 -> 0.0547434 | AA17: Common Weighted Cost | AF17: =AF15*AF16 -> 0.04964475 | AG17: =AG15*AG16 -> 0.0547434 | AH17: 0.0547434 | AI17: 0.0547434 | AJ17: 0.0547434 | AK17: 0.0547434 | AL17: 0.04964475 | AM17: 0.0547434 | AN17: 0.0547434 | AO17: =AO15*AO16 -> 0.0547434 | BH17: Total O&M Expense | BK17: =SUM(BK7:BK16) -> -2659402119 | BM17: 454 | BN17: =SUMIF(Inputs!$B$3:$B$2156,BM17,Inputs!$D$3:$D$2156)-J263 -> 0 | BO17: 540 | BP17: =SUMIF(Inputs!$B$3:$B$2156,BO17,Inputs!$D$3:$D$2156)-J515 -> 0 | BQ17: 585 | BR17: =SUMIF(Inputs!$B$3:$B$2156,BQ17,Inputs!$D$3:$D$2156)-J810 -> 0 | BS17: 929 | BT17: =SUMIF(Inputs!$B$3:$B$2156,BS17,Inputs!$D$3:$D$2156)-J1037 -> 0 | BU17: 428 | BV17: =SUMIF(Inputs!$B$3:$B$2156,BU17,Inputs!$D$3:$D$2156)-J1278-J1298 -> 0 | BW17: 335 | BX17: =SUMIF(Inputs!$B$3:$B$2156,BW17,Inputs!$D$3:$D$2156)-J1620 -> 0 | BY17: 389 | BZ17: =SUMIF(Inputs!$B$3:$B$2156,BY17,Inputs!$D$3:$D$2156)-J1872 -> 0 | CA17: CWC | CB17: =SUMIF(Inputs!$B$3:$B$2156,CA17,Inputs!$D$3:$D$2156) -> 0 | CC17: 108365 | CD17: =SUMIF(Inputs!$B$3:$B$2156,CC17,Inputs!$D$3:$D$2156)-J2473 -> 0 | CF17: Total O&M Expense | CG17: =SUM(CG7:CG16) -> -2659402119 | CI17: 454 | CJ17: =SUMIF(Inputs!$G$3:$G$2156,CI17,Inputs!$I$3:$I$2156)-AF263 -> 0 | CK17: 540 | CL17: =SUMIF(Inputs!$G$3:$G$2156,CK17,Inputs!$I$3:$I$2156)-AF515 -> 0 | CM17: 585 | CN17: =SUMIF(Inputs!$G$3:$G$2156,CM17,Inputs!$I$3:$I$2156)-AF810 -> 0 | CO17: 929 | CP17: =SUMIF(Inputs!$G$3:$G$2156,CO17,Inputs!$I$3:$I$2156)-AF1037 -> 0 | CQ17: 428 | CR17: =SUMIF(Inputs!$G$3:$G$2156,CQ17,Inputs!$I$3:$I$2156)-AF1278-AF1298 -> 0 | CS17: 335 | CT17: =SUMIF(Inputs!$G$3:$G$2156,CS17,Inputs!$I$3:$I$2156)-AF1620 -> 0 | CU17: 389 | CV17: =SUMIF(Inputs!$G$3:$G$2156,CU17,Inputs!$I$3:$I$2156)-AF1872 -> 0 | CW17: CWC | CX17: =SUMIF(Inputs!$G$3:$G$2156,CW17,Inputs!$I$3:$I$2156) -> 0 | CY17: 108365 | CZ17: =SUMIF(Inputs!$G$3:$G$2156,CY17,Inputs!$I$3:$I$2156)-AF2473 -> 0
BM18: 456 | BN18: =SUMIF(Inputs!$B$3:$B$2156,BM18,Inputs!$D$3:$D$2156)-J275 -> 0 | BO18: 541 | BP18: =SUMIF(Inputs!$B$3:$B$2156,BO18,Inputs!$D$3:$D$2156)-J522 -> 0 | BQ18: 586 | BR18: =SUMIF(Inputs!$B$3:$B$2156,BQ18,Inputs!$D$3:$D$2156)-J815 -> 0 | BS18: 930 | BT18: =SUMIF(Inputs!$B$3:$B$2156,BS18,Inputs!$D$3:$D$2156)-J1044 -> 0 | BU18: 429 | BV18: =SUMIF(Inputs!$B$3:$B$2156,BU18,Inputs!$D$3:$D$2156)-J1282-J1299 -> 0 | BW18: 336 | BX18: =SUMIF(Inputs!$B$3:$B$2156,BW18,Inputs!$D$3:$D$2156)-J1627 -> 0 | BY18: 390 | BZ18: =SUMIF(Inputs!$B$3:$B$2156,BY18,Inputs!$D$3:$D$2156)-J1882 -> 0 | CA18: 131 | CB18: =SUMIF(Inputs!$B$3:$B$2156,CA18,Inputs!$D$3:$D$2156)-J2244 -> 0 | CC18: 108366 | CD18: =SUMIF(Inputs!$B$3:$B$2156,CC18,Inputs!$D$3:$D$2156)-J2477 -> 0 | CI18: 456 | CJ18: =SUMIF(Inputs!$G$3:$G$2156,CI18,Inputs!$I$3:$I$2156)-AF275 -> 0 | CK18: 541 | CL18: =SUMIF(Inputs!$G$3:$G$2156,CK18,Inputs!$I$3:$I$2156)-AF522 -> 0 | CM18: 586 | CN18: =SUMIF(Inputs!$G$3:$G$2156,CM18,Inputs!$I$3:$I$2156)-AF815 -> 0 | CO18: 930 | CP18: =SUMIF(Inputs!$G$3:$G$2156,CO18,Inputs!$I$3:$I$2156)-AF1044 -> 0 | CQ18: 429 | CR18: =SUMIF(Inputs!$G$3:$G$2156,CQ18,Inputs!$I$3:$I$2156)-AF1282-AF1299 -> 0 | CS18: 336 | CT18: =SUMIF(Inputs!$G$3:$G$2156,CS18,Inputs!$I$3:$I$2156)-AF1627 -> 0 | CU18: 390 | CV18: =SUMIF(Inputs!$G$3:$G$2156,CU18,Inputs!$I$3:$I$2156)-AF1882 -> 0 | CW18: 131 | CX18: =SUMIF(Inputs!$G$3:$G$2156,CW18,Inputs!$I$3:$I$2156)-AF2244 -> 0 | CY18: 108366 | CZ18: =SUMIF(Inputs!$G$3:$G$2156,CY18,Inputs!$I$3:$I$2156)-AF2477 -> 0
